Workbook

Sheet __snloffice (hidden)
A1: 允䅁䉁䅉䅁䍁䅁䅁䅁䩁䅁䅁杄䅁䑁䅉䅍硁䑁䅧兕硁䅁䅁兂䅁䅁䄴䅁祁䑁䅁免㑁䙁䅅杍䅁䅁䅣䅁佁䅁䅁杍睁䑁䅅䅏剂䑁䅍䅁䥁䅁䅁杄䅁䑁䅉䅍硁䑁䅧兕ぁ䅁䅁䅁䅁䅁䅷䅁祁䑁䅁免㕁䙁䅫䅁乁䅁䅁李䅁䕁䅅杤湂䍁䅁睒桂䡁䅍䅉䑂䡁䅕督あ䝁䄸兢求䡁䅉督杁䍁䅧兙橂䡁䅑兤桂䝁䅷克䅁䅁䅑䅁捁䅁䅁睑療䝁䄰䅣桂䝁䄴入杁䕁䄴兙瑂䝁䅕䅉䅁䉁䅅䅁歁䅁䅁兓畂䡁䅍䅤灂䡁䅑兤あ䝁䅫睢畂䍁䅁杔桂䝁䄰党杁䅁䅁权䅁䥁䄴䅁偂䡁䅁䅤灂䝁䄸杢穂䑁䅯睑ㅂ䡁䅉杣㥁䙁䅉党睂䝁䄸杣あ䝁䅕䅚杁䝁䅍兤祂䡁䅉党畂䝁䅍入獁䕁䄰兙湂䑁䄰兔䩂䡁䅍䅤桂䝁䄴䅚桂䡁䅉䅚獁䕁䅍睢畂䡁䅙兔求䡁䅑䅡療䝁䅑児乂䕁䅫杣求䝁䅍睢瑂䝁䄰党畂䝁䅑党歂䅁䅁杁䅁䍁䅧䅁偂䡁䅉兡湂䝁䅫杢桂䝁䅷䅢㕂䍁䅁杕求䡁䅁睢祂䡁䅑党歂䅁䅁允䅁䑁䅷䅁兂䡁䅉党浂䝁䅕杣祂䝁䅕䅚杁䙁䅍䅤療䝁䅍睡杁䕁䅫督穂䡁䅕党歂䍁䅁䅋歁䑁䅁䅍睁䍁䅫䅁偁䅁䅁杕䅁䙁䅉党睂䝁䄸杣あ䝁䅕䅚杁䕁䄴党あ䍁䅁睔睂䝁䅕杣桂䡁䅑兡畂䝁䅣䅉䩂䝁䄴睙療䝁䄰党杁䍁䅧杕求䡁䅁睢祂䡁䅑党歂䍁䅫䅁䑁䅁䅁杋䅁䙁䅍杔䵂䍁䅁兓畂䡁䅍䅤灂䡁䅑兤あ䝁䅫睢畂䍁䅁睓求䡁䅫䅉䅁䅁䅳䅁㑁䅁䅁䅖療䡁䅑兙獂䍁䅁䅔療䝁䄴睚瑁䡁䅑党祂䝁䄰䅉䕂䝁䅕杙あ䍁䅁䅋歁䑁䅁䅍睁䍁䅫䅁允䅁䅁村䅁䙁䅑睢あ䝁䅅䅢杁䙁䅁杣療䡁䅁杣灂䝁䅕䅤桂䡁䅉入杁䕁䅍兙睂䝁䅫䅤桂䝁䅷䅉潁䍁䅑䅍睁䑁䅁克䅁䅁䄴䅁祁䅁䅁䅖療䡁䅑兙獂䍁䅁杕求䡁䅙党畂䡁䅕党杁䍁䅧杕求䡁䅁睢祂䡁䅑党歂䍁䅫䅁䝁䅁䅁䅐䅁䙁䅕䅢あ䝁䅫兢桂䡁䅑党杁䙁䅁兙祂䝁䅕杢あ䍁䅁睑療䝁䄰䅣桂䝁䄴入杁䕁䄴兙瑂䝁䅕䅉䅁䅁䅷䅁䅁䅁䅁

Sheet 1.1 Recommended Cap Structure
A1: =Input!G28 -> Water Service Corporation of Kentucky
A2: Recommended Capital Structure and Cost Rates
A3: for Ratemaking Purposes
B5: Type Of Capital | D5: Ratios (1) | F5: Cost Rate | H5: Weighted Cost Rate
B7: Long-Term Debt | D7: 0.5029 | F7: =Input!F16 -> 0.0471 | G7: (1) | H7: =ROUND(F7*D7,4) -> 0.0237
B8: Common Equity | D8: 0.4971 | F8: ='1.2 Summary of CE Models'!E21 -> 0.106 | G8: (2) | H8: =ROUND(F8*D8,4) -> 0.0527
B10: Total | D10: =SUM(D7:D8) -> 1 | H10: =SUM(H7:H8) -> 0.0764
A13: Notes:
A15: (1) | B15: Company-provided.
A16: (2) | B16: From page 2 of this Schedule.

Sheet 1.2 Summary of CE Models
A1: =Input!G28 -> Water Service Corporation of Kentucky
A2: Brief Summary of Common Equity Cost Rate
L4: EX PRPM
A5: Line No. | C5: Principal Methods | E5: =Input!I31 -> Proxy Group of Seven Water Companies | G5: =Input!I31&" ex PRPM" -> Proxy Group of Seven Water Companies ex PRPM | I5: before adj | L5: before adj
I6: average | J6: median | L6: average | M6: median
A7: 1. | C7: Discounted Cash Flow Model (DCF) (1) | E7: =IFERROR('3.1 DCF Summary'!V22,"NA")/100 -> 0.0963 | G7: =IFERROR('3.1 DCF Summary'!V22,"NA")/100 -> 0.0963 | I7: =AVERAGE(E7:E13) ->  | J7: =MEDIAN(E7:E13) ->  | L7: =AVERAGE(G7:G13) ->  | M7: =MEDIAN(G7:G13) -> 
A9: 2. | C9: Risk Premium Model (RPM) (2) | E9: =IFERROR('4.1 RPM Summary'!D10,"NA")/100 -> 0.1306 | G9: ='4.1 RPM Summary'!G10/100 ->  | I9: min | J9: max | L9: min | M9: max
I10: =MIN(E7:E13) ->  | J10: =MAX(E7:E13) ->  | L10: =MIN(G7:G13) ->  | M10: =MAX(G7:G13) -> 
A11: 3. | C11: Capital Asset Pricing Model (CAPM) (3) | E11: =IFERROR('5.1 CAPM'!V21,"NA")/100 -> 0.1152 | G11: ='5.1 CAPM'!V41/100 -> 0.1166
A13: 4. | C13: Market Models Applied to Comparable Risk, Non-Price Regulated Companies (4) | E13: =IFERROR('7.1 CEM Summary'!F19,"NA")/100 ->  | G13: ='7.1 CEM Summary'!I19/100 -> 
A15: 5. | C15: Indicated Common Equity Cost Rate before Adjustment for Unique Risk | E15: 9.63% - 11.72% | G15: 9.63% - 11.66%
A17: 6. | C17: Size Risk Adjustment (5) | E17: 0.01 | G17: 0.01
A19: 7. | C19: Indicated Common Equity Cost Rate after Adjustment | E19: 10.63% - 12.72% | G19: 10.63% - 12.66%
A21: 8. | C21: Recommended Common Equity Cost Rate | E21: 0.106
A23: Notes:
B24: (1) | C24: From page 1 of Schedule DWD-3.
B25: (2) | C25: From page 1 of Schedule DWD-4.
B26: (3) | C26: From page 1 of Schedule DWD-5.
B27: (4) | C27: From page 1 of Schedule DWD-7.
B28: (5) | C28: Size risk adjustment to reflect Water Service Kentucky's smaller size compared to the Utility Proxy Group as detailed in Mr. D'Ascendis' Direct Testimony.

Sheet 2.1 Proxy CapStr Summary
A1: Proxy Group of Seven Water Companies
A2: CAPITALIZATION AND FINANCIAL STATISTICS (1)
A3: 2017 - 2021, Inclusive
C6: 2021 | E6: 2020 | G6: 2019 | I6: 2018 | K6: 2017
C7: (MILLIONS OF DOLLARS)
A8: Capitalization Statistics
A10: Amount of Capital Employed
A11: Total Permanent Capital | C11: =ROUND(AVERAGE('3. AWR:3. YORW'!S17),3) -> 5096.955 | E11: =ROUND(AVERAGE('3. AWR:3. YORW'!U17),3) -> 4622.646 | G11: =ROUND(AVERAGE('3. AWR:3. YORW'!W17),3) -> 3885.041 | I11: =ROUND(AVERAGE('3. AWR:3. YORW'!Y17),3) -> 3208.636 | K11: =ROUND(AVERAGE('3. AWR:3. YORW'!AA17),3) -> 2837.657
A12: Short-Term Debt | C12: =ROUND(AVERAGE('3. AWR:3. YORW'!S18),3) -> 133.499 | E12: =ROUND(AVERAGE('3. AWR:3. YORW'!U18),3) -> 291.642 | G12: =ROUND(AVERAGE('3. AWR:3. YORW'!W18),3) -> 189.862 | I12: =ROUND(AVERAGE('3. AWR:3. YORW'!Y18),3) -> 184.221 | K12: =ROUND(AVERAGE('3. AWR:3. YORW'!AA18),3) -> 185.25
A13: Total Capital Employed | C13: =SUM(C11:C12) -> 5230.454 | E13: =SUM(E11:E12) -> 4914.288 | G13: =SUM(G11:G12) -> 4074.903 | I13: =SUM(I11:I12) -> 3392.857 | K13: =SUM(K11:K12) -> 3022.907
A15: Indicated Average Capital Cost Rates (2)
A16: Total Debt | C16: =ROUND(AVERAGE('3. AWR:3. YORW'!S22),3) -> 3.547 | D16: % | E16: =ROUND(AVERAGE('3. AWR:3. YORW'!U22),3) -> 3.836 | F16: % | G16: =ROUND(AVERAGE('3. AWR:3. YORW'!W22),3) -> 4.179 | H16: % | I16: =ROUND(AVERAGE('3. AWR:3. YORW'!Y22),3) -> 4.75 | J16: % | K16: =ROUND(AVERAGE('3. AWR:3. YORW'!AA22),3) -> 4.829 | L16: %
A17: Preferred Stock | C17: =ROUND(AVERAGE('3. AWR:3. YORW'!S23),3) -> 5.76 | D17: % | E17: =ROUND(AVERAGE('3. AWR:3. YORW'!U23),3) -> 5.76 | F17: % | G17: =ROUND(AVERAGE('3. AWR:3. YORW'!W23),3) -> 5.84 | H17: % | I17: =ROUND(AVERAGE('3. AWR:3. YORW'!Y23),3) -> 5.92 | J17: % | K17: =ROUND(AVERAGE('3. AWR:3. YORW'!AA23),3) -> 5.91 | L17: %
M18: 5 YEAR
A19: Capital Structure Ratios | M19: AVERAGE
A20: Based on Total Permanent Capital:
A21: Long-Term Debt | C21: =ROUND(AVERAGE('3. AWR:3. YORW'!S27),2) -> 50.01 | D21: % | E21: =ROUND(AVERAGE('3. AWR:3. YORW'!U27),2) -> 50.26 | F21: % | G21: =ROUND(AVERAGE('3. AWR:3. YORW'!W27),2) -> 47.11 | H21: % | I21: =ROUND(AVERAGE('3. AWR:3. YORW'!Y27),2) -> 45.15 | J21: % | K21: =ROUND(AVERAGE('3. AWR:3. YORW'!AA27),2) -> 45.58 | L21: % | M21: =ROUND(AVERAGE(C21:K21),2) -> 47.62 | N21: %
A22: Preferred Stock | C22: =ROUND(AVERAGE('3. AWR:3. YORW'!S28),2) -> 0.05 | E22: =ROUND(AVERAGE('3. AWR:3. YORW'!U28),2) -> 0.05 | G22: =ROUND(AVERAGE('3. AWR:3. YORW'!W28),2) -> 0.06 | I22: =ROUND(AVERAGE('3. AWR:3. YORW'!Y28),2) -> 0.09 | K22: =ROUND(AVERAGE('3. AWR:3. YORW'!AA28),2) -> 0.1 | M22: =ROUND(AVERAGE(C22:K22),2) -> 0.07
A23: Common Equity | C23: =ROUND(AVERAGE('3. AWR:3. YORW'!S29),2) -> 49.94 | E23: =ROUND(AVERAGE('3. AWR:3. YORW'!U29),2) -> 49.69 | G23: =ROUND(AVERAGE('3. AWR:3. YORW'!W29),2) -> 52.83 | I23: =ROUND(AVERAGE('3. AWR:3. YORW'!Y29),2) -> 54.76 | K23: =ROUND(AVERAGE('3. AWR:3. YORW'!AA29),2)+0.01 -> 54.32 | M23: =ROUND(AVERAGE(C23:K23),2) -> 52.31
A24: Total | C24: =ROUND(SUM(C21:C23),2) -> 100 | D24: % | E24: =ROUND(SUM(E21:E23),2) -> 100 | F24: % | G24: =ROUND(SUM(G21:G23),2) -> 100 | H24: % | I24: =ROUND(SUM(I21:I23),2) -> 100 | J24: % | K24: =ROUND(SUM(K21:K23),2) -> 100 | L24: % | M24: =ROUND(SUM(M21:M23),2) -> 100 | N24: %
A26: Based on Total Capital:
A27: Total Debt, Including Short-Term Debt | C27: =ROUND(AVERAGE('3. AWR:3. YORW'!S33),2) -> 51.86 | D27: % | E27: =ROUND(AVERAGE('3. AWR:3. YORW'!U33),2) -> 53.47 | F27: % | G27: =ROUND(AVERAGE('3. AWR:3. YORW'!W33),2) -> 50.55 | H27: % | I27: =ROUND(AVERAGE('3. AWR:3. YORW'!Y33),2) -> 48.37 | J27: % | K27: =ROUND(AVERAGE('3. AWR:3. YORW'!AA33),2) -> 48.93 | L27: % | M27: =ROUND(AVERAGE(C27:K27),2) -> 50.64 | N27: %
A28: Preferred Stock | C28: =ROUND(AVERAGE('3. AWR:3. YORW'!S34),2)-0.01 -> 0.03 | E28: =ROUND(AVERAGE('3. AWR:3. YORW'!U34),2) -> 0.05 | G28: =ROUND(AVERAGE('3. AWR:3. YORW'!W34),2) -> 0.06 | I28: =ROUND(AVERAGE('3. AWR:3. YORW'!Y34),2) -> 0.08 | K28: =ROUND(AVERAGE('3. AWR:3. YORW'!AA34),2) -> 0.09 | M28: =ROUND(AVERAGE(C28:K28),2) -> 0.06
A29: Common Equity | C29: =ROUND(AVERAGE('3. AWR:3. YORW'!S35),2) -> 48.1 | E29: =ROUND(AVERAGE('3. AWR:3. YORW'!U35),2) -> 46.48 | G29: =ROUND(AVERAGE('3. AWR:3. YORW'!W35),2) -> 49.39 | I29: =ROUND(AVERAGE('3. AWR:3. YORW'!Y35),2)+0.01 -> 51.55 | K29: =ROUND(AVERAGE('3. AWR:3. YORW'!AA35),2) -> 50.98 | M29: =ROUND(AVERAGE(C29:K29),2) -> 49.3
A30: Total | C30: =ROUND(SUM(C27:C29),1) -> 100 | D30: % | E30: =ROUND(SUM(E27:E29),2) -> 100 | F30: % | G30: =ROUND(SUM(G27:G29),2) -> 100 | H30: % | I30: =ROUND(SUM(I27:I29),2) -> 100 | J30: % | K30: =ROUND(SUM(K27:K29),2) -> 100 | L30: % | M30: =ROUND(SUM(M27:M29),2) -> 100 | N30: %
A32: Financial Statistics
A34: Financial Ratios - Market Based
A35: Earnings / Price Ratio | C35: =ROUND(AVERAGE('3. AWR:3. YORW'!S43),3) -> 3.136 | D35: % | E35: =ROUND(AVERAGE('3. AWR:3. YORW'!U43),3) -> 3.2 | F35: % | G35: =ROUND(AVERAGE('3. AWR:3. YORW'!W43),3) -> 2.671 | H35: % | I35: =ROUND(AVERAGE('3. AWR:3. YORW'!Y43),3) -> 3.329 | J35: % | K35: =ROUND(AVERAGE('3. AWR:3. YORW'!AA43),3) -> 3.647 | L35: % | M35: =ROUND(AVERAGE(C35:K35),2) -> 3.2 | N35: %
A36: Market / Average Book Ratio | C36: =ROUND(AVERAGE('3. AWR:3. YORW'!S44),3) -> 361.914 | E36: =ROUND(AVERAGE('3. AWR:3. YORW'!U44),3) -> 328.251 | G36: =ROUND(AVERAGE('3. AWR:3. YORW'!W44),3) -> 340.26 | I36: =ROUND(AVERAGE('3. AWR:3. YORW'!Y44),3) -> 308.456 | K36: =ROUND(AVERAGE('3. AWR:3. YORW'!AA44),3) -> 310.747 | M36: =ROUND(AVERAGE(C36:K36),2) -> 329.93
A37: Dividend Yield | C37: =ROUND(AVERAGE('3. AWR:3. YORW'!S45),3) -> 1.659 | E37: =ROUND(AVERAGE('3. AWR:3. YORW'!U45),3) -> 1.813 | G37: =ROUND(AVERAGE('3. AWR:3. YORW'!W45),3) -> 1.773 | I37: =ROUND(AVERAGE('3. AWR:3. YORW'!Y45),3) -> 1.996 | K37: =ROUND(AVERAGE('3. AWR:3. YORW'!AA45),3) -> 1.99 | M37: =ROUND(AVERAGE(C37:K37),2) -> 1.85
A38: Dividend Payout Ratio | C38: =ROUND(AVERAGE('3. AWR:3. YORW'!S46),3) -> 53.256 | E38: =ROUND(AVERAGE('3. AWR:3. YORW'!U46),3) -> 56.811 | G38: =ROUND(AVERAGE('3. AWR:3. YORW'!W46),3) -> 72.344 | I38: =ROUND(AVERAGE('3. AWR:3. YORW'!Y46),3) -> 60.084 | K38: =ROUND(AVERAGE('3. AWR:3. YORW'!AA46),3) -> 55.797 | M38: =ROUND(AVERAGE(C38:K38),2) -> 59.66
A40: Rate of Return on Average Book Common Equity | C40: =ROUND(AVERAGE('3. AWR:3. YORW'!S48),3) -> 11.26 | D40: % | E40: =ROUND(AVERAGE('3. AWR:3. YORW'!U48),3) -> 10.489 | F40: % | G40: =ROUND(AVERAGE('3. AWR:3. YORW'!W48),3) -> 9.484 | H40: % | I40: =ROUND(AVERAGE('3. AWR:3. YORW'!Y48),3) -> 10.121 | J40: % | K40: =ROUND(AVERAGE('3. AWR:3. YORW'!AA48),3) -> 11.309 | L40: % | M40: =ROUND(AVERAGE(C40:K40),2) -> 10.53 | N40: %
A42: Total Debt / EBITDA (3) | C42: =ROUND(AVERAGE('3. AWR:3. YORW'!S50),3) -> 4.95 | D42: x | E42: =ROUND(AVERAGE('3. AWR:3. YORW'!U50),3) -> 5.333 | F42: x | G42: =ROUND(AVERAGE('3. AWR:3. YORW'!W50),3) -> 5.571 | H42: x | I42: =ROUND(AVERAGE('3. AWR:3. YORW'!Y50),3) -> 4.22 | J42: x | K42: =ROUND(AVERAGE('3. AWR:3. YORW'!AA50),3) -> 3.421 | L42: x | M42: =ROUND(AVERAGE(C42:K42),2) -> 4.7 | N42: x
A44: Funds from Operations / Total Debt (4) | C44: =ROUND(AVERAGE('3. AWR:3. YORW'!S52),3) -> 11.664 | D44: % | E44: =ROUND(AVERAGE('3. AWR:3. YORW'!U52),3) -> 12.106 | F44: % | G44: =ROUND(AVERAGE('3. AWR:3. YORW'!W52),3) -> 14.516 | H44: % | I44: =ROUND(AVERAGE('3. AWR:3. YORW'!Y52),3) -> 21.374 | J44: % | K44: =ROUND(AVERAGE('3. AWR:3. YORW'!AA52),3) -> 22.866 | L44: % | M44: =ROUND(AVERAGE(C44:K44),2) -> 16.51 | N44: %
A46: Total Debt / Total Capital | C46: =C27 -> 51.86 | D46: % | E46: =E27 -> 53.47 | F46: % | G46: =G27 -> 50.55 | H46: % | I46: =I27 -> 48.37 | J46: % | K46: =K27 -> 48.93 | L46: % | M46: =ROUND(AVERAGE(C46:K46),2) -> 50.64 | N46: %
A48: Notes:
A49: (1) | B49: All capitalization and financial statistics for the group are the arithmetic average of the achieved results for each individual company in the group, and are based upon financial statements as originally reported in each year.
A50: (2) | B50: Computed by relating actual total debt interest or preferred stock dividends booked to average of beginning and ending total debt or preferred stock reported to be outstanding.
A51: (3) | B51: Total debt relative to EBITDA (Earnings before Interest, Income Taxes, Depreciation and Amortization).
A52: (4) | B52: Funds from operations (sum of net income, depreciation, amortization, net deferred income tax and investment tax credits, less total AFUDC) plus interest charges as a percentage of total debt.
A53: Source of Information: | B53: Company Annual Forms 10-K

Sheet 2.2 Capital Str. (Total Cap)
B1: Capital Structure Based upon Total Permanent Capital for the
B2: Proxy Group of Seven Water Companies
B3: ='2.1 Proxy CapStr Summary'!A3 -> 2017 - 2021, Inclusive
N5: 5 YEAR | R5: =MIN(D11,D17,D23,D29,D35,D41,D47) -> 40.31
D6: 2021 | F6: =D6-1 -> 2020 | H6: =F6-1 -> 2019 | J6: =H6-1 -> 2018 | L6: =J6-1 -> 2017 | N6: AVERAGE | R6: =MAX(D11,D17,D23,D29,D35,D41,D47) -> 62.44
A8: =Input!A2 -> AWR | B8: =VLOOKUP($A8,'Proxy Data Lookup'!$A:$B,2,FALSE) -> American States Water Company
B9: Long-Term Debt | D9: =ROUND('3. AWR'!C$12/'3. AWR'!C$50*100,2) -> 37.56 | E9: % | F9: =ROUND('3. AWR'!E$12/'3. AWR'!E$50*100,2) -> 40.72 | G9: % | H9: =ROUND('3. AWR'!G$12/'3. AWR'!G$50*100,2) -> 31.87 | I9: % | J9: =ROUND('3. AWR'!I$12/'3. AWR'!I$50*100,2) -> 36.54 | K9: % | L9: =ROUND('3. AWR'!K$12/'3. AWR'!K$50*100,2) -> 37.75 | M9: % | N9: =ROUND(AVERAGE(D9:L9),2) -> 36.89 | O9: %
B10: Preferred Stock | D10: =ROUND(('3. AWR'!C$13+'3. AWR'!C$17)/'3. AWR'!C$56*100,2) -> 0 | F10: =ROUND(('3. AWR'!E$13+'3. AWR'!E$17)/'3. AWR'!E$56*100,2) -> 0 | H10: =ROUND(('3. AWR'!G$13+'3. AWR'!G$17)/'3. AWR'!G$56*100,2) -> 0 | J10: =ROUND(('3. AWR'!I$13+'3. AWR'!I$17)/'3. AWR'!I$56*100,2) -> 0 | L10: =ROUND(('3. AWR'!K$13+'3. AWR'!K$17)/'3. AWR'!K$56*100,2) -> 0 | N10: =ROUND(AVERAGE(D10:L10),2) -> 0
B11: Common Equity | D11: =ROUND('3. AWR'!C$16/'3. AWR'!C$50*100,2) -> 62.44 | F11: =ROUND('3. AWR'!E$16/'3. AWR'!E$50*100,2) -> 59.28 | H11: =ROUND('3. AWR'!G$16/'3. AWR'!G$50*100,2)+0.01 -> 68.14 | J11: =ROUND('3. AWR'!I$16/'3. AWR'!I$50*100,2) -> 63.46 | L11: =ROUND('3. AWR'!K$16/'3. AWR'!K$50*100,2) -> 62.25 | N11: 63.11
B12: Total Capital | D12: =ROUND(SUM(D9:D11), 2) -> 100 | E12: % | F12: =ROUND(SUM(F9:F11), 2) -> 100 | G12: % | H12: =ROUND(SUM(H9:H11), 1) -> 100 | I12: % | J12: =SUM(J9:J11) -> 100 | K12: % | L12: =SUM(L9:L11) -> 100 | M12: % | N12: =ROUND(SUM(N9:N11),2) -> 100 | O12: %
A14: =Input!A3 -> AWK | B14: =VLOOKUP($A14,'Proxy Data Lookup'!$A:$B,2,FALSE) -> American Water Works Company, Inc.
B15: Long-Term Debt | D15: =ROUND('3. AWK'!C$12/'3. AWK'!C$50*100,2) -> 58.75 | E15: % | F15: =ROUND('3. AWK'!E$12/'3. AWK'!E$50*100,2) -> 59.93 | G15: % | H15: =ROUND('3. AWK'!G$12/'3. AWK'!G$50*100,2) -> 58.59 | I15: % | J15: =ROUND('3. AWK'!I$12/'3. AWK'!I$50*100,2) -> 56.55 | K15: % | L15: =ROUND('3. AWK'!K$12/'3. AWK'!K$50*100,2)+0.01 -> 55.82 | M15: % | N15: =ROUND(AVERAGE(D15:L15),2) -> 57.93 | O15: %
B16: Preferred Stock | D16: =ROUND(('3. AWK'!C$13+'3. AWK'!C$17)/'3. AWK'!C$56*100,2) -> 0.02 | F16: =ROUND(('3. AWK'!E$13+'3. AWK'!E$17)/'3. AWK'!E$56*100,2) -> 0.02 | H16: =ROUND(('3. AWK'!G$13+'3. AWK'!G$17)/'3. AWK'!G$56*100,2) -> 0.03 | J16: =ROUND(('3. AWK'!I$13+'3. AWK'!I$17)/'3. AWK'!I$56*100,2) -> 0.05 | L16: =ROUND(('3. AWK'!K$13+'3. AWK'!K$17)/'3. AWK'!K$56*100,2) -> 0.06 | N16: =ROUND(AVERAGE(D16:L16),2)-0.01 -> 0.03
B17: Common Equity | D17: =ROUND('3. AWK'!C$16/'3. AWK'!C$50*100,2) -> 41.23 | F17: =ROUND('3. AWK'!E$16/'3. AWK'!E$50*100,2) -> 40.05 | H17: =ROUND('3. AWK'!G$16/'3. AWK'!G$50*100,2) -> 41.38 | J17: =ROUND('3. AWK'!I$16/'3. AWK'!I$50*100,2) -> 43.4 | L17: =ROUND('3. AWK'!K$16/'3. AWK'!K$50*100,2) -> 44.12 | N17: =ROUND(AVERAGE(D17:L17),2) -> 42.04
B18: Total Capital | D18: =SUM(D15:D17) -> 100 | E18: % | F18: =SUM(F15:F17) -> 100 | G18: % | H18: =SUM(H15:H17) -> 100 | I18: % | J18: =SUM(J15:J17) -> 100 | K18: % | L18: =ROUND(SUM(L15:L17),2) -> 100 | M18: % | N18: =ROUND(SUM(N15:N17),2) -> 100 | O18: %
A20: =Input!A4 -> CWT | B20: =VLOOKUP($A20,'Proxy Data Lookup'!$A:$B,2,FALSE) -> California Water Service Group
B21: Long-Term Debt | D21: =ROUND('3. CWT'!C$12/'3. CWT'!C$50*100,2)-0 -> 47.28 | E21: % | F21: =ROUND('3. CWT'!E$12/'3. CWT'!E$50*100,2) -> 46.04 | G21: % | H21: =ROUND('3. CWT'!G$12/'3. CWT'!G$50*100,2) -> 50.9 | I21: % | J21: =ROUND('3. CWT'!I$12/'3. CWT'!I$50*100,2) -> 52.74 | K21: % | L21: =ROUND('3. CWT'!K$12/'3. CWT'!K$50*100,2) -> 43.4 | M21: % | N21: =ROUND(AVERAGE(D21:L21),2) -> 48.07 | O21: %
B22: Preferred Stock | D22: =ROUND(('3. CWT'!C$13+'3. CWT'!C$17)/'3. CWT'!C$56*100,2) -> 0 | F22: =ROUND(('3. CWT'!E$13+'3. CWT'!E$17)/'3. CWT'!E$56*100,2) -> 0 | H22: =ROUND(('3. CWT'!G$13+'3. CWT'!G$17)/'3. CWT'!G$56*100,2) -> 0 | J22: =ROUND(('3. CWT'!I$13+'3. CWT'!I$17)/'3. CWT'!I$56*100,2) -> 0 | L22: =ROUND(('3. CWT'!K$13+'3. CWT'!K$17)/'3. CWT'!K$56*100,2) -> 0 | N22: =ROUND(AVERAGE(D22:L22),2) -> 0
B23: Common Equity | D23: =ROUND('3. CWT'!C$16/'3. CWT'!C$50*100,2) -> 52.72 | F23: =ROUND('3. CWT'!E$16/'3. CWT'!E$50*100,2) -> 53.96 | H23: =ROUND('3. CWT'!G$16/'3. CWT'!G$50*100,2) -> 49.1 | J23: =ROUND('3. CWT'!I$16/'3. CWT'!I$50*100,2) -> 47.26 | L23: =ROUND('3. CWT'!K$16/'3. CWT'!K$50*100,2) -> 56.6 | N23: 51.93
B24: Total Capital | D24: =ROUND(SUM(D21:D23),2) -> 100 | E24: % | F24: =ROUND(SUM(F21:F23),2) -> 100 | G24: % | H24: =ROUND(SUM(H21:H23),2) -> 100 | I24: % | J24: =ROUND(SUM(J21:J23),2) -> 100 | K24: % | L24: =ROUND(SUM(L21:L23),2) -> 100 | M24: % | N24: =ROUND(SUM(N21:N23),2) -> 100 | O24: %
A26: =Input!A5 -> WTRG | B26: =VLOOKUP($A26,'Proxy Data Lookup'!$A:$B,2,FALSE) -> Essential Utilities Inc.
B27: Long-Term Debt | D27: =ROUND('3. WTRG'!C$12/'3. WTRG'!C$50*100,2) -> 53.28 | E27: % | F27: =ROUND('3. WTRG'!E$12/'3. WTRG'!E$50*100,2) -> 54.42 | G27: % | H27: =ROUND('3. WTRG'!G$12/'3. WTRG'!G$50*100,2) -> 44.23 | I27: % | J27: =ROUND('3. WTRG'!I$12/'3. WTRG'!I$50*100,2) -> 56.06 | K27: % | L27: =ROUND('3. WTRG'!K$12/'3. WTRG'!K$50*100,2)-0 -> 52.26 | M27: % | N27: =ROUND(AVERAGE(D27:L27),2) -> 52.05 | O27: %
B28: Preferred Stock | D28: =ROUND(('3. WTRG'!C$13+'3. WTRG'!C$17)/'3. WTRG'!C$56*100,2) -> 0 | F28: =ROUND(('3. WTRG'!E$13+'3. WTRG'!E$17)/'3. WTRG'!E$56*100,2) -> 0 | H28: =ROUND(('3. WTRG'!G$13+'3. WTRG'!G$17)/'3. WTRG'!G$56*100,2) -> 0 | J28: =ROUND(('3. WTRG'!I$13+'3. WTRG'!I$17)/'3. WTRG'!I$56*100,2) -> 0 | L28: =ROUND(('3. WTRG'!K$13+'3. WTRG'!K$17)/'3. WTRG'!K$56*100,2) -> 0 | N28: =ROUND(AVERAGE(D28:L28),2) -> 0
B29: Common Equity | D29: =ROUND('3. WTRG'!C$16/'3. WTRG'!C$50*100,2) -> 46.72 | F29: =ROUND('3. WTRG'!E$16/'3. WTRG'!E$50*100,2) -> 45.58 | H29: =ROUND('3. WTRG'!G$16/'3. WTRG'!G$50*100,2) -> 55.77 | J29: =ROUND('3. WTRG'!I$16/'3. WTRG'!I$50*100,2) -> 43.94 | L29: =ROUND('3. WTRG'!K$16/'3. WTRG'!K$50*100,2) -> 47.74 | N29: 47.95
B30: Total Capital | D30: =ROUND(SUM(D27:D29),2) -> 100 | E30: % | F30: =ROUND(SUM(F27:F29),2) -> 100 | G30: % | H30: =ROUND(SUM(H27:H29),2) -> 100 | I30: % | J30: =ROUND(SUM(J27:J29),2) -> 100 | K30: % | L30: =ROUND(SUM(L27:L29),2) -> 100 | M30: % | N30: =ROUND(SUM(N27:N29),2) -> 100 | O30: %
A32: =Input!A6 -> MSEX | B32: =VLOOKUP($A32,'Proxy Data Lookup'!$A:$B,2,FALSE) -> Middlesex Water Company
B33: Long-Term Debt | D33: =ROUND('3. MSEX'!C$12/'3. MSEX'!C$50*100,2) -> 45.86 | E33: % | F33: =ROUND('3. MSEX'!E$12/'3. MSEX'!E$50*100,2) -> 44.61 | G33: % | H33: =ROUND('3. MSEX'!G$12/'3. MSEX'!G$50*100,2)+0.01 -> 42.21 | I33: % | J33: =ROUND('3. MSEX'!I$12/'3. MSEX'!I$50*100,2) -> 38.94 | K33: % | L33: =ROUND('3. MSEX'!K$12/'3. MSEX'!K$50*100,2) -> 38.65 | M33: % | N33: =ROUND(AVERAGE(D33:L33),2) -> 42.05 | O33: %
B34: Preferred Stock | D34: =ROUND(('3. MSEX'!C$13+'3. MSEX'!C$17)/'3. MSEX'!C$56*100,2) -> 0.3 | F34: =ROUND(('3. MSEX'!E$13+'3. MSEX'!E$17)/'3. MSEX'!E$56*100,2) -> 0.33 | H34: =ROUND(('3. MSEX'!G$13+'3. MSEX'!G$17)/'3. MSEX'!G$56*100,2) -> 0.36 | J34: =ROUND(('3. MSEX'!I$13+'3. MSEX'!I$17)/'3. MSEX'!I$50*100,2) -> 0.59 | L34: =ROUND(('3. MSEX'!K$13+'3. MSEX'!K$17)/'3. MSEX'!K$50*100,2) -> 0.64 | N34: =ROUND(AVERAGE(D34:L34),2)+0.01 -> 0.45
B35: Common Equity | D35: =ROUND('3. MSEX'!C$16/'3. MSEX'!C$50*100,2) -> 53.84 | F35: =ROUND('3. MSEX'!E$16/'3. MSEX'!E$50*100,2) -> 55.06 | H35: =ROUND('3. MSEX'!G$16/'3. MSEX'!G$50*100,2) -> 57.43 | J35: =ROUND('3. MSEX'!I$16/'3. MSEX'!I$50*100,2) -> 60.47 | L35: =ROUND('3. MSEX'!K$16/'3. MSEX'!K$50*100,2) -> 60.71 | N35: =ROUND(AVERAGE(D35:L35),2) -> 57.5
B36: Total Capital | D36: =ROUND(SUM(D33:D35),2) -> 100 | E36: % | F36: =ROUND(SUM(F33:F35),2) -> 100 | G36: % | H36: =ROUND(SUM(H33:H35),2) -> 100 | I36: % | J36: =ROUND(SUM(J33:J35),2) -> 100 | K36: % | L36: =ROUND(SUM(L33:L35),2) -> 100 | M36: % | N36: =ROUND(SUM(N33:N35),2) -> 100 | O36: %
A38: =Input!A7 -> SJW | B38: =VLOOKUP($A38,'Proxy Data Lookup'!$A:$B,2,FALSE) -> SJW Group
B39: Long-Term Debt | D39: =ROUND('3. SJW'!C$12/'3. SJW'!C$50*100,2) -> 59.69 | E39: % | F39: =ROUND('3. SJW'!E$12/'3. SJW'!E$50*100,2) -> 59.79 | G39: % | H39: =ROUND('3. SJW'!G$12/'3. SJW'!G$50*100,2) -> 59.05 | I39: % | J39: =ROUND('3. SJW'!I$12/'3. SJW'!I$50*100,2) -> 32.67 | K39: % | L39: =ROUND('3. SJW'!K$12/'3. SJW'!K$50*100,2) -> 48.2 | M39: % | N39: =ROUND(AVERAGE(D39:L39),2) -> 51.88 | O39: %
B40: Preferred Stock | D40: =ROUND(('3. SJW'!C$13+'3. SJW'!C$17)/'3. SJW'!C$56*100,2) -> 0 | F40: =ROUND(('3. SJW'!E$13+'3. SJW'!E$17)/'3. SJW'!E$56*100,2) -> 0 | H40: =ROUND(('3. SJW'!G$13+'3. SJW'!G$17)/'3. SJW'!G$56*100,2) -> 0 | J40: =ROUND(('3. SJW'!I$13+'3. SJW'!I$17)/'3. SJW'!I$56*100,2) -> 0 | L40: =ROUND(('3. SJW'!K$13+'3. SJW'!K$17)/'3. SJW'!K$56*100,2) -> 0 | N40: =ROUND(AVERAGE(D40:L40),2) -> 0
B41: Common Equity | D41: =ROUND('3. SJW'!C$16/'3. SJW'!C$50*100,2) -> 40.31 | F41: =ROUND('3. SJW'!E$16/'3. SJW'!E$50*100,2) -> 40.21 | H41: =ROUND('3. SJW'!G$16/'3. SJW'!G$50*100,2) -> 40.95 | J41: =ROUND('3. SJW'!I$16/'3. SJW'!I$50*100,2)-0 -> 67.33 | L41: =ROUND('3. SJW'!K$16/'3. SJW'!K$50*100,2) -> 51.8 | N41: 48.12
B42: Total Capital | D42: =ROUND(SUM(D39:D41),2) -> 100 | E42: % | F42: =ROUND(SUM(F39:F41),2) -> 100 | G42: % | H42: =ROUND(SUM(H39:H41),2) -> 100 | I42: % | J42: =ROUND(SUM(J39:J41),2) -> 100 | K42: % | L42: =ROUND(SUM(L39:L41),2) -> 100 | M42: % | N42: =ROUND(SUM(N39:N41),2) -> 100 | O42: %
A44: =Input!A8 -> YORW | B44: =VLOOKUP($A44,'Proxy Data Lookup'!$A:$B,2,FALSE) -> The York Water Company
B45: Long-Term Debt | D45: =ROUND('3. YORW'!C$12/'3. YORW'!C$50*100,2) -> 47.64 | E45: % | F45: =ROUND('3. YORW'!E$12/'3. YORW'!E$50*100,2) -> 46.31 | G45: % | H45: =ROUND('3. YORW'!G$12/'3. YORW'!G$50*100,2) -> 42.95 | I45: % | J45: =ROUND('3. YORW'!I$12/'3. YORW'!I$50*100,2) -> 42.52 | K45: % | L45: =ROUND('3. YORW'!K$12/'3. YORW'!K$50*100,2)+0 -> 43.02 | M45: % | N45: =ROUND(AVERAGE(D45:L45),2) -> 44.49 | O45: %
B46: Preferred Stock | D46: =ROUND(('3. YORW'!C$13+'3. YORW'!C$17)/'3. YORW'!C$56*100,2) -> 0 | F46: =ROUND(('3. YORW'!E$13+'3. YORW'!E$17)/'3. YORW'!E$56*100,2) -> 0 | H46: =ROUND(('3. YORW'!G$13+'3. YORW'!G$17)/'3. YORW'!G$56*100,2) -> 0 | J46: =ROUND(('3. YORW'!I$13+'3. YORW'!I$17)/'3. YORW'!I$56*100,2) -> 0 | L46: =ROUND(('3. YORW'!K$13+'3. YORW'!K$17)/'3. YORW'!K$56*100,2) -> 0 | N46: =ROUND(AVERAGE(D46:L46),2) -> 0
B47: Common Equity | D47: =ROUND('3. YORW'!C$16/'3. YORW'!C$50*100,2) -> 52.36 | F47: =ROUND('3. YORW'!E$16/'3. YORW'!E$50*100,2) -> 53.69 | H47: =ROUND('3. YORW'!G$16/'3. YORW'!G$50*100,2) -> 57.05 | J47: =ROUND('3. YORW'!I$16/'3. YORW'!I$50*100,2) -> 57.48 | L47: =ROUND('3. YORW'!K$16/'3. YORW'!K$50*100,2) -> 56.98 | N47: 55.51
B48: Total Capital | D48: =ROUND(SUM(D45:D47),2) -> 100 | E48: % | F48: =ROUND(SUM(F45:F47),2) -> 100 | G48: % | H48: =ROUND(SUM(H45:H47),2) -> 100 | I48: % | J48: =ROUND(SUM(J45:J47),2) -> 100 | K48: % | L48: =ROUND(SUM(L45:L47),2) -> 100 | M48: % | N48: =ROUND(SUM(N45:N47),2) -> 100 | O48: %
B50: =B2 -> Proxy Group of Seven Water Companies
B51: Long-Term Debt | D51: =ROUND(AVERAGE(D9,D15,D21,D27,D33,D39,D45),2) -> 50.01 | E51: % | F51: =ROUND(AVERAGE(F9,F15,F21,F27,F33,F39,F45),2) -> 50.26 | G51: % | H51: =ROUND(AVERAGE(H9,H15,H21,H27,H33,H39,H45),2) -> 47.11 | I51: % | J51: =ROUND(AVERAGE(J9,J15,J21,J27,J33,J39,J45),2) -> 45.15 | K51: % | L51: =ROUND(AVERAGE(L9,L15,L21,L27,L33,L39,L45),2) -> 45.59 | M51: % | N51: =ROUND(AVERAGE(N9,N15,N21,N27,N33,N39,N45),2) -> 47.62 | O51: %
B52: Preferred Stock | D52: =ROUND(AVERAGE(D10,D16,D22,D28,D34,D40,D46),2)-0.01 -> 0.04 | F52: =ROUND(AVERAGE(F10,F16,F22,F28,F34,F40,F46),2) -> 0.05 | H52: =ROUND(AVERAGE(H10,H16,H22,H28,H34,H40,H46),2) -> 0.06 | J52: =ROUND(AVERAGE(J10,J16,J22,J28,J34,J40,J46),2) -> 0.09 | L52: =ROUND(AVERAGE(L10,L16,L22,L28,L34,L40,L46),2) -> 0.1 | N52: =ROUND(AVERAGE(N10,N16,N22,N28,N34,N40,N46),2) -> 0.07
B53: Common Equity | D53: =ROUND(AVERAGE(D11,D17,D23,D29,D35,D41,D47),2) -> 49.95 | F53: =ROUND(AVERAGE(F11,F17,F23,F29,F35,F41,F47),2) -> 49.69 | H53: =ROUND(AVERAGE(H11,H17,H23,H29,H35,H41,H47),2) -> 52.83 | J53: =ROUND(AVERAGE(J11,J17,J23,J29,J35,J41,J47),2) -> 54.76 | L53: =ROUND(AVERAGE(L11,L17,L23,L29,L35,L41,L47),2) -> 54.31 | N53: =ROUND(AVERAGE(N11,N17,N23,N29,N35,N41,N47),2) -> 52.31
B54: Total Capital | D54: =ROUND(SUM(D51:D53),2) -> 100 | E54: % | F54: =ROUND(SUM(F51:F53),2) -> 100 | G54: % | H54: =ROUND(SUM(H51:H53),2) -> 100 | I54: % | J54: =ROUND(SUM(J51:J53),2) -> 100 | K54: % | L54: =ROUND(SUM(L51:L53),2) -> 100 | M54: % | N54: =ROUND(SUM(N51:N53),2) -> 100 | O54: %
B56: Source of Information:
B57: Annual Forms 10-K

Sheet 3.1 DCF Summary
B1: =Input!G28 -> Water Service Corporation of Kentucky
B2: Indicated Common Equity Cost Rate Using the Discounted Cash Flow Model for the
B3: =Input!I31 -> Proxy Group of Seven Water Companies
D6: [1] | G6: [2] | J6: [3] | M6: [4] | P6: [5] | S6: [6] | V6: [7]
B8: =B3 -> Proxy Group of Seven Water Companies | D8: Average Dividend Yield (1) | G8: Value Line Projected Five Year Growth in EPS (2) | J8: Zack's Five Year Projected Growth Rate in EPS | M8: Yahoo! Finance Projected Five Year Growth in EPS | P8: Average Projected Five Year Growth in EPS (3) | S8: Adjusted Dividend Yield (4) | V8: Indicated Common Equity Cost Rate (5)
A10: =Input!A2 -> AWR | B10: =IFERROR(VLOOKUP($A10,'Proxy Data Lookup'!$A:$L,2,FALSE),"NA") -> American States Water Company | D10: =IFERROR(HLOOKUP(CONCATENATE($A10," US Equity"),'Proxy Prices'!$B$5:$H$71,67,FALSE)*100,"NA") -> 1.65 | E10: % | G10: =IFERROR(VLOOKUP($A10,'Proxy Data Lookup'!$A:$L,5,FALSE)*100,"NA") -> 6.5 | H10: % | J10: =IFERROR(VLOOKUP($A10,'Proxy Data Lookup'!$A:$L,3,FALSE)*100,"NA") -> NA | K10: % | M10: =IFERROR(VLOOKUP($A10,'Proxy Data Lookup'!$A:$L,4,FALSE)*100,"NA") -> 4.9 | N10: % | P10: =IFERROR(ROUND(AVERAGE(G10,J10,M10),2),"NA") -> 5.7 | Q10: % | S10: =IFERROR(D10*(1+(0.5*(P10/100))),"NA") -> 1.697025 | T10: % | V10: =IFERROR(S10 + P10,"NA") -> 7.397025 | W10: %
A11: =Input!A3 -> AWK | B11: =IFERROR(VLOOKUP($A11,'Proxy Data Lookup'!$A:$L,2,FALSE),"NA") -> American Water Works Company, Inc. | D11: =IFERROR(HLOOKUP(CONCATENATE($A11," US Equity"),'Proxy Prices'!$B$5:$H$71,67,FALSE)*100,"NA") -> 1.53 | G11: =IFERROR(VLOOKUP($A11,'Proxy Data Lookup'!$A:$L,5,FALSE)*100,"NA") -> 8.5 | J11: =IFERROR(VLOOKUP($A11,'Proxy Data Lookup'!$A:$L,3,FALSE)*100,"NA") -> 8.1 | M11: =IFERROR(VLOOKUP($A11,'Proxy Data Lookup'!$A:$L,4,FALSE)*100,"NA") -> 8.3 | P11: =IFERROR(ROUND(AVERAGE(G11,J11,M11),2),"NA") -> 8.3 | S11: 1.593495 | V11: =IFERROR(S11 + P11,"NA") -> 9.893495
A12: =Input!A4 -> CWT | B12: =IFERROR(VLOOKUP($A12,'Proxy Data Lookup'!$A:$L,2,FALSE),"NA") -> California Water Service Group | D12: =IFERROR(HLOOKUP(CONCATENATE($A12," US Equity"),'Proxy Prices'!$B$5:$H$71,67,FALSE)*100,"NA") -> 1.67 | G12: =IFERROR(VLOOKUP($A12,'Proxy Data Lookup'!$A:$L,5,FALSE)*100,"NA") -> 8.5 | J12: =IFERROR(VLOOKUP($A12,'Proxy Data Lookup'!$A:$L,3,FALSE)*100,"NA") -> NA | M12: =IFERROR(VLOOKUP($A12,'Proxy Data Lookup'!$A:$L,4,FALSE)*100,"NA") -> 11.7 | P12: 10.1 | S12: 1.754335 | V12: 11.854335
A13: =Input!A5 -> WTRG | B13: =IFERROR(VLOOKUP($A13,'Proxy Data Lookup'!$A:$L,2,FALSE),"NA") -> Essential Utilities Inc. | D13: =IFERROR(HLOOKUP(CONCATENATE($A13," US Equity"),'Proxy Prices'!$B$5:$H$71,67,FALSE)*100,"NA") -> 2.23 | G13: =IFERROR(VLOOKUP($A13,'Proxy Data Lookup'!$A:$L,5,FALSE)*100,"NA") -> 10 | J13: =IFERROR(VLOOKUP($A13,'Proxy Data Lookup'!$A:$L,3,FALSE)*100,"NA") -> 6.1 | M13: =IFERROR(VLOOKUP($A13,'Proxy Data Lookup'!$A:$L,4,FALSE)*100,"NA") -> 6.4 | P13: 7.5 | S13: 2.313625 | V13: 9.813625
A14: =Input!A6 -> MSEX | B14: =IFERROR(VLOOKUP($A14,'Proxy Data Lookup'!$A:$L,2,FALSE),"NA") -> Middlesex Water Company | D14: =IFERROR(HLOOKUP(CONCATENATE($A14," US Equity"),'Proxy Prices'!$B$5:$H$71,67,FALSE)*100,"NA") -> 1.14 | G14: =IFERROR(VLOOKUP($A14,'Proxy Data Lookup'!$A:$L,5,FALSE)*100,"NA") -> 5 | J14: =IFERROR(VLOOKUP($A14,'Proxy Data Lookup'!$A:$L,3,FALSE)*100,"NA") -> NA | M14: =IFERROR(VLOOKUP($A14,'Proxy Data Lookup'!$A:$L,4,FALSE)*100,"NA") -> 2.7 | P14: 3.85 | S14: 1.161945 | V14: 5.011945
A15: =Input!A7 -> SJW | B15: =IFERROR(VLOOKUP($A15,'Proxy Data Lookup'!$A:$L,2,FALSE),"NA") -> SJW Group | D15: =IFERROR(HLOOKUP(CONCATENATE($A15," US Equity"),'Proxy Prices'!$B$5:$H$71,67,FALSE)*100,"NA") -> 2.14 | G15: =IFERROR(VLOOKUP($A15,'Proxy Data Lookup'!$A:$L,5,FALSE)*100,"NA") -> 15 | J15: =IFERROR(VLOOKUP($A15,'Proxy Data Lookup'!$A:$L,3,FALSE)*100,"NA") -> NA | M15: =IFERROR(VLOOKUP($A15,'Proxy Data Lookup'!$A:$L,4,FALSE)*100,"NA") -> 9.7 | P15: 12.35 | S15: 2.272145 | V15: 14.622145
A16: =Input!A8 -> YORW | B16: =IFERROR(VLOOKUP($A16,'Proxy Data Lookup'!$A:$L,2,FALSE),"NA") -> The York Water Company | D16: =IFERROR(HLOOKUP(CONCATENATE($A16," US Equity"),'Proxy Prices'!$B$5:$H$71,67,FALSE)*100,"NA") -> 1.75 | G16: =IFERROR(VLOOKUP($A16,'Proxy Data Lookup'!$A:$L,5,FALSE)*100,"NA") -> 6.5 | J16: =IFERROR(VLOOKUP($A16,'Proxy Data Lookup'!$A:$L,3,FALSE)*100,"NA") -> NA | M16: =IFERROR(VLOOKUP($A16,'Proxy Data Lookup'!$A:$L,4,FALSE)*100,"NA") -> 4.9 | P16: 5.7 | S16: 1.799875 | V16: 7.499875
D18: =AVERAGE(D10:D15) -> 1.726666667 | G18: =AVERAGE(G10:G15) -> 8.916666667 | M18: =AVERAGE(M10:M15) -> 7.283333333 | S18: Average | V18: =ROUND(AVERAGE(V10:V16),2) -> 9.44 | W18: %
S20: Median | V20: =ROUND(MEDIAN(V10:V16),2) -> 9.81 | W20: %
S22: Average of Mean and Median | V22: =ROUND(AVERAGE(V18:V20),2) -> 9.63 | W22: %
E24: NA= Not Available
D26: Notes:
E27: (1) | F27: =CONCATENATE("Indicated dividend at ",TEXT(Input!E2,"mm/dd/yyyy")," divided by the average closing price of the last 60 trading days ending ",TEXT(Input!E2,"mm/dd/yyyy")," for each company.") -> Indicated dividend at 03/31/2022 divided by the average closing price of the last 60 trading days ending 03/31/2022 for each company.
E28: (2) | F28: From pages 2 through 8 of this Schedule.
E29: (3) | F29: Average of columns 2 through 4 excluding any negative growth rates.
E30: (4) | F30: =CONCATENATE("This reflects a growth rate component equal to one-half the conclusion of growth rate (from column 5) x column 1 to reflect the periodic payment of dividends (Gordon Model) as opposed to the continuous payment. Thus, for ",B10,", ",TEXT(D10,"#0.00"),"% x (1+( 1/2 x ",TEXT(P10,"#0.00"),"%) ) = ",TEXT(S10,"#0.00"),"%.") -> This reflects a growth rate component equal to one-half the conclusion of growth rate (from column 5) x column 1 to reflect the periodic payment of dividends (Gordon Model) as opposed to the continuous payment. Thus, for American States Water Company, 1.65% x (1+( 1/2 x 5.70%) ) = 1.70%.
E31: (5) | F31: Column 5 + Column 6.
B33: Source of Information: | E33: Value Line Investment Survey.
E34: =CONCATENATE("www.zacks.com Downloaded on ",TEXT(Input!E2,"mm/dd/yyyy"))&"." -> www.zacks.com Downloaded on 03/31/2022.
E35: =CONCATENATE("www.yahoo.com Downloaded on ",TEXT(Input!E2,"mm/dd/yyyy"))&"." -> www.yahoo.com Downloaded on 03/31/2022.

Sheet 4.1 RPM Summary
A1: =Input!G28 -> Water Service Corporation of Kentucky
A2: Summary of Risk Premium Models for the
A3: =Input!I31 -> Proxy Group of Seven Water Companies
D5: =A3 -> Proxy Group of Seven Water Companies | G5: ='1.2 Summary of CE Models'!G5 -> Proxy Group of Seven Water Companies ex PRPM
A6: Predictive Risk Premium Model (PRPM) (1) | D6: =IFERROR('4.2 PRPM Results'!P22*100,"NA") -> 13.06 | E6: % | G6: NA
A8: Risk Premium Using an Adjusted Total Market Approach (2) | D8: =IFERROR('4.3 Risk Premium Summary'!G28,"NA") -> NA | E8: % | G8: ='4.3 Risk Premium Summary'!I28 ->  | H8: %
C10: Average | D10: =IFERROR(ROUND(AVERAGE(D6:D8),2),"NA") -> 13.06 | E10: % | G10: =G8 ->  | H10: %
A12: Notes:
A13: (1) | B13: From page 2 of this Schedule.
A14: (2) | B14: From page 3 of this Schedule.

Sheet 4.2 PRPM Results
B1: =Input!G28 -> Water Service Corporation of Kentucky
B2: Indicated ROE
B3: Derived by the Predictive Risk Premium Model (1)
D6: [1] | F6: [2] | H6: [3] | J6: [4] | L6: [5] | N6: [6] | P6: [7]
B8: =Input!I31 -> Proxy Group of Seven Water Companies | D8: LT Average Predicted Variance | F8: Spot Predicted Variance | H8: Recommended Variance (2) | J8: GARCH Coefficient | L8: Predicted Risk Premium (3) | N8: Risk-Free Rate (4) | P8: Indicated ROE (5)
A10: =Input!A2 -> AWR | B10: =VLOOKUP($A10,'Proxy Data Lookup'!$A:$B,2,FALSE) -> American States Water Company | D10: =_xlfn.XLOOKUP($A10,'PRPM WP1'!$B$1:$J$1,'PRPM WP1'!$B$1162:$J$1162) -> 0.00379788856 | F10: =_xlfn.XLOOKUP($A10,'PRPM WP1'!$B$1:$J$1,'PRPM WP1'!$B$1164:$J$1164) -> 0.004311419025 | H10: =D10 -> 0.00379788856 | J10: =_xlfn.XLOOKUP($A10,'PRPM WP1'!$B$1:$J$1,'PRPM WP1'!$B$1166:$J$1166) -> 1.897573229 | L10: =ROUND((1+(H10*J10))^12-1,4) -> 0.09 | N10: ='MRP WP1'!F$37/100 -> 0.0318 | P10: =N10 + L10 -> 0.1218
A11: =Input!A3 -> AWK | B11: =VLOOKUP($A11,'Proxy Data Lookup'!$A:$B,2,FALSE) -> American Water Works Company, Inc. | D11: =_xlfn.XLOOKUP($A11,'PRPM WP1'!$B$1:$J$1,'PRPM WP1'!$B$1162:$J$1162) -> 0.002695989359 | F11: =_xlfn.XLOOKUP($A11,'PRPM WP1'!$B$1:$J$1,'PRPM WP1'!$B$1164:$J$1164) -> 0.00376607593 | H11: =D11 -> 0.002695989359 | J11: =_xlfn.XLOOKUP($A11,'PRPM WP1'!$B$1:$J$1,'PRPM WP1'!$B$1166:$J$1166) -> 4.997338135 | L11: =ROUND((1+(H11*J11))^12-1,4) -> 0.1742 | N11: ='MRP WP1'!F$37/100 -> 0.0318 | P11: =N11 + L11 -> 0.206
A12: =Input!A4 -> CWT | B12: =VLOOKUP($A12,'Proxy Data Lookup'!$A:$B,2,FALSE) -> California Water Service Group | D12: =_xlfn.XLOOKUP($A12,'PRPM WP1'!$B$1:$J$1,'PRPM WP1'!$B$1162:$J$1162) -> 0.00323304545 | F12: =_xlfn.XLOOKUP($A12,'PRPM WP1'!$B$1:$J$1,'PRPM WP1'!$B$1164:$J$1164) -> 0.006071579128 | H12: 0.00323304545 | J12: =_xlfn.XLOOKUP($A12,'PRPM WP1'!$B$1:$J$1,'PRPM WP1'!$B$1166:$J$1166) -> 1.951716887 | L12: 0.0784 | N12: ='MRP WP1'!F$37/100 -> 0.0318 | P12: =N12 + L12 -> 0.1102
A13: =Input!A5 -> WTRG | B13: =VLOOKUP($A13,'Proxy Data Lookup'!$A:$B,2,FALSE) -> Essential Utilities Inc. | D13: =_xlfn.XLOOKUP($A13,'PRPM WP1'!$B$1:$J$1,'PRPM WP1'!$B$1162:$J$1162) -> 0.004405269748 | F13: =_xlfn.XLOOKUP($A13,'PRPM WP1'!$B$1:$J$1,'PRPM WP1'!$B$1164:$J$1164) -> 0.004579849036 | H13: 0.004405269748 | J13: =_xlfn.XLOOKUP($A13,'PRPM WP1'!$B$1:$J$1,'PRPM WP1'!$B$1166:$J$1166) -> 2.273867608 | L13: 0.1271 | N13: ='MRP WP1'!F$37/100 -> 0.0318 | P13: 0.1589
A14: =Input!A6 -> MSEX | B14: =VLOOKUP($A14,'Proxy Data Lookup'!$A:$B,2,FALSE) -> Middlesex Water Company | D14: =_xlfn.XLOOKUP($A14,'PRPM WP1'!$B$1:$J$1,'PRPM WP1'!$B$1162:$J$1162) -> 0.003249152387 | F14: =_xlfn.XLOOKUP($A14,'PRPM WP1'!$B$1:$J$1,'PRPM WP1'!$B$1164:$J$1164) -> 0.009626701225 | H14: 0.003249152387 | J14: =_xlfn.XLOOKUP($A14,'PRPM WP1'!$B$1:$J$1,'PRPM WP1'!$B$1166:$J$1166) -> 2.11673474 | L14: 0.0857 | N14: ='MRP WP1'!F$37/100 -> 0.0318 | P14: 0.1175
A15: =Input!A7 -> SJW | B15: =VLOOKUP($A15,'Proxy Data Lookup'!$A:$B,2,FALSE) -> SJW Group | D15: =_xlfn.XLOOKUP($A15,'PRPM WP1'!$B$1:$J$1,'PRPM WP1'!$B$1162:$J$1162) -> 0.00409875282 | F15: =_xlfn.XLOOKUP($A15,'PRPM WP1'!$B$1:$J$1,'PRPM WP1'!$B$1164:$J$1164) -> 0.003526125825 | H15: 0.00409875282 | J15: =_xlfn.XLOOKUP($A15,'PRPM WP1'!$B$1:$J$1,'PRPM WP1'!$B$1166:$J$1166) -> 1.557649895 | L15: 0.0794 | N15: ='MRP WP1'!F$37/100 -> 0.0318 | P15: 0.1112
A16: =Input!A8 -> YORW | B16: =VLOOKUP($A16,'Proxy Data Lookup'!$A:$B,2,FALSE) -> The York Water Company | D16: =_xlfn.XLOOKUP($A16,'PRPM WP1'!$B$1:$J$1,'PRPM WP1'!$B$1162:$J$1162) -> 0.004589833447 | F16: =_xlfn.XLOOKUP($A16,'PRPM WP1'!$B$1:$J$1,'PRPM WP1'!$B$1164:$J$1164) -> 0.004410728277 | H16: 0.004589833447 | J16: =_xlfn.XLOOKUP($A16,'PRPM WP1'!$B$1:$J$1,'PRPM WP1'!$B$1166:$J$1166) -> 2.024026651 | L16: 0.1174 | N16: ='MRP WP1'!F$37/100 -> 0.0318 | P16: 0.1492
N18: Average | P18: =ROUND(AVERAGE(P10:P16),4) -> 0.1393
N20: Median | P20: =ROUND(MEDIAN(P10:P16),4) -> 0.1218
N22: Average of Mean and Median | P22: =ROUND(AVERAGE(P18:P20),4) -> 0.1306
D24: NMF = Not Meaningful Figure
B26: Notes:
B27: (1) | D27: The Predictive Risk Premium Model uses historical data to generate a predicted variance and a GARCH coefficient. The historical data used are the equity risk premiums for the first available trading month as reported by Bloomberg Professional Services.
B28: (2) | D28: Due to current market conditions, Mr. D'Ascendis recommends the long-term average variance.
B29: (3) | D29: (1+(Column [3] * Column [4])^12) - 1.
B30: (4) | D30: From note 2 on page 2 of Schedule DWD-5.
B31: (5) | D31: Column [5] + Column [6].

Sheet 4.3 Risk Premium Summary
A1: =Input!G28 -> Water Service Corporation of Kentucky
A2: Indicated Common Equity Cost Rate
A3: Through Use of a Risk Premium Model
A4: Using an Adjusted Total Market Approach
A6: Line No. | G6: =Input!I31 -> Proxy Group of Seven Water Companies | I6: =Input!I31&" ex PRPM" -> Proxy Group of Seven Water Companies ex PRPM
A9: 1. | C9: Prospective Yield on Aaa Rated
C10: Corporate Bonds (1) | G10: ='MRP WP1'!$M$37 -> 4.34 | H10: % | I10: ='MRP WP1'!$M$37 -> 4.34 | J10: %
A12: 2. | C12: Adjustment to Reflect Yield Spread
C13: Between Aaa Rated Corporate
C14: Bonds and A2 Rated Public
C15: Utility Bonds | G15: ='4.4 Moody''s Bond Yields'!I20 -> 0.46 | H15: (2) | I15: ='4.4 Moody''s Bond Yields'!I20 -> 0.46 | J15: (2)
A17: 3. | C17: Adjusted Prospective Yield on A2 Rated
C18: Public Utility Bonds | G18: =SUM(G10:G15) -> 4.8 | H18: % | I18: =SUM(I10:I15) -> 4.8 | J18: %
A20: 4. | C20: Adjustment to Reflect Bond
C21: Rating Difference of Proxy Group | G21: =ROUND((1/6)*'4.4 Moody''s Bond Yields'!I23,2) -> 0.05 | H21: (3) | I21: =ROUND((1/6)*'4.4 Moody''s Bond Yields'!I23,2) -> 0.05 | J21: (3)
A23: 5. | C23: Adjusted Prospective Bond Yield | G23: =SUM(G18:G21) -> 4.85 | H23: % | I23: =SUM(I18:I21) -> 4.85 | J23: %
A25: 6. | C25: Equity Risk Premium (4) | G25: ='4.7 ERP Determination'!E19 ->  | I25: ='4.7 ERP Determination'!G19 -> 
A27: 7. | C27: Risk Premium Derived Common
C28: Equity Cost Rate | G28: =SUM(G23:G25) ->  | H28: % | I28: =SUM(I23:I25) ->  | J28: %
A31: Notes: | B31: (1) | C31: Consensus forecast of Moody's Aaa Rated Corporate bonds from Blue Chip Financial Forecasts (see pages 10 and 11 of this Schedule).
B32: (2) | C32: =CONCATENATE("The average yield spread of A2 rated public utility bonds over Aaa rated corporate bonds of ",TEXT('4.4 Moody''s Bond Yields'!I20,"#0.00"),"% from page 4 of this Schedule.") -> The average yield spread of A2 rated public utility bonds over Aaa rated corporate bonds of 0.46% from page 4 of this Schedule.
B33: (3) | C33: =CONCATENATE("Adjustment to reflect the A2/A3 Moody's LT issuer rating of the Utility Proxy Group as shown on page 5 of this Schedule. The ",G21,"% upward adjustment is derived by taking 1/6 of the spread between A2 and Baa2 Public Utility Bonds (1/6 * ",'4.4 Moody''s Bond Yields'!I23,"% = ",TEXT('4.3 Risk Premium Summary'!G21,"#0.00"),"%) as derived from page 4 of this Schedule.") -> Adjustment to reflect the A2/A3 Moody's LT issuer rating of the Utility Proxy Group as shown on page 5 of this Schedule. The 0.05% upward adjustment is derived by taking 1/6 of the spread between A2 and Baa2 Public Utility Bonds (1/6 * 0.27% = 0.05%) as derived from page 4 of this Schedule.
B34: (4) | C34: From page 7 of this Schedule.

Sheet 4.4 Moody's Bond Yields
A1: =Input!G28 -> Water Service Corporation of Kentucky
A2: Interest Rates and Bond Spreads for
A3: Moody's Corporate and Public Utility Bonds
A5: Selected Bond Yields
C7: [1] | F7: [2] | I7: [3]
C9: Aaa Rated Corporate Bond | F9: A2 Rated Public Utility Bond | I9: Baa2 Rated Public Utility Bond
A11: ='Market Data'!B1 -> 2022-03-31 | C11: ='Market Data'!B4 -> 3.43 | D11: % | F11: ='Market Data'!B2 -> 3.98 | G11: % | I11: ='Market Data'!B3 -> 4.28 | J11: %
A12: ='Market Data'!C1 -> 2022-02-28 | C12: ='Market Data'!C4 -> 3.25 | F12: ='Market Data'!C2 -> 3.68 | I12: ='Market Data'!C3 -> 3.95
A13: ='Market Data'!D1 -> 2022-01-31 | C13: ='Market Data'!D4 -> 2.93 | F13: ='Market Data'!D2 -> 3.33 | I13: ='Market Data'!D3 -> 3.57
A15: Average | C15: =ROUND(AVERAGE(C11:C13),2) -> 3.2 | D15: % | F15: =ROUND(AVERAGE(F11:F13),2) -> 3.66 | G15: % | I15: =ROUND(AVERAGE(I11:I13),2) -> 3.93 | J15: %
A17: Selected Bond Spreads
A19: A2 Rated Public Utility Bonds Over Aaa Rated Corporate Bonds:
I20: =F15-C15 -> 0.46 | J20: % (1)
A22: Baa2 Rated Public Utility Bonds Over A2 Rated Public Utility Bonds:
I23: =ROUND(I15-F15,2) -> 0.27 | J23: % (2)
A25: Notes:
A26: (1) | B26: Column [2] - Column [1].
A27: (2) | B27: Column [3] - Column [2].
A29: Source of Information:
A30: Bloomberg Professional Services

Sheet 4.5 Bond Ratings
B1: =Input!G28 -> Water Service Corporation of Kentucky
B2: Comparison of Long-Term Issuer Ratings for
B3: ='4.3 Risk Premium Summary'!G6 -> Proxy Group of Seven Water Companies
E6: Moody's | I6: Standard & Poor's
E7: Long-Term Issuer Rating | I7: Long-Term Issuer Rating
E8: =TEXT(Input!E2,"mmmm yyyy") -> March 2022 | I8: =E8 -> March 2022
B11: =B3 -> Proxy Group of Seven Water Companies | E11: Long-Term Issuer Rating | G11: Numerical Weighting (1) | I11: =E11 -> Long-Term Issuer Rating | K11: Numerical Weighting (1)
A13: =Input!A2 -> AWR | B13: American States Water Company (2) | E13: ='Proxy Data Lookup'!P3 -> A2 | G13: =IFERROR(VLOOKUP('4.5 Bond Ratings'!E13,'4.6 MOODY_S&P numbericl'!B:D, 3,FALSE), " - -") -> 6 | I13: ='Proxy Data Lookup'!O3 -> A+ | K13: =IFERROR(VLOOKUP('4.5 Bond Ratings'!I13,'4.6 MOODY_S&P numbericl'!F:H, 3,FALSE), "- -") -> 5
A14: =Input!A3 -> AWK | B14: American Water Works Company, Inc. (3) | E14: ='Proxy Data Lookup'!P4 -> A3 | G14: =IFERROR(VLOOKUP('4.5 Bond Ratings'!E14,'4.6 MOODY_S&P numbericl'!B:D, 3,FALSE), " - -") -> 7 | I14: ='Proxy Data Lookup'!O4 -> A | K14: =IFERROR(VLOOKUP('4.5 Bond Ratings'!I14,'4.6 MOODY_S&P numbericl'!F:H, 3,FALSE), "- -") -> 6
A15: =Input!A4 -> CWT | B15: California Water Service Group | E15: ='Proxy Data Lookup'!P5 -> NR | G15: =IFERROR(VLOOKUP('4.5 Bond Ratings'!E15,'4.6 MOODY_S&P numbericl'!B:D, 3,FALSE), " - -") -> - - | I15: ='Proxy Data Lookup'!O5 -> A+ | K15: =IFERROR(VLOOKUP('4.5 Bond Ratings'!I15,'4.6 MOODY_S&P numbericl'!F:H, 3,FALSE), "- -") -> 5
A16: =Input!A5 -> WTRG | B16: Essential Utilities Inc. (4) | E16: ='Proxy Data Lookup'!P6 -> NA | G16: =IFERROR(VLOOKUP('4.5 Bond Ratings'!E16,'4.6 MOODY_S&P numbericl'!B:D, 3,FALSE), " - -") -> - - | I16: ='Proxy Data Lookup'!O6 -> A | K16: =IFERROR(VLOOKUP('4.5 Bond Ratings'!I16,'4.6 MOODY_S&P numbericl'!F:H, 3,FALSE), "- -") -> 6
A17: =Input!A6 -> MSEX | B17: Middlesex Water Company | E17: ='Proxy Data Lookup'!P7 -> NR | G17: =IFERROR(VLOOKUP('4.5 Bond Ratings'!E17,'4.6 MOODY_S&P numbericl'!B:D, 3,FALSE), " - -") -> - - | I17: ='Proxy Data Lookup'!O7 -> A | K17: =IFERROR(VLOOKUP('4.5 Bond Ratings'!I17,'4.6 MOODY_S&P numbericl'!F:H, 3,FALSE), "- -") -> 6
A18: =Input!A7 -> SJW | B18: SJW Group (5) | E18: ='Proxy Data Lookup'!P8 -> NR | G18: =IFERROR(VLOOKUP('4.5 Bond Ratings'!E18,'4.6 MOODY_S&P numbericl'!B:D, 3,FALSE), " - -") -> - - | I18: ='Proxy Data Lookup'!O8 -> A/A- | K18: 6.5
A19: =Input!A8 -> YORW | B19: The York Water Company | E19: ='Proxy Data Lookup'!P9 -> NR | G19: =IFERROR(VLOOKUP('4.5 Bond Ratings'!E19,'4.6 MOODY_S&P numbericl'!B:D, 3,FALSE), " - -") -> - - | I19: ='Proxy Data Lookup'!O9 -> A- | K19: =IFERROR(VLOOKUP('4.5 Bond Ratings'!I19,'4.6 MOODY_S&P numbericl'!F:H, 3,FALSE), "- -") -> 7
C21: Average | E21: A2/A3 | G21: =ROUND(AVERAGE(G13:G19),1) -> 6.5 | I21: =INDEX('4.6 MOODY_S&P numbericl'!F:F,MATCH(ROUND(K21,0),'4.6 MOODY_S&P numbericl'!H:H,0)) -> A | K21: =ROUND(AVERAGE(K13:K19),1) -> 5.9
B24: Notes:
B25: (1) | C25: From page 6 of this Schedule.
B26: (2) | C26: Ratings that of Golden State Water Company.
B27: (3) | C27: Ratings that of New Jersey and Pennsylvania American Water Companies.
B28: (4) | C28: Ratings that of Peoples Gas (Moody's) Aqua Pennsylvania, Inc. (S&P).
B29: (5) | C29: Ratings that of San Jose Water Company and Connecticut Water Inc.
C31: Source Information: | E31: Moody's Investors Services
E32: Standard & Poor's Global Utilities Rating Services

Sheet 4.6 MOODY_S&P numbericl
B1: Numerical Assignment for
B2: Moody's and Standard & Poor's Bond Ratings
B4: Moody's Bond Rating | D4: Numerical Bond Weighting | F4: Standard & Poor's Bond Rating | H4: =D4 -> Numerical Bond Weighting
B6: Aaa | D6: 1 | F6: AAA | H6: =IF(D6="","",D6) -> 1
H7: =IF(D7="","",D7) -> 
B8: Aa1 | D8: 2 | F8: AA+ | H8: 2
B9: Aa2 | D9: 3 | F9: AA | H9: 3
B10: Aa3 | D10: 4 | F10: AA- | H10: 4
B12: A1 | D12: 5 | F12: A+ | H12: 5
B13: A2 | D13: 6 | F13: A | H13: 6
B14: A3 | D14: 7 | F14: A- | H14: 7
B16: Baa1 | D16: 8 | F16: BBB+ | H16: 8
B17: Baa2 | D17: 9 | F17: BBB | H17: 9
B18: Baa3 | D18: 10 | F18: BBB- | H18: 10
B20: Ba1 | D20: 11 | F20: BB+ | H20: 11
B21: Ba2 | D21: 12 | F21: BB | H21: 12
B22: Ba3 | D22: 13 | F22: BB- | H22: 13
B24: B1 | D24: 14 | F24: B+ | H24: 14
B25: B2 | D25: 15 | F25: B | H25: 15
B26: B3 | D26: 16 | F26: B- | H26: 16

Sheet 4.7 ERP Determination
A1: =Input!G28 -> Water Service Corporation of Kentucky
A2: Judgment of Equity Risk Premium for the
A3: =E5 -> Proxy Group of Seven Water Companies
A5: Line No. | E5: ='4.5 Bond Ratings'!B3 -> Proxy Group of Seven Water Companies | G5: ='4.5 Bond Ratings'!B3&" ex PRPM" -> Proxy Group of Seven Water Companies ex PRPM
A8: 1. | C8: Calculated equity risk
C9: premium based on the
C10: total market using
C11: the beta approach (1) | E11: ='4.8-9 Beta Adjusted ERP'!F27 ->  | F11: % | G11: ='4.8-9 Beta Adjusted ERP'!H27 ->  | H11: %
A13: 2. | C13: Mean equity risk premium
C14: based on a study
C15: using the holding period
C16: returns of public utilities
C17: with A2 rated bonds (2) | E17: ='4.12 S&P RPM Study Returns'!E19 -> 5.24 | G17: ='4.12 S&P RPM Study Returns'!G19 -> 5.24
A19: 3. | C19: Average equity risk premium | E19: =ROUND(AVERAGE(E11:E17),2) ->  | F19: % | G19: =ROUND(AVERAGE(G11:G17),2) ->  | H19: %
A22: Notes: | B22: (1) | C22: From page 8 of this Schedule.
B23: (2) | C23: From page 12 of this Schedule.

Sheet 4.8-9 Beta Adjusted ERP
A1: =Input!G28 -> Water Service Corporation of Kentucky
A2: Derivation of Equity Risk Premium Based on the Total Market Approach
A3: Using the Beta for the
A4: ='4.7 ERP Determination'!E5 -> Proxy Group of Seven Water Companies
A7: Line No. | C7: ='7.5 CEM Beta Adjusted RP'!C7 -> Equity Risk Premium Measure | F7: =A4 -> Proxy Group of Seven Water Companies | H7: =A4&" ex PRPM" -> Proxy Group of Seven Water Companies ex PRPM
B9: Ibbotson-Based Equity Risk Premiums:
A11: 1. | C11: Ibbotson Equity Risk Premium (1) | F11: =('Market Data'!B10-'Market Data'!B11)*100 -> 6.13 | G11: % | H11: =('Market Data'!B10-'Market Data'!B11)*100 -> 6.13 | I11: %
A13: 2. | C13: Regression on Ibbotson Risk Premium Data (2) | F13: ='MRP ERP WP'!AK42*100 ->  | H13: ='MRP ERP WP'!AK42*100 -> 
A15: 3. | C15: Ibbotson Equity Risk Premium based on PRPM (3) | F15: ='PRPM WP1'!K1172*100 -> 8.034359628 | H15: NA
A17: 4. | C17: Equity Risk Premium Based on Value Line Summary and Index (4) | F17: ='MRP WP1'!$M$22*100-'MRP WP1'!$M$37 -> 7.64 | H17: ='MRP WP1'!$M$22*100-'MRP WP1'!$M$37 -> 7.64
A19: 5. | C19: Equity Risk Premium Based on Value Line S&P 500 Companies (5) | F19: =('MRP WP3'!H504*100)-'MRP WP1'!M37 -> 11.56103999 | H19: =('MRP WP3'!H504*100)-'MRP WP1'!M37 -> 11.56103999
A21: 6. | C21: Equity Risk Premium Based on Bloomberg S&P 500 Companies (6) | F21: ='MRP WP2'!Q504*100-'MRP WP1'!M37 -> 10.26174889 | H21: ='MRP WP2'!Q504*100-'MRP WP1'!M37 -> 10.26174889
A23: 7. | C23: Conclusion of Equity Risk Premium | F23: =ROUND(AVERAGE(F11:F21),2) ->  | G23: % | H23: =ROUND(AVERAGE(H11:H21),2) ->  | I23: %
A25: 8. | C25: Adjusted Beta (7) | F25: ='5.1 CAPM'!H21 -> 0.83 | H25: ='5.1 CAPM'!H21 -> 0.83
A27: 9. | C27: Forecasted Equity Risk Premium | F27: =ROUND(F23*F25,2) ->  | G27: % | H27: =ROUND(H23*H25,2) ->  | I27: %
A29: Notes provided on page 9 of this Schedule.
B31: Notes:
B32: (1) | C32: =CONCATENATE("Based on the arithmetic mean historical monthly returns on large company common stocks from Kroll 2022 SBBI® Yearbook"," Market Report minus the arithmetic mean monthly yield of Moody's average Aaa and Aa2 corporate bonds from 1928-2021.") -> Based on the arithmetic mean historical monthly returns on large company common stocks from Kroll 2022 SBBI® Yearbook Market Report minus the arithmetic mean monthly yield of Moody's average Aaa and Aa2 corporate bonds from 1928-2021.
B34: (2) | C34: This equity risk premium is based on a regression of the monthly equity risk premiums of large company common stocks relative to Moody's average Aaa and Aa2 rated corporate bond yields from 1928-2021 referenced in Note 1 above.
B35: (3) | C35: The Predictive Risk Premium Model (PRPM) is discussed in the accompanying direct testimony. The Ibbotson equity risk premium based on the PRPM is derived by applying the PRPM to the monthly risk premiums between Ibbotson large company common stock monthly returns and average Aaa and Aa2 corporate monthly bond yields, from January 1928 through March 2022.
B36: (4) | C36: =CONCATENATE("The equity risk premium based on the Value Line Summary and Index is derived by subtracting the average consensus forecast of Aaa corporate bonds of ",TEXT('MRP WP1'!M37,"#0.00"),"% (from page 3 of this Schedule) from the projected 3-5 year total annual market return of ",TEXT('MRP WP1'!M22*100,"#0.00"),"% (described fully in note 1 on page 2 of Schedule DWD-5).") -> The equity risk premium based on the Value Line Summary and Index is derived by subtracting the average consensus forecast of Aaa corporate bonds of 4.34% (from page 3 of this Schedule) from the projected 3-5 year total annual market return of 11.98% (described fully in note 1 on page 2 of Schedule DWD-5).
B37: (5) | C37: Using data from Value Line for the S&P 500, an expected total return of 15.90% was derived based upon expected dividend yields and long-term earnings growth estimates as a proxy for capital appreciation. Subtracting the. average consensus forecast of Aaa corporate bonds of 4.34% results in an expected equity risk premium of 11.56%.
B38: (6) | C38: Using data from Bloomberg Professional Services for the S&P 500, an expected total return of 14.60% was derived based upon expected dividend yields and long-term earnings growth estimates as a proxy for capital appreciation. Subtracting the average consensus forecast of Aaa corporate bonds of 4.34% results in an expected equity risk premium of 10.26%.
B39: (7) | C39: Average of mean and median beta from Schedule DWD-5.
B41: Sources of Information:
C42: Kroll 2022 SBBI® Yearbook
C43: Industrial Manual and Mergent Bond Record Monthly Update
C44: Value Line Summary and Index
C45: =CONCATENATE("Blue Chip Financial Forecasts, ",Input!I25) -> Blue Chip Financial Forecasts, December 1, 2021 and April 1, 2022
C46: Bloomberg Professional Services

Sheet 4.8-9 Beta Adjusted ERP (2)
A1: =Input!G28 -> Water Service Corporation of Kentucky
A2: Derivation of Equity Risk Premium Based on the Total Market Approach
A3: Using the Beta for the
A4: ='4.7 ERP Determination'!E5 -> Proxy Group of Seven Water Companies
A7: Line No. | C7: ='7.5 CEM Beta Adjusted RP'!C7 -> Equity Risk Premium Measure | F7: =A4 -> Proxy Group of Seven Water Companies | H7: =A4&" ex PRPM" -> Proxy Group of Seven Water Companies ex PRPM
B9: Ibbotson-Based Equity Risk Premiums:
A11: 1. | C11: Ibbotson Equity Risk Premium (1) | F11: =('Market Data'!B10-'Market Data'!B11)*100 -> 6.13 | G11: % | H11: =('Market Data'!B10-'Market Data'!B11)*100 -> 6.13 | I11: %
A13: 2. | C13: Regression on Ibbotson Risk Premium Data (2) | F13: ='MRP ERP WP'!AK42*100 ->  | H13: ='MRP ERP WP'!AK42*100 -> 
A15: 3. | C15: Ibbotson Equity Risk Premium based on PRPM (3) | F15: ='PRPM WP1'!K1172*100 -> 8.034359628 | H15: NA
A17: 4. | C17: Equity Risk Premium Based on Value Line Summary and Index (4) | F17: ='MRP WP1'!$M$22*100-'MRP WP1'!$M$37 -> 7.64 | H17: ='MRP WP1'!$M$22*100-'MRP WP1'!$M$37 -> 7.64
A19: 5. | C19: Equity Risk Premium Based on Value Line S&P 500 Companies (5) | F19: =('MRP WP3'!H504*100)-'MRP WP1'!M37 -> 11.56103999 | H19: =('MRP WP3'!H504*100)-'MRP WP1'!M37 -> 11.56103999
A21: 6. | C21: Equity Risk Premium Based on Bloomberg S&P 500 Companies (6) | F21: ='MRP WP2'!Q504*100-'MRP WP1'!M37 -> 10.26174889 | H21: ='MRP WP2'!Q504*100-'MRP WP1'!M37 -> 10.26174889
A23: 7. | C23: Conclusion of Equity Risk Premium | F23: =ROUND(AVERAGE(F11:F21),2) ->  | G23: % | H23: =ROUND(AVERAGE(H11:H13),2) ->  | I23: %
A25: 8. | C25: Adjusted Beta (7) | F25: ='5.1 CAPM'!H21 -> 0.83 | H25: ='5.1 CAPM'!H21 -> 0.83
A27: 9. | C27: Forecasted Equity Risk Premium | F27: =ROUND(F23*F25,2) ->  | G27: % | H27: =ROUND(H23*H25,2) ->  | I27: %
A29: Notes provided on page 9 of this Schedule.
B31: Notes:
B32: (1) | C32: =CONCATENATE("Based on the arithmetic mean historical monthly returns on large company common stocks from Kroll 2022 SBBI® Yearbook"," Market Report minus the arithmetic mean monthly yield of Moody's average Aaa and Aa2 corporate bonds from 1928-2021.") -> Based on the arithmetic mean historical monthly returns on large company common stocks from Kroll 2022 SBBI® Yearbook Market Report minus the arithmetic mean monthly yield of Moody's average Aaa and Aa2 corporate bonds from 1928-2021.
B34: (2) | C34: This equity risk premium is based on a regression of the monthly equity risk premiums of large company common stocks relative to Moody's average Aaa and Aa2 rated corporate bond yields from 1928-2021 referenced in Note 1 above.
B35: (3) | C35: The Predictive Risk Premium Model (PRPM) is discussed in the accompanying direct testimony. The Ibbotson equity risk premium based on the PRPM is derived by applying the PRPM to the monthly risk premiums between Ibbotson large company common stock monthly returns and average Aaa and Aa2 corporate monthly bond yields, from January 1928 through March 2022.
B36: (4) | C36: =CONCATENATE("The equity risk premium based on the Value Line Summary and Index is derived by subtracting the average consensus forecast of Aaa corporate bonds of ",TEXT('MRP WP1'!M37,"#0.00"),"% (from page 3 of this Schedule) from the projected 3-5 year total annual market return of ",TEXT('MRP WP1'!M22*100,"#0.00"),"% (described fully in note 1 on page 2 of Schedule DWD-5).") -> The equity risk premium based on the Value Line Summary and Index is derived by subtracting the average consensus forecast of Aaa corporate bonds of 4.34% (from page 3 of this Schedule) from the projected 3-5 year total annual market return of 11.98% (described fully in note 1 on page 2 of Schedule DWD-5).
B37: (5) | C37: Using data from Value Line for the S&P 500, an expected total return of 15.90% was derived based upon expected dividend yields and long-term earnings growth estimates as a proxy for capital appreciation. Subtracting the. average consensus forecast of Aaa corporate bonds of 4.34% results in an expected equity risk premium of 11.56%.
B38: (6) | C38: Using data from Bloomberg Professional Services for the S&P 500, an expected total return of 14.60% was derived based upon expected dividend yields and long-term earnings growth estimates as a proxy for capital appreciation. Subtracting the average consensus forecast of Aaa corporate bonds of 4.34% results in an expected equity risk premium of 10.26%.
B39: (7) | C39: Average of mean and median beta from Schedule DWD-5.
B41: Sources of Information:
C42: Kroll 2022 SBBI® Yearbook
C43: Industrial Manual and Mergent Bond Record Monthly Update
C44: Value Line Summary and Index
C45: =CONCATENATE("Blue Chip Financial Forecasts, ",Input!I25) -> Blue Chip Financial Forecasts, December 1, 2021 and April 1, 2022
C46: Bloomberg Professional Services

Sheet 4.12 S&P RPM Study Returns
A1: =Input!G28 -> Water Service Corporation of Kentucky
A2: Derivation of Mean Equity Risk Premium Based Studies
A3: Using Holding Period Returns and
A4: Projected Market Appreciation of the S&P Utility Index
A5: Line No. | E5: Implied Equity Risk Premium | G5: Implied Equity Risk Premium ex PRPM
B7: Equity Risk Premium based on S&P Utility Index Holding Period Returns (1):
A9: 1. | C9: Historical Equity Risk Premium | E9: =('Market Data'!B12-'Market Data'!B13)*100 -> 4.28 | F9: % | G9: =('Market Data'!B12-'Market Data'!B13)*100 -> 4.28 | H9: %
A11: 2. | C11: Regression of Historical Equity Risk Premium (2) | E11: ='MRP ERP WP'!AU42*100 -> 5.692651754 | G11: ='MRP ERP WP'!AU42*100 -> 5.692651754
A13: 3. | C13: Forecasted Equity Risk Premium Based on PRPM (3) | E13: ='PRPM WP1'!J1172*100 -> 5.24347756 | G13: NA
A15: 4. | C15: Forecasted Equity Risk Premium based on Projected Total Return on the S&P Utilities Index (Value Line Data) (4) | E15: =ROUND(('ERP WP 2'!H33*100)-'4.3 Risk Premium Summary'!G18,2) -> 5.86 | G15: =ROUND(('ERP WP 2'!H33*100)-'4.3 Risk Premium Summary'!G18,2) -> 5.86
A17: 5. | C17: Forecasted Equity Risk Premium based on Projected Total Return on the S&P Utilities Index (Bloomberg Data) (5) | E17: =ROUND('ERP WP1'!O32*100-'4.3 Risk Premium Summary'!G18,2) -> 5.14 | G17: =ROUND('ERP WP1'!O32*100-'4.3 Risk Premium Summary'!G18,2) -> 5.14
A19: 6. | C19: Average Equity Risk Premium (6) | E19: =ROUND(AVERAGE(E9:E17),2) -> 5.24 | F19: % | G19: =ROUND(AVERAGE(G9:G17),2) -> 5.24 | H19: %
A22: Notes: | B22: (1) | C22: Based on S&P Public Utility Index monthly total returns and Moody's Public Utility Bond average monthly yields from 1928-2021. Holding period returns are calculated based upon income received (dividends and interest) plus the relative change in the market value of a security over a one-year holding period.
B23: (2) | C23: This equity risk premium is based on a regression of the monthly equity risk premiums of the S&P Utility Index relative to Moody's A2 rated public utility bond yields from 1928 - 2021 referenced in note 1 above.
B24: (3) | C24: =CONCATENATE("The Predictive Risk Premium Model (PRPM) is applied to the risk premium of the monthly total returns of the S&P Utility Index and the monthly yields on Moody's A2 rated public utility bonds from January 1928 - ",Input!G25,".") -> The Predictive Risk Premium Model (PRPM) is applied to the risk premium of the monthly total returns of the S&P Utility Index and the monthly yields on Moody's A2 rated public utility bonds from January 1928 - March 2022.
B25: (4) | C25: Using data from Value Line for the S&P Utilities Index, an expected return of 10.66% was derived based on expected dividend yields and long-term growth estimates as a proxy for market appreciation. Subtracting the expected A2 rated public utility bond yield of 4.80%, calculated on line 3 of page 3 of this Schedule results in an equity risk premium of 5.86%. (10.66% - 4.80% = 5.86%)
B26: (5) | C26: Using data from Bloomberg Professional Service for the S&P Utilities Index, an expected return of 9.94% was derived based on expected dividend yields and long-term growth estimates as a proxy for market appreciation. Subtracting the expected A2 rated public utility bond yield of 4.80%, calculated on line 3 of page 3 of this Schedule results in an equity risk premium of 5.14%. (9.94% - 4.80% = 5.14%)
B27: (6) | C27: Average of lines 1 through 5.

Sheet 5.1 CAPM
B1: =Input!G28 -> Water Service Corporation of Kentucky
B2: Indicated Common Equity Cost Rate Through Use
B3: of the Traditional Capital Asset Pricing Model (CAPM) and Empirical Capital Asset Pricing Model (ECAPM)
D5: [1] | F5: [2] | H5: [3] | J5: [4] | M5: [5] | P5: [6] | S5: [7] | V5: [8]
B7: ='4.8-9 Beta Adjusted ERP'!F7 -> Proxy Group of Seven Water Companies | D7: Value Line Adjusted Beta | F7: Bloomberg Adjusted Beta | H7: Average Beta | J7: Market Risk Premium (1) | M7: Risk-Free Rate (2) | P7: Traditional CAPM Cost Rate | S7: ECAPM Cost Rate | V7: Indicated Common Equity Cost Rate (3)
A9: =IFERROR(Input!A2, "NA") -> AWR | B9: =IFERROR(VLOOKUP(A9,'Proxy Data Lookup'!$A:$L,2,FALSE),"NA") -> American States Water Company | D9: ='MRP WP1'!C71 -> 0.65 | F9: ='Proxy Data Lookup'!H3 -> 0.8176448345 | H9: =IFERROR(ROUND(AVERAGE(D9:F9),2),"NA") -> 0.73 | J9: ='MRP WP1'!$H$64 -> 9.796371045 | K9: % | M9: ='MRP WP1'!$F$37 -> 3.18 | N9: % | P9: =IFERROR((H9*J9) + M9,"NA") -> 10.33135086 | Q9: % | S9: =IFERROR((0.75*(H9*J9))+(0.25*J9)+M9,"NA") -> 10.99260591 | T9: % | V9: =IFERROR(ROUND(AVERAGE(P9:S9),2),"NA") -> 10.66 | W9: %
A10: =IFERROR(Input!A3, "NA") -> AWK | B10: =IFERROR(VLOOKUP(A10,'Proxy Data Lookup'!$A:$L,2,FALSE),"NA") -> American Water Works Company, Inc. | D10: ='MRP WP1'!C72 -> 0.85 | F10: ='Proxy Data Lookup'!H4 -> 0.8662359715 | H10: =IFERROR(ROUND(AVERAGE(D10:F10),2),"NA") -> 0.86 | J10: ='MRP WP1'!$H$64 -> 9.796371045 | M10: ='MRP WP1'!$F$37 -> 3.18 | P10: =IFERROR((H10*J10) + M10,"NA") -> 11.6048791 | S10: =IFERROR((0.75*(H10*J10))+(0.25*J10)+M10,"NA") -> 11.94775209 | V10: =IFERROR(ROUND(AVERAGE(P10:S10),2),"NA") -> 11.78
A11: =IFERROR(Input!A4, "NA") -> CWT | B11: =IFERROR(VLOOKUP(A11,'Proxy Data Lookup'!$A:$L,2,FALSE),"NA") -> California Water Service Group | D11: ='MRP WP1'!C73 -> 0.7 | F11: ='Proxy Data Lookup'!H5 -> 0.9718194604 | H11: 0.84 | J11: ='MRP WP1'!$H$64 -> 9.796371045 | M11: ='MRP WP1'!$F$37 -> 3.18 | P11: 11.40895168 | S11: 11.80080652 | V11: 11.6
A12: =IFERROR(Input!A5, "NA") -> WTRG | B12: =IFERROR(VLOOKUP(A12,'Proxy Data Lookup'!$A:$L,2,FALSE),"NA") -> Essential Utilities Inc. | D12: ='MRP WP1'!C74 -> 0.95 | F12: ='Proxy Data Lookup'!H6 -> 0.933491528 | H12: 0.94 | J12: ='MRP WP1'!$H$64 -> 9.796371045 | M12: ='MRP WP1'!$F$37 -> 3.18 | P12: 12.38858878 | S12: 12.53553435 | V12: 12.46
A13: =IFERROR(Input!A6, "NA") -> MSEX | B13: =IFERROR(VLOOKUP(A13,'Proxy Data Lookup'!$A:$L,2,FALSE),"NA") -> Middlesex Water Company | D13: ='MRP WP1'!C75 -> 0.7 | F13: ='Proxy Data Lookup'!H7 -> 0.8564789891 | H13: 0.78 | J13: ='MRP WP1'!$H$64 -> 9.796371045 | M13: ='MRP WP1'!$F$37 -> 3.18 | P13: 10.82116942 | S13: 11.35996982 | V13: 11.09
A14: =IFERROR(Input!A7, "NA") -> SJW | B14: =IFERROR(VLOOKUP(A14,'Proxy Data Lookup'!$A:$L,2,FALSE),"NA") -> SJW Group | D14: ='MRP WP1'!C76 -> 0.8 | F14: ='Proxy Data Lookup'!H8 -> 0.8674534559 | H14: 0.83 | J14: ='MRP WP1'!$H$64 -> 9.796371045 | M14: ='MRP WP1'!$F$37 -> 3.18 | P14: 11.31098797 | S14: 11.72733374 | V14: 11.52
A15: =IFERROR(Input!A8, "NA") -> YORW | B15: =IFERROR(VLOOKUP(A15,'Proxy Data Lookup'!$A:$L,2,FALSE),"NA") -> The York Water Company | D15: ='MRP WP1'!C77 -> 0.85 | F15: ='Proxy Data Lookup'!H9 -> 0.809759438 | H15: 0.83 | J15: ='MRP WP1'!$H$64 -> 9.796371045 | M15: ='MRP WP1'!$F$37 -> 3.18 | P15: 11.31098797 | S15: 11.72733374 | V15: 11.52
B17: Mean | H17: =IFERROR(ROUND(AVERAGE(H9:H15),2),"NA") -> 0.83 | P17: =IFERROR(ROUND(AVERAGE(P9:P15),2),"NA") -> 11.31 | Q17: % | S17: =IFERROR(ROUND(AVERAGE(S9:S15),2),"NA") -> 11.73 | T17: % | V17: =IFERROR(ROUND(AVERAGE(V9:V15),2),"NA") -> 11.52 | W17: %
B19: Median | H19: =IFERROR(ROUND(MEDIAN(H9:H15),2),"NA") -> 0.83 | P19: =IFERROR(ROUND(MEDIAN(P9:P15),2),"NA") -> 11.31 | Q19: % | S19: =IFERROR(ROUND(MEDIAN(S9:S15),2),"NA") -> 11.73 | T19: % | V19: =IFERROR(ROUND(MEDIAN(V9:V15),2),"NA") -> 11.52 | W19: %
B21: Average of Mean and Median | H21: =IFERROR(ROUND(AVERAGE(H17:H19),2),"NA") -> 0.83 | P21: =IFERROR(ROUND(AVERAGE(P17:P19),2),"NA") -> 11.31 | Q21: % | S21: =IFERROR(ROUND(AVERAGE(S17:S19),2),"NA") -> 11.73 | T21: % | V21: =IFERROR(ROUND(AVERAGE(V17:V19),2),"NA") -> 11.52 | W21: %
B23: Results Excluding the PRPM MRP
D25: [1] | F25: [2] | H25: [3] | J25: [4] | M25: [5] | P25: [6] | S25: [7] | V25: [8]
B27: =B7 -> Proxy Group of Seven Water Companies | D27: Value Line Adjusted Beta | F27: Bloomberg Adjusted Beta | H27: Average Beta | J27: Market Risk Premium (1) | M27: Risk-Free Rate (2) | P27: Traditional CAPM Cost Rate | S27: ECAPM Cost Rate | V27: Indicated Common Equity Cost Rate (3)
A29: =A9 -> AWR | B29: =IFERROR(VLOOKUP(A29,'Proxy Data Lookup'!$A:$L,2,FALSE),"NA") -> American States Water Company | D29: =D9 -> 0.65 | F29: =F9 -> 0.8176448345 | H29: =IFERROR(ROUND(AVERAGE(D29:F29),2),"NA") -> 0.73 | J29: ='5.2 CAPM Notes'!$N$44 -> 9.960436234 | K29: % | M29: ='MRP WP1'!$F$37 -> 3.18 | N29: % | P29: =IFERROR((H29*J29) + M29,"NA") -> 10.45111845 | Q29: % | S29: =IFERROR((0.75*(H29*J29))+(0.25*J29)+M29,"NA") -> 11.1234479 | T29: % | V29: =IFERROR(ROUND(AVERAGE(P29:S29),2),"NA") -> 10.79 | W29: %
A30: =A10 -> AWK | B30: =IFERROR(VLOOKUP(A30,'Proxy Data Lookup'!$A:$L,2,FALSE),"NA") -> American Water Works Company, Inc. | D30: =D10 -> 0.85 | F30: =F10 -> 0.8662359715 | H30: =IFERROR(ROUND(AVERAGE(D30:F30),2),"NA") -> 0.86 | J30: ='5.2 CAPM Notes'!$N$44 -> 9.960436234 | M30: ='MRP WP1'!$F$37 -> 3.18 | P30: =IFERROR((H30*J30) + M30,"NA") -> 11.74597516 | S30: =IFERROR((0.75*(H30*J30))+(0.25*J30)+M30,"NA") -> 12.09459043 | V30: =IFERROR(ROUND(AVERAGE(P30:S30),2),"NA") -> 11.92
A31: CWT | B31: =IFERROR(VLOOKUP(A31,'Proxy Data Lookup'!$A:$L,2,FALSE),"NA") -> California Water Service Group | D31: 0.7 | F31: 0.9718194604 | H31: 0.84 | J31: ='5.2 CAPM Notes'!$N$44 -> 9.960436234 | M31: ='MRP WP1'!$F$37 -> 3.18 | P31: 11.54676644 | S31: 11.94518389 | V31: 11.75
A32: WTRG | B32: =IFERROR(VLOOKUP(A32,'Proxy Data Lookup'!$A:$L,2,FALSE),"NA") -> Essential Utilities Inc. | D32: 0.95 | F32: 0.933491528 | H32: 0.94 | J32: ='5.2 CAPM Notes'!$N$44 -> 9.960436234 | M32: ='MRP WP1'!$F$37 -> 3.18 | P32: 12.54281006 | S32: 12.6922166 | V32: 12.62
A33: MSEX | B33: =IFERROR(VLOOKUP(A33,'Proxy Data Lookup'!$A:$L,2,FALSE),"NA") -> Middlesex Water Company | D33: 0.7 | F33: 0.8564789891 | H33: 0.78 | J33: ='5.2 CAPM Notes'!$N$44 -> 9.960436234 | M33: ='MRP WP1'!$F$37 -> 3.18 | P33: 10.94914026 | S33: 11.49696426 | V33: 11.22
A34: SJW | B34: =IFERROR(VLOOKUP(A34,'Proxy Data Lookup'!$A:$L,2,FALSE),"NA") -> SJW Group | D34: 0.8 | F34: 0.8674534559 | H34: 0.83 | J34: ='5.2 CAPM Notes'!$N$44 -> 9.960436234 | M34: ='MRP WP1'!$F$37 -> 3.18 | P34: 11.44716207 | S34: 11.87048061 | V34: 11.66
A35: YORW | B35: =IFERROR(VLOOKUP(A35,'Proxy Data Lookup'!$A:$L,2,FALSE),"NA") -> The York Water Company | D35: 0.85 | F35: 0.809759438 | H35: 0.83 | J35: ='5.2 CAPM Notes'!$N$44 -> 9.960436234 | M35: ='MRP WP1'!$F$37 -> 3.18 | P35: 11.44716207 | S35: 11.87048061 | V35: 11.66
B37: Mean | H37: =IFERROR(ROUND(AVERAGE(H29:H35),2),"NA") -> 0.83 | P37: =IFERROR(ROUND(AVERAGE(P29:P35),2),"NA") -> 11.45 | Q37: % | S37: =IFERROR(ROUND(AVERAGE(S29:S35),2),"NA") -> 11.87 | T37: % | V37: =IFERROR(ROUND(AVERAGE(V29:V35),2),"NA") -> 11.66 | W37: %
B39: Median | H39: =IFERROR(ROUND(MEDIAN(H29:H35),2),"NA") -> 0.83 | P39: =IFERROR(ROUND(MEDIAN(P29:P35),2),"NA") -> 11.45 | Q39: % | S39: =IFERROR(ROUND(MEDIAN(S29:S35),2),"NA") -> 11.87 | T39: % | V39: =IFERROR(ROUND(MEDIAN(V29:V35),2),"NA") -> 11.66 | W39: %
B41: Average of Mean and Median | H41: =IFERROR(ROUND(AVERAGE(H37:H39),2),"NA") -> 0.83 | P41: =IFERROR(ROUND(AVERAGE(P37:P39),2),"NA") -> 11.45 | Q41: % | S41: =IFERROR(ROUND(AVERAGE(S37:S39),2),"NA") -> 11.87 | T41: % | V41: =IFERROR(ROUND(AVERAGE(V37:V39),2),"NA") -> 11.66 | W41: %
B43: Notes on page 2 of this Schedule.

Sheet 5.2 CAPM Notes
A1: =Input!G28 -> Water Service Corporation of Kentucky
A2: Notes to Accompany the Application of the CAPM and ECAPM
A4: Notes:
A5: (1) | B5: The market risk premium (MRP) is derived by using six different measures from three sources: Ibbotson, Value Line, and Bloomberg as illustrated below:
B7: Historical Data MRP Estimates:
B9: =CONCATENATE("Measure 1: Ibbotson Arithmetic Mean MRP ",MID(Input!E20,FIND("(",Input!E20),11)) -> Measure 1: Ibbotson Arithmetic Mean MRP (1926-2021)
B11: =CONCATENATE("Arithmetic Mean Monthly Returns for Large Stocks ",MID(Input!E20,FIND("1",Input!E20),9),":") -> Arithmetic Mean Monthly Returns for Large Stocks 1926-2021: | N11: ='MRP WP1'!H49 -> 12.37 | O11: %
B12: Arithmetic Mean Income Returns on Long-Term Government Bonds: | N12: ='MRP WP1'!H51 -> 5.02
B13: MRP based on Ibbotson Historical Data: | N13: =N11-N12 -> 7.35 | O13: %
B15: Measure 2: Application of a Regression Analysis to Ibbotson Historical Data
B16: (1926-2021) | N16: ='MRP ERP WP'!AA42*100 -> 9.509392293 | O16: %
B18: Measure 3: Application of the PRPM to Ibbotson Historical Data:
B19: =CONCATENATE("(January 1926 - ",Input!G25,")") -> (January 1926 - March 2022) | N19: ='MRP WP1'!H46 -> 8.97708509 | O19: %
B21: Value Line MRP Estimates:
B23: =CONCATENATE("Measure 4: Value Line Projected MRP (Thirteen weeks ending ",TEXT('MRP WP1'!B7,"mmmm dd, yyyy)")) -> Measure 4: Value Line Projected MRP (Thirteen weeks ending April 01, 2022)
B25: Total projected return on the market 3-5 years hence*: | N25: ='MRP WP1'!M22*100 -> 11.98 | O25: %
B26: Projected Risk-Free Rate (see note 2): | N26: ='MRP WP1'!F37 -> 3.18
B27: MRP based on Value Line Summary & Index: | N27: =N25-N26 -> 8.8 | O27: %
C28: *Forcasted 3-5 year capital appreciation plus expected dividend yield
B30: Measure 5: Value Line Projected Return on the Market based on the S&P 500
B32: Total return on the Market based on the S&P 500: | N32: ='MRP WP3'!H504*100 -> 15.90103999
B33: Projected Risk-Free Rate (see note 2): | N33: =N56 -> 3.18
B34: MRP based on Value Line data | N34: =IFERROR(N32-N33,"NA") -> 12.72103999 | O34: %
Q35: Average of Value Line and Bloomberg MRPs | V35: =AVERAGE(N27,N34,N40) -> 10.98092963
B36: Measure 6: Bloomberg Projected MRP
B38: Total return on the Market based on the S&P 500: | N38: ='MRP WP2'!Q504*100 -> 14.60174889 | O38: %
B39: Projected Risk-Free Rate (see note 2): | N39: ='MRP WP1'!F37 -> 3.18
L40: MRP based on Bloomberg data | N40: =IFERROR(N38-N39,"NA") -> 11.42174889 | O40: %
L42: Average of Value Line, Ibbotson, and Bloomberg MRP: | N42: =AVERAGE(N13,N16,N19,N27,N34,N40) -> 9.796544376 | O42: %
L44: Average MRP Excluding the PRPM MRP: | N44: =AVERAGE(N40,N34,N27,N16,N13) -> 9.960436234 | O44: %
A46: (2) | B46: For reasons explained in the direct testimony, the appropriate risk-free rate for cost of capital purposes is the average forecast of 30 year Treasury Bonds per the consensus of nearly 50 economists reported in Blue Chip Financial Forecasts. (See pages 10-11 of Schedule DWD-4.) The projection of the risk-free rate is illustrated below:
J48: ='MRP WP1'!B28 -> Second Quarter 2022 | N48: ='MRP WP1'!F28 -> 2.6 | O48: %
J49: ='MRP WP1'!B29 -> Third Quarter 2022 | N49: ='MRP WP1'!F29 -> 2.8
J50: ='MRP WP1'!B30 -> Fourth Quarter 2022 | N50: ='MRP WP1'!F30 -> 3
J51: ='MRP WP1'!B31 -> First Quarter 2023 | N51: ='MRP WP1'!F31 -> 3.2
J52: ='MRP WP1'!B32 -> Second Quarter 2023 | N52: ='MRP WP1'!F32 -> 3.3
J53: ='MRP WP1'!B33 -> Third Quarter 2023 | N53: ='MRP WP1'!F33 -> 3.3
J54: ='MRP WP1'!B34 -> 2023-2027 | N54: ='MRP WP1'!F34 -> 3.4
J55: ='MRP WP1'!B35 -> 2028-2032 | N55: ='MRP WP1'!F35 -> 3.8
N56: =ROUND(AVERAGE(N48:N55),2) -> 3.18 | O56: %
A57: (3) | B57: Average of Column 6 and Column 7.
A59: Sources of Information:
B60: Value Line Summary and Index
B61: ='4.8-9 Beta Adjusted ERP'!C45 -> Blue Chip Financial Forecasts, December 1, 2021 and April 1, 2022
B62: ='4.8-9 Beta Adjusted ERP'!C42 -> Kroll 2022 SBBI® Yearbook
B63: Bloomberg Professional Services

Sheet 6.2 Comp Earnings Criteria
C1: =Input!G28 -> Water Service Corporation of Kentucky
C2: Basis of Selection of Comparable Risk
C3: Domestic Non-Price Regulated Companies
A4: TICKER
E5: [1] | G5: [2] | I5: [3] | K5: [4]
A6: SYMBOL
C7: ='5.1 CAPM'!B7 -> Proxy Group of Seven Water Companies | E7: Value Line Adjusted Beta | G7: Unadjusted Beta | I7: Residual Standard Error of the Regression | K7: Standard Deviation of Beta
A9: =Input!A2 -> AWR | C9: =VLOOKUP(A9,'Proxy Data Lookup'!$A:$L,2,FALSE) -> American States Water Company | E9: ='Proxy Data Lookup'!G3 -> 0.65 | G9: ='Proxy Data Lookup'!I3 -> 0.4 | I9: ='Proxy Data Lookup'!L3 -> 2.4309 | K9: ='Proxy Data Lookup'!N3 -> 0.0601
A10: =Input!A3 -> AWK | C10: =VLOOKUP(A10,'Proxy Data Lookup'!$A:$L,2,FALSE) -> American Water Works Company, Inc. | E10: ='Proxy Data Lookup'!G4 -> 0.85 | G10: ='Proxy Data Lookup'!I4 -> 0.75 | I10: ='Proxy Data Lookup'!L4 -> 3.2139 | K10: ='Proxy Data Lookup'!N4 -> 0.0795
A11: =Input!A4 -> CWT | C11: =VLOOKUP(A11,'Proxy Data Lookup'!$A:$L,2,FALSE) -> California Water Service Group | E11: ='Proxy Data Lookup'!G5 -> 0.65 | G11: ='Proxy Data Lookup'!I5 -> 0.46 | I11: ='Proxy Data Lookup'!L5 -> 3.0606 | K11: ='Proxy Data Lookup'!N5 -> 0.0757
A12: =Input!A5 -> WTRG | C12: =VLOOKUP(A12,'Proxy Data Lookup'!$A:$L,2,FALSE) -> Essential Utilities Inc. | E12: ='Proxy Data Lookup'!G6 -> 0.95 | G12: ='Proxy Data Lookup'!I6 -> 0.9 | I12: ='Proxy Data Lookup'!L6 -> 2.6745 | K12: ='Proxy Data Lookup'!N6 -> 0.0662
A13: =Input!A6 -> MSEX | C13: =VLOOKUP(A13,'Proxy Data Lookup'!$A:$L,2,FALSE) -> Middlesex Water Company | E13: ='Proxy Data Lookup'!G7 -> 0.7 | G13: ='Proxy Data Lookup'!I7 -> 0.51 | I13: ='Proxy Data Lookup'!L7 -> 3.4876 | K13: ='Proxy Data Lookup'!N7 -> 0.0863
A14: =Input!A7 -> SJW | C14: =VLOOKUP(A14,'Proxy Data Lookup'!$A:$L,2,FALSE) -> SJW Group | E14: ='Proxy Data Lookup'!G8 -> 0.8 | G14: ='Proxy Data Lookup'!I8 -> 0.68 | I14: ='Proxy Data Lookup'!L8 -> 3.3451 | K14: ='Proxy Data Lookup'!N8 -> 0.0827
A15: =Input!A8 -> YORW | C15: =VLOOKUP(A15,'Proxy Data Lookup'!$A:$L,2,FALSE) -> The York Water Company | E15: ='Proxy Data Lookup'!G9 -> 0.85 | G15: ='Proxy Data Lookup'!I9 -> 0.71 | I15: ='Proxy Data Lookup'!L9 -> 3.4491 | K15: ='Proxy Data Lookup'!N9 -> 0.0853
C17: Average | E17: =AVERAGE(E9:E15) -> 0.7785714286 | G17: =AVERAGE(G9:G15) -> 0.63 | I17: =AVERAGE(I9:I15) -> 3.094528571 | K17: =AVERAGE(K9:K15) -> 0.07654285714
C20: Beta Range (+/- 2 std. Devs. of Beta) | E20: =G17-E21 -> 0.48 | G20: =G17+E21 -> 0.78
C21: 2 std. Devs. of Beta | E21: =ROUND((K17*2),2) -> 0.15
C23: Residual Std. Err. Range (+/- 2 std.
C24: Devs. of the Residual Std. Err.) | E24: =I17-E28 -> 2.822528571 | G24: =I17+E28 -> 3.366528571
C26: Std. dev. of the Res. Std. Err. | E26: =ROUND((I17/22.7596),4) -> 0.136
C28: 2 std. devs. of the Res. Std. Err. | E28: =ROUND((2*E26),4) -> 0.272
C31: Source of Information: | E31: Valueline Proprietary Database, March 2022

Sheet 6.3 Proxy Group Equivalent
C1: =Input!G28 -> Water Service Corporation of Kentucky
C2: Proxy Group of Non-Price Regulated Companies
C3: Comparable in Total Risk to the
C4: ='6.2 Comp Earnings Criteria'!C7 -> Proxy Group of Seven Water Companies
E6: [1] | G6: [2] | I6: [3] | K6: [4]
A8: Ticker | C8: =Input!I32 -> Proxy Group of Twenty-Four Non-Price Regulated Companies | E8: Value Line Adjusted Beta | G8: Unadjusted Beta | I8: Residual Standard Error of the Regression | K8: Standard Deviation of Beta
A10: =Input!C2 -> AOS | C10: =VLOOKUP($A10,'CEM Data Lookup'!$A:$N,2,FALSE) -> Smith (A.O.) | E10: =VLOOKUP($A10,'CEM Data Lookup'!$A:$N,7,FALSE) -> 0.85 | G10: =VLOOKUP($A10,'CEM Data Lookup'!$A:$N,9,FALSE) -> 0.77 | I10: =VLOOKUP($A10,'CEM Data Lookup'!$A:$N,12,FALSE) -> 2.8592 | K10: =VLOOKUP($A10,'CEM Data Lookup'!$A:$N,14,FALSE) -> 0.0707
A11: =Input!C3 -> BCPC | C11: =VLOOKUP($A11,'CEM Data Lookup'!$A:$N,2,FALSE) -> Balchem Corp. | E11: =VLOOKUP($A11,'CEM Data Lookup'!$A:$N,7,FALSE) -> 0.7 | G11: =VLOOKUP($A11,'CEM Data Lookup'!$A:$N,9,FALSE) -> 0.51 | I11: =VLOOKUP($A11,'CEM Data Lookup'!$A:$N,12,FALSE) -> 3.3114 | K11: =VLOOKUP($A11,'CEM Data Lookup'!$A:$N,14,FALSE) -> 0.0819
A12: =Input!C4 -> BDX | C12: =VLOOKUP($A12,'CEM Data Lookup'!$A:$N,2,FALSE) -> Becton, Dickinson | E12: =VLOOKUP($A12,'CEM Data Lookup'!$A:$N,7,FALSE) -> 0.75 | G12: =VLOOKUP($A12,'CEM Data Lookup'!$A:$N,9,FALSE) -> 0.6 | I12: =VLOOKUP($A12,'CEM Data Lookup'!$A:$N,12,FALSE) -> 2.8626 | K12: =VLOOKUP($A12,'CEM Data Lookup'!$A:$N,14,FALSE) -> 0.0708
A13: =Input!C5 -> BMY | C13: =VLOOKUP($A13,'CEM Data Lookup'!$A:$N,2,FALSE) -> Bristol-Myers Squibb | E13: =VLOOKUP($A13,'CEM Data Lookup'!$A:$N,7,FALSE) -> 0.85 | G13: =VLOOKUP($A13,'CEM Data Lookup'!$A:$N,9,FALSE) -> 0.75 | I13: =VLOOKUP($A13,'CEM Data Lookup'!$A:$N,12,FALSE) -> 2.9154 | K13: =VLOOKUP($A13,'CEM Data Lookup'!$A:$N,14,FALSE) -> 0.0721
A14: =Input!C6 -> CHE | C14: =VLOOKUP($A14,'CEM Data Lookup'!$A:$N,2,FALSE) -> Chemed Corp. | E14: =VLOOKUP($A14,'CEM Data Lookup'!$A:$N,7,FALSE) -> 0.85 | G14: =VLOOKUP($A14,'CEM Data Lookup'!$A:$N,9,FALSE) -> 0.7 | I14: =VLOOKUP($A14,'CEM Data Lookup'!$A:$N,12,FALSE) -> 2.8432 | K14: =VLOOKUP($A14,'CEM Data Lookup'!$A:$N,14,FALSE) -> 0.0703
A15: =Input!C7 -> CHRW | C15: =VLOOKUP($A15,'CEM Data Lookup'!$A:$N,2,FALSE) -> C.H. Robinson | E15: =VLOOKUP($A15,'CEM Data Lookup'!$A:$N,7,FALSE) -> 0.75 | G15: =VLOOKUP($A15,'CEM Data Lookup'!$A:$N,9,FALSE) -> 0.56 | I15: =VLOOKUP($A15,'CEM Data Lookup'!$A:$N,12,FALSE) -> 3.0412 | K15: =VLOOKUP($A15,'CEM Data Lookup'!$A:$N,14,FALSE) -> 0.0752
A16: =Input!C8 -> CSGS | C16: =VLOOKUP($A16,'CEM Data Lookup'!$A:$N,2,FALSE) -> CSG Systems Int'l | E16: =VLOOKUP($A16,'CEM Data Lookup'!$A:$N,7,FALSE) -> 0.75 | G16: =VLOOKUP($A16,'CEM Data Lookup'!$A:$N,9,FALSE) -> 0.57 | I16: =VLOOKUP($A16,'CEM Data Lookup'!$A:$N,12,FALSE) -> 3.0997 | K16: =VLOOKUP($A16,'CEM Data Lookup'!$A:$N,14,FALSE) -> 0.0767
A17: =Input!C9 -> DGX | C17: =VLOOKUP($A17,'CEM Data Lookup'!$A:$N,2,FALSE) -> Quest Diagnostics | E17: =VLOOKUP($A17,'CEM Data Lookup'!$A:$N,7,FALSE) -> 0.8 | G17: =VLOOKUP($A17,'CEM Data Lookup'!$A:$N,9,FALSE) -> 0.65 | I17: =VLOOKUP($A17,'CEM Data Lookup'!$A:$N,12,FALSE) -> 3.1904 | K17: =VLOOKUP($A17,'CEM Data Lookup'!$A:$N,14,FALSE) -> 0.0789
A18: =Input!C10 -> HTLD | C18: =VLOOKUP($A18,'CEM Data Lookup'!$A:$N,2,FALSE) -> Heartland Express | E18: =VLOOKUP($A18,'CEM Data Lookup'!$A:$N,7,FALSE) -> 0.75 | G18: =VLOOKUP($A18,'CEM Data Lookup'!$A:$N,9,FALSE) -> 0.55 | I18: =VLOOKUP($A18,'CEM Data Lookup'!$A:$N,12,FALSE) -> 2.8513 | K18: =VLOOKUP($A18,'CEM Data Lookup'!$A:$N,14,FALSE) -> 0.0705
A19: =Input!C11 -> JKHY | C19: =VLOOKUP($A19,'CEM Data Lookup'!$A:$N,2,FALSE) -> Henry (Jack) & Assoc | E19: =VLOOKUP($A19,'CEM Data Lookup'!$A:$N,7,FALSE) -> 0.85 | G19: =VLOOKUP($A19,'CEM Data Lookup'!$A:$N,9,FALSE) -> 0.7 | I19: =VLOOKUP($A19,'CEM Data Lookup'!$A:$N,12,FALSE) -> 2.9159 | K19: =VLOOKUP($A19,'CEM Data Lookup'!$A:$N,14,FALSE) -> 0.0721
A20: =Input!C12 -> LANC | C20: =VLOOKUP($A20,'CEM Data Lookup'!$A:$N,2,FALSE) -> Lancaster Colony | E20: =VLOOKUP($A20,'CEM Data Lookup'!$A:$N,7,FALSE) -> 0.7 | G20: =VLOOKUP($A20,'CEM Data Lookup'!$A:$N,9,FALSE) -> 0.49 | I20: =VLOOKUP($A20,'CEM Data Lookup'!$A:$N,12,FALSE) -> 2.9597 | K20: =VLOOKUP($A20,'CEM Data Lookup'!$A:$N,14,FALSE) -> 0.0732
A21: =Input!C13 -> LLY | C21: =VLOOKUP($A21,'CEM Data Lookup'!$A:$N,2,FALSE) -> Lilly (Eli) | E21: =VLOOKUP($A21,'CEM Data Lookup'!$A:$N,7,FALSE) -> 0.75 | G21: =VLOOKUP($A21,'CEM Data Lookup'!$A:$N,9,FALSE) -> 0.62 | I21: =VLOOKUP($A21,'CEM Data Lookup'!$A:$N,12,FALSE) -> 3.2324 | K21: =VLOOKUP($A21,'CEM Data Lookup'!$A:$N,14,FALSE) -> 0.08
A22: =Input!C14 -> MANT | C22: =VLOOKUP($A22,'CEM Data Lookup'!$A:$N,2,FALSE) -> ManTech Int'l 'A' | E22: =VLOOKUP($A22,'CEM Data Lookup'!$A:$N,7,FALSE) -> 0.85 | G22: =VLOOKUP($A22,'CEM Data Lookup'!$A:$N,9,FALSE) -> 0.75 | I22: =VLOOKUP($A22,'CEM Data Lookup'!$A:$N,12,FALSE) -> 3.1083 | K22: =VLOOKUP($A22,'CEM Data Lookup'!$A:$N,14,FALSE) -> 0.0769
A23: =Input!C15 -> MKC | C23: =VLOOKUP($A23,'CEM Data Lookup'!$A:$N,2,FALSE) -> McCormick & Co. | E23: =VLOOKUP($A23,'CEM Data Lookup'!$A:$N,7,FALSE) -> 0.8 | G23: =VLOOKUP($A23,'CEM Data Lookup'!$A:$N,9,FALSE) -> 0.65 | I23: =VLOOKUP($A23,'CEM Data Lookup'!$A:$N,12,FALSE) -> 2.8247 | K23: =VLOOKUP($A23,'CEM Data Lookup'!$A:$N,14,FALSE) -> 0.0699
A24: =Input!C16 -> MNST | C24: =VLOOKUP($A24,'CEM Data Lookup'!$A:$N,2,FALSE) -> Monster Beverage | E24: =VLOOKUP($A24,'CEM Data Lookup'!$A:$N,7,FALSE) -> 0.85 | G24: =VLOOKUP($A24,'CEM Data Lookup'!$A:$N,9,FALSE) -> 0.75 | I24: =VLOOKUP($A24,'CEM Data Lookup'!$A:$N,12,FALSE) -> 2.9659 | K24: =VLOOKUP($A24,'CEM Data Lookup'!$A:$N,14,FALSE) -> 0.0734
A25: =Input!C17 -> NOC | C25: =VLOOKUP($A25,'CEM Data Lookup'!$A:$N,2,FALSE) -> Northrop Grumman | E25: =VLOOKUP($A25,'CEM Data Lookup'!$A:$N,7,FALSE) -> 0.85 | G25: =VLOOKUP($A25,'CEM Data Lookup'!$A:$N,9,FALSE) -> 0.75 | I25: =VLOOKUP($A25,'CEM Data Lookup'!$A:$N,12,FALSE) -> 2.983 | K25: =VLOOKUP($A25,'CEM Data Lookup'!$A:$N,14,FALSE) -> 0.0738
A26: =Input!C18 -> ORCL | C26: =VLOOKUP($A26,'CEM Data Lookup'!$A:$N,2,FALSE) -> Oracle Corp. | E26: =VLOOKUP($A26,'CEM Data Lookup'!$A:$N,7,FALSE) -> 0.75 | G26: =VLOOKUP($A26,'CEM Data Lookup'!$A:$N,9,FALSE) -> 0.61 | I26: =VLOOKUP($A26,'CEM Data Lookup'!$A:$N,12,FALSE) -> 2.8406 | K26: =VLOOKUP($A26,'CEM Data Lookup'!$A:$N,14,FALSE) -> 0.0703
A27: =Input!C19 -> PGR | C27: =VLOOKUP($A27,'CEM Data Lookup'!$A:$N,2,FALSE) -> Progressive Corp. | E27: =VLOOKUP($A27,'CEM Data Lookup'!$A:$N,7,FALSE) -> 0.75 | G27: =VLOOKUP($A27,'CEM Data Lookup'!$A:$N,9,FALSE) -> 0.59 | I27: =VLOOKUP($A27,'CEM Data Lookup'!$A:$N,12,FALSE) -> 2.9344 | K27: =VLOOKUP($A27,'CEM Data Lookup'!$A:$N,14,FALSE) -> 0.0726
A28: =Input!C20 -> RLI | C28: =VLOOKUP($A28,'CEM Data Lookup'!$A:$N,2,FALSE) -> RLI Corp. | E28: =VLOOKUP($A28,'CEM Data Lookup'!$A:$N,7,FALSE) -> 0.8 | G28: =VLOOKUP($A28,'CEM Data Lookup'!$A:$N,9,FALSE) -> 0.65 | I28: =VLOOKUP($A28,'CEM Data Lookup'!$A:$N,12,FALSE) -> 2.8568 | K28: =VLOOKUP($A28,'CEM Data Lookup'!$A:$N,14,FALSE) -> 0.0707
A29: =Input!C21 -> ROL | C29: =VLOOKUP($A29,'CEM Data Lookup'!$A:$N,2,FALSE) -> Rollins, Inc. | E29: =VLOOKUP($A29,'CEM Data Lookup'!$A:$N,7,FALSE) -> 0.85 | G29: =VLOOKUP($A29,'CEM Data Lookup'!$A:$N,9,FALSE) -> 0.73 | I29: =VLOOKUP($A29,'CEM Data Lookup'!$A:$N,12,FALSE) -> 3.1605 | K29: =VLOOKUP($A29,'CEM Data Lookup'!$A:$N,14,FALSE) -> 0.0782
A30: =Input!C22 -> TYL | C30: =VLOOKUP($A30,'CEM Data Lookup'!$A:$N,2,FALSE) -> Tyler Technologies | E30: =VLOOKUP($A30,'CEM Data Lookup'!$A:$N,7,FALSE) -> 0.75 | G30: =VLOOKUP($A30,'CEM Data Lookup'!$A:$N,9,FALSE) -> 0.59 | I30: =VLOOKUP($A30,'CEM Data Lookup'!$A:$N,12,FALSE) -> 3.2277 | K30: =VLOOKUP($A30,'CEM Data Lookup'!$A:$N,14,FALSE) -> 0.0798
A31: =Input!C23 -> UPS | C31: =VLOOKUP($A31,'CEM Data Lookup'!$A:$N,2,FALSE) -> United Parcel Serv. | E31: =VLOOKUP($A31,'CEM Data Lookup'!$A:$N,7,FALSE) -> 0.8 | G31: =VLOOKUP($A31,'CEM Data Lookup'!$A:$N,9,FALSE) -> 0.65 | I31: =VLOOKUP($A31,'CEM Data Lookup'!$A:$N,12,FALSE) -> 3.3248 | K31: =VLOOKUP($A31,'CEM Data Lookup'!$A:$N,14,FALSE) -> 0.0822
A32: =Input!C24 -> WERN | C32: =VLOOKUP($A32,'CEM Data Lookup'!$A:$N,2,FALSE) -> Werner Enterprises | E32: =VLOOKUP($A32,'CEM Data Lookup'!$A:$N,7,FALSE) -> 0.75 | G32: =VLOOKUP($A32,'CEM Data Lookup'!$A:$N,9,FALSE) -> 0.62 | I32: =VLOOKUP($A32,'CEM Data Lookup'!$A:$N,12,FALSE) -> 3.2786 | K32: =VLOOKUP($A32,'CEM Data Lookup'!$A:$N,14,FALSE) -> 0.0811
A33: =Input!C25 -> WU | C33: =VLOOKUP($A33,'CEM Data Lookup'!$A:$N,2,FALSE) -> Western Union | E33: =VLOOKUP($A33,'CEM Data Lookup'!$A:$N,7,FALSE) -> 0.8 | G33: =VLOOKUP($A33,'CEM Data Lookup'!$A:$N,9,FALSE) -> 0.64 | I33: =VLOOKUP($A33,'CEM Data Lookup'!$A:$N,12,FALSE) -> 2.8493 | K33: =VLOOKUP($A33,'CEM Data Lookup'!$A:$N,14,FALSE) -> 0.0705
A35: =COUNTA(A9:A33) -> 24 | C35: Average | E35: =ROUND(AVERAGE(E10:E33),2) -> 0.79 | G35: =ROUND(AVERAGE(G10:G33),2) -> 0.64 | I35: =ROUND(AVERAGE(I10:I33),4) -> 3.0182 | K35: =ROUND(AVERAGE(K10:K33),4) -> 0.0747
C37: =C4 -> Proxy Group of Seven Water Companies | E37: ='6.2 Comp Earnings Criteria'!E17 -> 0.7785714286 | G37: ='6.2 Comp Earnings Criteria'!G17 -> 0.63 | I37: ='6.2 Comp Earnings Criteria'!I17 -> 3.094528571 | K37: ='6.2 Comp Earnings Criteria'!K17 -> 0.07654285714
C40: ='6.2 Comp Earnings Criteria'!C31 -> Source of Information: | E40: ='6.2 Comp Earnings Criteria'!E31 -> Valueline Proprietary Database, March 2022

Sheet 7.1 CEM Summary
A1: =Input!G28 -> Water Service Corporation of Kentucky
A2: Summary of Cost of Equity Models Applied to
A3: ='6.3 Proxy Group Equivalent'!C8 -> Proxy Group of Twenty-Four Non-Price Regulated Companies
A4: Comparable in Total Risk to the
A5: ='6.3 Proxy Group Equivalent'!C4 -> Proxy Group of Seven Water Companies
B7: Principal Methods | F7: =A3 -> Proxy Group of Twenty-Four Non-Price Regulated Companies | I7: Proxy Group of Twenty-Four Non-Price Regulated Companies ex PRPM
B9: Discounted Cash Flow Model (DCF) (1) | F9: ='7.2 CEM DCF'!V38 -> 11.22 | G9: % | I9: =F9 -> 11.22 | J9: %
B11: Risk Premium Model (RPM) (2) | F11: ='7.3 CEM RPM Summary'!H18 ->  | I11: ='7.3 CEM RPM Summary'!K18 -> 
B13: Capital Asset Pricing Model (CAPM) (3) | F13: ='7.6 CEM CAPM Backup'!V38 -> 11.31 | I13: ='7.7 CEM CAPM Backup NO PRPM'!V38 -> 11.45
D15: Mean | F15: =ROUND(AVERAGE(F9:F13),2) ->  | G15: % | I15: =ROUND(AVERAGE(I9:I13),2) ->  | J15: %
D17: Median | F17: =ROUND(MEDIAN(F9:F13),2) ->  | G17: % | I17: =ROUND(MEDIAN(I9:I13),2) ->  | J17: %
D19: Average of Mean and Median | F19: =ROUND(AVERAGE(F15:F17),2) ->  | G19: % | I19: =ROUND(AVERAGE(I15:I17),2) ->  | J19: %
A21: Notes:
A22: (1) | B22: From page 2 of this Schedule.
A23: (2) | B23: From page 3 of this Schedule.
A24: (3) | B24: From page 6 of this Schedule.

Sheet 7.2 CEM DCF
B1: =Input!G28 -> Water Service Corporation of Kentucky
B2: DCF Results for the Proxy Group of Non-Price-Regulated Companies Comparable in Total Risk to the
B3: ='7.1 CEM Summary'!A5 -> Proxy Group of Seven Water Companies
D5: [1] | G5: [2] | J5: [3] | M5: [4] | P5: [5] | S5: [6] | V5: [7]
B7: ='7.1 CEM Summary'!A3 -> Proxy Group of Twenty-Four Non-Price Regulated Companies | D7: Average Dividend Yield | G7: Value Line Projected Five Year Growth in EPS | J7: Zack's Five Year Projected Growth Rate in EPS | M7: Yahoo! Finance Projected Five Year Growth in EPS | P7: Average Projected Five Year Growth Rate in EPS | S7: Adjusted Dividend Yield | V7: Indicated Common Equity Cost Rate (1)
A9: =Input!C2 -> AOS | B9: =VLOOKUP($A9,'CEM Data Lookup'!$A:$N,2,FALSE) -> Smith (A.O.) | D9: ='CEM PricesDivs'!B$70 -> 1.55 | E9: % | G9: =IFERROR(VLOOKUP($A9,'CEM Data Lookup'!$A:$N,5,FALSE)*100,"NA") -> 11 | H9: % | J9: =IFERROR(VLOOKUP($A9,'CEM Data Lookup'!$A:$N,3,FALSE)*100,"NA") -> 9 | K9: % | M9: =IFERROR(VLOOKUP($A9,'CEM Data Lookup'!$A:$N,4,FALSE)*100,"NA") -> 8 | N9: % | P9: =IFERROR(ROUND(AVERAGE(G9,J9,M9),2),"NA") -> 9.33 | Q9: % | S9: =IFERROR(ROUND((D9*(1+(0.5*(P9/100)))),2),"NA") -> 1.62 | T9: % | V9: =IFERROR(IF(OR(VALUE(S9)=0,VALUE(P9)=0),"NA",S9+P9),"NA") -> 10.95 | W9: %
A10: =Input!C3 -> BCPC | B10: =VLOOKUP($A10,'CEM Data Lookup'!$A:$N,2,FALSE) -> Balchem Corp. | D10: ='CEM PricesDivs'!C$70 -> 0.45 | G10: =IFERROR(VLOOKUP($A10,'CEM Data Lookup'!$A:$N,5,FALSE)*100,"NA") -> 14 | J10: =IFERROR(VLOOKUP($A10,'CEM Data Lookup'!$A:$N,3,FALSE)*100,"NA") -> NA | M10: =IFERROR(VLOOKUP($A10,'CEM Data Lookup'!$A:$N,4,FALSE)*100,"NA") -> 24 | P10: =IFERROR(ROUND(AVERAGE(G10,J10,M10),2),"NA") -> 19 | S10: 0.49 | V10: 19.49
A11: =Input!C4 -> BDX | B11: =VLOOKUP($A11,'CEM Data Lookup'!$A:$N,2,FALSE) -> Becton, Dickinson | D11: ='CEM PricesDivs'!D$70 -> 1.32 | G11: =IFERROR(VLOOKUP($A11,'CEM Data Lookup'!$A:$N,5,FALSE)*100,"NA") -> 6 | J11: =IFERROR(VLOOKUP($A11,'CEM Data Lookup'!$A:$N,3,FALSE)*100,"NA") -> 6.3 | M11: =IFERROR(VLOOKUP($A11,'CEM Data Lookup'!$A:$N,4,FALSE)*100,"NA") -> 6 | P11: 6.1 | S11: 1.36 | V11: 7.46
A12: =Input!C5 -> BMY | B12: =VLOOKUP($A12,'CEM Data Lookup'!$A:$N,2,FALSE) -> Bristol-Myers Squibb | D12: ='CEM PricesDivs'!E$70 -> 3.21 | G12: NMF | J12: =IFERROR(VLOOKUP($A12,'CEM Data Lookup'!$A:$N,3,FALSE)*100,"NA") -> 6.8 | M12: =IFERROR(VLOOKUP($A12,'CEM Data Lookup'!$A:$N,4,FALSE)*100,"NA") -> 5 | P12: 5.9 | S12: 3.3 | V12: 9.2
A13: =Input!C6 -> CHE | B13: =VLOOKUP($A13,'CEM Data Lookup'!$A:$N,2,FALSE) -> Chemed Corp. | D13: ='CEM PricesDivs'!F$70 -> 0.3 | G13: =IFERROR(VLOOKUP($A13,'CEM Data Lookup'!$A:$N,5,FALSE)*100,"NA") -> 9.5 | J13: =IFERROR(VLOOKUP($A13,'CEM Data Lookup'!$A:$N,3,FALSE)*100,"NA") -> 8.3 | M13: =IFERROR(VLOOKUP($A13,'CEM Data Lookup'!$A:$N,4,FALSE)*100,"NA") -> 6.6 | P13: 8.13 | S13: 0.31 | V13: 8.44
A14: =Input!C7 -> CHRW | B14: =VLOOKUP($A14,'CEM Data Lookup'!$A:$N,2,FALSE) -> C.H. Robinson | D14: ='CEM PricesDivs'!G$70 -> 2.17 | G14: =IFERROR(VLOOKUP($A14,'CEM Data Lookup'!$A:$N,5,FALSE)*100,"NA") -> 8.5 | J14: =IFERROR(VLOOKUP($A14,'CEM Data Lookup'!$A:$N,3,FALSE)*100,"NA") -> 9 | M14: =IFERROR(VLOOKUP($A14,'CEM Data Lookup'!$A:$N,4,FALSE)*100,"NA") -> 12.3 | P14: 9.93 | S14: 2.28 | V14: 12.21
A15: =Input!C8 -> CSGS | B15: =VLOOKUP($A15,'CEM Data Lookup'!$A:$N,2,FALSE) -> CSG Systems Int'l | D15: ='CEM PricesDivs'!H$70 -> 1.76 | G15: =IFERROR(VLOOKUP($A15,'CEM Data Lookup'!$A:$N,5,FALSE)*100,"NA") -> 11 | J15: =IFERROR(VLOOKUP($A15,'CEM Data Lookup'!$A:$N,3,FALSE)*100,"NA") -> NA | M15: NMF | P15: 11 | S15: 1.86 | V15: 12.86
A16: =Input!C9 -> DGX | B16: =VLOOKUP($A16,'CEM Data Lookup'!$A:$N,2,FALSE) -> Quest Diagnostics | D16: ='CEM PricesDivs'!I$70 -> 1.9 | G16: =IFERROR(VLOOKUP($A16,'CEM Data Lookup'!$A:$N,5,FALSE)*100,"NA") -> 7 | J16: =IFERROR(VLOOKUP($A16,'CEM Data Lookup'!$A:$N,3,FALSE)*100,"NA") -> NA | M16: NMF | P16: 7 | S16: 1.97 | V16: 8.97
A17: =Input!C10 -> HTLD | B17: =VLOOKUP($A17,'CEM Data Lookup'!$A:$N,2,FALSE) -> Heartland Express | D17: ='CEM PricesDivs'!J$70 -> 0.54 | G17: =IFERROR(VLOOKUP($A17,'CEM Data Lookup'!$A:$N,5,FALSE)*100,"NA") -> 8.5 | J17: =IFERROR(VLOOKUP($A17,'CEM Data Lookup'!$A:$N,3,FALSE)*100,"NA") -> NA | M17: =IFERROR(VLOOKUP($A17,'CEM Data Lookup'!$A:$N,4,FALSE)*100,"NA") -> 13.3 | P17: 10.9 | S17: 0.57 | V17: 11.47
A18: =Input!C11 -> JKHY | B18: =VLOOKUP($A18,'CEM Data Lookup'!$A:$N,2,FALSE) -> Henry (Jack) & Assoc | D18: ='CEM PricesDivs'!K$70 -> 1.12 | G18: =IFERROR(VLOOKUP($A18,'CEM Data Lookup'!$A:$N,5,FALSE)*100,"NA") -> 10.5 | J18: =IFERROR(VLOOKUP($A18,'CEM Data Lookup'!$A:$N,3,FALSE)*100,"NA") -> 17 | M18: =IFERROR(VLOOKUP($A18,'CEM Data Lookup'!$A:$N,4,FALSE)*100,"NA") -> 14 | P18: 13.83 | S18: 1.2 | V18: 15.03
A19: =Input!C12 -> LANC | B19: =VLOOKUP($A19,'CEM Data Lookup'!$A:$N,2,FALSE) -> Lancaster Colony | D19: ='CEM PricesDivs'!L$70 -> 2.01 | G19: =IFERROR(VLOOKUP($A19,'CEM Data Lookup'!$A:$N,5,FALSE)*100,"NA") -> 5.5 | J19: =IFERROR(VLOOKUP($A19,'CEM Data Lookup'!$A:$N,3,FALSE)*100,"NA") -> NA | M19: =IFERROR(VLOOKUP($A19,'CEM Data Lookup'!$A:$N,4,FALSE)*100,"NA") -> 3 | P19: 4.25 | S19: 2.05 | V19: 6.3
A20: =Input!C13 -> LLY | B20: =VLOOKUP($A20,'CEM Data Lookup'!$A:$N,2,FALSE) -> Lilly (Eli) | D20: ='CEM PricesDivs'!M$70 -> 1.53 | G20: =IFERROR(VLOOKUP($A20,'CEM Data Lookup'!$A:$N,5,FALSE)*100,"NA") -> 11.5 | J20: =IFERROR(VLOOKUP($A20,'CEM Data Lookup'!$A:$N,3,FALSE)*100,"NA") -> 14.2 | M20: =IFERROR(VLOOKUP($A20,'CEM Data Lookup'!$A:$N,4,FALSE)*100,"NA") -> 6.31 | P20: 10.67 | S20: 1.61 | V20: 12.28
A21: =Input!C14 -> MANT | B21: =VLOOKUP($A21,'CEM Data Lookup'!$A:$N,2,FALSE) -> ManTech Int'l 'A' | D21: ='CEM PricesDivs'!N$70 -> 2.05 | G21: =IFERROR(VLOOKUP($A21,'CEM Data Lookup'!$A:$N,5,FALSE)*100,"NA") -> 9 | J21: =IFERROR(VLOOKUP($A21,'CEM Data Lookup'!$A:$N,3,FALSE)*100,"NA") -> NA | M21: =IFERROR(VLOOKUP($A21,'CEM Data Lookup'!$A:$N,4,FALSE)*100,"NA") -> 5.38 | P21: 7.19 | S21: 2.12 | V21: 9.31
A22: =Input!C15 -> MKC | B22: =VLOOKUP($A22,'CEM Data Lookup'!$A:$N,2,FALSE) -> McCormick & Co. | D22: ='CEM PricesDivs'!O$70 -> 1.51 | G22: =IFERROR(VLOOKUP($A22,'CEM Data Lookup'!$A:$N,5,FALSE)*100,"NA") -> 6 | J22: =IFERROR(VLOOKUP($A22,'CEM Data Lookup'!$A:$N,3,FALSE)*100,"NA") -> 6.1 | M22: =IFERROR(VLOOKUP($A22,'CEM Data Lookup'!$A:$N,4,FALSE)*100,"NA") -> 6.95 | P22: 6.35 | S22: 1.56 | V22: 7.91
A23: =Input!C16 -> MNST | B23: =VLOOKUP($A23,'CEM Data Lookup'!$A:$N,2,FALSE) -> Monster Beverage | D23: ='CEM PricesDivs'!P$70 -> 0 | G23: =IFERROR(VLOOKUP($A23,'CEM Data Lookup'!$A:$N,5,FALSE)*100,"NA") -> 13 | J23: =IFERROR(VLOOKUP($A23,'CEM Data Lookup'!$A:$N,3,FALSE)*100,"NA") -> 15.9 | M23: =IFERROR(VLOOKUP($A23,'CEM Data Lookup'!$A:$N,4,FALSE)*100,"NA") -> 14.01 | P23: 14.3 | S23: 0 | V23: NA
A24: =Input!C17 -> NOC | B24: =VLOOKUP($A24,'CEM Data Lookup'!$A:$N,2,FALSE) -> Northrop Grumman | D24: ='CEM PricesDivs'!Q$70 -> 1.52 | G24: =IFERROR(VLOOKUP($A24,'CEM Data Lookup'!$A:$N,5,FALSE)*100,"NA") -> 7.5 | J24: =IFERROR(VLOOKUP($A24,'CEM Data Lookup'!$A:$N,3,FALSE)*100,"NA") -> 6.2 | M24: =IFERROR(VLOOKUP($A24,'CEM Data Lookup'!$A:$N,4,FALSE)*100,"NA") -> 4.8 | P24: 6.17 | S24: 1.57 | V24: 7.74
A25: =Input!C18 -> ORCL | B25: =VLOOKUP($A25,'CEM Data Lookup'!$A:$N,2,FALSE) -> Oracle Corp. | D25: ='CEM PricesDivs'!R$70 -> 1.59 | G25: =IFERROR(VLOOKUP($A25,'CEM Data Lookup'!$A:$N,5,FALSE)*100,"NA") -> 10 | J25: =IFERROR(VLOOKUP($A25,'CEM Data Lookup'!$A:$N,3,FALSE)*100,"NA") -> 8 | M25: =IFERROR(VLOOKUP($A25,'CEM Data Lookup'!$A:$N,4,FALSE)*100,"NA") -> 10.24 | P25: 9.41 | S25: 1.66 | V25: 11.07
A26: =Input!C19 -> PGR | B26: =VLOOKUP($A26,'CEM Data Lookup'!$A:$N,2,FALSE) -> Progressive Corp. | D26: ='CEM PricesDivs'!S$70 -> 0.37 | G26: =IFERROR(VLOOKUP($A26,'CEM Data Lookup'!$A:$N,5,FALSE)*100,"NA") -> 4.5 | J26: =IFERROR(VLOOKUP($A26,'CEM Data Lookup'!$A:$N,3,FALSE)*100,"NA") -> 18 | M26: NMF | P26: 11.25 | S26: 0.39 | V26: 11.64
A27: =Input!C20 -> RLI | B27: =VLOOKUP($A27,'CEM Data Lookup'!$A:$N,2,FALSE) -> RLI Corp. | D27: ='CEM PricesDivs'!T$70 -> 0.95 | G27: =IFERROR(VLOOKUP($A27,'CEM Data Lookup'!$A:$N,5,FALSE)*100,"NA") -> 12 | J27: =IFERROR(VLOOKUP($A27,'CEM Data Lookup'!$A:$N,3,FALSE)*100,"NA") -> NA | M27: =IFERROR(VLOOKUP($A27,'CEM Data Lookup'!$A:$N,4,FALSE)*100,"NA") -> 9.8 | P27: 10.9 | S27: 1 | V27: 11.9
A28: =Input!C21 -> ROL | B28: =VLOOKUP($A28,'CEM Data Lookup'!$A:$N,2,FALSE) -> Rollins, Inc. | D28: ='CEM PricesDivs'!U$70 -> 1.23 | G28: =IFERROR(VLOOKUP($A28,'CEM Data Lookup'!$A:$N,5,FALSE)*100,"NA") -> 10.5 | J28: =IFERROR(VLOOKUP($A28,'CEM Data Lookup'!$A:$N,3,FALSE)*100,"NA") -> NA | M28: =IFERROR(VLOOKUP($A28,'CEM Data Lookup'!$A:$N,4,FALSE)*100,"NA") -> 8.2 | P28: 9.35 | S28: 1.29 | V28: 10.64
A29: =Input!C22 -> TYL | B29: =VLOOKUP($A29,'CEM Data Lookup'!$A:$N,2,FALSE) -> Tyler Technologies | D29: ='CEM PricesDivs'!V$70 -> 0 | G29: =IFERROR(VLOOKUP($A29,'CEM Data Lookup'!$A:$N,5,FALSE)*100,"NA") -> 14 | J29: =IFERROR(VLOOKUP($A29,'CEM Data Lookup'!$A:$N,3,FALSE)*100,"NA") -> NA | M29: =IFERROR(VLOOKUP($A29,'CEM Data Lookup'!$A:$N,4,FALSE)*100,"NA") -> 10 | P29: 12 | S29: 0 | V29: NA
A30: =Input!C23 -> UPS | B30: =VLOOKUP($A30,'CEM Data Lookup'!$A:$N,2,FALSE) -> United Parcel Serv. | D30: ='CEM PricesDivs'!W$70 -> 2.86 | G30: =IFERROR(VLOOKUP($A30,'CEM Data Lookup'!$A:$N,5,FALSE)*100,"NA") -> 11.5 | J30: =IFERROR(VLOOKUP($A30,'CEM Data Lookup'!$A:$N,3,FALSE)*100,"NA") -> 12 | M30: =IFERROR(VLOOKUP($A30,'CEM Data Lookup'!$A:$N,4,FALSE)*100,"NA") -> 14.03 | P30: 12.51 | S30: 3.04 | V30: 15.55
A31: =Input!C24 -> WERN | B31: =VLOOKUP($A31,'CEM Data Lookup'!$A:$N,2,FALSE) -> Werner Enterprises | D31: ='CEM PricesDivs'!X$70 -> 1.09 | G31: =IFERROR(VLOOKUP($A31,'CEM Data Lookup'!$A:$N,5,FALSE)*100,"NA") -> 9 | J31: =IFERROR(VLOOKUP($A31,'CEM Data Lookup'!$A:$N,3,FALSE)*100,"NA") -> 11.1 | M31: =IFERROR(VLOOKUP($A31,'CEM Data Lookup'!$A:$N,4,FALSE)*100,"NA") -> 11.94 | P31: 10.68 | S31: 1.15 | V31: 11.83
A32: =Input!C25 -> WU | B32: =VLOOKUP($A32,'CEM Data Lookup'!$A:$N,2,FALSE) -> Western Union | D32: ='CEM PricesDivs'!Y$70 -> 5.08 | G32: =IFERROR(VLOOKUP($A32,'CEM Data Lookup'!$A:$N,5,FALSE)*100,"NA") -> 8 | J32: =IFERROR(VLOOKUP($A32,'CEM Data Lookup'!$A:$N,3,FALSE)*100,"NA") -> NA | M32: =IFERROR(VLOOKUP($A32,'CEM Data Lookup'!$A:$N,4,FALSE)*100,"NA") -> 8.11 | P32: 8.06 | S32: 5.28 | V32: 13.34
A34: =COUNTA(A9:A32) -> 24 | S34: Mean | V34: =ROUND(AVERAGE(V9:V32),2) -> 11.16 | W34: %
S36: Median | V36: =ROUND(MEDIAN(V9:V32),2) -> 11.27 | W36: %
S38: Average of Mean and Median | V38: =ROUND(AVERAGE(V34:V36),2) -> 11.22 | W38: %
D39: NA= Not Available
D40: NMF= Not Meaningful Figure
B42: Notes: | C42: (1) | D42: The application of the DCF model to the domestic, non-price regluated comparable risk companies is identical to the application of the DCF to the utility proxy group. The dividend yield is derived by using the 60 day average price and the spot indicated dividend as of March 31, 2022. The dividend yield is then adjusted by 1/2 the average projected growth rate in EPS, which is calculated by averaging the 5 year projected growth in EPS provided by Value Line, www.zacks.com, and www.yahoo.com (excluding any negative growth rates) and then adding that growth rate to the adjusted dividend yield.
B44: Source of Information: | C44: Value Line Investment Survey
C45: =CONCATENATE("www.zacks.com Downloaded on ",TEXT(Input!E2,"mm/dd/yyyy")) -> www.zacks.com Downloaded on 03/31/2022
C46: =CONCATENATE("www.yahoo.com Downloaded on ",TEXT(Input!E2,"mm/dd/yyyy")) -> www.yahoo.com Downloaded on 03/31/2022

Sheet 7.3 CEM RPM Summary
A1: =Input!G28 -> Water Service Corporation of Kentucky
A2: Indicated Common Equity Cost Rate
A3: Through Use of a Risk Premium Model
A4: Using an Adjusted Total Market Approach
A6: Line No. | H6: ='7.2 CEM DCF'!B7 -> Proxy Group of Twenty-Four Non-Price Regulated Companies | K6: ='7.1 CEM Summary'!I7 -> Proxy Group of Twenty-Four Non-Price Regulated Companies ex PRPM
A8: 1. | C8: Prospective Yield on Baa2 Rated
C9: Corporate Bonds (1) | H9: =$H$31 -> 5.21 | I9: % | K9: =H9 -> 5.21 | L9: %
A11: 2. | C11: Adjustment to Reflect Bond rating Difference of Non-Price Regulated Companies (2) | H11: =-H41 -> -0.1244444444 | K11: =H11 -> -0.1244444444
A13: 3. | C13: Adjusted Prospective Bond Yield | H13: =SUM(H9:H11) -> 5.085555556 | I13: % | K13: =SUM(K9:K11) -> 5.085555556 | L13: %
A15: 4 | C15: Equity Risk Premium (3) | H15: ='7.5 CEM Beta Adjusted RP'!F25 ->  | K15: ='7.5 CEM Beta Adjusted RP'!I25 -> 
A17: 5. | C17: Risk Premium Derived Common
C18: Equity Cost Rate | H18: =H13+H15 ->  | I18: % | K18: =K13+K15 ->  | L18: %
A20: Notes: | B20: (1) | C20: =CONCATENATE("Average forecast of Baa2 corporate bonds based upon the consensus of nearly 50 economists reported in Blue Chip Financial Forecasts dated ",TEXT(Input!I25,"[$-409]mmmm d, yyyy;@")," (see pages 10 and 11 of Schedule DWD-4). The estimates are detailed below.") -> Average forecast of Baa2 corporate bonds based upon the consensus of nearly 50 economists reported in Blue Chip Financial Forecasts dated December 1, 2021 and April 1, 2022 (see pages 10 and 11 of Schedule DWD-4). The estimates are detailed below.
D22: ='MRP WP1'!B28 -> Second Quarter 2022 | H22: ='MRP WP1'!O28 -> 4.6 | I22: %
D23: ='MRP WP1'!B29 -> Third Quarter 2022 | H23: ='MRP WP1'!O29 -> 4.9
D24: ='MRP WP1'!B30 -> Fourth Quarter 2022 | H24: ='MRP WP1'!O30 -> 5.1
D25: ='MRP WP1'!B31 -> First Quarter 2023 | H25: ='MRP WP1'!O31 -> 5.3
D26: ='MRP WP1'!B32 -> Second Quarter 2023 | H26: ='MRP WP1'!O32 -> 5.4
D27: ='MRP WP1'!B33 -> Third Quarter 2023 | H27: ='MRP WP1'!O33 -> 5.5
D28: ='MRP WP1'!B34 -> 2023-2027 | H28: ='MRP WP1'!O34 -> 5.2
D29: ='MRP WP1'!B35 -> 2028-2032 | H29: ='MRP WP1'!O35 -> 5.7
D31: Average | H31: =ROUND(AVERAGE(H22:H29),2) -> 5.21 | I31: %
B33: (2) | C33: =CONCATENATE("The average yield spread of Baa rated corporate bonds over A corporate bonds for the three months ending ",TEXT(C37,"mmmm yyyy")," . To reflect the ", IFERROR('7.4 CEM RPM Bond Ratings'!D39,"NA"), " average rating of the non-utility proxy group, the prosepctive yield on Baa corporate bonds must be adjusted by 1/3 of the spread between A and Baa corporate bond yields as shown below:") -> The average yield spread of Baa rated corporate bonds over A corporate bonds for the three months ending March 2022 . To reflect the Baa1 average rating of the non-utility proxy group, the prosepctive yield on Baa corporate bonds must be adjusted by 1/3 of the spread between A and Baa corporate bond yields as shown below:
D35: A Corp. Bond Yield | F35: Baa Corp. Bond Yield
H36: Spread
C37: ='Market Data'!B1 -> 2022-03-31 | D37: ='Market Data'!B6 -> 3.88 | E37: % | F37: ='Market Data'!B7 -> 4.29 | G37: % | H37: =F37-D37 -> 0.41 | I37: %
C38: ='Market Data'!C1 -> 2022-02-28 | D38: ='Market Data'!C6 -> 3.6 | F38: ='Market Data'!C7 -> 3.97 | H38: =F38-D38 -> 0.37
C39: ='Market Data'!D1 -> 2022-01-31 | D39: ='Market Data'!D6 -> 3.25 | F39: ='Market Data'!D7 -> 3.59 | H39: =F39-D39 -> 0.34
F40: Average yield spread | H40: =AVERAGE(H37:H39) -> 0.3733333333
F41: 1/3 of spread | H41: =H40*(1/3) -> 0.1244444444
B43: (3) | C43: From page 5 of this Schedule.

Sheet 7.4 CEM RPM Bond Ratings
B1: =Input!G28 -> Water Service Corporation of Kentucky
B2: Comparison of Long-Term Issuer Ratings for the
B3: =CONCATENATE('7.3 CEM RPM Summary'!H6," of Comparable risk to the") -> Proxy Group of Twenty-Four Non-Price Regulated Companies of Comparable risk to the
B4: ='7.2 CEM DCF'!B3 -> Proxy Group of Seven Water Companies
D7: Moody's | H7: Standard & Poor's
D8: Long-Term Issuer Rating | H8: =D8 -> Long-Term Issuer Rating
D9: =TEXT(Input!E2, "mmmm yyyy") -> March 2022 | H9: =D9 -> March 2022
B12: ='7.3 CEM RPM Summary'!H6 -> Proxy Group of Twenty-Four Non-Price Regulated Companies | D12: Long-Term Issuer Rating | F12: Numerical Weighting (1) | H12: =D12 -> Long-Term Issuer Rating | J12: Numerical Weighting (1)
A14: =Input!C2 -> AOS | B14: =VLOOKUP($A14,'CEM Data Lookup'!$A:$N,2,FALSE) -> Smith (A.O.) | D14: ='CEM Data Lookup'!O3 -> NA | F14: =IFERROR(VLOOKUP('7.4 CEM RPM Bond Ratings'!D14,'4.6 MOODY_S&P numbericl'!B:D,3,FALSE),"--") -> -- | H14: ='CEM Data Lookup'!P3 -> NA | J14: =IFERROR(VLOOKUP(H14,'4.6 MOODY_S&P numbericl'!F:H,3,FALSE),"--") -> --
A15: =Input!C3 -> BCPC | B15: =VLOOKUP($A15,'CEM Data Lookup'!$A:$N,2,FALSE) -> Balchem Corp. | D15: ='CEM Data Lookup'!O4 -> NA | F15: =IFERROR(VLOOKUP('7.4 CEM RPM Bond Ratings'!D15,'4.6 MOODY_S&P numbericl'!B:D,3,FALSE),"--") -> -- | H15: ='CEM Data Lookup'!P4 -> NA | J15: =IFERROR(VLOOKUP(H15,'4.6 MOODY_S&P numbericl'!F:H,3,FALSE),"--") -> --
A16: =Input!C4 -> BDX | B16: =VLOOKUP($A16,'CEM Data Lookup'!$A:$N,2,FALSE) -> Becton, Dickinson | D16: ='CEM Data Lookup'!O5 -> Baa3 | F16: =IFERROR(VLOOKUP('7.4 CEM RPM Bond Ratings'!D16,'4.6 MOODY_S&P numbericl'!B:D,3,FALSE),"--") -> 10 | H16: ='CEM Data Lookup'!P5 -> BBB | J16: =IFERROR(VLOOKUP(H16,'4.6 MOODY_S&P numbericl'!F:H,3,FALSE),"--") -> 9
A17: =Input!C5 -> BMY | B17: =VLOOKUP($A17,'CEM Data Lookup'!$A:$N,2,FALSE) -> Bristol-Myers Squibb | D17: ='CEM Data Lookup'!O6 -> A2 | F17: =IFERROR(VLOOKUP('7.4 CEM RPM Bond Ratings'!D17,'4.6 MOODY_S&P numbericl'!B:D,3,FALSE),"--") -> 6 | H17: ='CEM Data Lookup'!P6 -> A+ | J17: =IFERROR(VLOOKUP(H17,'4.6 MOODY_S&P numbericl'!F:H,3,FALSE),"--") -> 5
A18: =Input!C6 -> CHE | B18: =VLOOKUP($A18,'CEM Data Lookup'!$A:$N,2,FALSE) -> Chemed Corp. | D18: ='CEM Data Lookup'!O7 -> WR | F18: =IFERROR(VLOOKUP('7.4 CEM RPM Bond Ratings'!D18,'4.6 MOODY_S&P numbericl'!B:D,3,FALSE),"--") -> -- | H18: ='CEM Data Lookup'!P7 -> NR | J18: =IFERROR(VLOOKUP(H18,'4.6 MOODY_S&P numbericl'!F:H,3,FALSE),"--") -> --
A19: =Input!C7 -> CHRW | B19: =VLOOKUP($A19,'CEM Data Lookup'!$A:$N,2,FALSE) -> C.H. Robinson | D19: ='CEM Data Lookup'!O8 -> Baa2 | F19: =IFERROR(VLOOKUP('7.4 CEM RPM Bond Ratings'!D19,'4.6 MOODY_S&P numbericl'!B:D,3,FALSE),"--") -> 9 | H19: ='CEM Data Lookup'!P8 -> BBB+ | J19: =IFERROR(VLOOKUP(H19,'4.6 MOODY_S&P numbericl'!F:H,3,FALSE),"--") -> 8
A20: =Input!C8 -> CSGS | B20: =VLOOKUP($A20,'CEM Data Lookup'!$A:$N,2,FALSE) -> CSG Systems Int'l | D20: ='CEM Data Lookup'!O9 -> NA | F20: =IFERROR(VLOOKUP('7.4 CEM RPM Bond Ratings'!D20,'4.6 MOODY_S&P numbericl'!B:D,3,FALSE),"--") -> -- | H20: ='CEM Data Lookup'!P9 -> BB+ | J20: =IFERROR(VLOOKUP(H20,'4.6 MOODY_S&P numbericl'!F:H,3,FALSE),"--") -> 11
A21: =Input!C9 -> DGX | B21: =VLOOKUP($A21,'CEM Data Lookup'!$A:$N,2,FALSE) -> Quest Diagnostics | D21: ='CEM Data Lookup'!O10 -> Baa2 | F21: =IFERROR(VLOOKUP('7.4 CEM RPM Bond Ratings'!D21,'4.6 MOODY_S&P numbericl'!B:D,3,FALSE),"--") -> 9 | H21: ='CEM Data Lookup'!P10 -> BBB+ | J21: =IFERROR(VLOOKUP(H21,'4.6 MOODY_S&P numbericl'!F:H,3,FALSE),"--") -> 8
A22: =Input!C10 -> HTLD | B22: =VLOOKUP($A22,'CEM Data Lookup'!$A:$N,2,FALSE) -> Heartland Express | D22: ='CEM Data Lookup'!O11 -> NA | F22: =IFERROR(VLOOKUP('7.4 CEM RPM Bond Ratings'!D22,'4.6 MOODY_S&P numbericl'!B:D,3,FALSE),"--") -> -- | H22: ='CEM Data Lookup'!P11 -> NA | J22: =IFERROR(VLOOKUP(H22,'4.6 MOODY_S&P numbericl'!F:H,3,FALSE),"--") -> --
A23: =Input!C11 -> JKHY | B23: =VLOOKUP($A23,'CEM Data Lookup'!$A:$N,2,FALSE) -> Henry (Jack) & Assoc | D23: ='CEM Data Lookup'!O12 -> NA | F23: =IFERROR(VLOOKUP('7.4 CEM RPM Bond Ratings'!D23,'4.6 MOODY_S&P numbericl'!B:D,3,FALSE),"--") -> -- | H23: ='CEM Data Lookup'!P12 -> NA | J23: =IFERROR(VLOOKUP(H23,'4.6 MOODY_S&P numbericl'!F:H,3,FALSE),"--") -> --
A24: =Input!C12 -> LANC | B24: =VLOOKUP($A24,'CEM Data Lookup'!$A:$N,2,FALSE) -> Lancaster Colony | D24: ='CEM Data Lookup'!O13 -> NA | F24: =IFERROR(VLOOKUP('7.4 CEM RPM Bond Ratings'!D24,'4.6 MOODY_S&P numbericl'!B:D,3,FALSE),"--") -> -- | H24: ='CEM Data Lookup'!P13 -> NA | J24: =IFERROR(VLOOKUP(H24,'4.6 MOODY_S&P numbericl'!F:H,3,FALSE),"--") -> --
A25: =Input!C13 -> LLY | B25: =VLOOKUP($A25,'CEM Data Lookup'!$A:$N,2,FALSE) -> Lilly (Eli) | D25: ='CEM Data Lookup'!O14 -> A2 | F25: =IFERROR(VLOOKUP('7.4 CEM RPM Bond Ratings'!D25,'4.6 MOODY_S&P numbericl'!B:D,3,FALSE),"--") -> 6 | H25: ='CEM Data Lookup'!P14 -> A+ | J25: =IFERROR(VLOOKUP(H25,'4.6 MOODY_S&P numbericl'!F:H,3,FALSE),"--") -> 5
A26: =Input!C14 -> MANT | B26: =VLOOKUP($A26,'CEM Data Lookup'!$A:$N,2,FALSE) -> ManTech Int'l 'A' | D26: ='CEM Data Lookup'!O15 -> WR | F26: =IFERROR(VLOOKUP('7.4 CEM RPM Bond Ratings'!D26,'4.6 MOODY_S&P numbericl'!B:D,3,FALSE),"--") -> -- | H26: ='CEM Data Lookup'!P15 -> BB+ | J26: =IFERROR(VLOOKUP(H26,'4.6 MOODY_S&P numbericl'!F:H,3,FALSE),"--") -> 11
A27: =Input!C15 -> MKC | B27: =VLOOKUP($A27,'CEM Data Lookup'!$A:$N,2,FALSE) -> McCormick & Co. | D27: ='CEM Data Lookup'!O16 -> Baa2 | F27: =IFERROR(VLOOKUP('7.4 CEM RPM Bond Ratings'!D27,'4.6 MOODY_S&P numbericl'!B:D,3,FALSE),"--") -> 9 | H27: ='CEM Data Lookup'!P16 -> BBB | J27: =IFERROR(VLOOKUP(H27,'4.6 MOODY_S&P numbericl'!F:H,3,FALSE),"--") -> 9
A28: =Input!C16 -> MNST | B28: =VLOOKUP($A28,'CEM Data Lookup'!$A:$N,2,FALSE) -> Monster Beverage | D28: ='CEM Data Lookup'!O17 -> NA | F28: =IFERROR(VLOOKUP('7.4 CEM RPM Bond Ratings'!D28,'4.6 MOODY_S&P numbericl'!B:D,3,FALSE),"--") -> -- | H28: ='CEM Data Lookup'!P17 -> NA | J28: =IFERROR(VLOOKUP(H28,'4.6 MOODY_S&P numbericl'!F:H,3,FALSE),"--") -> --
A29: =Input!C17 -> NOC | B29: =VLOOKUP($A29,'CEM Data Lookup'!$A:$N,2,FALSE) -> Northrop Grumman | D29: ='CEM Data Lookup'!O18 -> Baa1 | F29: =IFERROR(VLOOKUP('7.4 CEM RPM Bond Ratings'!D29,'4.6 MOODY_S&P numbericl'!B:D,3,FALSE),"--") -> 8 | H29: ='CEM Data Lookup'!P18 -> BBB+ | J29: =IFERROR(VLOOKUP(H29,'4.6 MOODY_S&P numbericl'!F:H,3,FALSE),"--") -> 8
A30: =Input!C18 -> ORCL | B30: =VLOOKUP($A30,'CEM Data Lookup'!$A:$N,2,FALSE) -> Oracle Corp. | D30: ='CEM Data Lookup'!O19 -> Baa2 | F30: =IFERROR(VLOOKUP('7.4 CEM RPM Bond Ratings'!D30,'4.6 MOODY_S&P numbericl'!B:D,3,FALSE),"--") -> 9 | H30: ='CEM Data Lookup'!P19 -> BBB+ | J30: =IFERROR(VLOOKUP(H30,'4.6 MOODY_S&P numbericl'!F:H,3,FALSE),"--") -> 8
A31: =Input!C19 -> PGR | B31: =VLOOKUP($A31,'CEM Data Lookup'!$A:$N,2,FALSE) -> Progressive Corp. | D31: ='CEM Data Lookup'!O20 -> A2 | F31: =IFERROR(VLOOKUP('7.4 CEM RPM Bond Ratings'!D31,'4.6 MOODY_S&P numbericl'!B:D,3,FALSE),"--") -> 6 | H31: ='CEM Data Lookup'!P20 -> A | J31: =IFERROR(VLOOKUP(H31,'4.6 MOODY_S&P numbericl'!F:H,3,FALSE),"--") -> 6
A32: =Input!C20 -> RLI | B32: =VLOOKUP($A32,'CEM Data Lookup'!$A:$N,2,FALSE) -> RLI Corp. | D32: ='CEM Data Lookup'!O21 -> Baa2 | F32: =IFERROR(VLOOKUP('7.4 CEM RPM Bond Ratings'!D32,'4.6 MOODY_S&P numbericl'!B:D,3,FALSE),"--") -> 9 | H32: ='CEM Data Lookup'!P21 -> BBB | J32: =IFERROR(VLOOKUP(H32,'4.6 MOODY_S&P numbericl'!F:H,3,FALSE),"--") -> 9
A33: =Input!C21 -> ROL | B33: =VLOOKUP($A33,'CEM Data Lookup'!$A:$N,2,FALSE) -> Rollins, Inc. | D33: ='CEM Data Lookup'!O22 -> NA | F33: =IFERROR(VLOOKUP('7.4 CEM RPM Bond Ratings'!D33,'4.6 MOODY_S&P numbericl'!B:D,3,FALSE),"--") -> -- | H33: ='CEM Data Lookup'!P22 -> NA | J33: =IFERROR(VLOOKUP(H33,'4.6 MOODY_S&P numbericl'!F:H,3,FALSE),"--") -> --
A34: =Input!C22 -> TYL | B34: =VLOOKUP($A34,'CEM Data Lookup'!$A:$N,2,FALSE) -> Tyler Technologies | D34: ='CEM Data Lookup'!O23 -> NA | F34: =IFERROR(VLOOKUP('7.4 CEM RPM Bond Ratings'!D34,'4.6 MOODY_S&P numbericl'!B:D,3,FALSE),"--") -> -- | H34: ='CEM Data Lookup'!P23 -> NA | J34: =IFERROR(VLOOKUP(H34,'4.6 MOODY_S&P numbericl'!F:H,3,FALSE),"--") -> --
A35: =Input!C23 -> UPS | B35: =VLOOKUP($A35,'CEM Data Lookup'!$A:$N,2,FALSE) -> United Parcel Serv. | D35: ='CEM Data Lookup'!O24 -> A2 | F35: =IFERROR(VLOOKUP('7.4 CEM RPM Bond Ratings'!D35,'4.6 MOODY_S&P numbericl'!B:D,3,FALSE),"--") -> 6 | H35: ='CEM Data Lookup'!P24 -> A- | J35: =IFERROR(VLOOKUP(H35,'4.6 MOODY_S&P numbericl'!F:H,3,FALSE),"--") -> 7
A36: =Input!C24 -> WERN | B36: =VLOOKUP($A36,'CEM Data Lookup'!$A:$N,2,FALSE) -> Werner Enterprises | D36: ='CEM Data Lookup'!O25 -> NA | F36: =IFERROR(VLOOKUP('7.4 CEM RPM Bond Ratings'!D36,'4.6 MOODY_S&P numbericl'!B:D,3,FALSE),"--") -> -- | H36: ='CEM Data Lookup'!P25 -> NA | J36: =IFERROR(VLOOKUP(H36,'4.6 MOODY_S&P numbericl'!F:H,3,FALSE),"--") -> --
A37: =Input!C25 -> WU | B37: =VLOOKUP($A37,'CEM Data Lookup'!$A:$N,2,FALSE) -> Western Union | D37: ='CEM Data Lookup'!O26 -> Baa2 | F37: =IFERROR(VLOOKUP('7.4 CEM RPM Bond Ratings'!D37,'4.6 MOODY_S&P numbericl'!B:D,3,FALSE),"--") -> 9 | H37: ='CEM Data Lookup'!P26 -> BBB | J37: =IFERROR(VLOOKUP(H37,'4.6 MOODY_S&P numbericl'!F:H,3,FALSE),"--") -> 9
A39: =COUNTA(A14:A37) -> 24 | B39: Average | D39: Baa1 | F39: =ROUND(AVERAGE(F14:F37),1) -> 8 | H39: BBB+ | J39: =ROUND(AVERAGE(J14:J37),1) -> 8.1
B42: Notes:
B43: (1) | C43: From page 6 of Schedule DWD-4.
B45: Source of Information:
B46: Bloomberg Professional Services

Sheet 7.5 CEM Beta Adjusted RP
A1: =Input!G28 -> Water Service Corporation of Kentucky
A2: Derivation of Equity Risk Premium Based on the Total Market Approach
A3: Using the Beta for
A4: ='7.4 CEM RPM Bond Ratings'!B3 -> Proxy Group of Twenty-Four Non-Price Regulated Companies of Comparable risk to the
A5: ='7.4 CEM RPM Bond Ratings'!B4 -> Proxy Group of Seven Water Companies
A7: Line No. | C7: Equity Risk Premium Measure | F7: ='7.4 CEM RPM Bond Ratings'!B12 -> Proxy Group of Twenty-Four Non-Price Regulated Companies | I7: ='7.1 CEM Summary'!I7 -> Proxy Group of Twenty-Four Non-Price Regulated Companies ex PRPM
A9: 1. | C9: Ibbotson Equity Risk Premium (1) | F9: ='4.8-9 Beta Adjusted ERP'!F11 -> 6.13 | G9: % | I9: =F9 -> 6.13 | J9: %
A11: 2. | C11: Regression on Ibbotson Risk Premium Data (2) | F11: ='MRP ERP WP'!$AK$42*100 ->  | I11: =F11 -> 
A13: 3. | C13: Ibbotson Equity Risk Premium based on PRPM (3) | F13: ='4.8-9 Beta Adjusted ERP'!F15 -> 8.034359628 | I13: NA
A15: 4. | C15: Equity Risk Premium Based on Value Line Summary and Index (4) | F15: ='MRP WP1'!$M$22*100-'MRP WP1'!$M$37 -> 7.64 | I15: =F15 -> 7.64
A17: 5 | C17: Equity Risk Premium Based on Value Line S&P 500 Companies (5) | F17: ='4.8-9 Beta Adjusted ERP'!F19 -> 11.56103999 | I17: =F17 -> 11.56103999
A19: 6. | C19: Equity Risk Premium Based on Bloomberg S&P 500 Companies (6) | F19: ='4.8-9 Beta Adjusted ERP'!F21 -> 10.26174889 | I19: =F19 -> 10.26174889
A21: 7. | C21: Conclusion of Equity Risk Premium | F21: =ROUND(AVERAGE(F9,F11,F13,F15,F17,F19),2) ->  | G21: % | I21: =ROUND(AVERAGE(I9,I11,I13,I15,I17,I19),2) ->  | J21: %
A23: 8. | C23: Adjusted Beta (7) | F23: ='7.6 CEM CAPM Backup'!H38 -> 0.81 | I23: =F23 -> 0.81
A25: 9. | C25: Forecasted Equity Risk Premium | F25: =ROUND(F21*F23,2) ->  | G25: % | I25: =ROUND(I21*I23,2) ->  | J25: %
A27: Notes:
B28: (1) | C28: From note 1 of page 19 of Schedule DWD-4.
B29: (2) | C29: From note 2 of page 19 of Schedule DWD-4.
B30: (3) | C30: From note 3 of page 19 of Schedule DWD-4.
B31: (4) | C31: From note 4 of page 19 of Schedule DWD-4.
B32: (5) | C32: From note 5 of page 19 of Schedule DWD-4.
B33: (6) | C33: From note 6 of page 19 of Schedule DWD-4.
B34: (7) | C34: Average of mean and median beta from page 6 of this Schedule.
B36: Sources of Information:
C37: ='5.2 CAPM Notes'!B62 -> Kroll 2022 SBBI® Yearbook
C38: Value Line Summary and Index
C39: ='5.2 CAPM Notes'!B61 -> Blue Chip Financial Forecasts, December 1, 2021 and April 1, 2022
C40: Bloomberg Professional Services

Sheet 7.6 CEM CAPM Backup
B1: =Input!G28 -> Water Service Corporation of Kentucky
B2: Traditional CAPM and ECAPM Results for the Proxy Group of Non-Price-Regulated Companies Comparable in Total Risk to the
B3: ='7.5 CEM Beta Adjusted RP'!A5 -> Proxy Group of Seven Water Companies
D5: [1] | F5: [2] | H5: [3] | J5: [4] | M5: [5] | P5: [6] | S5: [7] | V5: [8]
B7: ='7.5 CEM Beta Adjusted RP'!F7 -> Proxy Group of Twenty-Four Non-Price Regulated Companies | D7: Value Line Adjusted Beta | F7: Bloomberg Beta | H7: Average Beta | J7: Market Risk Premium (1) | M7: Risk-Free Rate (2) | P7: Traditional CAPM Cost Rate | S7: ECAPM Cost Rate | V7: Indicated Common Equity Cost Rate (3)
A9: =Input!C2 -> AOS | B9: =VLOOKUP($A9,'CEM Data Lookup'!$A:$N,2,FALSE) -> Smith (A.O.) | D9: ='MRP WP1'!E71 -> 0.85 | F9: ='CEM Data Lookup'!H3 -> 1.086758733 | H9: =ROUND(AVERAGE(D9:F9),2) -> 0.97 | J9: ='MRP WP1'!H$64 -> 9.796371045 | K9: % | M9: ='MRP WP1'!F$37 -> 3.18 | N9: % | P9: =(H9*J9)+M9 -> 12.68247991 | Q9: % | S9: =ROUND((0.75*(H9*J9))+((0.25*J9))+M9,4) -> 12.756 | T9: % | V9: =ROUND(AVERAGE(P9,S9),2) -> 12.72 | W9: %
A10: =Input!C3 -> BCPC | B10: =VLOOKUP($A10,'CEM Data Lookup'!$A:$N,2,FALSE) -> Balchem Corp. | D10: ='MRP WP1'!E72 -> 0.7 | F10: ='CEM Data Lookup'!H4 -> 0.8519256711 | H10: =ROUND(AVERAGE(D10:F10),2) -> 0.78 | J10: ='MRP WP1'!H$64 -> 9.796371045 | M10: ='MRP WP1'!F$37 -> 3.18 | P10: =(H10*J10)+M10 -> 10.82116942 | S10: =ROUND((0.75*(H10*J10))+((0.25*J10))+M10,4) -> 11.36 | V10: =ROUND(AVERAGE(P10,S10),2) -> 11.09
A11: =Input!C4 -> BDX | B11: =VLOOKUP($A11,'CEM Data Lookup'!$A:$N,2,FALSE) -> Becton, Dickinson | D11: ='MRP WP1'!E73 -> 0.75 | F11: ='CEM Data Lookup'!H5 -> 0.5914502144 | H11: 0.67 | J11: ='MRP WP1'!H$64 -> 9.796371045 | M11: ='MRP WP1'!F$37 -> 3.18 | P11: 9.7435686 | S11: 10.5518 | V11: 10.15
A12: =Input!C5 -> BMY | B12: =VLOOKUP($A12,'CEM Data Lookup'!$A:$N,2,FALSE) -> Bristol-Myers Squibb | D12: ='MRP WP1'!E74 -> 0.85 | F12: ='CEM Data Lookup'!H6 -> 0.6131026745 | H12: 0.73 | J12: ='MRP WP1'!H$64 -> 9.796371045 | M12: ='MRP WP1'!F$37 -> 3.18 | P12: 10.33135086 | S12: 10.9926 | V12: 10.66
A13: =Input!C6 -> CHE | B13: =VLOOKUP($A13,'CEM Data Lookup'!$A:$N,2,FALSE) -> Chemed Corp. | D13: ='MRP WP1'!E75 -> 0.85 | F13: ='CEM Data Lookup'!H7 -> 0.8218445778 | H13: 0.84 | J13: ='MRP WP1'!H$64 -> 9.796371045 | M13: ='MRP WP1'!F$37 -> 3.18 | P13: 11.40895168 | S13: 11.8008 | V13: 11.6
A14: =Input!C7 -> CHRW | B14: =VLOOKUP($A14,'CEM Data Lookup'!$A:$N,2,FALSE) -> C.H. Robinson | D14: ='MRP WP1'!E76 -> 0.75 | F14: ='CEM Data Lookup'!H8 -> 0.8785706758 | H14: 0.81 | J14: ='MRP WP1'!H$64 -> 9.796371045 | M14: ='MRP WP1'!F$37 -> 3.18 | P14: 11.11506055 | S14: 11.5804 | V14: 11.35
A15: =Input!C8 -> CSGS | B15: =VLOOKUP($A15,'CEM Data Lookup'!$A:$N,2,FALSE) -> CSG Systems Int'l | D15: ='MRP WP1'!E77 -> 0.75 | F15: ='CEM Data Lookup'!H9 -> 0.9172890782 | H15: 0.83 | J15: ='MRP WP1'!H$64 -> 9.796371045 | M15: ='MRP WP1'!F$37 -> 3.18 | P15: 11.31098797 | S15: 11.7273 | V15: 11.52
A16: =Input!C9 -> DGX | B16: =VLOOKUP($A16,'CEM Data Lookup'!$A:$N,2,FALSE) -> Quest Diagnostics | D16: ='MRP WP1'!E78 -> 0.8 | F16: ='CEM Data Lookup'!H10 -> 0.7636415958 | H16: 0.78 | J16: ='MRP WP1'!H$64 -> 9.796371045 | M16: ='MRP WP1'!F$37 -> 3.18 | P16: 10.82116942 | S16: 11.36 | V16: 11.09
A17: =Input!C10 -> HTLD | B17: =VLOOKUP($A17,'CEM Data Lookup'!$A:$N,2,FALSE) -> Heartland Express | D17: ='MRP WP1'!E79 -> 0.75 | F17: ='CEM Data Lookup'!H11 -> 0.8271181583 | H17: 0.79 | J17: ='MRP WP1'!H$64 -> 9.796371045 | M17: ='MRP WP1'!F$37 -> 3.18 | P17: 10.91913313 | S17: 11.4334 | V17: 11.18
A18: =Input!C11 -> JKHY | B18: =VLOOKUP($A18,'CEM Data Lookup'!$A:$N,2,FALSE) -> Henry (Jack) & Assoc | D18: ='MRP WP1'!E80 -> 0.85 | F18: ='CEM Data Lookup'!H12 -> 0.7458253503 | H18: 0.8 | J18: ='MRP WP1'!H$64 -> 9.796371045 | M18: ='MRP WP1'!F$37 -> 3.18 | P18: 11.01709684 | S18: 11.5069 | V18: 11.26
A19: =Input!C12 -> LANC | B19: =VLOOKUP($A19,'CEM Data Lookup'!$A:$N,2,FALSE) -> Lancaster Colony | D19: ='MRP WP1'!E81 -> 0.7 | F19: ='CEM Data Lookup'!H13 -> 0.7584744692 | H19: 0.73 | J19: ='MRP WP1'!H$64 -> 9.796371045 | M19: ='MRP WP1'!F$37 -> 3.18 | P19: 10.33135086 | S19: 10.9926 | V19: 10.66
A20: =Input!C13 -> LLY | B20: =VLOOKUP($A20,'CEM Data Lookup'!$A:$N,2,FALSE) -> Lilly (Eli) | D20: ='MRP WP1'!E82 -> 0.75 | F20: ='CEM Data Lookup'!H14 -> 0.6384810805 | H20: 0.69 | J20: ='MRP WP1'!H$64 -> 9.796371045 | M20: ='MRP WP1'!F$37 -> 3.18 | P20: 9.939496021 | S20: 10.6987 | V20: 10.32
A21: =Input!C14 -> MANT | B21: =VLOOKUP($A21,'CEM Data Lookup'!$A:$N,2,FALSE) -> ManTech Int'l 'A' | D21: ='MRP WP1'!E83 -> 0.85 | F21: ='CEM Data Lookup'!H15 -> 0.8216931224 | H21: 0.84 | J21: ='MRP WP1'!H$64 -> 9.796371045 | M21: ='MRP WP1'!F$37 -> 3.18 | P21: 11.40895168 | S21: 11.8008 | V21: 11.6
A22: =Input!C15 -> MKC | B22: =VLOOKUP($A22,'CEM Data Lookup'!$A:$N,2,FALSE) -> McCormick & Co. | D22: ='MRP WP1'!E84 -> 0.8 | F22: ='CEM Data Lookup'!H16 -> 0.5877737403 | H22: 0.69 | J22: ='MRP WP1'!H$64 -> 9.796371045 | M22: ='MRP WP1'!F$37 -> 3.18 | P22: 9.939496021 | S22: 10.6987 | V22: 10.32
A23: =Input!C16 -> MNST | B23: =VLOOKUP($A23,'CEM Data Lookup'!$A:$N,2,FALSE) -> Monster Beverage | D23: ='MRP WP1'!E85 -> 0.85 | F23: ='CEM Data Lookup'!H17 -> 1.032819986 | H23: 0.94 | J23: ='MRP WP1'!H$64 -> 9.796371045 | M23: ='MRP WP1'!F$37 -> 3.18 | P23: 12.38858878 | S23: 12.5355 | V23: 12.46
A24: =Input!C17 -> NOC | B24: =VLOOKUP($A24,'CEM Data Lookup'!$A:$N,2,FALSE) -> Northrop Grumman | D24: ='MRP WP1'!E86 -> 0.85 | F24: ='CEM Data Lookup'!H18 -> 0.6716248393 | H24: 0.76 | J24: ='MRP WP1'!H$64 -> 9.796371045 | M24: ='MRP WP1'!F$37 -> 3.18 | P24: 10.62524199 | S24: 11.213 | V24: 10.92
A25: =Input!C18 -> ORCL | B25: =VLOOKUP($A25,'CEM Data Lookup'!$A:$N,2,FALSE) -> Oracle Corp. | D25: ='MRP WP1'!E87 -> 0.75 | F25: ='CEM Data Lookup'!H19 -> 0.8290885687 | H25: 0.79 | J25: ='MRP WP1'!H$64 -> 9.796371045 | M25: ='MRP WP1'!F$37 -> 3.18 | P25: 10.91913313 | S25: 11.4334 | V25: 11.18
A26: =Input!C19 -> PGR | B26: =VLOOKUP($A26,'CEM Data Lookup'!$A:$N,2,FALSE) -> Progressive Corp. | D26: ='MRP WP1'!E88 -> 0.75 | F26: ='CEM Data Lookup'!H20 -> 0.6793126464 | H26: 0.71 | J26: ='MRP WP1'!H$64 -> 9.796371045 | M26: ='MRP WP1'!F$37 -> 3.18 | P26: 10.13542344 | S26: 10.8457 | V26: 10.49
A27: =Input!C20 -> RLI | B27: =VLOOKUP($A27,'CEM Data Lookup'!$A:$N,2,FALSE) -> RLI Corp. | D27: ='MRP WP1'!E89 -> 0.8 | F27: ='CEM Data Lookup'!H21 -> 0.9648290277 | H27: 0.88 | J27: ='MRP WP1'!H$64 -> 9.796371045 | M27: ='MRP WP1'!F$37 -> 3.18 | P27: 11.80080652 | S27: 12.0947 | V27: 11.95
A28: =Input!C21 -> ROL | B28: =VLOOKUP($A28,'CEM Data Lookup'!$A:$N,2,FALSE) -> Rollins, Inc. | D28: ='MRP WP1'!E90 -> 0.85 | F28: ='CEM Data Lookup'!H22 -> 0.8045534492 | H28: 0.83 | J28: ='MRP WP1'!H$64 -> 9.796371045 | M28: ='MRP WP1'!F$37 -> 3.18 | P28: 11.31098797 | S28: 11.7273 | V28: 11.52
A29: =Input!C22 -> TYL | B29: =VLOOKUP($A29,'CEM Data Lookup'!$A:$N,2,FALSE) -> Tyler Technologies | D29: ='MRP WP1'!E91 -> 0.75 | F29: ='CEM Data Lookup'!H23 -> 0.8990646005 | H29: 0.82 | J29: ='MRP WP1'!H$64 -> 9.796371045 | M29: ='MRP WP1'!F$37 -> 3.18 | P29: 11.21302426 | S29: 11.6539 | V29: 11.43
A30: =Input!C23 -> UPS | B30: =VLOOKUP($A30,'CEM Data Lookup'!$A:$N,2,FALSE) -> United Parcel Serv. | D30: ='MRP WP1'!E92 -> 0.8 | F30: ='CEM Data Lookup'!H24 -> 1.04017818 | H30: 0.92 | J30: ='MRP WP1'!H$64 -> 9.796371045 | M30: ='MRP WP1'!F$37 -> 3.18 | P30: 12.19266136 | S30: 12.3886 | V30: 12.29
A31: =Input!C24 -> WERN | B31: =VLOOKUP($A31,'CEM Data Lookup'!$A:$N,2,FALSE) -> Werner Enterprises | D31: ='MRP WP1'!E93 -> 0.75 | F31: ='CEM Data Lookup'!H25 -> 0.8873602748 | H31: 0.82 | J31: ='MRP WP1'!H$64 -> 9.796371045 | M31: ='MRP WP1'!F$37 -> 3.18 | P31: 11.21302426 | S31: 11.6539 | V31: 11.43
A32: =Input!C25 -> WU | B32: =VLOOKUP($A32,'CEM Data Lookup'!$A:$N,2,FALSE) -> Western Union | D32: ='MRP WP1'!E94 -> 0.8 | F32: ='CEM Data Lookup'!H26 -> 1.048331022 | H32: 0.92 | J32: ='MRP WP1'!H$64 -> 9.796371045 | M32: ='MRP WP1'!F$37 -> 3.18 | P32: 12.19266136 | S32: 12.3886 | V32: 12.29
A34: =COUNTA(A9:A32) -> 24 | B34: Mean | H34: =ROUND(AVERAGE(H9:H32),2) -> 0.81 | P34: =ROUND(AVERAGE(P9:P32),2) -> 11.07 | Q34: % | S34: =ROUND(AVERAGE(S9:S32),2) -> 11.55 | T34: % | V34: =ROUND(AVERAGE(V9:V32),2) -> 11.31 | W34: %
B36: Median | H36: =ROUND(MEDIAN(H9:H32),2) -> 0.81 | P36: =ROUND(MEDIAN(P9:P32),2) -> 11.07 | Q36: % | S36: =ROUND(MEDIAN(S9:S32),2) -> 11.54 | T36: % | V36: =ROUND(MEDIAN(V9:V32),2) -> 11.31 | W36: %
B38: Average of Mean and Median | H38: =ROUND(AVERAGE(H34:H36),2) -> 0.81 | P38: =ROUND(AVERAGE(P34:P36),2) -> 11.07 | Q38: % | S38: =ROUND(AVERAGE(S34:S36),2) -> 11.55 | T38: % | V38: =ROUND(AVERAGE(V34:V36),2) -> 11.31 | W38: %
C40: Notes:
C41: (1) | D41: From Schedule DWD-5, note 1.
C42: (2) | D42: From Schedule DWD-5, note 2.
C43: (3) | D43: Average of CAPM and ECAPM cost rates.

Sheet 7.7 CEM CAPM Backup NO PRPM
B1: =Input!G28 -> Water Service Corporation of Kentucky
B2: Traditional CAPM and ECAPM Results for the Proxy Group of Non-Price-Regulated Companies Comparable in Total Risk to the
B3: ='7.5 CEM Beta Adjusted RP'!A5 -> Proxy Group of Seven Water Companies
D5: [1] | F5: [2] | H5: [3] | J5: [4] | M5: [5] | P5: [6] | S5: [7] | V5: [8]
B7: ='7.5 CEM Beta Adjusted RP'!F7 -> Proxy Group of Twenty-Four Non-Price Regulated Companies | D7: Value Line Adjusted Beta | F7: Bloomberg Beta | H7: Average Beta | J7: Market Risk Premium (1) | M7: Risk-Free Rate (2) | P7: Traditional CAPM Cost Rate | S7: ECAPM Cost Rate | V7: Indicated Common Equity Cost Rate (3)
A9: =Input!C2 -> AOS | B9: =VLOOKUP($A9,'CEM Data Lookup'!$A:$N,2,FALSE) -> Smith (A.O.) | D9: ='MRP WP1'!E71 -> 0.85 | F9: ='CEM Data Lookup'!H3 -> 1.086758733 | H9: =ROUND(AVERAGE(D9:F9),2) -> 0.97 | J9: ='5.2 CAPM Notes'!$N$44 -> 9.960436234 | K9: % | M9: ='MRP WP1'!F$37 -> 3.18 | N9: % | P9: =(H9*J9)+M9 -> 12.84162315 | Q9: % | S9: =ROUND((0.75*(H9*J9))+((0.25*J9))+M9,4) -> 12.9163 | T9: % | V9: =ROUND(AVERAGE(P9,S9),2) -> 12.88 | W9: %
A10: =Input!C3 -> BCPC | B10: =VLOOKUP($A10,'CEM Data Lookup'!$A:$N,2,FALSE) -> Balchem Corp. | D10: ='MRP WP1'!E72 -> 0.7 | F10: ='CEM Data Lookup'!H4 -> 0.8519256711 | H10: =ROUND(AVERAGE(D10:F10),2) -> 0.78 | J10: ='5.2 CAPM Notes'!$N$44 -> 9.960436234 | M10: ='MRP WP1'!F$37 -> 3.18 | P10: =(H10*J10)+M10 -> 10.94914026 | S10: =ROUND((0.75*(H10*J10))+((0.25*J10))+M10,4) -> 11.497 | V10: =ROUND(AVERAGE(P10,S10),2) -> 11.22
A11: =Input!C4 -> BDX | B11: =VLOOKUP($A11,'CEM Data Lookup'!$A:$N,2,FALSE) -> Becton, Dickinson | D11: ='MRP WP1'!E73 -> 0.75 | F11: ='CEM Data Lookup'!H5 -> 0.5914502144 | H11: 0.67 | J11: ='5.2 CAPM Notes'!$N$44 -> 9.960436234 | M11: ='MRP WP1'!F$37 -> 3.18 | P11: 9.853492277 | S11: 10.6752 | V11: 10.26
A12: =Input!C5 -> BMY | B12: =VLOOKUP($A12,'CEM Data Lookup'!$A:$N,2,FALSE) -> Bristol-Myers Squibb | D12: ='MRP WP1'!E74 -> 0.85 | F12: ='CEM Data Lookup'!H6 -> 0.6131026745 | H12: 0.73 | J12: ='5.2 CAPM Notes'!$N$44 -> 9.960436234 | M12: ='MRP WP1'!F$37 -> 3.18 | P12: 10.45111845 | S12: 11.1234 | V12: 10.79
A13: =Input!C6 -> CHE | B13: =VLOOKUP($A13,'CEM Data Lookup'!$A:$N,2,FALSE) -> Chemed Corp. | D13: ='MRP WP1'!E75 -> 0.85 | F13: ='CEM Data Lookup'!H7 -> 0.8218445778 | H13: 0.84 | J13: ='5.2 CAPM Notes'!$N$44 -> 9.960436234 | M13: ='MRP WP1'!F$37 -> 3.18 | P13: 11.54676644 | S13: 11.9452 | V13: 11.75
A14: =Input!C7 -> CHRW | B14: =VLOOKUP($A14,'CEM Data Lookup'!$A:$N,2,FALSE) -> C.H. Robinson | D14: ='MRP WP1'!E76 -> 0.75 | F14: ='CEM Data Lookup'!H8 -> 0.8785706758 | H14: 0.81 | J14: ='5.2 CAPM Notes'!$N$44 -> 9.960436234 | M14: ='MRP WP1'!F$37 -> 3.18 | P14: 11.24795335 | S14: 11.7211 | V14: 11.48
A15: =Input!C8 -> CSGS | B15: =VLOOKUP($A15,'CEM Data Lookup'!$A:$N,2,FALSE) -> CSG Systems Int'l | D15: ='MRP WP1'!E77 -> 0.75 | F15: ='CEM Data Lookup'!H9 -> 0.9172890782 | H15: 0.83 | J15: ='5.2 CAPM Notes'!$N$44 -> 9.960436234 | M15: ='MRP WP1'!F$37 -> 3.18 | P15: 11.44716207 | S15: 11.8705 | V15: 11.66
A16: =Input!C9 -> DGX | B16: =VLOOKUP($A16,'CEM Data Lookup'!$A:$N,2,FALSE) -> Quest Diagnostics | D16: ='MRP WP1'!E78 -> 0.8 | F16: ='CEM Data Lookup'!H10 -> 0.7636415958 | H16: 0.78 | J16: ='5.2 CAPM Notes'!$N$44 -> 9.960436234 | M16: ='MRP WP1'!F$37 -> 3.18 | P16: 10.94914026 | S16: 11.497 | V16: 11.22
A17: =Input!C10 -> HTLD | B17: =VLOOKUP($A17,'CEM Data Lookup'!$A:$N,2,FALSE) -> Heartland Express | D17: ='MRP WP1'!E79 -> 0.75 | F17: ='CEM Data Lookup'!H11 -> 0.8271181583 | H17: 0.79 | J17: ='5.2 CAPM Notes'!$N$44 -> 9.960436234 | M17: ='MRP WP1'!F$37 -> 3.18 | P17: 11.04874462 | S17: 11.5717 | V17: 11.31
A18: =Input!C11 -> JKHY | B18: =VLOOKUP($A18,'CEM Data Lookup'!$A:$N,2,FALSE) -> Henry (Jack) & Assoc | D18: ='MRP WP1'!E80 -> 0.85 | F18: ='CEM Data Lookup'!H12 -> 0.7458253503 | H18: 0.8 | J18: ='5.2 CAPM Notes'!$N$44 -> 9.960436234 | M18: ='MRP WP1'!F$37 -> 3.18 | P18: 11.14834899 | S18: 11.6464 | V18: 11.4
A19: =Input!C12 -> LANC | B19: =VLOOKUP($A19,'CEM Data Lookup'!$A:$N,2,FALSE) -> Lancaster Colony | D19: ='MRP WP1'!E81 -> 0.7 | F19: ='CEM Data Lookup'!H13 -> 0.7584744692 | H19: 0.73 | J19: ='5.2 CAPM Notes'!$N$44 -> 9.960436234 | M19: ='MRP WP1'!F$37 -> 3.18 | P19: 10.45111845 | S19: 11.1234 | V19: 10.79
A20: =Input!C13 -> LLY | B20: =VLOOKUP($A20,'CEM Data Lookup'!$A:$N,2,FALSE) -> Lilly (Eli) | D20: ='MRP WP1'!E82 -> 0.75 | F20: ='CEM Data Lookup'!H14 -> 0.6384810805 | H20: 0.69 | J20: ='5.2 CAPM Notes'!$N$44 -> 9.960436234 | M20: ='MRP WP1'!F$37 -> 3.18 | P20: 10.052701 | S20: 10.8246 | V20: 10.44
A21: =Input!C14 -> MANT | B21: =VLOOKUP($A21,'CEM Data Lookup'!$A:$N,2,FALSE) -> ManTech Int'l 'A' | D21: ='MRP WP1'!E83 -> 0.85 | F21: ='CEM Data Lookup'!H15 -> 0.8216931224 | H21: 0.84 | J21: ='5.2 CAPM Notes'!$N$44 -> 9.960436234 | M21: ='MRP WP1'!F$37 -> 3.18 | P21: 11.54676644 | S21: 11.9452 | V21: 11.75
A22: =Input!C15 -> MKC | B22: =VLOOKUP($A22,'CEM Data Lookup'!$A:$N,2,FALSE) -> McCormick & Co. | D22: ='MRP WP1'!E84 -> 0.8 | F22: ='CEM Data Lookup'!H16 -> 0.5877737403 | H22: 0.69 | J22: ='5.2 CAPM Notes'!$N$44 -> 9.960436234 | M22: ='MRP WP1'!F$37 -> 3.18 | P22: 10.052701 | S22: 10.8246 | V22: 10.44
A23: =Input!C16 -> MNST | B23: =VLOOKUP($A23,'CEM Data Lookup'!$A:$N,2,FALSE) -> Monster Beverage | D23: ='MRP WP1'!E85 -> 0.85 | F23: ='CEM Data Lookup'!H17 -> 1.032819986 | H23: 0.94 | J23: ='5.2 CAPM Notes'!$N$44 -> 9.960436234 | M23: ='MRP WP1'!F$37 -> 3.18 | P23: 12.54281006 | S23: 12.6922 | V23: 12.62
A24: =Input!C17 -> NOC | B24: =VLOOKUP($A24,'CEM Data Lookup'!$A:$N,2,FALSE) -> Northrop Grumman | D24: ='MRP WP1'!E86 -> 0.85 | F24: ='CEM Data Lookup'!H18 -> 0.6716248393 | H24: 0.76 | J24: ='5.2 CAPM Notes'!$N$44 -> 9.960436234 | M24: ='MRP WP1'!F$37 -> 3.18 | P24: 10.74993154 | S24: 11.3476 | V24: 11.05
A25: =Input!C18 -> ORCL | B25: =VLOOKUP($A25,'CEM Data Lookup'!$A:$N,2,FALSE) -> Oracle Corp. | D25: ='MRP WP1'!E87 -> 0.75 | F25: ='CEM Data Lookup'!H19 -> 0.8290885687 | H25: 0.79 | J25: ='5.2 CAPM Notes'!$N$44 -> 9.960436234 | M25: ='MRP WP1'!F$37 -> 3.18 | P25: 11.04874462 | S25: 11.5717 | V25: 11.31
A26: =Input!C19 -> PGR | B26: =VLOOKUP($A26,'CEM Data Lookup'!$A:$N,2,FALSE) -> Progressive Corp. | D26: ='MRP WP1'!E88 -> 0.75 | F26: ='CEM Data Lookup'!H20 -> 0.6793126464 | H26: 0.71 | J26: ='5.2 CAPM Notes'!$N$44 -> 9.960436234 | M26: ='MRP WP1'!F$37 -> 3.18 | P26: 10.25190973 | S26: 10.974 | V26: 10.61
A27: =Input!C20 -> RLI | B27: =VLOOKUP($A27,'CEM Data Lookup'!$A:$N,2,FALSE) -> RLI Corp. | D27: ='MRP WP1'!E89 -> 0.8 | F27: ='CEM Data Lookup'!H21 -> 0.9648290277 | H27: 0.88 | J27: ='5.2 CAPM Notes'!$N$44 -> 9.960436234 | M27: ='MRP WP1'!F$37 -> 3.18 | P27: 11.94518389 | S27: 12.244 | V27: 12.09
A28: =Input!C21 -> ROL | B28: =VLOOKUP($A28,'CEM Data Lookup'!$A:$N,2,FALSE) -> Rollins, Inc. | D28: ='MRP WP1'!E90 -> 0.85 | F28: ='CEM Data Lookup'!H22 -> 0.8045534492 | H28: 0.83 | J28: ='5.2 CAPM Notes'!$N$44 -> 9.960436234 | M28: ='MRP WP1'!F$37 -> 3.18 | P28: 11.44716207 | S28: 11.8705 | V28: 11.66
A29: =Input!C22 -> TYL | B29: =VLOOKUP($A29,'CEM Data Lookup'!$A:$N,2,FALSE) -> Tyler Technologies | D29: ='MRP WP1'!E91 -> 0.75 | F29: ='CEM Data Lookup'!H23 -> 0.8990646005 | H29: 0.82 | J29: ='5.2 CAPM Notes'!$N$44 -> 9.960436234 | M29: ='MRP WP1'!F$37 -> 3.18 | P29: 11.34755771 | S29: 11.7958 | V29: 11.57
A30: =Input!C23 -> UPS | B30: =VLOOKUP($A30,'CEM Data Lookup'!$A:$N,2,FALSE) -> United Parcel Serv. | D30: ='MRP WP1'!E92 -> 0.8 | F30: ='CEM Data Lookup'!H24 -> 1.04017818 | H30: 0.92 | J30: ='5.2 CAPM Notes'!$N$44 -> 9.960436234 | M30: ='MRP WP1'!F$37 -> 3.18 | P30: 12.34360133 | S30: 12.5428 | V30: 12.44
A31: =Input!C24 -> WERN | B31: =VLOOKUP($A31,'CEM Data Lookup'!$A:$N,2,FALSE) -> Werner Enterprises | D31: ='MRP WP1'!E93 -> 0.75 | F31: ='CEM Data Lookup'!H25 -> 0.8873602748 | H31: 0.82 | J31: ='5.2 CAPM Notes'!$N$44 -> 9.960436234 | M31: ='MRP WP1'!F$37 -> 3.18 | P31: 11.34755771 | S31: 11.7958 | V31: 11.57
A32: =Input!C25 -> WU | B32: =VLOOKUP($A32,'CEM Data Lookup'!$A:$N,2,FALSE) -> Western Union | D32: ='MRP WP1'!E94 -> 0.8 | F32: ='CEM Data Lookup'!H26 -> 1.048331022 | H32: 0.92 | J32: ='5.2 CAPM Notes'!$N$44 -> 9.960436234 | M32: ='MRP WP1'!F$37 -> 3.18 | P32: 12.34360133 | S32: 12.5428 | V32: 12.44
A34: =COUNTA(A9:A32) -> 24 | B34: Mean | H34: =ROUND(AVERAGE(H9:H32),2) -> 0.81 | P34: =ROUND(AVERAGE(P9:P32),2) -> 11.21 | Q34: % | S34: =ROUND(AVERAGE(S9:S32),2) -> 11.69 | T34: % | V34: =ROUND(AVERAGE(V9:V32),2) -> 11.45 | W34: %
B36: Median | H36: =ROUND(MEDIAN(H9:H32),2) -> 0.81 | P36: =ROUND(MEDIAN(P9:P32),2) -> 11.2 | Q36: % | S36: =ROUND(MEDIAN(S9:S32),2) -> 11.68 | T36: % | V36: =ROUND(MEDIAN(V9:V32),2) -> 11.44 | W36: %
B38: Average of Mean and Median | H38: =ROUND(AVERAGE(H34:H36),2) -> 0.81 | P38: =ROUND(AVERAGE(P34:P36),2) -> 11.21 | Q38: % | S38: =ROUND(AVERAGE(S34:S36),2) -> 11.69 | T38: % | V38: =ROUND(AVERAGE(V34:V36),2) -> 11.45 | W38: %
C40: Notes:
C41: (1) | D41: From Schedule DWD-5, note 1.
C42: (2) | D42: From Schedule DWD-5, note 2.
C43: (3) | D43: Average of CAPM and ECAPM cost rates.

Sheet 8.1 Risk Adjustment
C1: =Input!G28 -> Water Service Corporation of Kentucky
C2: Derivation of Investment Risk Adjustment Based upon
C3: Ibbotson Associates' Size Premia for the Decile Portfolios of the NYSE/AMEX/NASDAQ
E6: [1] | I6: [2] | K6: [3] | M6: [4]
M7: Spread from Applicable Size Premium (4)
E8: Market Capitalization on March 31, 2022 (1) | I8: Applicable Decile of the NYSE/AMEX/ NASDAQ (2)
K9: Applicable Size Premium (3)
A11: Line No.
E12: ( millions ) | G12: (times larger)
A14: 1. | C14: =Input!G28 -> Water Service Corporation of Kentucky | E14: ='8.2 Market Cap'!P13 -> 14.84909103 | I14: 10 | K14: =VLOOKUP(I14,$G$23:$M$32,7,FALSE) -> 0.048
A16: 2. | C16: =Input!I31 -> Proxy Group of Seven Water Companies | E16: ='8.2 Market Cap'!P24 -> 3184.284 | G16: =ROUND(E16/E14,1) -> 214.4 | H16: x | I16: 6 | K16: =VLOOKUP(I16,$G$23:$M$32,7,FALSE) -> 0.0118 | M16: =K14-K16 -> 0.0362
G18: [A] | I18: [B] | K18: [C] | M18: [D]
G20: Decile | I20: Market Capitalization of Smallest Company | K20: Market Capitalization of Largest Company | M20: Size Premium (Return in Excess of CAPM)*
I21: ( millions ) | K21: ( millions )
E23: Largest | G23: 1 | I23: 36160.584 | K23: 2324390.219 | M23: -0.0022
G24: 2 | I24: 16759.39 | K24: 36099.221 | M24: 0.0043
G25: 3 | I25: 8216.356 | K25: 16738.364 | M25: 0.0055
G26: 4 | I26: 5019.883 | K26: 8212.638 | M26: 0.0054
G27: 5 | I27: 3281.009 | K27: 5003.747 | M27: 0.0089
G28: 6 | I28: 2170.315 | K28: 3276.553 | M28: 0.0118
G29: 7 | I29: 1306.402 | K29: 2164.524 | M29: 0.0134
G30: 8 | I30: 629.118 | K30: 1306.038 | M30: 0.0121
G31: 9 | I31: 290.002 | K31: 627.803 | M31: 0.021
E32: Smallest | G32: 10 | I32: 10.588 | K32: 289.007 | M32: 0.048
H33: *From 2022 Kroll Cost of Capital Navigator
C35: Notes:
D36: (1) | E36: From page 2 of this Schedule.
D37: (2) | E37: Gleaned from Columns [B] and [C] on the bottom of this page. The appropriate decile (Column [A]) corresponds to the market capitalization of the proxy group, which is found in Column [1].
D38: (3) | E38: Corresponding risk premium to the decile is provided in Column [D] on the bottom of this page.
D39: (4) | E39: =CONCATENATE("Line No. 1 Column [3] – Line No. 2 Column [3]. For example, the ",TEXT((M16*100),"#0.00"),"% in Column [4], Line No. 2 is derived as follows ",TEXT((M16*100),"#0.00"),"% = ",K14*100,"% - ",TEXT((K16*100),"#0.00"),"%.") -> Line No. 1 Column [3] – Line No. 2 Column [3]. For example, the 3.62% in Column [4], Line No. 2 is derived as follows 3.62% = 4.8% - 1.18%.

Sheet 8.2 Market Cap
B1: =Input!G28 -> Water Service Corporation of Kentucky
B2: =CONCATENATE("Market Capitalization of ",B1," and the") -> Market Capitalization of Water Service Corporation of Kentucky and the
B3: Proxy Group of Seven Water Companies
F6: [1] | H6: [2] | J6: [3] | L6: [4] | N6: [5] | P6: [6]
B8: Company | D8: Exchange | F8: =CONCATENATE("Common Stock Shares Outstanding at Fiscal Year End ",YEAR(Input!G49)) -> Common Stock Shares Outstanding at Fiscal Year End 2021 | H8: Book Value per Share at Fiscal Year End 2021 (1) | J8: =CONCATENATE("Total Common Equity at Fiscal Year End ",YEAR(Input!G49)) -> Total Common Equity at Fiscal Year End 2021 | L8: =CONCATENATE("Closing Stock Market Price on ",TEXT(Input!E2,"mmmm dd, yyyy")) -> Closing Stock Market Price on March 31, 2022 | N8: =CONCATENATE("Market-to-Book Ratio on ",TEXT(Input!E2,"mmmm dd, yyyy")," (2)") -> Market-to-Book Ratio on March 31, 2022 (2) | P8: =CONCATENATE("Market Capitalization on ",TEXT(Input!E2,"mmmm dd, yyyy")," (3)") -> Market Capitalization on March 31, 2022 (3)
F9: ( millions ) | J9: ( millions ) | P9: ( millions )
B11: =Input!G28 -> Water Service Corporation of Kentucky | F11: NA | H11: NA | J11: =(Input!G43/1000000)*Input!F14 -> 3.842932461 | K11: (4) | L11: NA | N11: NA | P11: NA
B13: =CONCATENATE("Based upon ",B15) -> Based upon Proxy Group of Seven Water Companies | N13: =N24 -> 386.4 | O13: (5) | P13: =IFERROR((N13/100)*J11,"NA") -> 14.84909103 | Q13: (6)
B15: =Input!I31 -> Proxy Group of Seven Water Companies
A16: =Input!A2 -> AWR | B16: =IFERROR(VLOOKUP($A16,'Proxy Data Lookup'!$A:$P,2,FALSE),"NA") -> American States Water Company | D16: =Input!B2 -> NYSE | F16: ='3. AWR'!C$15/1000000 -> 36.936285 | H16: =IFERROR(ROUND(J16/F16,3),"NA") -> 18.571 | J16: ='3. AWR'!C$16/1000000 -> 685.947 | L16: ='Proxy Prices'!B$6 -> 89.02 | N16: =IFERROR(ROUND(L16/H16*100,1),"NA") -> 479.3 | O16: % | P16: =IFERROR(ROUND(F16*L16,3),"NA") -> 3288.068
A17: =Input!A3 -> AWK | B17: =IFERROR(VLOOKUP($A17,'Proxy Data Lookup'!$A:$P,2,FALSE),"NA") -> American Water Works Company, Inc. | D17: =Input!B3 -> NYSE | F17: ='3. AWK'!C$15/1000000 -> 181.611089 | H17: =IFERROR(ROUND(J17/F17,3),"NA") -> 40.185 | J17: ='3. AWK'!C$16/1000000 -> 7298 | L17: ='Proxy Prices'!C$6 -> 165.53 | N17: =IFERROR(ROUND(L17/H17*100,1),"NA") -> 411.9 | P17: =IFERROR(ROUND(F17*L17,3),"NA") -> 30062.084
A18: =Input!A4 -> CWT | B18: =IFERROR(VLOOKUP($A18,'Proxy Data Lookup'!$A:$P,2,FALSE),"NA") -> California Water Service Group | D18: =Input!B4 -> NYSE | F18: ='3. CWT'!C$15/1000000 -> 53.716 | H18: 22.023 | J18: ='3. CWT'!C$16/1000000 -> 1182.98 | L18: ='Proxy Prices'!D$6 -> 59.28 | N18: 269.2 | P18: 3184.284
A19: =Input!A5 -> WTRG | B19: =IFERROR(VLOOKUP($A19,'Proxy Data Lookup'!$A:$P,2,FALSE),"NA") -> Essential Utilities Inc. | D19: =Input!B5 -> NYSE | F19: ='3. WTRG'!C$15/1000000 -> 252.867623 | H19: 20.503 | J19: ='3. WTRG'!C$16/1000000 -> 5184.45 | L19: ='Proxy Prices'!E$6 -> 51.13 | N19: 249.4 | P19: 12929.122
A20: =Input!A6 -> MSEX | B20: =IFERROR(VLOOKUP($A20,'Proxy Data Lookup'!$A:$P,2,FALSE),"NA") -> Middlesex Water Company | D20: =Input!B6 -> NASDAQ | F20: ='3. MSEX'!C$15/1000000 -> 17.522 | H20: 20.987 | J20: ='3. MSEX'!C$16/1000000 -> 367.726 | L20: ='Proxy Prices'!F$6 -> 105.17 | N20: 501.1 | P20: 1842.789
A21: =Input!A7 -> SJW | B21: =IFERROR(VLOOKUP($A21,'Proxy Data Lookup'!$A:$P,2,FALSE),"NA") -> SJW Group | D21: =Input!B7 -> NYSE | F21: ='3. SJW'!C$15/1000000 -> 30.181348 | H21: 34.277 | J21: ='3. SJW'!C$16/1000000 -> 1034.519 | L21: ='Proxy Prices'!G$6 -> 69.58 | N21: 203 | P21: 2100.018
A22: =Input!A8 -> YORW | B22: =IFERROR(VLOOKUP($A22,'Proxy Data Lookup'!$A:$P,2,FALSE),"NA") -> The York Water Company | D22: =Input!B8 -> NASDAQ | F22: ='3. YORW'!C$15/1000000 -> 13.112948 | H22: 11.639 | J22: ='3. YORW'!C$16/1000000 -> 152.622 | L22: ='Proxy Prices'!H$6 -> 44.97 | N22: 386.4 | P22: 589.689
B24: Median | F24: =ROUND(MEDIAN(F15:F23),3) -> 36.936 | H24: =ROUND(MEDIAN(H15:H23),3) -> 20.987 | J24: =ROUND(MEDIAN(J15:J23),3) -> 1034.519 | L24: =ROUND(MEDIAN(L15:L23),3) -> 69.58 | N24: =ROUND(MEDIAN(N16:N22),1) -> 386.4 | O24: % | P24: =ROUND(MEDIAN(P15:P23),3) -> 3184.284
C26: NA= Not Available
D28: Notes: | E28: (1) | F28: Column 3 / Column 1, otherwise NA.
E29: (2) | F29: Column 4 / Column 2, otherwise NA.
E30: (3) | F30: Column 1 * Column 4, otherwise NA.
E31: (4) | F31: Company requested rate base multiplied by requested equity ratio.
E32: (5) | F32: =CONCATENATE("The market-to-book ratio of ",Input!G28," on ",TEXT(Input!E2,"mmmm dd, yyyy")," is assumed to be equal to the market-to-book ratio of ",'8.2 Market Cap'!B3," on ",TEXT(Input!E2,"mmmm dd, yyyy")," as appropriate.") -> The market-to-book ratio of Water Service Corporation of Kentucky on March 31, 2022 is assumed to be equal to the market-to-book ratio of Proxy Group of Seven Water Companies on March 31, 2022 as appropriate.
E33: (6) | F33: Column [3] multiplied by Column [5].
B36: Source of Information: | C36: =CONCATENATE(YEAR(Input!G49)," Annual Forms 10K") -> 2021 Annual Forms 10K
C37: Bloomberg Financial Services

Sheet Input
A1: Utility Proxy Group | B1: Proxy Company - Exchange | C1: CEM Proxy Group | E1: Growth Rate Input Date
A2: AWR | B2: NYSE | C2: AOS | E2: 2022-03-31
A3: AWK | B3: NYSE | C3: BCPC
A4: CWT | B4: NYSE | C4: BDX | E4: User Computer Title
A5: WTRG | B5: NYSE | C5: BMY
A6: MSEX | B6: NASDAQ | C6: CHE
A7: SJW | B7: NYSE | C7: CHRW | E7: Recommended Common Equity Cost Rate
A8: YORW | B8: NASDAQ | C8: CSGS
C9: DGX
C10: HTLD | E10: DATA INPUTS
C11: JKHY
C12: LANC | E12: Capital Structure | G12: Source:
C13: LLY | E13: Debt % | F13: 0.5029 | G13: Company Provided
C14: MANT | E14: Equity % | F14: 0.4971 | G14: Company Provided
C15: MKC | E15: Short-Term Debt % | F15: - | G15: Company Provided
C16: MNST | E16: Debt Cost (%) | F16: 0.0471 | G16: Company Provided
C17: NOC | E17: Short-Term Debt Cost (%) | F17: - | G17: Company Provided
C18: ORCL | E18: Preferred Stock | F18: - | G18: Company Provided
C19: PGR | E19: Preferred Stock Cost | F19: - | G19: Company Provided
C20: RLI | E20: SBBI (1926-2021) | G20: Notes:
C21: ROL | E21: SBBI Common Stocks Total Return (%) | F21: 12.37 | G21: Update annually from Stocks, Bonds, Bills, and Inflation - Ibbotson® SBBI® Market Report
C22: TYL | E22: SBBI Long-Term Gov't Bonds Income (%) | F22: 5.02 | G22: Update annually from Stocks, Bonds, Bills, and Inflation - Ibbotson® SBBI® Market Report
C23: UPS
C24: WERN | E24: VL Appr Potential Week Ending: | G24: PRPM Date ("Month Year") | I24: Blue Chip Update Date ("Month Day, Year")
C25: WU | E25: 2022-03-31 | G25: March 2022 | I25: December 1, 2021 and April 1, 2022
E27: S&P Utilties Index Companies | G27: Company Name | I27: Abbreviated
E28: AEE | G28: Water Service Corporation of Kentucky | I28: WSK
E29: AEP
E30: AES | G30: Regulatory Jurisdiction
E31: ATO | G31: Kentucky Public Service Commission | I31: Proxy Group of Seven Water Companies
E32: AWK | I32: Proxy Group of Twenty-Four Non-Price Regulated Companies
E33: CEG | G33: Industry ("Natural Gas", "Water", "Electric")
E34: CMS | G34: Water
E35: CNP | H35: - If Data not available, input NA
E36: D | G36: Common Stock Shares Outstanding at Fiscal Year End
E37: DTE | G37: NA
E38: DUK
E39: ED | G39: Book Value per Share at Fiscal Year End
E40: EIX | G40: NA
E41: ES
E42: ETR | G42: Book Common Equity (From Co. Annual Report)
E43: EVRG | G43: 7730703 | I43: Test year (company provided)
E44: EXC
E45: FE | G45: Closing Stock Market Price
E46: LNT | G46: NA
E47: NEE
E48: NI | G48: Date of Annual Report Filing ("'Month Day, Year")
E49: NRG | G49: December 31, 2021
E50: PEG
E51: PNW | G51: Business Risk Adjustment
E52: PPL
E53: SO
E54: SRE
E55: WEC
C56: =COUNTA(C2:C29) -> 24 | E56: XEL

Sheet Market Data
A1: Bond Index - Date | B1: 2022-03-31 | C1: 2022-02-28 | D1: 2022-01-31
A2: MOODUA Index | B2: 3.98 | C2: 3.68 | D2: 3.33
A3: MOODUBAA Index | B3: 4.28 | C3: 3.95 | D3: 3.57
A4: MOODCAAA Index | B4: 3.43 | C4: 3.25 | D4: 2.93
A5: MOODCAA Index | B5: 3.62 | C5: 3.36 | D5: 3.02
A6: MOODCA Index | B6: 3.88 | C6: 3.6 | D6: 3.25
A7: MOODCBAA Index | B7: 4.29 | C7: 3.97 | D7: 3.59
A9: Historical Risk Premium Data
A10: Arithmetic Mean of Monthly Returns on Large Company Common Stocks (1928 - 2020) | B10: 0.1211
A11: Arithmetic Mean of Moody's Aaa and Aa Corporate Bond Yields (1928 - 2020) | B11: 0.0598
A12: Arithmetic Mean Holding Period Returns on the S&P Utility Index (1928 - 2020) | B12: 0.1074
A13: Arithmetic Mean on Moody's A Rated Public Utility Bond Yields (1928 - 2020) | B13: 0.0646

Sheet Proxy Data Lookup
C1: EPS Growth Rates | G1: Beta | J1: Annual Div. | K1: Value Line Beta Calculation | O1: Bond Ratings
A2: Ticker | B2: Company Name | C2: Zacks | D2: Yahoo | E2: Value Line | F2: Bloomberg | G2: Value Line | H2: Bloomberg | I2: Unadjusted | K2: R Factor | L2: Std. Error | M2: Std. Dev Y | N2: Std. Dev Beta | O2: S&P | P2: Moody's
A3: =Input!A2 -> AWR | B3: American States Water Company | C3: NA | D3: 0.049 | E3: 0.065 | F3: 0.06 | G3: 0.65 | H3: 0.8176448345 | I3: 0.4 | J3: =0.365*4 -> 1.46 | K3: 0.3836 | L3: 2.4309 | M3: 2.6272 | N3: 0.0601 | O3: A+ | P3: A2 | R3: Golden State Water Company (A+, A2)
A4: =Input!A3 -> AWK | B4: American Water Works Company, Inc. | C4: 0.081 | D4: 0.083 | E4: 0.085 | F4: 0.0775 | G4: 0.85 | H4: 0.8662359715 | I4: 0.75 | J4: =0.6025*4 -> 2.41 | K4: 0.5072 | L4: 3.2139 | M4: 3.7218 | N4: 0.0795 | O4: A | P4: A3 | R4: New Jersey American Water Co. (A, A3), PA American Water Co (A, A3)
A5: =Input!A4 -> CWT | B5: California Water Service Group | C5: NA | D5: 0.117 | E5: 0.085 | F5: 0.05 | G5: 0.65 | H5: 0.9718194604 | I5: 0.46 | J5: =0.25*4 -> 1 | K5: 0.3541 | L5: 3.0606 | M5: 3.2664 | N5: 0.0757 | O5: A+ | P5: NR
A6: =Input!A5 -> WTRG | B6: Essential Utilities Inc. | C6: 0.061 | D6: 0.064 | E6: 0.1 | F6: 0.076 | G6: 0.95 | H6: 0.933491528 | I6: 0.9 | J6: =0.2682*4 -> 1.0728 | K6: 0.6468 | L6: 2.6745 | M6: 3.5002 | N6: 0.0662 | O6: A | P6: NA | R6: Aqua Pennsylvania, Inc. (A, WR); PNG Companies (A, NA)
A7: =Input!A6 -> MSEX | B7: Middlesex Water Company | C7: NA | D7: 0.027 | E7: 0.05 | F7: NA | G7: 0.7 | H7: 0.8564789891 | I7: 0.51 | J7: =0.29*4 -> 1.16 | K7: 0.3443 | L7: 3.4876 | M7: 3.7076 | N7: 0.0863 | O7: A | P7: NR
A8: =Input!A7 -> SJW | B8: SJW Group | C8: NA | D8: 0.097 | E8: 0.15 | F8: 0.06 | G8: 0.8 | H8: 0.8674534559 | I8: 0.68 | J8: =0.36*4 -> 1.44 | K8: 0.4541 | L8: 3.3451 | M8: 3.7473 | N8: 0.0827 | O8: A/A- | P8: NR | R8: San Jose Water (A) Connecticut Water Inc. (A-)
A9: =Input!A8 -> YORW | B9: The York Water Company | C9: NA | D9: 0.049 | E9: 0.065 | F9: NA | G9: 0.85 | H9: 0.809759438 | I9: 0.71 | J9: =0.1949*4 -> 0.7796 | K9: 0.4608 | L9: 3.4491 | M9: 3.8786 | N9: 0.0853 | O9: A- | P9: NR

Sheet Proxy Price Data
B1: PX_LAST | C1: AWR US Equity | D1: AWK US Equity | E1: CWT US Equity | F1: WTRG US Equity | G1: MSEX US Equity | H1: SJW US Equity | I1: YORW US Equity
A2: 1 | B2: 2022-03-31 | C2: 89.02 | D2: 165.53 | E2: 59.28 | F2: 51.13 | G2: 105.17 | H2: 69.58 | I2: 44.97
A3: =A2+1 -> 2 | B3: 2022-03-30 | C3: 89.61 | D3: 165.85 | E3: 59.98 | F3: 51.99 | G3: 105.45 | H3: 69.86 | I3: 45.45
A4: =A3+1 -> 3 | B4: 2022-03-29 | C4: 89.61 | D4: 164.44 | E4: 59.81 | F4: 51.08 | G4: 105.69 | H4: 69.66 | I4: 45.5
A5: 4 | B5: 2022-03-28 | C5: 87.33 | D5: 161.42 | E5: 58.8 | F5: 50.04 | G5: 102.71 | H5: 67.83 | I5: 44.63
A6: 5 | B6: 2022-03-25 | C6: 86.97 | D6: 159.55 | E6: 58.26 | F6: 49.95 | G6: 102.5 | H6: 67.74 | I6: 44.7
A7: 6 | B7: 2022-03-24 | C7: 86.69 | D7: 158.15 | E7: 58.3 | F7: 48.91 | G7: 102.36 | H7: 67.93 | I7: 44.07
A8: 7 | B8: 2022-03-23 | C8: 85.39 | D8: 155.6 | E8: 57.38 | F8: 48.49 | G8: 100.35 | H8: 67.15 | I8: 44.31
A9: 8 | B9: 2022-03-22 | C9: 86.05 | D9: 156.58 | E9: 57.65 | F9: 48.24 | G9: 102.16 | H9: 67.27 | I9: 43.95
A10: 9 | B10: 2022-03-21 | C10: 87.21 | D10: 157.01 | E10: 58.32 | F10: 48.76 | G10: 103.64 | H10: 67.79 | I10: 44
A11: 10 | B11: 2022-03-18 | C11: 87.44 | D11: 158.72 | E11: 58.49 | F11: 48.08 | G11: 103.48 | H11: 68.04 | I11: 43.09
A12: 11 | B12: 2022-03-17 | C12: 85.97 | D12: 157.43 | E12: 58.14 | F12: 47.72 | G12: 102.35 | H12: 67.24 | I12: 43.78
A13: 12 | B13: 2022-03-16 | C13: 85.66 | D13: 156.15 | E13: 57.86 | F13: 47.31 | G13: 99.55 | H13: 66.62 | I13: 43.94
A14: 13 | B14: 2022-03-15 | C14: 85.97 | D14: 155.95 | E14: 57.61 | F14: 47.54 | G14: 100.85 | H14: 67.1 | I14: 44.05
A15: 14 | B15: 2022-03-14 | C15: 84.01 | D15: 152.62 | E15: 57.04 | F15: 46.61 | G15: 98.5 | H15: 65.9 | I15: 43.63
A16: 15 | B16: 2022-03-11 | C16: 83.89 | D16: 152.08 | E16: 56.68 | F16: 46.74 | G16: 99.39 | H16: 66.17 | I16: 43.74
A17: 16 | B17: 2022-03-10 | C17: 84.73 | D17: 153.13 | E17: 57.6 | F17: 47.15 | G17: 100.79 | H17: 66.68 | I17: 44.16
A18: 17 | B18: 2022-03-09 | C18: 85.89 | D18: 153.79 | E18: 58.33 | F18: 46.84 | G18: 102.41 | H18: 67.17 | I18: 44.69
A19: 18 | B19: 2022-03-08 | C19: 87.3 | D19: 154.25 | E19: 58.44 | F19: 46.8 | G19: 103.89 | H19: 67.95 | I19: 46.19
A20: =A19+1 -> 19 | B20: 2022-03-07 | C20: 89.98 | D20: 159.22 | E20: 59.83 | F20: 48.07 | G20: 106.62 | H20: 68.6 | I20: 47.68
A21: 20 | B21: 2022-03-04 | C21: 88.12 | D21: 161.04 | E21: 58.63 | F21: 48.8 | G21: 106.55 | H21: 68.05 | I21: 46.68
A22: 21 | B22: 2022-03-03 | C22: 84.72 | D22: 154.94 | E22: 57.01 | F22: 47.25 | G22: 103.65 | H22: 65.69 | I22: 45.86
A23: 22 | B23: 2022-03-02 | C23: 84.96 | D23: 152.1 | E23: 56.9 | F23: 47.27 | G23: 100.68 | H23: 65.22 | I23: 44.6
A24: 23 | B24: 2022-03-01 | C24: 83.51 | D24: 151.02 | E24: 56.42 | F24: 46.61 | G24: 99.68 | H24: 64.11 | I24: 43.63
A25: 24 | B25: 2022-02-28 | C25: 84.16 | D25: 151.09 | E25: 56.93 | F25: 47.11 | G25: 99.99 | H25: 65.22 | I25: 44.87
A26: 25 | B26: 2022-02-25 | C26: 83.19 | D26: 152.69 | E26: 55.97 | F26: 47.37 | G26: 98.31 | H26: 64.94 | I26: 43.86
A27: 26 | B27: 2022-02-24 | C27: 83.13 | D27: 148.6 | E27: 56.86 | F27: 46.65 | G27: 97.89 | H27: 63.95 | I27: 43
A28: 27 | B28: 2022-02-23 | C28: 83.69 | D28: 146.73 | E28: 57.53 | F28: 44.8 | G28: 95.85 | H28: 64.08 | I28: 43.13
A29: 28 | B29: 2022-02-22 | C29: 85.47 | D29: 147.83 | E29: 59.05 | F29: 45.4 | G29: 97.83 | H29: 64.73 | I29: 43.13
A30: 29 | B30: 2022-02-18 | C30: 86.03 | D30: 148.26 | E30: 58.78 | F30: 45.52 | G30: 96.84 | H30: 65.22 | I30: 43.31
A31: 30 | B31: 2022-02-17 | C31: 85.56 | D31: 148.06 | E31: 58.42 | F31: 45.93 | G31: 96.81 | H31: 64.93 | I31: 43.16
A32: 31 | B32: 2022-02-16 | C32: 84.99 | D32: 146.29 | E32: 58.23 | F32: 45.19 | G32: 96.33 | H32: 64.46 | I32: 43.34
A33: 32 | B33: 2022-02-15 | C33: 84.66 | D33: 146.77 | E33: 58.38 | F33: 45.28 | G33: 96.3 | H33: 64.25 | I33: 43.03
A34: 33 | B34: 2022-02-14 | C34: 85.56 | D34: 148.03 | E34: 58.47 | F34: 45.12 | G34: 96.51 | H34: 64.35 | I34: 42.59
A35: 34 | B35: 2022-02-11 | C35: 86.18 | D35: 149.46 | E35: 58.77 | F35: 45.78 | G35: 96.32 | H35: 64.67 | I35: 42.78
A36: =A35+1 -> 35 | B36: 2022-02-10 | C36: 85.97 | D36: 150.41 | E36: 58.25 | F36: 45.67 | G36: 95.67 | H36: 64.21 | I36: 42.21
A37: 36 | B37: 2022-02-09 | C37: 88.22 | D37: 155.73 | E37: 59.85 | F37: 46.92 | G37: 97.31 | H37: 65.82 | I37: 43.55
A38: 37 | B38: 2022-02-08 | C38: 89.52 | D38: 155.66 | E38: 60.1 | F38: 47.17 | G38: 98.49 | H38: 66.61 | I38: 43.72
A39: 38 | B39: 2022-02-07 | C39: 88.88 | D39: 155.42 | E39: 59.46 | F39: 46.99 | G39: 97.2 | H39: 66.07 | I39: 43.23
A40: 39 | B40: 2022-02-04 | C40: 88.78 | D40: 155.5 | E40: 59.74 | F40: 47.27 | G40: 97.14 | H40: 66.06 | I40: 43.14
A41: 40 | B41: 2022-02-03 | C41: 89.69 | D41: 157.51 | E41: 60.5 | F41: 47.98 | G41: 96.63 | H41: 67.78 | I41: 43.23
A42: 41 | B42: 2022-02-02 | C42: 90.75 | D42: 160.82 | E42: 61.23 | F42: 48.82 | G42: 97.92 | H42: 68.38 | I42: 43.93
A43: 42 | B43: 2022-02-01 | C43: 89.96 | D43: 158.71 | E43: 60.96 | F43: 47.83 | G43: 99.65 | H43: 67.32 | I43: 44.02
A44: 43 | B44: 2022-01-31 | C44: 92.23 | D44: 160.8 | E44: 62.09 | F44: 48.74 | G44: 101.24 | H44: 68.86 | I44: 45.42
A45: 44 | B45: 2022-01-28 | C45: 90.54 | D45: 157.84 | E45: 60.98 | F45: 47.65 | G45: 99.98 | H45: 68.45 | I45: 45.04
A46: 45 | B46: 2022-01-27 | C46: 89.76 | D46: 156.15 | E46: 60.19 | F46: 47.2 | G46: 99.44 | H46: 67.41 | I46: 44.46
A47: 46 | B47: 2022-01-26 | C47: 91.17 | D47: 155.55 | E47: 60.79 | F47: 48.11 | G47: 100.32 | H47: 67.95 | I47: 45.49
A48: 47 | B48: 2022-01-25 | C48: 91.45 | D48: 157 | E48: 61.57 | F48: 47.87 | G48: 103.54 | H48: 68.48 | I48: 45.39
A49: 48 | B49: 2022-01-24 | C49: 91.31 | D49: 159.79 | E49: 60.69 | F49: 47.83 | G49: 98.85 | H49: 68.09 | I49: 45.58
A50: 49 | B50: 2022-01-21 | C50: 91.81 | D50: 161.39 | E50: 61.12 | F50: 48.13 | G50: 97.88 | H50: 68.31 | I50: 44.63
A51: 50 | B51: 2022-01-20 | C51: 91.3 | D51: 162.7 | E51: 61.22 | F51: 48.22 | G51: 98.88 | H51: 67.93 | I51: 44.5
A52: =A51+1 -> 51 | B52: 2022-01-19 | C52: 91.87 | D52: 161.02 | E52: 61.61 | F52: 48.28 | G52: 97.87 | H52: 67.79 | I52: 44.61
A53: 52 | B53: 2022-01-18 | C53: 91.81 | D53: 162.01 | E53: 61.97 | F53: 48.47 | G53: 98.9 | H53: 67.2 | I53: 44.68
A54: 53 | B54: 2022-01-14 | C54: 93.97 | D54: 163.57 | E54: 62.51 | F54: 49.41 | G54: 102.1 | H54: 68.18 | I54: 45.68
A55: 54 | B55: 2022-01-13 | C55: 95.55 | D55: 168.09 | E55: 63.83 | F55: 50.67 | G55: 104.7 | H55: 68.63 | I55: 45.91
A56: 55 | B56: 2022-01-12 | C56: 95.95 | D56: 169.18 | E56: 64.78 | F56: 50.63 | G56: 106.76 | H56: 68.6 | I56: 45.6
A57: 56 | B57: 2022-01-11 | C57: 95.89 | D57: 168.31 | E57: 65.04 | F57: 51.47 | G57: 108.36 | H57: 68.79 | I57: 46.05
A58: 57 | B58: 2022-01-10 | C58: 96.73 | D58: 170.03 | E58: 66.18 | F58: 51.71 | G58: 109.61 | H58: 69.34 | I58: 46.08
A59: 58 | B59: 2022-01-07 | C59: 98.42 | D59: 173.5 | E59: 67.83 | F59: 52.18 | G59: 112.2 | H59: 70.5 | I59: 46.44
A60: 59 | B60: 2022-01-06 | C60: 99.96 | D60: 175.3 | E60: 68.63 | F60: 52.2 | G60: 116.47 | H60: 70.95 | I60: 47.37
A61: 60 | B61: 2022-01-05 | C61: 100.11 | D61: 178.1 | E61: 69.32 | F61: 52.97 | G61: 118.35 | H61: 71.35 | I61: 47.43

Sheet Proxy Prices
A2: Date | B2: =Input!E2 -> 2022-03-31
A5: =IF('Proxy Price Data'!B1="","",'Proxy Price Data'!B1) -> PX_LAST | B5: =IF('Proxy Price Data'!C1="","",'Proxy Price Data'!C1) -> AWR US Equity | C5: =IF('Proxy Price Data'!D1="","",'Proxy Price Data'!D1) -> AWK US Equity | D5: =IF('Proxy Price Data'!E1="","",'Proxy Price Data'!E1) -> CWT US Equity | E5: =IF('Proxy Price Data'!F1="","",'Proxy Price Data'!F1) -> WTRG US Equity | F5: =IF('Proxy Price Data'!G1="","",'Proxy Price Data'!G1) -> MSEX US Equity | G5: =IF('Proxy Price Data'!H1="","",'Proxy Price Data'!H1) -> SJW US Equity | H5: =IF('Proxy Price Data'!I1="","",'Proxy Price Data'!I1) -> YORW US Equity
A6: =IF('Proxy Price Data'!B2="","",'Proxy Price Data'!B2) -> 2022-03-31 | B6: =IF('Proxy Price Data'!C2="","",'Proxy Price Data'!C2) -> 89.02 | C6: =IF('Proxy Price Data'!D2="","",'Proxy Price Data'!D2) -> 165.53 | D6: =IF('Proxy Price Data'!E2="","",'Proxy Price Data'!E2) -> 59.28 | E6: =IF('Proxy Price Data'!F2="","",'Proxy Price Data'!F2) -> 51.13 | F6: =IF('Proxy Price Data'!G2="","",'Proxy Price Data'!G2) -> 105.17 | G6: =IF('Proxy Price Data'!H2="","",'Proxy Price Data'!H2) -> 69.58 | H6: =IF('Proxy Price Data'!I2="","",'Proxy Price Data'!I2) -> 44.97
A7: =IF('Proxy Price Data'!B3="","",'Proxy Price Data'!B3) -> 2022-03-30 | B7: =IF('Proxy Price Data'!C3="","",'Proxy Price Data'!C3) -> 89.61 | C7: =IF('Proxy Price Data'!D3="","",'Proxy Price Data'!D3) -> 165.85 | D7: =IF('Proxy Price Data'!E3="","",'Proxy Price Data'!E3) -> 59.98 | E7: =IF('Proxy Price Data'!F3="","",'Proxy Price Data'!F3) -> 51.99 | F7: =IF('Proxy Price Data'!G3="","",'Proxy Price Data'!G3) -> 105.45 | G7: =IF('Proxy Price Data'!H3="","",'Proxy Price Data'!H3) -> 69.86 | H7: =IF('Proxy Price Data'!I3="","",'Proxy Price Data'!I3) -> 45.45
A8: =IF('Proxy Price Data'!B4="","",'Proxy Price Data'!B4) -> 2022-03-29 | B8: =IF('Proxy Price Data'!C4="","",'Proxy Price Data'!C4) -> 89.61 | C8: =IF('Proxy Price Data'!D4="","",'Proxy Price Data'!D4) -> 164.44 | D8: =IF('Proxy Price Data'!E4="","",'Proxy Price Data'!E4) -> 59.81 | E8: =IF('Proxy Price Data'!F4="","",'Proxy Price Data'!F4) -> 51.08 | F8: =IF('Proxy Price Data'!G4="","",'Proxy Price Data'!G4) -> 105.69 | G8: =IF('Proxy Price Data'!H4="","",'Proxy Price Data'!H4) -> 69.66 | H8: =IF('Proxy Price Data'!I4="","",'Proxy Price Data'!I4) -> 45.5
A9: =IF('Proxy Price Data'!B5="","",'Proxy Price Data'!B5) -> 2022-03-28 | B9: =IF('Proxy Price Data'!C5="","",'Proxy Price Data'!C5) -> 87.33 | C9: =IF('Proxy Price Data'!D5="","",'Proxy Price Data'!D5) -> 161.42 | D9: =IF('Proxy Price Data'!E5="","",'Proxy Price Data'!E5) -> 58.8 | E9: =IF('Proxy Price Data'!F5="","",'Proxy Price Data'!F5) -> 50.04 | F9: =IF('Proxy Price Data'!G5="","",'Proxy Price Data'!G5) -> 102.71 | G9: =IF('Proxy Price Data'!H5="","",'Proxy Price Data'!H5) -> 67.83 | H9: =IF('Proxy Price Data'!I5="","",'Proxy Price Data'!I5) -> 44.63
A10: =IF('Proxy Price Data'!B6="","",'Proxy Price Data'!B6) -> 2022-03-25 | B10: =IF('Proxy Price Data'!C6="","",'Proxy Price Data'!C6) -> 86.97 | C10: =IF('Proxy Price Data'!D6="","",'Proxy Price Data'!D6) -> 159.55 | D10: =IF('Proxy Price Data'!E6="","",'Proxy Price Data'!E6) -> 58.26 | E10: =IF('Proxy Price Data'!F6="","",'Proxy Price Data'!F6) -> 49.95 | F10: =IF('Proxy Price Data'!G6="","",'Proxy Price Data'!G6) -> 102.5 | G10: =IF('Proxy Price Data'!H6="","",'Proxy Price Data'!H6) -> 67.74 | H10: =IF('Proxy Price Data'!I6="","",'Proxy Price Data'!I6) -> 44.7
A11: =IF('Proxy Price Data'!B7="","",'Proxy Price Data'!B7) -> 2022-03-24 | B11: =IF('Proxy Price Data'!C7="","",'Proxy Price Data'!C7) -> 86.69 | C11: =IF('Proxy Price Data'!D7="","",'Proxy Price Data'!D7) -> 158.15 | D11: =IF('Proxy Price Data'!E7="","",'Proxy Price Data'!E7) -> 58.3 | E11: =IF('Proxy Price Data'!F7="","",'Proxy Price Data'!F7) -> 48.91 | F11: =IF('Proxy Price Data'!G7="","",'Proxy Price Data'!G7) -> 102.36 | G11: =IF('Proxy Price Data'!H7="","",'Proxy Price Data'!H7) -> 67.93 | H11: =IF('Proxy Price Data'!I7="","",'Proxy Price Data'!I7) -> 44.07
A12: =IF('Proxy Price Data'!B8="","",'Proxy Price Data'!B8) -> 2022-03-23 | B12: =IF('Proxy Price Data'!C8="","",'Proxy Price Data'!C8) -> 85.39 | C12: =IF('Proxy Price Data'!D8="","",'Proxy Price Data'!D8) -> 155.6 | D12: =IF('Proxy Price Data'!E8="","",'Proxy Price Data'!E8) -> 57.38 | E12: =IF('Proxy Price Data'!F8="","",'Proxy Price Data'!F8) -> 48.49 | F12: =IF('Proxy Price Data'!G8="","",'Proxy Price Data'!G8) -> 100.35 | G12: =IF('Proxy Price Data'!H8="","",'Proxy Price Data'!H8) -> 67.15 | H12: =IF('Proxy Price Data'!I8="","",'Proxy Price Data'!I8) -> 44.31
A13: =IF('Proxy Price Data'!B9="","",'Proxy Price Data'!B9) -> 2022-03-22 | B13: =IF('Proxy Price Data'!C9="","",'Proxy Price Data'!C9) -> 86.05 | C13: =IF('Proxy Price Data'!D9="","",'Proxy Price Data'!D9) -> 156.58 | D13: =IF('Proxy Price Data'!E9="","",'Proxy Price Data'!E9) -> 57.65 | E13: =IF('Proxy Price Data'!F9="","",'Proxy Price Data'!F9) -> 48.24 | F13: =IF('Proxy Price Data'!G9="","",'Proxy Price Data'!G9) -> 102.16 | G13: =IF('Proxy Price Data'!H9="","",'Proxy Price Data'!H9) -> 67.27 | H13: =IF('Proxy Price Data'!I9="","",'Proxy Price Data'!I9) -> 43.95
A14: =IF('Proxy Price Data'!B10="","",'Proxy Price Data'!B10) -> 2022-03-21 | B14: =IF('Proxy Price Data'!C10="","",'Proxy Price Data'!C10) -> 87.21 | C14: =IF('Proxy Price Data'!D10="","",'Proxy Price Data'!D10) -> 157.01 | D14: =IF('Proxy Price Data'!E10="","",'Proxy Price Data'!E10) -> 58.32 | E14: =IF('Proxy Price Data'!F10="","",'Proxy Price Data'!F10) -> 48.76 | F14: =IF('Proxy Price Data'!G10="","",'Proxy Price Data'!G10) -> 103.64 | G14: =IF('Proxy Price Data'!H10="","",'Proxy Price Data'!H10) -> 67.79 | H14: =IF('Proxy Price Data'!I10="","",'Proxy Price Data'!I10) -> 44
A15: =IF('Proxy Price Data'!B11="","",'Proxy Price Data'!B11) -> 2022-03-18 | B15: =IF('Proxy Price Data'!C11="","",'Proxy Price Data'!C11) -> 87.44 | C15: =IF('Proxy Price Data'!D11="","",'Proxy Price Data'!D11) -> 158.72 | D15: =IF('Proxy Price Data'!E11="","",'Proxy Price Data'!E11) -> 58.49 | E15: =IF('Proxy Price Data'!F11="","",'Proxy Price Data'!F11) -> 48.08 | F15: =IF('Proxy Price Data'!G11="","",'Proxy Price Data'!G11) -> 103.48 | G15: =IF('Proxy Price Data'!H11="","",'Proxy Price Data'!H11) -> 68.04 | H15: =IF('Proxy Price Data'!I11="","",'Proxy Price Data'!I11) -> 43.09
A16: =IF('Proxy Price Data'!B12="","",'Proxy Price Data'!B12) -> 2022-03-17 | B16: =IF('Proxy Price Data'!C12="","",'Proxy Price Data'!C12) -> 85.97 | C16: =IF('Proxy Price Data'!D12="","",'Proxy Price Data'!D12) -> 157.43 | D16: =IF('Proxy Price Data'!E12="","",'Proxy Price Data'!E12) -> 58.14 | E16: =IF('Proxy Price Data'!F12="","",'Proxy Price Data'!F12) -> 47.72 | F16: =IF('Proxy Price Data'!G12="","",'Proxy Price Data'!G12) -> 102.35 | G16: =IF('Proxy Price Data'!H12="","",'Proxy Price Data'!H12) -> 67.24 | H16: =IF('Proxy Price Data'!I12="","",'Proxy Price Data'!I12) -> 43.78
A17: =IF('Proxy Price Data'!B13="","",'Proxy Price Data'!B13) -> 2022-03-16 | B17: =IF('Proxy Price Data'!C13="","",'Proxy Price Data'!C13) -> 85.66 | C17: =IF('Proxy Price Data'!D13="","",'Proxy Price Data'!D13) -> 156.15 | D17: =IF('Proxy Price Data'!E13="","",'Proxy Price Data'!E13) -> 57.86 | E17: =IF('Proxy Price Data'!F13="","",'Proxy Price Data'!F13) -> 47.31 | F17: =IF('Proxy Price Data'!G13="","",'Proxy Price Data'!G13) -> 99.55 | G17: =IF('Proxy Price Data'!H13="","",'Proxy Price Data'!H13) -> 66.62 | H17: =IF('Proxy Price Data'!I13="","",'Proxy Price Data'!I13) -> 43.94
A18: =IF('Proxy Price Data'!B14="","",'Proxy Price Data'!B14) -> 2022-03-15 | B18: =IF('Proxy Price Data'!C14="","",'Proxy Price Data'!C14) -> 85.97 | C18: =IF('Proxy Price Data'!D14="","",'Proxy Price Data'!D14) -> 155.95 | D18: =IF('Proxy Price Data'!E14="","",'Proxy Price Data'!E14) -> 57.61 | E18: =IF('Proxy Price Data'!F14="","",'Proxy Price Data'!F14) -> 47.54 | F18: =IF('Proxy Price Data'!G14="","",'Proxy Price Data'!G14) -> 100.85 | G18: =IF('Proxy Price Data'!H14="","",'Proxy Price Data'!H14) -> 67.1 | H18: =IF('Proxy Price Data'!I14="","",'Proxy Price Data'!I14) -> 44.05
A19: =IF('Proxy Price Data'!B15="","",'Proxy Price Data'!B15) -> 2022-03-14 | B19: =IF('Proxy Price Data'!C15="","",'Proxy Price Data'!C15) -> 84.01 | C19: =IF('Proxy Price Data'!D15="","",'Proxy Price Data'!D15) -> 152.62 | D19: =IF('Proxy Price Data'!E15="","",'Proxy Price Data'!E15) -> 57.04 | E19: =IF('Proxy Price Data'!F15="","",'Proxy Price Data'!F15) -> 46.61 | F19: =IF('Proxy Price Data'!G15="","",'Proxy Price Data'!G15) -> 98.5 | G19: =IF('Proxy Price Data'!H15="","",'Proxy Price Data'!H15) -> 65.9 | H19: =IF('Proxy Price Data'!I15="","",'Proxy Price Data'!I15) -> 43.63
A20: =IF('Proxy Price Data'!B16="","",'Proxy Price Data'!B16) -> 2022-03-11 | B20: =IF('Proxy Price Data'!C16="","",'Proxy Price Data'!C16) -> 83.89 | C20: =IF('Proxy Price Data'!D16="","",'Proxy Price Data'!D16) -> 152.08 | D20: =IF('Proxy Price Data'!E16="","",'Proxy Price Data'!E16) -> 56.68 | E20: =IF('Proxy Price Data'!F16="","",'Proxy Price Data'!F16) -> 46.74 | F20: =IF('Proxy Price Data'!G16="","",'Proxy Price Data'!G16) -> 99.39 | G20: =IF('Proxy Price Data'!H16="","",'Proxy Price Data'!H16) -> 66.17 | H20: =IF('Proxy Price Data'!I16="","",'Proxy Price Data'!I16) -> 43.74
A21: =IF('Proxy Price Data'!B17="","",'Proxy Price Data'!B17) -> 2022-03-10 | B21: =IF('Proxy Price Data'!C17="","",'Proxy Price Data'!C17) -> 84.73 | C21: =IF('Proxy Price Data'!D17="","",'Proxy Price Data'!D17) -> 153.13 | D21: =IF('Proxy Price Data'!E17="","",'Proxy Price Data'!E17) -> 57.6 | E21: =IF('Proxy Price Data'!F17="","",'Proxy Price Data'!F17) -> 47.15 | F21: =IF('Proxy Price Data'!G17="","",'Proxy Price Data'!G17) -> 100.79 | G21: =IF('Proxy Price Data'!H17="","",'Proxy Price Data'!H17) -> 66.68 | H21: =IF('Proxy Price Data'!I17="","",'Proxy Price Data'!I17) -> 44.16
A22: =IF('Proxy Price Data'!B18="","",'Proxy Price Data'!B18) -> 2022-03-09 | B22: =IF('Proxy Price Data'!C18="","",'Proxy Price Data'!C18) -> 85.89 | C22: =IF('Proxy Price Data'!D18="","",'Proxy Price Data'!D18) -> 153.79 | D22: =IF('Proxy Price Data'!E18="","",'Proxy Price Data'!E18) -> 58.33 | E22: =IF('Proxy Price Data'!F18="","",'Proxy Price Data'!F18) -> 46.84 | F22: =IF('Proxy Price Data'!G18="","",'Proxy Price Data'!G18) -> 102.41 | G22: =IF('Proxy Price Data'!H18="","",'Proxy Price Data'!H18) -> 67.17 | H22: =IF('Proxy Price Data'!I18="","",'Proxy Price Data'!I18) -> 44.69
A23: =IF('Proxy Price Data'!B19="","",'Proxy Price Data'!B19) -> 2022-03-08 | B23: =IF('Proxy Price Data'!C19="","",'Proxy Price Data'!C19) -> 87.3 | C23: =IF('Proxy Price Data'!D19="","",'Proxy Price Data'!D19) -> 154.25 | D23: =IF('Proxy Price Data'!E19="","",'Proxy Price Data'!E19) -> 58.44 | E23: =IF('Proxy Price Data'!F19="","",'Proxy Price Data'!F19) -> 46.8 | F23: =IF('Proxy Price Data'!G19="","",'Proxy Price Data'!G19) -> 103.89 | G23: =IF('Proxy Price Data'!H19="","",'Proxy Price Data'!H19) -> 67.95 | H23: =IF('Proxy Price Data'!I19="","",'Proxy Price Data'!I19) -> 46.19
A24: =IF('Proxy Price Data'!B20="","",'Proxy Price Data'!B20) -> 2022-03-07 | B24: =IF('Proxy Price Data'!C20="","",'Proxy Price Data'!C20) -> 89.98 | C24: =IF('Proxy Price Data'!D20="","",'Proxy Price Data'!D20) -> 159.22 | D24: =IF('Proxy Price Data'!E20="","",'Proxy Price Data'!E20) -> 59.83 | E24: =IF('Proxy Price Data'!F20="","",'Proxy Price Data'!F20) -> 48.07 | F24: =IF('Proxy Price Data'!G20="","",'Proxy Price Data'!G20) -> 106.62 | G24: =IF('Proxy Price Data'!H20="","",'Proxy Price Data'!H20) -> 68.6 | H24: =IF('Proxy Price Data'!I20="","",'Proxy Price Data'!I20) -> 47.68
A25: =IF('Proxy Price Data'!B21="","",'Proxy Price Data'!B21) -> 2022-03-04 | B25: =IF('Proxy Price Data'!C21="","",'Proxy Price Data'!C21) -> 88.12 | C25: =IF('Proxy Price Data'!D21="","",'Proxy Price Data'!D21) -> 161.04 | D25: =IF('Proxy Price Data'!E21="","",'Proxy Price Data'!E21) -> 58.63 | E25: =IF('Proxy Price Data'!F21="","",'Proxy Price Data'!F21) -> 48.8 | F25: =IF('Proxy Price Data'!G21="","",'Proxy Price Data'!G21) -> 106.55 | G25: =IF('Proxy Price Data'!H21="","",'Proxy Price Data'!H21) -> 68.05 | H25: =IF('Proxy Price Data'!I21="","",'Proxy Price Data'!I21) -> 46.68
A26: =IF('Proxy Price Data'!B22="","",'Proxy Price Data'!B22) -> 2022-03-03 | B26: =IF('Proxy Price Data'!C22="","",'Proxy Price Data'!C22) -> 84.72 | C26: =IF('Proxy Price Data'!D22="","",'Proxy Price Data'!D22) -> 154.94 | D26: =IF('Proxy Price Data'!E22="","",'Proxy Price Data'!E22) -> 57.01 | E26: =IF('Proxy Price Data'!F22="","",'Proxy Price Data'!F22) -> 47.25 | F26: =IF('Proxy Price Data'!G22="","",'Proxy Price Data'!G22) -> 103.65 | G26: =IF('Proxy Price Data'!H22="","",'Proxy Price Data'!H22) -> 65.69 | H26: =IF('Proxy Price Data'!I22="","",'Proxy Price Data'!I22) -> 45.86
A27: =IF('Proxy Price Data'!B23="","",'Proxy Price Data'!B23) -> 2022-03-02 | B27: =IF('Proxy Price Data'!C23="","",'Proxy Price Data'!C23) -> 84.96 | C27: =IF('Proxy Price Data'!D23="","",'Proxy Price Data'!D23) -> 152.1 | D27: =IF('Proxy Price Data'!E23="","",'Proxy Price Data'!E23) -> 56.9 | E27: =IF('Proxy Price Data'!F23="","",'Proxy Price Data'!F23) -> 47.27 | F27: =IF('Proxy Price Data'!G23="","",'Proxy Price Data'!G23) -> 100.68 | G27: =IF('Proxy Price Data'!H23="","",'Proxy Price Data'!H23) -> 65.22 | H27: =IF('Proxy Price Data'!I23="","",'Proxy Price Data'!I23) -> 44.6
A28: =IF('Proxy Price Data'!B24="","",'Proxy Price Data'!B24) -> 2022-03-01 | B28: =IF('Proxy Price Data'!C24="","",'Proxy Price Data'!C24) -> 83.51 | C28: =IF('Proxy Price Data'!D24="","",'Proxy Price Data'!D24) -> 151.02 | D28: =IF('Proxy Price Data'!E24="","",'Proxy Price Data'!E24) -> 56.42 | E28: =IF('Proxy Price Data'!F24="","",'Proxy Price Data'!F24) -> 46.61 | F28: =IF('Proxy Price Data'!G24="","",'Proxy Price Data'!G24) -> 99.68 | G28: =IF('Proxy Price Data'!H24="","",'Proxy Price Data'!H24) -> 64.11 | H28: =IF('Proxy Price Data'!I24="","",'Proxy Price Data'!I24) -> 43.63
A29: =IF('Proxy Price Data'!B25="","",'Proxy Price Data'!B25) -> 2022-02-28 | B29: =IF('Proxy Price Data'!C25="","",'Proxy Price Data'!C25) -> 84.16 | C29: =IF('Proxy Price Data'!D25="","",'Proxy Price Data'!D25) -> 151.09 | D29: =IF('Proxy Price Data'!E25="","",'Proxy Price Data'!E25) -> 56.93 | E29: =IF('Proxy Price Data'!F25="","",'Proxy Price Data'!F25) -> 47.11 | F29: =IF('Proxy Price Data'!G25="","",'Proxy Price Data'!G25) -> 99.99 | G29: =IF('Proxy Price Data'!H25="","",'Proxy Price Data'!H25) -> 65.22 | H29: =IF('Proxy Price Data'!I25="","",'Proxy Price Data'!I25) -> 44.87
A30: =IF('Proxy Price Data'!B26="","",'Proxy Price Data'!B26) -> 2022-02-25 | B30: =IF('Proxy Price Data'!C26="","",'Proxy Price Data'!C26) -> 83.19 | C30: =IF('Proxy Price Data'!D26="","",'Proxy Price Data'!D26) -> 152.69 | D30: =IF('Proxy Price Data'!E26="","",'Proxy Price Data'!E26) -> 55.97 | E30: =IF('Proxy Price Data'!F26="","",'Proxy Price Data'!F26) -> 47.37 | F30: =IF('Proxy Price Data'!G26="","",'Proxy Price Data'!G26) -> 98.31 | G30: =IF('Proxy Price Data'!H26="","",'Proxy Price Data'!H26) -> 64.94 | H30: =IF('Proxy Price Data'!I26="","",'Proxy Price Data'!I26) -> 43.86
A31: =IF('Proxy Price Data'!B27="","",'Proxy Price Data'!B27) -> 2022-02-24 | B31: =IF('Proxy Price Data'!C27="","",'Proxy Price Data'!C27) -> 83.13 | C31: =IF('Proxy Price Data'!D27="","",'Proxy Price Data'!D27) -> 148.6 | D31: =IF('Proxy Price Data'!E27="","",'Proxy Price Data'!E27) -> 56.86 | E31: =IF('Proxy Price Data'!F27="","",'Proxy Price Data'!F27) -> 46.65 | F31: =IF('Proxy Price Data'!G27="","",'Proxy Price Data'!G27) -> 97.89 | G31: =IF('Proxy Price Data'!H27="","",'Proxy Price Data'!H27) -> 63.95 | H31: =IF('Proxy Price Data'!I27="","",'Proxy Price Data'!I27) -> 43
A32: =IF('Proxy Price Data'!B28="","",'Proxy Price Data'!B28) -> 2022-02-23 | B32: =IF('Proxy Price Data'!C28="","",'Proxy Price Data'!C28) -> 83.69 | C32: =IF('Proxy Price Data'!D28="","",'Proxy Price Data'!D28) -> 146.73 | D32: =IF('Proxy Price Data'!E28="","",'Proxy Price Data'!E28) -> 57.53 | E32: =IF('Proxy Price Data'!F28="","",'Proxy Price Data'!F28) -> 44.8 | F32: =IF('Proxy Price Data'!G28="","",'Proxy Price Data'!G28) -> 95.85 | G32: =IF('Proxy Price Data'!H28="","",'Proxy Price Data'!H28) -> 64.08 | H32: =IF('Proxy Price Data'!I28="","",'Proxy Price Data'!I28) -> 43.13
A33: =IF('Proxy Price Data'!B29="","",'Proxy Price Data'!B29) -> 2022-02-22 | B33: =IF('Proxy Price Data'!C29="","",'Proxy Price Data'!C29) -> 85.47 | C33: =IF('Proxy Price Data'!D29="","",'Proxy Price Data'!D29) -> 147.83 | D33: =IF('Proxy Price Data'!E29="","",'Proxy Price Data'!E29) -> 59.05 | E33: =IF('Proxy Price Data'!F29="","",'Proxy Price Data'!F29) -> 45.4 | F33: =IF('Proxy Price Data'!G29="","",'Proxy Price Data'!G29) -> 97.83 | G33: =IF('Proxy Price Data'!H29="","",'Proxy Price Data'!H29) -> 64.73 | H33: =IF('Proxy Price Data'!I29="","",'Proxy Price Data'!I29) -> 43.13
A34: =IF('Proxy Price Data'!B30="","",'Proxy Price Data'!B30) -> 2022-02-18 | B34: =IF('Proxy Price Data'!C30="","",'Proxy Price Data'!C30) -> 86.03 | C34: =IF('Proxy Price Data'!D30="","",'Proxy Price Data'!D30) -> 148.26 | D34: =IF('Proxy Price Data'!E30="","",'Proxy Price Data'!E30) -> 58.78 | E34: =IF('Proxy Price Data'!F30="","",'Proxy Price Data'!F30) -> 45.52 | F34: =IF('Proxy Price Data'!G30="","",'Proxy Price Data'!G30) -> 96.84 | G34: =IF('Proxy Price Data'!H30="","",'Proxy Price Data'!H30) -> 65.22 | H34: =IF('Proxy Price Data'!I30="","",'Proxy Price Data'!I30) -> 43.31
A35: =IF('Proxy Price Data'!B31="","",'Proxy Price Data'!B31) -> 2022-02-17 | B35: =IF('Proxy Price Data'!C31="","",'Proxy Price Data'!C31) -> 85.56 | C35: =IF('Proxy Price Data'!D31="","",'Proxy Price Data'!D31) -> 148.06 | D35: =IF('Proxy Price Data'!E31="","",'Proxy Price Data'!E31) -> 58.42 | E35: =IF('Proxy Price Data'!F31="","",'Proxy Price Data'!F31) -> 45.93 | F35: =IF('Proxy Price Data'!G31="","",'Proxy Price Data'!G31) -> 96.81 | G35: =IF('Proxy Price Data'!H31="","",'Proxy Price Data'!H31) -> 64.93 | H35: =IF('Proxy Price Data'!I31="","",'Proxy Price Data'!I31) -> 43.16
A36: =IF('Proxy Price Data'!B32="","",'Proxy Price Data'!B32) -> 2022-02-16 | B36: =IF('Proxy Price Data'!C32="","",'Proxy Price Data'!C32) -> 84.99 | C36: =IF('Proxy Price Data'!D32="","",'Proxy Price Data'!D32) -> 146.29 | D36: =IF('Proxy Price Data'!E32="","",'Proxy Price Data'!E32) -> 58.23 | E36: =IF('Proxy Price Data'!F32="","",'Proxy Price Data'!F32) -> 45.19 | F36: =IF('Proxy Price Data'!G32="","",'Proxy Price Data'!G32) -> 96.33 | G36: =IF('Proxy Price Data'!H32="","",'Proxy Price Data'!H32) -> 64.46 | H36: =IF('Proxy Price Data'!I32="","",'Proxy Price Data'!I32) -> 43.34
A37: =IF('Proxy Price Data'!B33="","",'Proxy Price Data'!B33) -> 2022-02-15 | B37: =IF('Proxy Price Data'!C33="","",'Proxy Price Data'!C33) -> 84.66 | C37: =IF('Proxy Price Data'!D33="","",'Proxy Price Data'!D33) -> 146.77 | D37: =IF('Proxy Price Data'!E33="","",'Proxy Price Data'!E33) -> 58.38 | E37: =IF('Proxy Price Data'!F33="","",'Proxy Price Data'!F33) -> 45.28 | F37: =IF('Proxy Price Data'!G33="","",'Proxy Price Data'!G33) -> 96.3 | G37: =IF('Proxy Price Data'!H33="","",'Proxy Price Data'!H33) -> 64.25 | H37: =IF('Proxy Price Data'!I33="","",'Proxy Price Data'!I33) -> 43.03
A38: =IF('Proxy Price Data'!B34="","",'Proxy Price Data'!B34) -> 2022-02-14 | B38: =IF('Proxy Price Data'!C34="","",'Proxy Price Data'!C34) -> 85.56 | C38: =IF('Proxy Price Data'!D34="","",'Proxy Price Data'!D34) -> 148.03 | D38: =IF('Proxy Price Data'!E34="","",'Proxy Price Data'!E34) -> 58.47 | E38: =IF('Proxy Price Data'!F34="","",'Proxy Price Data'!F34) -> 45.12 | F38: =IF('Proxy Price Data'!G34="","",'Proxy Price Data'!G34) -> 96.51 | G38: =IF('Proxy Price Data'!H34="","",'Proxy Price Data'!H34) -> 64.35 | H38: =IF('Proxy Price Data'!I34="","",'Proxy Price Data'!I34) -> 42.59
A39: =IF('Proxy Price Data'!B35="","",'Proxy Price Data'!B35) -> 2022-02-11 | B39: =IF('Proxy Price Data'!C35="","",'Proxy Price Data'!C35) -> 86.18 | C39: =IF('Proxy Price Data'!D35="","",'Proxy Price Data'!D35) -> 149.46 | D39: =IF('Proxy Price Data'!E35="","",'Proxy Price Data'!E35) -> 58.77 | E39: =IF('Proxy Price Data'!F35="","",'Proxy Price Data'!F35) -> 45.78 | F39: =IF('Proxy Price Data'!G35="","",'Proxy Price Data'!G35) -> 96.32 | G39: =IF('Proxy Price Data'!H35="","",'Proxy Price Data'!H35) -> 64.67 | H39: =IF('Proxy Price Data'!I35="","",'Proxy Price Data'!I35) -> 42.78
A40: =IF('Proxy Price Data'!B36="","",'Proxy Price Data'!B36) -> 2022-02-10 | B40: =IF('Proxy Price Data'!C36="","",'Proxy Price Data'!C36) -> 85.97 | C40: =IF('Proxy Price Data'!D36="","",'Proxy Price Data'!D36) -> 150.41 | D40: =IF('Proxy Price Data'!E36="","",'Proxy Price Data'!E36) -> 58.25 | E40: =IF('Proxy Price Data'!F36="","",'Proxy Price Data'!F36) -> 45.67 | F40: =IF('Proxy Price Data'!G36="","",'Proxy Price Data'!G36) -> 95.67 | G40: =IF('Proxy Price Data'!H36="","",'Proxy Price Data'!H36) -> 64.21 | H40: =IF('Proxy Price Data'!I36="","",'Proxy Price Data'!I36) -> 42.21
A41: =IF('Proxy Price Data'!B37="","",'Proxy Price Data'!B37) -> 2022-02-09 | B41: =IF('Proxy Price Data'!C37="","",'Proxy Price Data'!C37) -> 88.22 | C41: =IF('Proxy Price Data'!D37="","",'Proxy Price Data'!D37) -> 155.73 | D41: =IF('Proxy Price Data'!E37="","",'Proxy Price Data'!E37) -> 59.85 | E41: =IF('Proxy Price Data'!F37="","",'Proxy Price Data'!F37) -> 46.92 | F41: =IF('Proxy Price Data'!G37="","",'Proxy Price Data'!G37) -> 97.31 | G41: =IF('Proxy Price Data'!H37="","",'Proxy Price Data'!H37) -> 65.82 | H41: =IF('Proxy Price Data'!I37="","",'Proxy Price Data'!I37) -> 43.55
A42: =IF('Proxy Price Data'!B38="","",'Proxy Price Data'!B38) -> 2022-02-08 | B42: =IF('Proxy Price Data'!C38="","",'Proxy Price Data'!C38) -> 89.52 | C42: =IF('Proxy Price Data'!D38="","",'Proxy Price Data'!D38) -> 155.66 | D42: =IF('Proxy Price Data'!E38="","",'Proxy Price Data'!E38) -> 60.1 | E42: =IF('Proxy Price Data'!F38="","",'Proxy Price Data'!F38) -> 47.17 | F42: =IF('Proxy Price Data'!G38="","",'Proxy Price Data'!G38) -> 98.49 | G42: =IF('Proxy Price Data'!H38="","",'Proxy Price Data'!H38) -> 66.61 | H42: =IF('Proxy Price Data'!I38="","",'Proxy Price Data'!I38) -> 43.72
A43: =IF('Proxy Price Data'!B39="","",'Proxy Price Data'!B39) -> 2022-02-07 | B43: =IF('Proxy Price Data'!C39="","",'Proxy Price Data'!C39) -> 88.88 | C43: =IF('Proxy Price Data'!D39="","",'Proxy Price Data'!D39) -> 155.42 | D43: =IF('Proxy Price Data'!E39="","",'Proxy Price Data'!E39) -> 59.46 | E43: =IF('Proxy Price Data'!F39="","",'Proxy Price Data'!F39) -> 46.99 | F43: =IF('Proxy Price Data'!G39="","",'Proxy Price Data'!G39) -> 97.2 | G43: =IF('Proxy Price Data'!H39="","",'Proxy Price Data'!H39) -> 66.07 | H43: =IF('Proxy Price Data'!I39="","",'Proxy Price Data'!I39) -> 43.23
A44: =IF('Proxy Price Data'!B40="","",'Proxy Price Data'!B40) -> 2022-02-04 | B44: =IF('Proxy Price Data'!C40="","",'Proxy Price Data'!C40) -> 88.78 | C44: =IF('Proxy Price Data'!D40="","",'Proxy Price Data'!D40) -> 155.5 | D44: =IF('Proxy Price Data'!E40="","",'Proxy Price Data'!E40) -> 59.74 | E44: =IF('Proxy Price Data'!F40="","",'Proxy Price Data'!F40) -> 47.27 | F44: =IF('Proxy Price Data'!G40="","",'Proxy Price Data'!G40) -> 97.14 | G44: =IF('Proxy Price Data'!H40="","",'Proxy Price Data'!H40) -> 66.06 | H44: =IF('Proxy Price Data'!I40="","",'Proxy Price Data'!I40) -> 43.14
A45: =IF('Proxy Price Data'!B41="","",'Proxy Price Data'!B41) -> 2022-02-03 | B45: =IF('Proxy Price Data'!C41="","",'Proxy Price Data'!C41) -> 89.69 | C45: =IF('Proxy Price Data'!D41="","",'Proxy Price Data'!D41) -> 157.51 | D45: =IF('Proxy Price Data'!E41="","",'Proxy Price Data'!E41) -> 60.5 | E45: =IF('Proxy Price Data'!F41="","",'Proxy Price Data'!F41) -> 47.98 | F45: =IF('Proxy Price Data'!G41="","",'Proxy Price Data'!G41) -> 96.63 | G45: =IF('Proxy Price Data'!H41="","",'Proxy Price Data'!H41) -> 67.78 | H45: =IF('Proxy Price Data'!I41="","",'Proxy Price Data'!I41) -> 43.23
A46: =IF('Proxy Price Data'!B42="","",'Proxy Price Data'!B42) -> 2022-02-02 | B46: =IF('Proxy Price Data'!C42="","",'Proxy Price Data'!C42) -> 90.75 | C46: =IF('Proxy Price Data'!D42="","",'Proxy Price Data'!D42) -> 160.82 | D46: =IF('Proxy Price Data'!E42="","",'Proxy Price Data'!E42) -> 61.23 | E46: =IF('Proxy Price Data'!F42="","",'Proxy Price Data'!F42) -> 48.82 | F46: =IF('Proxy Price Data'!G42="","",'Proxy Price Data'!G42) -> 97.92 | G46: =IF('Proxy Price Data'!H42="","",'Proxy Price Data'!H42) -> 68.38 | H46: =IF('Proxy Price Data'!I42="","",'Proxy Price Data'!I42) -> 43.93
A47: =IF('Proxy Price Data'!B43="","",'Proxy Price Data'!B43) -> 2022-02-01 | B47: =IF('Proxy Price Data'!C43="","",'Proxy Price Data'!C43) -> 89.96 | C47: =IF('Proxy Price Data'!D43="","",'Proxy Price Data'!D43) -> 158.71 | D47: =IF('Proxy Price Data'!E43="","",'Proxy Price Data'!E43) -> 60.96 | E47: =IF('Proxy Price Data'!F43="","",'Proxy Price Data'!F43) -> 47.83 | F47: =IF('Proxy Price Data'!G43="","",'Proxy Price Data'!G43) -> 99.65 | G47: =IF('Proxy Price Data'!H43="","",'Proxy Price Data'!H43) -> 67.32 | H47: =IF('Proxy Price Data'!I43="","",'Proxy Price Data'!I43) -> 44.02
A48: =IF('Proxy Price Data'!B44="","",'Proxy Price Data'!B44) -> 2022-01-31 | B48: =IF('Proxy Price Data'!C44="","",'Proxy Price Data'!C44) -> 92.23 | C48: =IF('Proxy Price Data'!D44="","",'Proxy Price Data'!D44) -> 160.8 | D48: =IF('Proxy Price Data'!E44="","",'Proxy Price Data'!E44) -> 62.09 | E48: =IF('Proxy Price Data'!F44="","",'Proxy Price Data'!F44) -> 48.74 | F48: =IF('Proxy Price Data'!G44="","",'Proxy Price Data'!G44) -> 101.24 | G48: =IF('Proxy Price Data'!H44="","",'Proxy Price Data'!H44) -> 68.86 | H48: =IF('Proxy Price Data'!I44="","",'Proxy Price Data'!I44) -> 45.42
A49: =IF('Proxy Price Data'!B45="","",'Proxy Price Data'!B45) -> 2022-01-28 | B49: =IF('Proxy Price Data'!C45="","",'Proxy Price Data'!C45) -> 90.54 | C49: =IF('Proxy Price Data'!D45="","",'Proxy Price Data'!D45) -> 157.84 | D49: =IF('Proxy Price Data'!E45="","",'Proxy Price Data'!E45) -> 60.98 | E49: =IF('Proxy Price Data'!F45="","",'Proxy Price Data'!F45) -> 47.65 | F49: =IF('Proxy Price Data'!G45="","",'Proxy Price Data'!G45) -> 99.98 | G49: =IF('Proxy Price Data'!H45="","",'Proxy Price Data'!H45) -> 68.45 | H49: =IF('Proxy Price Data'!I45="","",'Proxy Price Data'!I45) -> 45.04
A50: =IF('Proxy Price Data'!B46="","",'Proxy Price Data'!B46) -> 2022-01-27 | B50: =IF('Proxy Price Data'!C46="","",'Proxy Price Data'!C46) -> 89.76 | C50: =IF('Proxy Price Data'!D46="","",'Proxy Price Data'!D46) -> 156.15 | D50: =IF('Proxy Price Data'!E46="","",'Proxy Price Data'!E46) -> 60.19 | E50: =IF('Proxy Price Data'!F46="","",'Proxy Price Data'!F46) -> 47.2 | F50: =IF('Proxy Price Data'!G46="","",'Proxy Price Data'!G46) -> 99.44 | G50: =IF('Proxy Price Data'!H46="","",'Proxy Price Data'!H46) -> 67.41 | H50: =IF('Proxy Price Data'!I46="","",'Proxy Price Data'!I46) -> 44.46
A51: =IF('Proxy Price Data'!B47="","",'Proxy Price Data'!B47) -> 2022-01-26 | B51: =IF('Proxy Price Data'!C47="","",'Proxy Price Data'!C47) -> 91.17 | C51: =IF('Proxy Price Data'!D47="","",'Proxy Price Data'!D47) -> 155.55 | D51: =IF('Proxy Price Data'!E47="","",'Proxy Price Data'!E47) -> 60.79 | E51: =IF('Proxy Price Data'!F47="","",'Proxy Price Data'!F47) -> 48.11 | F51: =IF('Proxy Price Data'!G47="","",'Proxy Price Data'!G47) -> 100.32 | G51: =IF('Proxy Price Data'!H47="","",'Proxy Price Data'!H47) -> 67.95 | H51: =IF('Proxy Price Data'!I47="","",'Proxy Price Data'!I47) -> 45.49
A52: =IF('Proxy Price Data'!B48="","",'Proxy Price Data'!B48) -> 2022-01-25 | B52: =IF('Proxy Price Data'!C48="","",'Proxy Price Data'!C48) -> 91.45 | C52: =IF('Proxy Price Data'!D48="","",'Proxy Price Data'!D48) -> 157 | D52: =IF('Proxy Price Data'!E48="","",'Proxy Price Data'!E48) -> 61.57 | E52: =IF('Proxy Price Data'!F48="","",'Proxy Price Data'!F48) -> 47.87 | F52: =IF('Proxy Price Data'!G48="","",'Proxy Price Data'!G48) -> 103.54 | G52: =IF('Proxy Price Data'!H48="","",'Proxy Price Data'!H48) -> 68.48 | H52: =IF('Proxy Price Data'!I48="","",'Proxy Price Data'!I48) -> 45.39
A53: =IF('Proxy Price Data'!B49="","",'Proxy Price Data'!B49) -> 2022-01-24 | B53: =IF('Proxy Price Data'!C49="","",'Proxy Price Data'!C49) -> 91.31 | C53: =IF('Proxy Price Data'!D49="","",'Proxy Price Data'!D49) -> 159.79 | D53: =IF('Proxy Price Data'!E49="","",'Proxy Price Data'!E49) -> 60.69 | E53: =IF('Proxy Price Data'!F49="","",'Proxy Price Data'!F49) -> 47.83 | F53: =IF('Proxy Price Data'!G49="","",'Proxy Price Data'!G49) -> 98.85 | G53: =IF('Proxy Price Data'!H49="","",'Proxy Price Data'!H49) -> 68.09 | H53: =IF('Proxy Price Data'!I49="","",'Proxy Price Data'!I49) -> 45.58
A54: =IF('Proxy Price Data'!B50="","",'Proxy Price Data'!B50) -> 2022-01-21 | B54: =IF('Proxy Price Data'!C50="","",'Proxy Price Data'!C50) -> 91.81 | C54: =IF('Proxy Price Data'!D50="","",'Proxy Price Data'!D50) -> 161.39 | D54: =IF('Proxy Price Data'!E50="","",'Proxy Price Data'!E50) -> 61.12 | E54: =IF('Proxy Price Data'!F50="","",'Proxy Price Data'!F50) -> 48.13 | F54: =IF('Proxy Price Data'!G50="","",'Proxy Price Data'!G50) -> 97.88 | G54: =IF('Proxy Price Data'!H50="","",'Proxy Price Data'!H50) -> 68.31 | H54: =IF('Proxy Price Data'!I50="","",'Proxy Price Data'!I50) -> 44.63
A55: =IF('Proxy Price Data'!B51="","",'Proxy Price Data'!B51) -> 2022-01-20 | B55: =IF('Proxy Price Data'!C51="","",'Proxy Price Data'!C51) -> 91.3 | C55: =IF('Proxy Price Data'!D51="","",'Proxy Price Data'!D51) -> 162.7 | D55: =IF('Proxy Price Data'!E51="","",'Proxy Price Data'!E51) -> 61.22 | E55: =IF('Proxy Price Data'!F51="","",'Proxy Price Data'!F51) -> 48.22 | F55: =IF('Proxy Price Data'!G51="","",'Proxy Price Data'!G51) -> 98.88 | G55: =IF('Proxy Price Data'!H51="","",'Proxy Price Data'!H51) -> 67.93 | H55: =IF('Proxy Price Data'!I51="","",'Proxy Price Data'!I51) -> 44.5
A56: =IF('Proxy Price Data'!B52="","",'Proxy Price Data'!B52) -> 2022-01-19 | B56: =IF('Proxy Price Data'!C52="","",'Proxy Price Data'!C52) -> 91.87 | C56: =IF('Proxy Price Data'!D52="","",'Proxy Price Data'!D52) -> 161.02 | D56: =IF('Proxy Price Data'!E52="","",'Proxy Price Data'!E52) -> 61.61 | E56: =IF('Proxy Price Data'!F52="","",'Proxy Price Data'!F52) -> 48.28 | F56: =IF('Proxy Price Data'!G52="","",'Proxy Price Data'!G52) -> 97.87 | G56: =IF('Proxy Price Data'!H52="","",'Proxy Price Data'!H52) -> 67.79 | H56: =IF('Proxy Price Data'!I52="","",'Proxy Price Data'!I52) -> 44.61
A57: =IF('Proxy Price Data'!B53="","",'Proxy Price Data'!B53) -> 2022-01-18 | B57: =IF('Proxy Price Data'!C53="","",'Proxy Price Data'!C53) -> 91.81 | C57: =IF('Proxy Price Data'!D53="","",'Proxy Price Data'!D53) -> 162.01 | D57: =IF('Proxy Price Data'!E53="","",'Proxy Price Data'!E53) -> 61.97 | E57: =IF('Proxy Price Data'!F53="","",'Proxy Price Data'!F53) -> 48.47 | F57: =IF('Proxy Price Data'!G53="","",'Proxy Price Data'!G53) -> 98.9 | G57: =IF('Proxy Price Data'!H53="","",'Proxy Price Data'!H53) -> 67.2 | H57: =IF('Proxy Price Data'!I53="","",'Proxy Price Data'!I53) -> 44.68
A58: =IF('Proxy Price Data'!B54="","",'Proxy Price Data'!B54) -> 2022-01-14 | B58: =IF('Proxy Price Data'!C54="","",'Proxy Price Data'!C54) -> 93.97 | C58: =IF('Proxy Price Data'!D54="","",'Proxy Price Data'!D54) -> 163.57 | D58: =IF('Proxy Price Data'!E54="","",'Proxy Price Data'!E54) -> 62.51 | E58: =IF('Proxy Price Data'!F54="","",'Proxy Price Data'!F54) -> 49.41 | F58: =IF('Proxy Price Data'!G54="","",'Proxy Price Data'!G54) -> 102.1 | G58: =IF('Proxy Price Data'!H54="","",'Proxy Price Data'!H54) -> 68.18 | H58: =IF('Proxy Price Data'!I54="","",'Proxy Price Data'!I54) -> 45.68
A59: =IF('Proxy Price Data'!B55="","",'Proxy Price Data'!B55) -> 2022-01-13 | B59: =IF('Proxy Price Data'!C55="","",'Proxy Price Data'!C55) -> 95.55 | C59: =IF('Proxy Price Data'!D55="","",'Proxy Price Data'!D55) -> 168.09 | D59: =IF('Proxy Price Data'!E55="","",'Proxy Price Data'!E55) -> 63.83 | E59: =IF('Proxy Price Data'!F55="","",'Proxy Price Data'!F55) -> 50.67 | F59: =IF('Proxy Price Data'!G55="","",'Proxy Price Data'!G55) -> 104.7 | G59: =IF('Proxy Price Data'!H55="","",'Proxy Price Data'!H55) -> 68.63 | H59: =IF('Proxy Price Data'!I55="","",'Proxy Price Data'!I55) -> 45.91
A60: =IF('Proxy Price Data'!B56="","",'Proxy Price Data'!B56) -> 2022-01-12 | B60: =IF('Proxy Price Data'!C56="","",'Proxy Price Data'!C56) -> 95.95 | C60: =IF('Proxy Price Data'!D56="","",'Proxy Price Data'!D56) -> 169.18 | D60: =IF('Proxy Price Data'!E56="","",'Proxy Price Data'!E56) -> 64.78 | E60: =IF('Proxy Price Data'!F56="","",'Proxy Price Data'!F56) -> 50.63 | F60: =IF('Proxy Price Data'!G56="","",'Proxy Price Data'!G56) -> 106.76 | G60: =IF('Proxy Price Data'!H56="","",'Proxy Price Data'!H56) -> 68.6 | H60: =IF('Proxy Price Data'!I56="","",'Proxy Price Data'!I56) -> 45.6
A61: =IF('Proxy Price Data'!B57="","",'Proxy Price Data'!B57) -> 2022-01-11 | B61: =IF('Proxy Price Data'!C57="","",'Proxy Price Data'!C57) -> 95.89 | C61: =IF('Proxy Price Data'!D57="","",'Proxy Price Data'!D57) -> 168.31 | D61: =IF('Proxy Price Data'!E57="","",'Proxy Price Data'!E57) -> 65.04 | E61: =IF('Proxy Price Data'!F57="","",'Proxy Price Data'!F57) -> 51.47 | F61: =IF('Proxy Price Data'!G57="","",'Proxy Price Data'!G57) -> 108.36 | G61: =IF('Proxy Price Data'!H57="","",'Proxy Price Data'!H57) -> 68.79 | H61: =IF('Proxy Price Data'!I57="","",'Proxy Price Data'!I57) -> 46.05
A62: =IF('Proxy Price Data'!B58="","",'Proxy Price Data'!B58) -> 2022-01-10 | B62: =IF('Proxy Price Data'!C58="","",'Proxy Price Data'!C58) -> 96.73 | C62: =IF('Proxy Price Data'!D58="","",'Proxy Price Data'!D58) -> 170.03 | D62: =IF('Proxy Price Data'!E58="","",'Proxy Price Data'!E58) -> 66.18 | E62: =IF('Proxy Price Data'!F58="","",'Proxy Price Data'!F58) -> 51.71 | F62: =IF('Proxy Price Data'!G58="","",'Proxy Price Data'!G58) -> 109.61 | G62: =IF('Proxy Price Data'!H58="","",'Proxy Price Data'!H58) -> 69.34 | H62: =IF('Proxy Price Data'!I58="","",'Proxy Price Data'!I58) -> 46.08
A63: =IF('Proxy Price Data'!B59="","",'Proxy Price Data'!B59) -> 2022-01-07 | B63: =IF('Proxy Price Data'!C59="","",'Proxy Price Data'!C59) -> 98.42 | C63: =IF('Proxy Price Data'!D59="","",'Proxy Price Data'!D59) -> 173.5 | D63: =IF('Proxy Price Data'!E59="","",'Proxy Price Data'!E59) -> 67.83 | E63: =IF('Proxy Price Data'!F59="","",'Proxy Price Data'!F59) -> 52.18 | F63: =IF('Proxy Price Data'!G59="","",'Proxy Price Data'!G59) -> 112.2 | G63: =IF('Proxy Price Data'!H59="","",'Proxy Price Data'!H59) -> 70.5 | H63: =IF('Proxy Price Data'!I59="","",'Proxy Price Data'!I59) -> 46.44
A64: =IF('Proxy Price Data'!B60="","",'Proxy Price Data'!B60) -> 2022-01-06 | B64: =IF('Proxy Price Data'!C60="","",'Proxy Price Data'!C60) -> 99.96 | C64: =IF('Proxy Price Data'!D60="","",'Proxy Price Data'!D60) -> 175.3 | D64: =IF('Proxy Price Data'!E60="","",'Proxy Price Data'!E60) -> 68.63 | E64: =IF('Proxy Price Data'!F60="","",'Proxy Price Data'!F60) -> 52.2 | F64: =IF('Proxy Price Data'!G60="","",'Proxy Price Data'!G60) -> 116.47 | G64: =IF('Proxy Price Data'!H60="","",'Proxy Price Data'!H60) -> 70.95 | H64: =IF('Proxy Price Data'!I60="","",'Proxy Price Data'!I60) -> 47.37
A65: =IF('Proxy Price Data'!B61="","",'Proxy Price Data'!B61) -> 2022-01-05 | B65: =IF('Proxy Price Data'!C61="","",'Proxy Price Data'!C61) -> 100.11 | C65: =IF('Proxy Price Data'!D61="","",'Proxy Price Data'!D61) -> 178.1 | D65: =IF('Proxy Price Data'!E61="","",'Proxy Price Data'!E61) -> 69.32 | E65: =IF('Proxy Price Data'!F61="","",'Proxy Price Data'!F61) -> 52.97 | F65: =IF('Proxy Price Data'!G61="","",'Proxy Price Data'!G61) -> 118.35 | G65: =IF('Proxy Price Data'!H61="","",'Proxy Price Data'!H61) -> 71.35 | H65: =IF('Proxy Price Data'!I61="","",'Proxy Price Data'!I61) -> 47.43
A67: Average Price | B67: =IFERROR(ROUND(AVERAGE(B6:B65),2),0) -> 88.74 | C67: =IFERROR(ROUND(AVERAGE(C6:C65),2),0) -> 157.67 | D67: 59.91 | E67: 48.1 | F67: 101.38 | G67: 67.15 | H67: 44.51
A69: Indicated Dividend | B69: =IFERROR(ROUND(VLOOKUP(LEFT(B5,FIND(" ",B5)-1),'Proxy Data Lookup'!$A:$O,10,FALSE),10),0) -> 1.46 | C69: =IFERROR(ROUND(VLOOKUP(LEFT(C5,FIND(" ",C5)-1),'Proxy Data Lookup'!$A:$O,10,FALSE),10),0) -> 2.41 | D69: =IFERROR(ROUND(VLOOKUP(LEFT(D5,FIND(" ",D5)-1),'Proxy Data Lookup'!$A:$O,10,FALSE),10),0) -> 1 | E69: =IFERROR(ROUND(VLOOKUP(LEFT(E5,FIND(" ",E5)-1),'Proxy Data Lookup'!$A:$O,10,FALSE),10),0) -> 1.0728 | F69: =IFERROR(ROUND(VLOOKUP(LEFT(F5,FIND(" ",F5)-1),'Proxy Data Lookup'!$A:$O,10,FALSE),10),0) -> 1.16 | G69: =IFERROR(ROUND(VLOOKUP(LEFT(G5,FIND(" ",G5)-1),'Proxy Data Lookup'!$A:$O,10,FALSE),10),0) -> 1.44 | H69: =IFERROR(ROUND(VLOOKUP(LEFT(H5,FIND(" ",H5)-1),'Proxy Data Lookup'!$A:$O,10,FALSE),10),0) -> 0.7796
A71: Indicated Dividend Yield | B71: =IFERROR(ROUND(B69/B67,4),0) -> 0.0165 | C71: =IFERROR(ROUND(C69/C67,4),0) -> 0.0153 | D71: 0.0167 | E71: 0.0223 | F71: 0.0114 | G71: 0.0214 | H71: 0.0175

Sheet CEM Data Lookup
C1: EPS Growth Rates | G1: Beta | J1: Annual Div. | K1: Value Line Beta Calculation | O1: Bond Ratings
A2: Ticker | B2: Company Name | C2: Zacks | D2: Yahoo | E2: Value Line | F2: Bloomberg | G2: Value Line | H2: Bloomberg | I2: Unadjusted | K2: R Factor | L2: Std. Error | M2: Std. Dev Y | N2: Std. Dev Beta | O2: Moody's | P2: S&P
A3: AOS | B3: Smith (A.O.) | C3: 0.09 | D3: 0.08 | E3: 0.11 | F3: 0.1 | G3: 0.85 | H3: 1.086758733 | I3: 0.77 | J3: =0.28*4 -> 1.12 | K3: 0.5613 | L3: 2.8592 | M3: 3.448 | N3: 0.0707 | O3: NA | P3: NA
A4: BCPC | B4: Balchem Corp. | C4: NA | D4: 0.24 | E4: 0.14 | F4: 0.1 | G4: 0.7 | H4: 0.8519256711 | I4: 0.51 | J4: 0.64 | K4: 0.3616 | L4: 3.3114 | M4: 3.5448 | N4: 0.0819 | O4: NA | P4: NA
A5: BDX | B5: Becton, Dickinson | C5: 0.063 | D5: 0.06 | E5: 0.06 | F5: 0.07377 | G5: 0.75 | H5: 0.5914502144 | I5: 0.6 | J5: =0.87*4 -> 3.48 | K5: 0.4644 | L5: 2.8626 | M5: 3.2259 | N5: 0.0708 | O5: Baa3 | P5: BBB
A6: BMY | B6: Bristol-Myers Squibb | C6: 0.068 | D6: 0.05 | E6: NMF | F6: 0.0488 | G6: 0.85 | H6: 0.6131026745 | I6: 0.75 | J6: =0.54*4 -> 2.16 | K6: 0.5443 | L6: 2.9154 | M6: 3.4684 | N6: 0.0721 | O6: A2 | P6: A+
A7: CHE | B7: Chemed Corp. | C7: 0.083 | D7: 0.066 | E7: 0.095 | F7: 0.083 | G7: 0.85 | H7: 0.8218445778 | I7: 0.7 | J7: =0.36*4 -> 1.44 | K7: 0.5285 | L7: 2.8432 | M7: 3.3427 | N7: 0.0703 | O7: WR | P7: NR
A8: CHRW | B8: C.H. Robinson | C8: 0.09 | D8: 0.123 | E8: 0.085 | F8: 0.07533 | G8: 0.75 | H8: 0.8785706758 | I8: 0.56 | J8: =0.55*4 -> 2.2 | K8: 0.4203 | L8: 3.0412 | M8: 3.3452 | N8: 0.0752 | O8: Baa2 | P8: BBB+
A9: CSGS | B9: CSG Systems Int'l | C9: NA | D9: -0.05 | E9: 0.11 | F9: 0.08 | G9: 0.75 | H9: 0.9172890782 | I9: 0.57 | J9: =0.265*4 -> 1.06 | K9: 0.4177 | L9: 3.0997 | M9: 3.405 | N9: 0.0767 | O9: NA | P9: BB+
A10: DGX | B10: Quest Diagnostics | C10: NA | D10: -0.1382 | E10: 0.07 | F10: -0.0642 | G10: 0.8 | H10: 0.7636415958 | I10: 0.65 | J10: =0.66*4 -> 2.64 | K10: 0.4595 | L10: 3.1904 | M10: 3.5852 | N10: 0.0789 | O10: Baa2 | P10: BBB+
A11: HTLD | B11: Heartland Express | C11: NA | D11: 0.133 | E11: 0.085 | F11: NA | G11: 0.75 | H11: 0.8271181583 | I11: 0.55 | J11: =0.02*4 -> 0.08 | K11: 0.4346 | L11: 2.8513 | M11: 3.1597 | N11: 0.0705 | O11: NA | P11: NA
A12: JKHY | B12: Henry (Jack) & Assoc | C12: 0.17 | D12: 0.14 | E12: 0.105 | F12: 0.1515 | G12: 0.85 | H12: 0.7458253503 | I12: 0.7 | J12: =0.49*4 -> 1.96 | K12: 0.516 | L12: 2.9159 | M12: 3.3973 | N12: 0.0721 | O12: NA | P12: NA
A13: LANC | B13: Lancaster Colony | C13: NA | D13: 0.03 | E13: 0.055 | F13: NA | G13: 0.7 | H13: 0.7584744692 | I13: 0.49 | J13: =0.8*4 -> 3.2 | K13: 0.3876 | L13: 2.9597 | M13: 3.2044 | N13: 0.0732 | O13: NA | P13: NA
A14: LLY | B14: Lilly (Eli) | C14: 0.142 | D14: 0.0631 | E14: 0.115 | F14: 0.15485 | G14: 0.75 | H14: 0.6384810805 | I14: 0.62 | J14: =0.98*4 -> 3.92 | K14: 0.4346 | L14: 3.2324 | M14: 3.5822 | N14: 0.08 | O14: A2 | P14: A+
A15: MANT | B15: ManTech Int'l 'A' | C15: NA | D15: 0.0538 | E15: 0.09 | F15: 0.00975 | G15: 0.85 | H15: 0.8216931224 | I15: 0.75 | J15: =0.41*4 -> 1.64 | K15: 0.5192 | L15: 3.1083 | M15: 3.63 | N15: 0.0769 | O15: WR | P15: BB+
A16: MKC | B16: McCormick & Co. | C16: 0.061 | D16: 0.0695 | E16: 0.06 | F16: 0.05045 | G16: 0.8 | H16: 0.5877737403 | I16: 0.65 | J16: =0.37*4 -> 1.48 | K16: 0.501 | L16: 2.8247 | M16: 3.2574 | N16: 0.0699 | O16: Baa2 | P16: BBB
A17: MNST | B17: Monster Beverage | C17: 0.159 | D17: 0.1401 | E17: 0.13 | F17: 0.10197 | G17: 0.85 | H17: 1.032819986 | I17: 0.75 | J17: NA | K17: 0.537 | L17: 2.9659 | M17: 3.5091 | N17: 0.0734 | O17: NA | P17: NA
A18: NOC | B18: Northrop Grumman | C18: 0.062 | D18: 0.048 | E18: 0.075 | F18: 0.00295 | G18: 0.85 | H18: 0.6716248393 | I18: 0.75 | J18: =1.57*4 -> 6.28 | K18: 0.5339 | L18: 2.983 | M18: 3.521 | N18: 0.0738 | O18: Baa1 | P18: BBB+
A19: ORCL | B19: Oracle Corp. | C19: 0.08 | D19: 0.1024 | E19: 0.1 | F19: 0.07967 | G19: 0.75 | H19: 0.8290885687 | I19: 0.61 | J19: =0.32*4 -> 1.28 | K19: 0.4747 | L19: 2.8406 | M19: 3.2211 | N19: 0.0703 | O19: Baa2 | P19: BBB+
A20: PGR | B20: Progressive Corp. | C20: 0.18 | D20: -0.101 | E20: 0.045 | F20: 0.3007 | G20: 0.75 | H20: 0.6793126464 | I20: 0.59 | J20: =0.1*4 -> 0.4 | K20: 0.453 | L20: 2.9344 | M20: 3.2852 | N20: 0.0726 | O20: A2 | P20: A
A21: RLI | B21: RLI Corp. | C21: NA | D21: 0.098 | E21: 0.12 | F21: NA | G21: 0.8 | H21: 0.9648290277 | I21: 0.65 | J21: =0.25*4 -> 1 | K21: 0.4989 | L21: 2.8568 | M21: 3.2899 | N21: 0.0707 | O21: Baa2 | P21: BBB
A22: ROL | B22: Rollins, Inc. | C22: NA | D22: 0.082 | E22: 0.105 | F22: 0.111 | G22: 0.85 | H22: 0.8045534492 | I22: 0.73 | J22: =0.1*4 -> 0.4 | K22: 0.5022 | L22: 3.1605 | M22: 3.6478 | N22: 0.0782 | O22: NA | P22: NA
A23: TYL | B23: Tyler Technologies | C23: NA | D23: 0.1 | E23: 0.14 | F23: 0.158 | G23: 0.75 | H23: 0.8990646005 | I23: 0.59 | J23: NA | K23: 0.4212 | L23: 3.2277 | M23: 3.5519 | N23: 0.0798 | O23: NA | P23: NA
A24: UPS | B24: United Parcel Serv. | C24: 0.12 | D24: 0.1403 | E24: 0.115 | F24: 0.0546 | G24: 0.8 | H24: 1.04017818 | I24: 0.65 | J24: =1.52*4 -> 6.08 | K24: 0.44 | L24: 3.3248 | M24: 3.6952 | N24: 0.0822 | O24: A2 | P24: A-
A25: WERN | B25: Werner Enterprises | C25: 0.111 | D25: 0.1194 | E25: 0.09 | F25: 0.07065 | G25: 0.75 | H25: 0.8873602748 | I25: 0.62 | J25: =0.12*4 -> 0.48 | K25: 0.4299 | L25: 3.2786 | M25: 3.6242 | N25: 0.0811 | O25: NA | P25: NA
A26: WU | B26: Western Union | C26: NA | D26: 0.0811 | E26: 0.08 | F26: 0.0175 | G26: 0.8 | H26: 1.048331022 | I26: 0.64 | J26: =0.235*4 -> 0.94 | K26: 0.4949 | L26: 2.8493 | M26: 3.2726 | N26: 0.0705 | O26: Baa2 | P26: BBB

Sheet CEM Price Data
C1: AOS | D1: BCPC | E1: BDX | F1: BMY | G1: CHE | H1: CHRW | I1: CSGS | J1: DGX | K1: HTLD | L1: JKHY | M1: LANC | N1: LLY | O1: MANT | P1: MKC | Q1: MNST | R1: NOC | S1: ORCL | T1: PGR | U1: RLI | V1: ROL | W1: TYL | X1: UPS | Y1: WERN | Z1: WU
B2: PX_LAST | C2: =CONCATENATE(C1," US Equity") -> AOS US Equity | D2: =CONCATENATE(D1," US Equity") -> BCPC US Equity | E2: BDX US Equity | F2: BMY US Equity | G2: CHE US Equity | H2: CHRW US Equity | I2: CSGS US Equity | J2: DGX US Equity | K2: HTLD US Equity | L2: JKHY US Equity | M2: LANC US Equity | N2: LLY US Equity | O2: MANT US Equity | P2: MKC US Equity | Q2: MNST US Equity | R2: NOC US Equity | S2: ORCL US Equity | T2: PGR US Equity | U2: RLI US Equity | V2: ROL US Equity | W2: TYL US Equity | X2: UPS US Equity | Y2: WERN US Equity | Z2: WU US Equity
A3: 1 | B3: 2022-03-31 | C3: 63.89 | D3: 136.7 | E3: 266 | F3: 73.03 | G3: 506.55 | H3: 107.71 | I3: 63.57 | J3: 136.86 | K3: 14.07 | L3: 197.05 | M3: 149.15 | N3: 286.37 | O3: 86.19 | P3: 99.8 | Q3: 79.9 | R3: 447.22 | S3: 82.73 | T3: 113.99 | U3: 110.63 | V3: 35.05 | W3: 444.89 | X3: 214.46 | Y3: 41 | Z3: 18.74
A4: 2 | B4: 2022-03-30 | C4: 66.25 | D4: 137.65 | E4: 269.59 | F4: 73.72 | G4: 508.45 | H4: 109.76 | I4: 63.82 | J4: 138.96 | K4: 14.31 | L4: 197.26 | M4: 150.7 | N4: 289.89 | O4: 86.93 | P4: 97.26 | Q4: 80.06 | R4: 453.33 | S4: 83.36 | T4: 117.17 | U4: 112.31 | V4: 35.44 | W4: 444 | X4: 220.2 | Y4: 42.2 | Z4: 19.24
A5: 3 | B5: 2022-03-29 | C5: 67.48 | D5: 140.54 | E5: 269.77 | F5: 73.23 | G5: 500.31 | H5: 110.62 | I5: 64.4 | J5: 141.39 | K5: 14.69 | L5: 197.83 | M5: 152.71 | N5: 288.39 | O5: 84.76 | P5: 96.9 | Q5: 82.58 | R5: 446.31 | S5: 84.29 | T5: 116.19 | U5: 110.87 | V5: 35.15 | W5: 451.63 | X5: 222.45 | Y5: 42.61 | Z5: 19.4
A6: 4 | B6: 2022-03-28 | C6: 66.66 | D6: 137.68 | E6: 268.14 | F6: 73.11 | G6: 486.6 | H6: 110.13 | I6: 62.49 | J6: 144.9 | K6: 14.51 | L6: 194.5 | M6: 150.32 | N6: 291.66 | O6: 87.43 | P6: 97.62 | Q6: 80.02 | R6: 446.8 | S6: 83.6 | T6: 116.88 | U6: 109.36 | V6: 34.42 | W6: 438.3 | X6: 219.55 | Y6: 42.18 | Z6: 18.61
A7: 5 | B7: 2022-03-25 | C7: 66.97 | D7: 137.7 | E7: 265.67 | F7: 73.28 | G7: 474.99 | H7: 109.51 | I7: 62.12 | J7: 144.08 | K7: 14.51 | L7: 193.34 | M7: 153.55 | N7: 289.02 | O7: 87.14 | P7: 97.92 | Q7: 78.7 | R7: 458.18 | S7: 81.73 | T7: 116.67 | U7: 109.38 | V7: 33.81 | W7: 429.52 | X7: 215.35 | Y7: 42.07 | Z7: 18.83
A8: 6 | B8: 2022-03-24 | C8: 66.23 | D8: 137.08 | E8: 263.09 | F8: 72.41 | G8: 475.99 | H8: 106.37 | I8: 61.56 | J8: 141.99 | K8: 14.38 | L8: 189.33 | M8: 152.79 | N8: 287.69 | O8: 86.24 | P8: 96.65 | Q8: 78.56 | R8: 454.57 | S8: 82.24 | T8: 114.1 | U8: 107.62 | V8: 33.54 | W8: 436.6 | X8: 214.66 | Y8: 42.03 | Z8: 18.55
A9: 7 | B9: 2022-03-23 | C9: 65.37 | D9: 136.61 | E9: 261.97 | F9: 71.38 | G9: 477.85 | H9: 104.67 | I9: 62.92 | J9: 142.36 | K9: 14.43 | L9: 188.14 | M9: 152.12 | N9: 284.19 | O9: 86.81 | P9: 96.14 | Q9: 78.05 | R9: 446.92 | S9: 80.39 | T9: 114 | U9: 107.28 | V9: 33.42 | W9: 428.02 | X9: 214.58 | Y9: 42.14 | Z9: 18.35
A10: 8 | B10: 2022-03-22 | C10: 67.8 | D10: 139.85 | E10: 264.87 | F10: 70.82 | G10: 485.5 | H10: 106.08 | I10: 63.18 | J10: 143.78 | K10: 14.65 | L10: 187.81 | M10: 153.65 | N10: 285.02 | O10: 86.83 | P10: 96.78 | Q10: 81.3 | R10: 446.3 | S10: 81.8 | T10: 113.35 | U10: 110.22 | V10: 33.71 | W10: 441.33 | X10: 218.42 | Y10: 42.79 | Z10: 18.3
A11: 9 | B11: 2022-03-21 | C11: 67.92 | D11: 139.99 | E11: 267.6 | F11: 71.05 | G11: 487.2 | H11: 105.31 | I11: 63.4 | J11: 143.85 | K11: 14.7 | L11: 186.07 | M11: 154.43 | N11: 289.64 | O11: 86.8 | P11: 96.72 | Q11: 79 | R11: 446.6 | S11: 80.96 | T11: 112.18 | U11: 110.75 | V11: 33.83 | W11: 435.56 | X11: 218.56 | Y11: 43 | Z11: 18.13
A12: 10 | B12: 2022-03-18 | C12: 68.05 | D12: 140.2 | E12: 262.04 | F12: 71.02 | G12: 490.4 | H12: 104.91 | I12: 63.62 | J12: 145.06 | K12: 14.83 | L12: 185.51 | M12: 153.68 | N12: 287.64 | O12: 84.66 | P12: 96.24 | Q12: 80.59 | R12: 427.95 | S12: 81.68 | T12: 111.22 | U12: 108.75 | V12: 34.2 | W12: 435.99 | X12: 219.78 | Y12: 43.57 | Z12: 18
A13: 11 | B13: 2022-03-17 | C13: 68 | D13: 138.9 | E13: 262.29 | F13: 70.52 | G13: 489.68 | H13: 104.02 | I13: 64.27 | J13: 145.16 | K13: 14.83 | L13: 184.25 | M13: 154.85 | N13: 285.51 | O13: 88.34 | P13: 96.89 | Q13: 78.28 | R13: 428.8 | S13: 80.6 | T13: 109.52 | U13: 109.23 | V13: 34.25 | W13: 423.79 | X13: 222.32 | Y13: 43.39 | Z13: 17.93
A14: 12 | B14: 2022-03-16 | C14: 67.31 | D14: 136.18 | E14: 260.79 | F14: 69.66 | G14: 483.01 | H14: 102.03 | I14: 64.21 | J14: 143.29 | K14: 14.9 | L14: 184.92 | M14: 155.9 | N14: 276.44 | O14: 85.26 | P14: 96.83 | Q14: 77.19 | R14: 424.43 | S14: 79.96 | T14: 106.14 | U14: 109.5 | V14: 33.76 | W14: 415.07 | X14: 217.9 | Y14: 44.19 | Z14: 17.89
A15: 13 | B15: 2022-03-15 | C15: 66.14 | D15: 134.5 | E15: 258.69 | F15: 69.75 | G15: 477.26 | H15: 98.54 | I15: 62.57 | J15: 141.65 | K15: 14.36 | L15: 178.99 | M15: 156.62 | N15: 275.46 | O15: 85.86 | P15: 98.28 | Q15: 75.08 | R15: 447.82 | S15: 80.6 | T15: 107.31 | U15: 108.08 | V15: 33.43 | W15: 403.33 | X15: 210.53 | Y15: 42.58 | Z15: 17.53
A16: 14 | B16: 2022-03-14 | C16: 65.88 | D16: 133.17 | E16: 256.8 | F16: 69.24 | G16: 473.92 | H16: 98.83 | I16: 63.19 | J16: 138.11 | K16: 14.19 | L16: 179.79 | M16: 156.25 | N16: 269 | O16: 86.63 | P16: 98.2 | Q16: 73.23 | R16: 441.42 | S16: 77.07 | T16: 105.71 | U16: 108.8 | V16: 33.36 | W16: 391.52 | X16: 204.3 | Y16: 42.54 | Z16: 17.42
A17: 15 | B17: 2022-03-11 | C17: 65.72 | D17: 133.51 | E17: 254.51 | F17: 68.87 | G17: 470.25 | H17: 102.24 | I17: 63.71 | J17: 136.34 | K17: 14.1 | L17: 183.42 | M17: 153.23 | N17: 266.3 | O17: 88.52 | P17: 96.52 | Q17: 73.22 | R17: 436.3 | S17: 77.82 | T17: 105.54 | U17: 104.04 | V17: 32.2 | W17: 398.31 | X17: 203.9 | Y17: 42.14 | Z17: 17.21
A18: 16 | B18: 2022-03-10 | C18: 66.61 | D18: 136.05 | E18: 257.72 | F18: 68.42 | G18: 471.62 | H18: 102.31 | I18: 65.26 | J18: 135.97 | K18: 14.28 | L18: 181.66 | M18: 153.33 | N18: 266.02 | O18: 85.93 | P18: 97.94 | Q18: 75.39 | R18: 444.61 | S18: 76.65 | T18: 104.67 | U18: 103.65 | V18: 32.6 | W18: 408.13 | X18: 207.18 | Y18: 42.42 | Z18: 17.56
A19: 17 | B19: 2022-03-09 | C19: 67.68 | D19: 136.03 | E19: 264.84 | F19: 68.13 | G19: 475.27 | H19: 101.59 | I19: 64.18 | J19: 135.58 | K19: 14.34 | L19: 177.05 | M19: 156.92 | N19: 262.79 | O19: 84.71 | P19: 98.31 | Q19: 76.68 | R19: 449.92 | S19: 76.1 | T19: 104.1 | U19: 104.46 | V19: 32.72 | W19: 418.65 | X19: 206.78 | Y19: 42.97 | Z19: 17.78
A20: 18 | B20: 2022-03-08 | C20: 66.21 | D20: 131.21 | E20: 265.13 | F20: 67.74 | G20: 467.18 | H20: 101.56 | I20: 64.14 | J20: 134.3 | K20: 14.14 | L20: 177.3 | M20: 156.5 | N20: 259.93 | O20: 85.89 | P20: 97.55 | Q20: 72.49 | R20: 449.21 | S20: 73.33 | T20: 103.76 | U20: 103.25 | V20: 32.57 | W20: 404.14 | X20: 203.41 | Y20: 42.63 | Z20: 17.72
A21: 19 | B21: 2022-03-07 | C21: 67.32 | D21: 134.13 | E21: 276.05 | F21: 68.77 | G21: 483.38 | H21: 105.13 | I21: 64.96 | J21: 136.1 | K21: 14.31 | L21: 183.69 | M21: 165 | N21: 261.64 | O21: 87.2 | P21: 104.06 | Q21: 75 | R21: 477.95 | S21: 74.32 | T21: 106.52 | U21: 103.59 | V21: 33.96 | W21: 408.23 | X21: 201.18 | Y21: 43.74 | Z21: 17.52
A22: 20 | B22: 2022-03-04 | C22: 68.39 | D22: 140.87 | E22: 275.42 | F22: 69.36 | G22: 485.9 | H22: 106.48 | I22: 64.57 | J22: 137.65 | K22: 14.58 | L22: 185.33 | M22: 162.61 | N22: 262.87 | O22: 85.76 | P22: 103.41 | Q22: 81.32 | R22: 468.57 | S22: 76.49 | T22: 107.19 | U22: 103.45 | V22: 34.01 | W22: 416.68 | X22: 210.39 | Y22: 44.73 | Z22: 17.76
A23: 21 | B23: 2022-03-03 | C23: 68.68 | D23: 138.28 | E23: 272.84 | F23: 69.11 | G23: 481.72 | H23: 102.57 | I23: 62.55 | J23: 135.79 | K23: 14.51 | L23: 183.44 | M23: 162.82 | N23: 258.64 | O23: 84.91 | P23: 99.56 | Q23: 83.35 | R23: 449.69 | S23: 78.25 | T23: 105.08 | U23: 102.19 | V23: 33.48 | W23: 420.47 | X23: 212.43 | Y23: 44.71 | Z23: 17.91
A24: 22 | B24: 2022-03-02 | C24: 69.4 | D24: 138.57 | E24: 272.52 | F24: 68.85 | G24: 485.34 | H24: 102.94 | I24: 62.46 | J24: 134.76 | K24: 14.49 | L24: 180.15 | M24: 162.59 | N24: 254.17 | O24: 84.13 | P24: 97.33 | Q24: 83.75 | R24: 453.39 | S24: 78.28 | T24: 104.92 | U24: 101.74 | V24: 34.08 | W24: 427.41 | X24: 211.46 | Y24: 44.95 | Z24: 18.09
A25: 23 | B25: 2022-03-01 | C25: 66.63 | D25: 136.5 | E25: 271.39 | F25: 68.63 | G25: 484.27 | H25: 104.82 | I25: 60.73 | J25: 131.92 | K25: 14.34 | L25: 179.12 | M25: 165.46 | N25: 249.5 | O25: 84.24 | P25: 96.25 | Q25: 83.23 | R25: 456.1 | S25: 76.01 | T25: 103.24 | U25: 98.93 | V25: 33.16 | W25: 422.33 | X25: 205.58 | Y25: 44 | Z25: 17.58
A26: 24 | B26: 2022-02-28 | C26: 68.58 | D26: 138.34 | E26: 271.28 | F26: 68.67 | G26: 478.29 | H26: 96.68 | I26: 61.72 | J26: 131.27 | K26: 14.36 | L26: 176.8 | M26: 168.21 | N26: 249.95 | O26: 83.37 | P26: 95.17 | Q26: 84.4 | R26: 442.14 | S26: 75.97 | T26: 105.93 | U26: 101.5 | V26: 32.63 | W26: 428.26 | X26: 210.42 | Y26: 43.46 | Z26: 18.18
A27: 25 | B27: 2022-02-25 | C27: 69.39 | D27: 141.04 | E27: 272.72 | F27: 68.8 | G27: 480.78 | H27: 96.79 | I27: 61.63 | J27: 132.18 | K27: 14.3 | L27: 176.05 | M27: 168.09 | N27: 250.85 | O27: 79.38 | P27: 96.21 | Q27: 84.57 | R27: 409.67 | S27: 76.35 | T27: 107.24 | U27: 102.04 | V27: 32.13 | W27: 429.92 | X27: 209.95 | Y27: 43.57 | Z27: 19.03
A28: 26 | B28: 2022-02-24 | C28: 67.77 | D28: 138.73 | E28: 266.29 | F28: 67.1 | G28: 458.99 | H28: 96.2 | I28: 59.99 | J28: 129.51 | K28: 13.99 | L28: 170.07 | M28: 159.57 | N28: 243.08 | O28: 79.39 | P28: 94.12 | Q28: 80.35 | R28: 395.49 | S28: 74.81 | T28: 102.88 | U28: 99.37 | V28: 31.6 | W28: 425.29 | X28: 207.19 | Y28: 42.99 | Z28: 18.62
A29: 27 | B29: 2022-02-23 | C29: 67.89 | D29: 137.62 | E29: 268.66 | F29: 67.93 | G29: 457.55 | H29: 92.42 | I29: 59.03 | J29: 129.09 | K29: 14.07 | L29: 167.89 | M29: 162.32 | N29: 238.31 | O29: 77.01 | P29: 96.61 | Q29: 79.41 | R29: 386.08 | S29: 72.47 | T29: 104.62 | U29: 99.64 | V29: 30.31 | W29: 397.39 | X29: 204.48 | Y29: 42.33 | Z29: 19.36
A30: 28 | B30: 2022-02-22 | C30: 69.53 | D30: 140.02 | E30: 264.16 | F30: 67.45 | G30: 463.99 | H30: 92.37 | I30: 59.6 | J30: 130.55 | K30: 14.11 | L30: 169.36 | M30: 163 | N30: 239.13 | O30: 78.57 | P30: 96.97 | Q30: 81.65 | R30: 390.73 | S30: 74.12 | T30: 106.25 | U30: 100.95 | V30: 30.99 | W30: 408.33 | X30: 208.97 | Y30: 42.7 | Z30: 19.47
A31: 29 | B31: 2022-02-18 | C31: 71.2 | D31: 138.01 | E31: 264.04 | F31: 67.55 | G31: 459.5 | H31: 91.98 | I31: 58.85 | J31: 131.38 | K31: 14.42 | L31: 172.46 | M31: 161.73 | N31: 240.31 | O31: 79.93 | P31: 97.79 | Q31: 81.27 | R31: 391.25 | S31: 74.57 | T31: 106.41 | U31: 98.85 | V31: 31.13 | W31: 411.28 | X31: 209.36 | Y31: 43.33 | Z31: 19.73
A32: 30 | B32: 2022-02-17 | C32: 71.05 | D32: 138.58 | E32: 266.15 | F32: 67.39 | G32: 459.33 | H32: 90.85 | I32: 59.52 | J32: 129.12 | K32: 14.49 | L32: 170.35 | M32: 158.78 | N32: 240.97 | O32: 81 | P32: 98.08 | Q32: 82.14 | R32: 398.11 | S32: 75.53 | T32: 105.23 | U32: 98.37 | V32: 31.19 | W32: 428.62 | X32: 210.71 | Y32: 42.7 | Z32: 19.81
A33: 31 | B33: 2022-02-16 | C33: 72.32 | D33: 139.93 | E33: 271.13 | F33: 67.6 | G33: 468.69 | H33: 90.41 | I33: 60.36 | J33: 131.72 | K33: 14.47 | L33: 169.54 | M33: 158.36 | N33: 245.58 | O33: 81.05 | P33: 98.39 | Q33: 83.22 | R33: 393.66 | S33: 79.19 | T33: 106.08 | U33: 100.46 | V33: 31.37 | W33: 469.74 | X33: 215.31 | Y33: 42.75 | Z33: 19.83
A34: 32 | B34: 2022-02-15 | C34: 72.46 | D34: 139.38 | E34: 271.15 | F34: 67.77 | G34: 478.42 | H34: 89.86 | I34: 59.5 | J34: 131.11 | K34: 14.24 | L34: 168.94 | M34: 158.94 | N34: 243.84 | O34: 79.27 | P34: 100.12 | Q34: 82.78 | R34: 384.77 | S34: 79.77 | T34: 105.78 | U34: 100.43 | V34: 31.3 | W34: 477.13 | X34: 217.26 | Y34: 42.97 | Z34: 20.09
A35: 33 | B35: 2022-02-14 | C35: 71.23 | D35: 137.73 | E35: 268.9 | F35: 66.81 | G35: 464.75 | H35: 89.21 | I35: 60.18 | J35: 130.29 | K35: 14.31 | L35: 170.18 | M35: 159.15 | N35: 234.69 | O35: 78.78 | P35: 100.4 | Q35: 82.57 | R35: 390.6 | S35: 78.95 | T35: 106.21 | U35: 99.24 | V35: 30.84 | W35: 467.28 | X35: 213.99 | Y35: 43.28 | Z35: 19.8
A36: 34 | B36: 2022-02-11 | C36: 71.31 | D36: 137.74 | E36: 269.98 | F36: 66.88 | G36: 472.54 | H36: 89.5 | I36: 60.76 | J36: 132.37 | K36: 14.26 | L36: 167.41 | M36: 157.79 | N36: 235.74 | O36: 81.97 | P36: 100.75 | Q36: 82.8 | R36: 399.32 | S36: 79.75 | T36: 106.2 | U36: 99.03 | V36: 30.73 | W36: 467.67 | X36: 213.49 | Y36: 43.58 | Z36: 19.43
A37: 35 | B37: 2022-02-10 | C37: 72.23 | D37: 138.07 | E37: 271.94 | F37: 66.51 | G37: 480.8 | H37: 90.33 | I37: 59.92 | J37: 133.71 | K37: 14.26 | L37: 166.76 | M37: 155.73 | N37: 239.64 | O37: 80.35 | P37: 100.44 | Q37: 83.83 | R37: 382.02 | S37: 81.85 | T37: 106.51 | U37: 99.26 | V37: 30.93 | W37: 483.21 | X37: 220.68 | Y37: 43.2 | Z37: 18.48
A38: 36 | B38: 2022-02-09 | C38: 74.65 | D38: 139.91 | E38: 277.24 | F38: 67.14 | G38: 481.49 | H38: 89.37 | I38: 60.03 | J38: 136.79 | K38: 14.47 | L38: 175.04 | M38: 159.03 | N38: 243.27 | O38: 80.75 | P38: 102.3 | Q38: 86.29 | R38: 384.36 | S38: 83.45 | T38: 108.43 | U38: 101.46 | V38: 31.35 | W38: 491.07 | X38: 225.07 | Y38: 44.02 | Z38: 18.72
A39: 37 | B39: 2022-02-08 | C39: 74.19 | D39: 140.64 | E39: 276.49 | F39: 65.89 | G39: 477.25 | H39: 88.21 | I39: 60.39 | J39: 134.52 | K39: 14.45 | L39: 169.2 | M39: 156.9 | N39: 239.91 | O39: 79.1 | P39: 102.44 | Q39: 84.72 | R39: 379.32 | S39: 80.79 | T39: 109.2 | U39: 103.65 | V39: 30.41 | W39: 472.04 | X39: 225.2 | Y39: 43.79 | Z39: 18.4
A40: 38 | B40: 2022-02-07 | C40: 73.86 | D40: 137.81 | E40: 269.27 | F40: 66.19 | G40: 463.34 | H40: 89.32 | I40: 57.62 | J40: 132.21 | K40: 14.28 | L40: 167.32 | M40: 154.85 | N40: 243.55 | O40: 78.83 | P40: 101.89 | Q40: 84.54 | R40: 373.16 | S40: 80.74 | T40: 109.1 | U40: 102 | V40: 30.49 | W40: 471.75 | X40: 225.06 | Y40: 43.81 | Z40: 18.31
A41: 39 | B41: 2022-02-04 | C41: 73.58 | D41: 139.51 | E41: 268.85 | F41: 64.99 | G41: 467.41 | H41: 88.73 | I41: 57.32 | J41: 134.05 | K41: 14.43 | L41: 168 | M41: 153.73 | N41: 242.27 | O41: 80.73 | P41: 101.73 | Q41: 84.29 | R41: 369.75 | S41: 82.11 | T41: 109.07 | U41: 102.64 | V41: 30.45 | W41: 470.75 | X41: 224.79 | Y41: 44.04 | Z41: 18.14
A42: 40 | B42: 2022-02-03 | C42: 74.09 | D42: 139.96 | E42: 270.58 | F42: 64.07 | G42: 468.94 | H42: 89.56 | I42: 57.24 | J42: 136.31 | K42: 14.64 | L42: 167 | M42: 154.7 | N42: 244.81 | O42: 73.86 | P42: 102.9 | Q42: 86.08 | R42: 373.81 | S42: 81.94 | T42: 109.7 | U42: 103.65 | V42: 30.72 | W42: 461.39 | X42: 228.69 | Y42: 44.46 | Z42: 18.65
A43: 41 | B43: 2022-02-02 | C43: 75.2 | D43: 143 | E43: 256.67 | F43: 64.8 | G43: 470.27 | H43: 92.54 | I43: 58.33 | J43: 135.91 | K43: 14.7 | L43: 170.55 | M43: 159.4 | N43: 250.83 | O43: 72.82 | P43: 101.66 | Q43: 87.21 | R43: 370.98 | S43: 82.5 | T43: 109.48 | U43: 104.4 | V43: 31.46 | W43: 470.71 | X43: 232.11 | Y43: 44.66 | Z43: 18.93
A44: 42 | B44: 2022-02-01 | C44: 75.57 | D44: 145.07 | E44: 253.23 | F44: 65.19 | G44: 467.71 | H44: 104.57 | I44: 56.83 | J44: 135.24 | K44: 14.89 | L44: 168.7 | M44: 158.08 | N44: 248.28 | O44: 70.61 | P44: 100.49 | Q44: 86.47 | R44: 370.58 | S44: 81.04 | T44: 108.1 | U44: 104.85 | V44: 31.03 | W44: 475.35 | X44: 230.69 | Y44: 44.43 | Z44: 19.26
A45: 43 | B45: 2022-01-31 | C45: 76.42 | D45: 146.94 | E45: 254.14 | F45: 64.89 | G45: 468.91 | H45: 104.65 | I45: 56.77 | J45: 135.02 | K45: 14.96 | L45: 167.81 | M45: 158.77 | N45: 245.39 | O45: 72.24 | P45: 100.31 | Q45: 86.72 | R45: 369.9 | S45: 81.16 | T45: 108.66 | U45: 104.78 | V45: 30.85 | W45: 473.8 | X45: 202.21 | Y45: 44.59 | Z45: 18.91
A46: 44 | B46: 2022-01-28 | C46: 75.5 | D46: 144.53 | E46: 255.73 | F46: 64.91 | G46: 463.52 | H46: 104.1 | I46: 57.01 | J46: 134.85 | K46: 14.75 | L46: 165.55 | M46: 159.64 | N46: 245.1 | O46: 71.15 | P46: 98.23 | Q46: 85.31 | R46: 380.2 | S46: 80.48 | T46: 108.72 | U46: 102.18 | V46: 29.96 | W46: 450.52 | X46: 198.25 | Y46: 43.75 | Z46: 18.84
A47: 45 | B47: 2022-01-27 | C47: 75.85 | D47: 142.75 | E47: 251.19 | F47: 63.86 | G47: 452.33 | H47: 102.82 | I47: 55.84 | J47: 135.08 | K47: 14.6 | L47: 157.22 | M47: 158.75 | N47: 236.72 | O47: 72.42 | P47: 98.2 | Q47: 83.17 | R47: 373.99 | S47: 79.78 | T47: 107.64 | U47: 102.98 | V47: 28.97 | W47: 433.2 | X47: 194.83 | Y47: 43.18 | Z47: 18.2
A48: 46 | B48: 2022-01-26 | C48: 74.72 | D48: 144.97 | E48: 253.89 | F48: 62.24 | G48: 456.02 | H48: 102.65 | I48: 55.66 | J48: 135.4 | K48: 14.77 | L48: 156.82 | M48: 157.18 | N48: 237.86 | O48: 76.12 | P48: 91.94 | Q48: 84.59 | R48: 403.23 | S48: 79.59 | T48: 107.63 | U48: 101.55 | V48: 29.7 | W48: 437.23 | X48: 199 | Y48: 43.37 | Z48: 18.05
A49: 47 | B49: 2022-01-25 | C49: 75.4 | D49: 147.21 | E49: 258.1 | F49: 62.46 | G49: 462.85 | H49: 105.14 | I49: 55.87 | J49: 137.18 | K49: 15.63 | L49: 158.85 | M49: 161.03 | N49: 239.46 | O49: 74.92 | P49: 93.02 | Q49: 86.33 | R49: 403.18 | S49: 81.07 | T49: 109.3 | U49: 103.18 | V49: 31.26 | W49: 446.14 | X49: 201.94 | Y49: 44.47 | Z49: 18.1
A50: 48 | B50: 2022-01-24 | C50: 78.78 | D50: 150.68 | E50: 259.96 | F50: 62.61 | G50: 477.53 | H50: 107.58 | I50: 56.89 | J50: 138.3 | K50: 16.14 | L50: 163.22 | M50: 162.82 | N50: 240.42 | O50: 74.22 | P50: 94.17 | Q50: 88.14 | R50: 403.06 | S50: 82.42 | T50: 109.88 | U50: 106.95 | V50: 31.9 | W50: 466.82 | X50: 204.13 | Y50: 46.05 | Z50: 17.86
A51: 49 | B51: 2022-01-21 | C51: 76.82 | D51: 148.62 | E51: 264.63 | F51: 63.54 | G51: 470.55 | H51: 104.98 | I51: 56.19 | J51: 137.72 | K51: 15.72 | L51: 163.74 | M51: 162.09 | N51: 243.06 | O51: 73.13 | P51: 95.71 | Q51: 85.62 | R51: 398.81 | S51: 82.22 | T51: 108.02 | U51: 104.83 | V51: 31.32 | W51: 454.53 | X51: 201.95 | Y51: 44.86 | Z51: 18.14
A52: 50 | B52: 2022-01-20 | C52: 78.21 | D52: 148.11 | E52: 263.97 | F52: 64.58 | G52: 471.88 | H52: 105.04 | I52: 56.04 | J52: 137.17 | K52: 15.77 | L52: 163.08 | M52: 164.67 | N52: 243.13 | O52: 74.33 | P52: 95.34 | Q52: 86.37 | R52: 397.41 | S52: 82.72 | T52: 107.17 | U52: 105.33 | V52: 31.65 | W52: 458.68 | X52: 202.29 | Y52: 45.2 | Z52: 18.26
A53: 51 | B53: 2022-01-19 | C53: 79.55 | D53: 150.68 | E53: 263.87 | F53: 64.72 | G53: 476 | H53: 107.51 | I53: 56.29 | J53: 138.98 | K53: 15.83 | L53: 166.42 | M53: 164.25 | N53: 245.05 | O53: 74.82 | P53: 96.06 | Q53: 86.73 | R53: 401.65 | S53: 83.38 | T53: 107.63 | U53: 105.89 | V53: 31.99 | W53: 466.74 | X53: 203.76 | Y53: 46.36 | Z53: 18.77
A54: 52 | B54: 2022-01-18 | C54: 80.66 | D54: 149.75 | E54: 260.42 | F54: 64.89 | G54: 478.86 | H54: 109.1 | I54: 56.66 | J54: 138.83 | K54: 15.84 | L54: 165.37 | M54: 163.6 | N54: 247.07 | O54: 74.36 | P54: 97.47 | Q54: 86.7 | R54: 401.63 | S54: 85.55 | T54: 109.87 | U54: 107.54 | V54: 31.71 | W54: 465.94 | X54: 205.59 | Y54: 46.82 | Z54: 18.12
A55: 53 | B55: 2022-01-14 | C55: 80.57 | D55: 155.52 | E55: 262.62 | F55: 64.93 | G55: 485.52 | H55: 108.29 | I55: 57.52 | J55: 142.3 | K55: 15.95 | L55: 168.94 | M55: 165.85 | N55: 244.12 | O55: 73.52 | P55: 96.35 | Q55: 89.91 | R55: 403.45 | S55: 87.69 | T55: 109.75 | U55: 110.1 | V55: 32.61 | W55: 480.52 | X55: 206.54 | Y55: 46.45 | Z55: 18.4
A56: 54 | B56: 2022-01-13 | C56: 82.94 | D56: 156.83 | E56: 263.69 | F56: 64.6 | G56: 489.09 | H56: 108.45 | I56: 57.77 | J56: 145.01 | K56: 16.15 | L56: 168.2 | M56: 165.69 | N56: 249.67 | O56: 73.2 | P56: 95.51 | Q56: 94.37 | R56: 397.61 | S56: 87.79 | T56: 109.26 | U56: 110.14 | V56: 33.5 | W56: 480.42 | X56: 210.47 | Y56: 46.14 | Z56: 18.47
A57: 55 | B57: 2022-01-12 | C57: 83.98 | D57: 158.35 | E57: 261.91 | F57: 64.82 | G57: 492.78 | H57: 107.35 | I57: 57.49 | J57: 147.14 | K57: 16.11 | L57: 171.91 | M57: 163.37 | N57: 255.92 | O57: 72.33 | P57: 95.37 | Q57: 93.98 | R57: 395.53 | S57: 88.31 | T57: 109.85 | U57: 109 | V57: 33.87 | W57: 504.11 | X57: 211.22 | Y57: 45.77 | Z57: 18.32
A58: 56 | B58: 2022-01-11 | C58: 83.7 | D58: 157.18 | E58: 261.74 | F58: 65.48 | G58: 500.34 | H58: 107.98 | I58: 57.83 | J58: 157.88 | K58: 16.3 | L58: 169.74 | M58: 168.46 | N58: 262.32 | O58: 74 | P58: 95.21 | Q58: 94.58 | R58: 400.6 | S58: 88.48 | T58: 108.92 | U58: 111.58 | V58: 33.6 | W58: 505 | X58: 211.27 | Y58: 45.92 | Z58: 18.53
A59: 57 | B59: 2022-01-10 | C59: 82.89 | D59: 156.87 | E59: 259.17 | F59: 65.1 | G59: 500.5 | H59: 107.84 | I59: 58.35 | J59: 159.6 | K59: 16.32 | L59: 169.56 | M59: 169.96 | N59: 260.11 | O59: 74.35 | P59: 94.62 | Q59: 92.73 | R59: 402.23 | S59: 89.28 | T59: 110 | U59: 112.18 | V59: 33.78 | W59: 486.41 | X59: 211.73 | Y59: 45.95 | Z59: 18.7
A60: 58 | B60: 2022-01-07 | C60: 83.15 | D60: 158.94 | E60: 254.15 | F60: 62.83 | G60: 496.19 | H60: 108.43 | I60: 58.26 | J60: 155.87 | K60: 16.3 | L60: 169.75 | M60: 170.73 | N60: 259.5 | O60: 74.21 | P60: 96.04 | Q60: 94.06 | R60: 400.42 | S60: 87.51 | T60: 109.18 | U60: 112.59 | V60: 33.69 | W60: 483.59 | X60: 218.16 | Y60: 46 | Z60: 19.01
A61: 59 | B61: 2022-01-06 | C61: 84.1 | D61: 162.84 | E61: 249.73 | F61: 61.48 | G61: 503.19 | H61: 110.95 | I61: 58.81 | J61: 158.34 | K61: 16.45 | L61: 169.6 | M61: 168.52 | N61: 259.33 | O61: 72.87 | P61: 96.49 | Q61: 95.52 | R61: 397.27 | S61: 86.34 | T61: 105.25 | U61: 112.5 | V61: 33.55 | W61: 493.6 | X61: 216.64 | Y61: 46.33 | Z61: 18.34
A62: 60 | B62: 2022-01-05 | C62: 83.54 | D62: 163.77 | E62: 252.95 | F62: 62.16 | G62: 506.31 | H62: 109.66 | I62: 58.05 | J62: 157.32 | K62: 16.78 | L62: 172.92 | M62: 166.31 | N62: 260.65 | O62: 73.27 | P62: 96.92 | Q62: 96.05 | R62: 394.99 | S62: 86.46 | T62: 102.89 | U62: 110.78 | V62: 32.9 | W62: 492.59 | X62: 214.56 | Y62: 47.58 | Z62: 18.45

Sheet CEM PricesDivs
B1: ='CEM Price Data'!C1 -> AOS | C1: ='CEM Price Data'!D1 -> BCPC | D1: ='CEM Price Data'!E1 -> BDX | E1: ='CEM Price Data'!F1 -> BMY | F1: ='CEM Price Data'!G1 -> CHE | G1: ='CEM Price Data'!H1 -> CHRW | H1: ='CEM Price Data'!I1 -> CSGS | I1: ='CEM Price Data'!J1 -> DGX | J1: ='CEM Price Data'!K1 -> HTLD | K1: ='CEM Price Data'!L1 -> JKHY | L1: ='CEM Price Data'!M1 -> LANC | M1: ='CEM Price Data'!N1 -> LLY | N1: ='CEM Price Data'!O1 -> MANT | O1: ='CEM Price Data'!P1 -> MKC | P1: ='CEM Price Data'!Q1 -> MNST | Q1: ='CEM Price Data'!R1 -> NOC | R1: ='CEM Price Data'!S1 -> ORCL | S1: ='CEM Price Data'!T1 -> PGR | T1: ='CEM Price Data'!U1 -> RLI | U1: ='CEM Price Data'!V1 -> ROL | V1: ='CEM Price Data'!W1 -> TYL | W1: ='CEM Price Data'!X1 -> UPS | X1: ='CEM Price Data'!Y1 -> WERN | Y1: ='CEM Price Data'!Z1 -> WU
A2: =IF('CEM Price Data'!B2="","",'CEM Price Data'!B2) -> PX_LAST | B2: ='CEM Price Data'!C2 -> AOS US Equity | C2: ='CEM Price Data'!D2 -> BCPC US Equity | D2: ='CEM Price Data'!E2 -> BDX US Equity | E2: ='CEM Price Data'!F2 -> BMY US Equity | F2: ='CEM Price Data'!G2 -> CHE US Equity | G2: ='CEM Price Data'!H2 -> CHRW US Equity | H2: ='CEM Price Data'!I2 -> CSGS US Equity | I2: ='CEM Price Data'!J2 -> DGX US Equity | J2: ='CEM Price Data'!K2 -> HTLD US Equity | K2: ='CEM Price Data'!L2 -> JKHY US Equity | L2: ='CEM Price Data'!M2 -> LANC US Equity | M2: ='CEM Price Data'!N2 -> LLY US Equity | N2: ='CEM Price Data'!O2 -> MANT US Equity | O2: ='CEM Price Data'!P2 -> MKC US Equity | P2: ='CEM Price Data'!Q2 -> MNST US Equity | Q2: ='CEM Price Data'!R2 -> NOC US Equity | R2: ='CEM Price Data'!S2 -> ORCL US Equity | S2: ='CEM Price Data'!T2 -> PGR US Equity | T2: ='CEM Price Data'!U2 -> RLI US Equity | U2: ='CEM Price Data'!V2 -> ROL US Equity | V2: ='CEM Price Data'!W2 -> TYL US Equity | W2: ='CEM Price Data'!X2 -> UPS US Equity | X2: ='CEM Price Data'!Y2 -> WERN US Equity | Y2: ='CEM Price Data'!Z2 -> WU US Equity
A3: ='CEM Price Data'!B3 -> 2022-03-31 | B3: ='CEM Price Data'!C3 -> 63.89 | C3: ='CEM Price Data'!D3 -> 136.7 | D3: ='CEM Price Data'!E3 -> 266 | E3: ='CEM Price Data'!F3 -> 73.03 | F3: ='CEM Price Data'!G3 -> 506.55 | G3: ='CEM Price Data'!H3 -> 107.71 | H3: ='CEM Price Data'!I3 -> 63.57 | I3: ='CEM Price Data'!J3 -> 136.86 | J3: ='CEM Price Data'!K3 -> 14.07 | K3: ='CEM Price Data'!L3 -> 197.05 | L3: ='CEM Price Data'!M3 -> 149.15 | M3: ='CEM Price Data'!N3 -> 286.37 | N3: ='CEM Price Data'!O3 -> 86.19 | O3: ='CEM Price Data'!P3 -> 99.8 | P3: ='CEM Price Data'!Q3 -> 79.9 | Q3: ='CEM Price Data'!R3 -> 447.22 | R3: ='CEM Price Data'!S3 -> 82.73 | S3: ='CEM Price Data'!T3 -> 113.99 | T3: ='CEM Price Data'!U3 -> 110.63 | U3: ='CEM Price Data'!V3 -> 35.05 | V3: ='CEM Price Data'!W3 -> 444.89 | W3: ='CEM Price Data'!X3 -> 214.46 | X3: ='CEM Price Data'!Y3 -> 41 | Y3: ='CEM Price Data'!Z3 -> 18.74
A4: ='CEM Price Data'!B4 -> 2022-03-30 | B4: ='CEM Price Data'!C4 -> 66.25 | C4: ='CEM Price Data'!D4 -> 137.65 | D4: ='CEM Price Data'!E4 -> 269.59 | E4: ='CEM Price Data'!F4 -> 73.72 | F4: ='CEM Price Data'!G4 -> 508.45 | G4: ='CEM Price Data'!H4 -> 109.76 | H4: ='CEM Price Data'!I4 -> 63.82 | I4: ='CEM Price Data'!J4 -> 138.96 | J4: ='CEM Price Data'!K4 -> 14.31 | K4: ='CEM Price Data'!L4 -> 197.26 | L4: ='CEM Price Data'!M4 -> 150.7 | M4: ='CEM Price Data'!N4 -> 289.89 | N4: ='CEM Price Data'!O4 -> 86.93 | O4: ='CEM Price Data'!P4 -> 97.26 | P4: ='CEM Price Data'!Q4 -> 80.06 | Q4: ='CEM Price Data'!R4 -> 453.33 | R4: ='CEM Price Data'!S4 -> 83.36 | S4: ='CEM Price Data'!T4 -> 117.17 | T4: ='CEM Price Data'!U4 -> 112.31 | U4: ='CEM Price Data'!V4 -> 35.44 | V4: ='CEM Price Data'!W4 -> 444 | W4: ='CEM Price Data'!X4 -> 220.2 | X4: ='CEM Price Data'!Y4 -> 42.2 | Y4: ='CEM Price Data'!Z4 -> 19.24
A5: ='CEM Price Data'!B5 -> 2022-03-29 | B5: ='CEM Price Data'!C5 -> 67.48 | C5: ='CEM Price Data'!D5 -> 140.54 | D5: ='CEM Price Data'!E5 -> 269.77 | E5: ='CEM Price Data'!F5 -> 73.23 | F5: ='CEM Price Data'!G5 -> 500.31 | G5: ='CEM Price Data'!H5 -> 110.62 | H5: ='CEM Price Data'!I5 -> 64.4 | I5: ='CEM Price Data'!J5 -> 141.39 | J5: ='CEM Price Data'!K5 -> 14.69 | K5: ='CEM Price Data'!L5 -> 197.83 | L5: ='CEM Price Data'!M5 -> 152.71 | M5: ='CEM Price Data'!N5 -> 288.39 | N5: ='CEM Price Data'!O5 -> 84.76 | O5: ='CEM Price Data'!P5 -> 96.9 | P5: ='CEM Price Data'!Q5 -> 82.58 | Q5: ='CEM Price Data'!R5 -> 446.31 | R5: ='CEM Price Data'!S5 -> 84.29 | S5: ='CEM Price Data'!T5 -> 116.19 | T5: ='CEM Price Data'!U5 -> 110.87 | U5: ='CEM Price Data'!V5 -> 35.15 | V5: ='CEM Price Data'!W5 -> 451.63 | W5: ='CEM Price Data'!X5 -> 222.45 | X5: ='CEM Price Data'!Y5 -> 42.61 | Y5: ='CEM Price Data'!Z5 -> 19.4
A6: ='CEM Price Data'!B6 -> 2022-03-28 | B6: ='CEM Price Data'!C6 -> 66.66 | C6: ='CEM Price Data'!D6 -> 137.68 | D6: ='CEM Price Data'!E6 -> 268.14 | E6: ='CEM Price Data'!F6 -> 73.11 | F6: ='CEM Price Data'!G6 -> 486.6 | G6: ='CEM Price Data'!H6 -> 110.13 | H6: ='CEM Price Data'!I6 -> 62.49 | I6: ='CEM Price Data'!J6 -> 144.9 | J6: ='CEM Price Data'!K6 -> 14.51 | K6: ='CEM Price Data'!L6 -> 194.5 | L6: ='CEM Price Data'!M6 -> 150.32 | M6: ='CEM Price Data'!N6 -> 291.66 | N6: ='CEM Price Data'!O6 -> 87.43 | O6: ='CEM Price Data'!P6 -> 97.62 | P6: ='CEM Price Data'!Q6 -> 80.02 | Q6: ='CEM Price Data'!R6 -> 446.8 | R6: ='CEM Price Data'!S6 -> 83.6 | S6: ='CEM Price Data'!T6 -> 116.88 | T6: ='CEM Price Data'!U6 -> 109.36 | U6: ='CEM Price Data'!V6 -> 34.42 | V6: ='CEM Price Data'!W6 -> 438.3 | W6: ='CEM Price Data'!X6 -> 219.55 | X6: ='CEM Price Data'!Y6 -> 42.18 | Y6: ='CEM Price Data'!Z6 -> 18.61
A7: ='CEM Price Data'!B7 -> 2022-03-25 | B7: ='CEM Price Data'!C7 -> 66.97 | C7: ='CEM Price Data'!D7 -> 137.7 | D7: ='CEM Price Data'!E7 -> 265.67 | E7: ='CEM Price Data'!F7 -> 73.28 | F7: ='CEM Price Data'!G7 -> 474.99 | G7: ='CEM Price Data'!H7 -> 109.51 | H7: ='CEM Price Data'!I7 -> 62.12 | I7: ='CEM Price Data'!J7 -> 144.08 | J7: ='CEM Price Data'!K7 -> 14.51 | K7: ='CEM Price Data'!L7 -> 193.34 | L7: ='CEM Price Data'!M7 -> 153.55 | M7: ='CEM Price Data'!N7 -> 289.02 | N7: ='CEM Price Data'!O7 -> 87.14 | O7: ='CEM Price Data'!P7 -> 97.92 | P7: ='CEM Price Data'!Q7 -> 78.7 | Q7: ='CEM Price Data'!R7 -> 458.18 | R7: ='CEM Price Data'!S7 -> 81.73 | S7: ='CEM Price Data'!T7 -> 116.67 | T7: ='CEM Price Data'!U7 -> 109.38 | U7: ='CEM Price Data'!V7 -> 33.81 | V7: ='CEM Price Data'!W7 -> 429.52 | W7: ='CEM Price Data'!X7 -> 215.35 | X7: ='CEM Price Data'!Y7 -> 42.07 | Y7: ='CEM Price Data'!Z7 -> 18.83
A8: ='CEM Price Data'!B8 -> 2022-03-24 | B8: ='CEM Price Data'!C8 -> 66.23 | C8: ='CEM Price Data'!D8 -> 137.08 | D8: ='CEM Price Data'!E8 -> 263.09 | E8: ='CEM Price Data'!F8 -> 72.41 | F8: ='CEM Price Data'!G8 -> 475.99 | G8: ='CEM Price Data'!H8 -> 106.37 | H8: ='CEM Price Data'!I8 -> 61.56 | I8: ='CEM Price Data'!J8 -> 141.99 | J8: ='CEM Price Data'!K8 -> 14.38 | K8: ='CEM Price Data'!L8 -> 189.33 | L8: ='CEM Price Data'!M8 -> 152.79 | M8: ='CEM Price Data'!N8 -> 287.69 | N8: ='CEM Price Data'!O8 -> 86.24 | O8: ='CEM Price Data'!P8 -> 96.65 | P8: ='CEM Price Data'!Q8 -> 78.56 | Q8: ='CEM Price Data'!R8 -> 454.57 | R8: ='CEM Price Data'!S8 -> 82.24 | S8: ='CEM Price Data'!T8 -> 114.1 | T8: ='CEM Price Data'!U8 -> 107.62 | U8: ='CEM Price Data'!V8 -> 33.54 | V8: ='CEM Price Data'!W8 -> 436.6 | W8: ='CEM Price Data'!X8 -> 214.66 | X8: ='CEM Price Data'!Y8 -> 42.03 | Y8: ='CEM Price Data'!Z8 -> 18.55
A9: ='CEM Price Data'!B9 -> 2022-03-23 | B9: ='CEM Price Data'!C9 -> 65.37 | C9: ='CEM Price Data'!D9 -> 136.61 | D9: ='CEM Price Data'!E9 -> 261.97 | E9: ='CEM Price Data'!F9 -> 71.38 | F9: ='CEM Price Data'!G9 -> 477.85 | G9: ='CEM Price Data'!H9 -> 104.67 | H9: ='CEM Price Data'!I9 -> 62.92 | I9: ='CEM Price Data'!J9 -> 142.36 | J9: ='CEM Price Data'!K9 -> 14.43 | K9: ='CEM Price Data'!L9 -> 188.14 | L9: ='CEM Price Data'!M9 -> 152.12 | M9: ='CEM Price Data'!N9 -> 284.19 | N9: ='CEM Price Data'!O9 -> 86.81 | O9: ='CEM Price Data'!P9 -> 96.14 | P9: ='CEM Price Data'!Q9 -> 78.05 | Q9: ='CEM Price Data'!R9 -> 446.92 | R9: ='CEM Price Data'!S9 -> 80.39 | S9: ='CEM Price Data'!T9 -> 114 | T9: ='CEM Price Data'!U9 -> 107.28 | U9: ='CEM Price Data'!V9 -> 33.42 | V9: ='CEM Price Data'!W9 -> 428.02 | W9: ='CEM Price Data'!X9 -> 214.58 | X9: ='CEM Price Data'!Y9 -> 42.14 | Y9: ='CEM Price Data'!Z9 -> 18.35
A10: ='CEM Price Data'!B10 -> 2022-03-22 | B10: ='CEM Price Data'!C10 -> 67.8 | C10: ='CEM Price Data'!D10 -> 139.85 | D10: ='CEM Price Data'!E10 -> 264.87 | E10: ='CEM Price Data'!F10 -> 70.82 | F10: ='CEM Price Data'!G10 -> 485.5 | G10: ='CEM Price Data'!H10 -> 106.08 | H10: ='CEM Price Data'!I10 -> 63.18 | I10: ='CEM Price Data'!J10 -> 143.78 | J10: ='CEM Price Data'!K10 -> 14.65 | K10: ='CEM Price Data'!L10 -> 187.81 | L10: ='CEM Price Data'!M10 -> 153.65 | M10: ='CEM Price Data'!N10 -> 285.02 | N10: ='CEM Price Data'!O10 -> 86.83 | O10: ='CEM Price Data'!P10 -> 96.78 | P10: ='CEM Price Data'!Q10 -> 81.3 | Q10: ='CEM Price Data'!R10 -> 446.3 | R10: ='CEM Price Data'!S10 -> 81.8 | S10: ='CEM Price Data'!T10 -> 113.35 | T10: ='CEM Price Data'!U10 -> 110.22 | U10: ='CEM Price Data'!V10 -> 33.71 | V10: ='CEM Price Data'!W10 -> 441.33 | W10: ='CEM Price Data'!X10 -> 218.42 | X10: ='CEM Price Data'!Y10 -> 42.79 | Y10: ='CEM Price Data'!Z10 -> 18.3
A11: ='CEM Price Data'!B11 -> 2022-03-21 | B11: ='CEM Price Data'!C11 -> 67.92 | C11: ='CEM Price Data'!D11 -> 139.99 | D11: ='CEM Price Data'!E11 -> 267.6 | E11: ='CEM Price Data'!F11 -> 71.05 | F11: ='CEM Price Data'!G11 -> 487.2 | G11: ='CEM Price Data'!H11 -> 105.31 | H11: ='CEM Price Data'!I11 -> 63.4 | I11: ='CEM Price Data'!J11 -> 143.85 | J11: ='CEM Price Data'!K11 -> 14.7 | K11: ='CEM Price Data'!L11 -> 186.07 | L11: ='CEM Price Data'!M11 -> 154.43 | M11: ='CEM Price Data'!N11 -> 289.64 | N11: ='CEM Price Data'!O11 -> 86.8 | O11: ='CEM Price Data'!P11 -> 96.72 | P11: ='CEM Price Data'!Q11 -> 79 | Q11: ='CEM Price Data'!R11 -> 446.6 | R11: ='CEM Price Data'!S11 -> 80.96 | S11: ='CEM Price Data'!T11 -> 112.18 | T11: ='CEM Price Data'!U11 -> 110.75 | U11: ='CEM Price Data'!V11 -> 33.83 | V11: ='CEM Price Data'!W11 -> 435.56 | W11: ='CEM Price Data'!X11 -> 218.56 | X11: ='CEM Price Data'!Y11 -> 43 | Y11: ='CEM Price Data'!Z11 -> 18.13
A12: ='CEM Price Data'!B12 -> 2022-03-18 | B12: ='CEM Price Data'!C12 -> 68.05 | C12: ='CEM Price Data'!D12 -> 140.2 | D12: ='CEM Price Data'!E12 -> 262.04 | E12: ='CEM Price Data'!F12 -> 71.02 | F12: ='CEM Price Data'!G12 -> 490.4 | G12: ='CEM Price Data'!H12 -> 104.91 | H12: ='CEM Price Data'!I12 -> 63.62 | I12: ='CEM Price Data'!J12 -> 145.06 | J12: ='CEM Price Data'!K12 -> 14.83 | K12: ='CEM Price Data'!L12 -> 185.51 | L12: ='CEM Price Data'!M12 -> 153.68 | M12: ='CEM Price Data'!N12 -> 287.64 | N12: ='CEM Price Data'!O12 -> 84.66 | O12: ='CEM Price Data'!P12 -> 96.24 | P12: ='CEM Price Data'!Q12 -> 80.59 | Q12: ='CEM Price Data'!R12 -> 427.95 | R12: ='CEM Price Data'!S12 -> 81.68 | S12: ='CEM Price Data'!T12 -> 111.22 | T12: ='CEM Price Data'!U12 -> 108.75 | U12: ='CEM Price Data'!V12 -> 34.2 | V12: ='CEM Price Data'!W12 -> 435.99 | W12: ='CEM Price Data'!X12 -> 219.78 | X12: ='CEM Price Data'!Y12 -> 43.57 | Y12: ='CEM Price Data'!Z12 -> 18
A13: ='CEM Price Data'!B13 -> 2022-03-17 | B13: ='CEM Price Data'!C13 -> 68 | C13: ='CEM Price Data'!D13 -> 138.9 | D13: ='CEM Price Data'!E13 -> 262.29 | E13: ='CEM Price Data'!F13 -> 70.52 | F13: ='CEM Price Data'!G13 -> 489.68 | G13: ='CEM Price Data'!H13 -> 104.02 | H13: ='CEM Price Data'!I13 -> 64.27 | I13: ='CEM Price Data'!J13 -> 145.16 | J13: ='CEM Price Data'!K13 -> 14.83 | K13: ='CEM Price Data'!L13 -> 184.25 | L13: ='CEM Price Data'!M13 -> 154.85 | M13: ='CEM Price Data'!N13 -> 285.51 | N13: ='CEM Price Data'!O13 -> 88.34 | O13: ='CEM Price Data'!P13 -> 96.89 | P13: ='CEM Price Data'!Q13 -> 78.28 | Q13: ='CEM Price Data'!R13 -> 428.8 | R13: ='CEM Price Data'!S13 -> 80.6 | S13: ='CEM Price Data'!T13 -> 109.52 | T13: ='CEM Price Data'!U13 -> 109.23 | U13: ='CEM Price Data'!V13 -> 34.25 | V13: ='CEM Price Data'!W13 -> 423.79 | W13: ='CEM Price Data'!X13 -> 222.32 | X13: ='CEM Price Data'!Y13 -> 43.39 | Y13: ='CEM Price Data'!Z13 -> 17.93
A14: ='CEM Price Data'!B14 -> 2022-03-16 | B14: ='CEM Price Data'!C14 -> 67.31 | C14: ='CEM Price Data'!D14 -> 136.18 | D14: ='CEM Price Data'!E14 -> 260.79 | E14: ='CEM Price Data'!F14 -> 69.66 | F14: ='CEM Price Data'!G14 -> 483.01 | G14: ='CEM Price Data'!H14 -> 102.03 | H14: ='CEM Price Data'!I14 -> 64.21 | I14: ='CEM Price Data'!J14 -> 143.29 | J14: ='CEM Price Data'!K14 -> 14.9 | K14: ='CEM Price Data'!L14 -> 184.92 | L14: ='CEM Price Data'!M14 -> 155.9 | M14: ='CEM Price Data'!N14 -> 276.44 | N14: ='CEM Price Data'!O14 -> 85.26 | O14: ='CEM Price Data'!P14 -> 96.83 | P14: ='CEM Price Data'!Q14 -> 77.19 | Q14: ='CEM Price Data'!R14 -> 424.43 | R14: ='CEM Price Data'!S14 -> 79.96 | S14: ='CEM Price Data'!T14 -> 106.14 | T14: ='CEM Price Data'!U14 -> 109.5 | U14: ='CEM Price Data'!V14 -> 33.76 | V14: ='CEM Price Data'!W14 -> 415.07 | W14: ='CEM Price Data'!X14 -> 217.9 | X14: ='CEM Price Data'!Y14 -> 44.19 | Y14: ='CEM Price Data'!Z14 -> 17.89
A15: ='CEM Price Data'!B15 -> 2022-03-15 | B15: ='CEM Price Data'!C15 -> 66.14 | C15: ='CEM Price Data'!D15 -> 134.5 | D15: ='CEM Price Data'!E15 -> 258.69 | E15: ='CEM Price Data'!F15 -> 69.75 | F15: ='CEM Price Data'!G15 -> 477.26 | G15: ='CEM Price Data'!H15 -> 98.54 | H15: ='CEM Price Data'!I15 -> 62.57 | I15: ='CEM Price Data'!J15 -> 141.65 | J15: ='CEM Price Data'!K15 -> 14.36 | K15: ='CEM Price Data'!L15 -> 178.99 | L15: ='CEM Price Data'!M15 -> 156.62 | M15: ='CEM Price Data'!N15 -> 275.46 | N15: ='CEM Price Data'!O15 -> 85.86 | O15: ='CEM Price Data'!P15 -> 98.28 | P15: ='CEM Price Data'!Q15 -> 75.08 | Q15: ='CEM Price Data'!R15 -> 447.82 | R15: ='CEM Price Data'!S15 -> 80.6 | S15: ='CEM Price Data'!T15 -> 107.31 | T15: ='CEM Price Data'!U15 -> 108.08 | U15: ='CEM Price Data'!V15 -> 33.43 | V15: ='CEM Price Data'!W15 -> 403.33 | W15: ='CEM Price Data'!X15 -> 210.53 | X15: ='CEM Price Data'!Y15 -> 42.58 | Y15: ='CEM Price Data'!Z15 -> 17.53
A16: ='CEM Price Data'!B16 -> 2022-03-14 | B16: ='CEM Price Data'!C16 -> 65.88 | C16: ='CEM Price Data'!D16 -> 133.17 | D16: ='CEM Price Data'!E16 -> 256.8 | E16: ='CEM Price Data'!F16 -> 69.24 | F16: ='CEM Price Data'!G16 -> 473.92 | G16: ='CEM Price Data'!H16 -> 98.83 | H16: ='CEM Price Data'!I16 -> 63.19 | I16: ='CEM Price Data'!J16 -> 138.11 | J16: ='CEM Price Data'!K16 -> 14.19 | K16: ='CEM Price Data'!L16 -> 179.79 | L16: ='CEM Price Data'!M16 -> 156.25 | M16: ='CEM Price Data'!N16 -> 269 | N16: ='CEM Price Data'!O16 -> 86.63 | O16: ='CEM Price Data'!P16 -> 98.2 | P16: ='CEM Price Data'!Q16 -> 73.23 | Q16: ='CEM Price Data'!R16 -> 441.42 | R16: ='CEM Price Data'!S16 -> 77.07 | S16: ='CEM Price Data'!T16 -> 105.71 | T16: ='CEM Price Data'!U16 -> 108.8 | U16: ='CEM Price Data'!V16 -> 33.36 | V16: ='CEM Price Data'!W16 -> 391.52 | W16: ='CEM Price Data'!X16 -> 204.3 | X16: ='CEM Price Data'!Y16 -> 42.54 | Y16: ='CEM Price Data'!Z16 -> 17.42
A17: ='CEM Price Data'!B17 -> 2022-03-11 | B17: ='CEM Price Data'!C17 -> 65.72 | C17: ='CEM Price Data'!D17 -> 133.51 | D17: ='CEM Price Data'!E17 -> 254.51 | E17: ='CEM Price Data'!F17 -> 68.87 | F17: ='CEM Price Data'!G17 -> 470.25 | G17: ='CEM Price Data'!H17 -> 102.24 | H17: ='CEM Price Data'!I17 -> 63.71 | I17: ='CEM Price Data'!J17 -> 136.34 | J17: ='CEM Price Data'!K17 -> 14.1 | K17: ='CEM Price Data'!L17 -> 183.42 | L17: ='CEM Price Data'!M17 -> 153.23 | M17: ='CEM Price Data'!N17 -> 266.3 | N17: ='CEM Price Data'!O17 -> 88.52 | O17: ='CEM Price Data'!P17 -> 96.52 | P17: ='CEM Price Data'!Q17 -> 73.22 | Q17: ='CEM Price Data'!R17 -> 436.3 | R17: ='CEM Price Data'!S17 -> 77.82 | S17: ='CEM Price Data'!T17 -> 105.54 | T17: ='CEM Price Data'!U17 -> 104.04 | U17: ='CEM Price Data'!V17 -> 32.2 | V17: ='CEM Price Data'!W17 -> 398.31 | W17: ='CEM Price Data'!X17 -> 203.9 | X17: ='CEM Price Data'!Y17 -> 42.14 | Y17: ='CEM Price Data'!Z17 -> 17.21
A18: ='CEM Price Data'!B18 -> 2022-03-10 | B18: ='CEM Price Data'!C18 -> 66.61 | C18: ='CEM Price Data'!D18 -> 136.05 | D18: ='CEM Price Data'!E18 -> 257.72 | E18: ='CEM Price Data'!F18 -> 68.42 | F18: ='CEM Price Data'!G18 -> 471.62 | G18: ='CEM Price Data'!H18 -> 102.31 | H18: ='CEM Price Data'!I18 -> 65.26 | I18: ='CEM Price Data'!J18 -> 135.97 | J18: ='CEM Price Data'!K18 -> 14.28 | K18: ='CEM Price Data'!L18 -> 181.66 | L18: ='CEM Price Data'!M18 -> 153.33 | M18: ='CEM Price Data'!N18 -> 266.02 | N18: ='CEM Price Data'!O18 -> 85.93 | O18: ='CEM Price Data'!P18 -> 97.94 | P18: ='CEM Price Data'!Q18 -> 75.39 | Q18: ='CEM Price Data'!R18 -> 444.61 | R18: ='CEM Price Data'!S18 -> 76.65 | S18: ='CEM Price Data'!T18 -> 104.67 | T18: ='CEM Price Data'!U18 -> 103.65 | U18: ='CEM Price Data'!V18 -> 32.6 | V18: ='CEM Price Data'!W18 -> 408.13 | W18: ='CEM Price Data'!X18 -> 207.18 | X18: ='CEM Price Data'!Y18 -> 42.42 | Y18: ='CEM Price Data'!Z18 -> 17.56
A19: ='CEM Price Data'!B19 -> 2022-03-09 | B19: ='CEM Price Data'!C19 -> 67.68 | C19: ='CEM Price Data'!D19 -> 136.03 | D19: ='CEM Price Data'!E19 -> 264.84 | E19: ='CEM Price Data'!F19 -> 68.13 | F19: ='CEM Price Data'!G19 -> 475.27 | G19: ='CEM Price Data'!H19 -> 101.59 | H19: ='CEM Price Data'!I19 -> 64.18 | I19: ='CEM Price Data'!J19 -> 135.58 | J19: ='CEM Price Data'!K19 -> 14.34 | K19: ='CEM Price Data'!L19 -> 177.05 | L19: ='CEM Price Data'!M19 -> 156.92 | M19: ='CEM Price Data'!N19 -> 262.79 | N19: ='CEM Price Data'!O19 -> 84.71 | O19: ='CEM Price Data'!P19 -> 98.31 | P19: ='CEM Price Data'!Q19 -> 76.68 | Q19: ='CEM Price Data'!R19 -> 449.92 | R19: ='CEM Price Data'!S19 -> 76.1 | S19: ='CEM Price Data'!T19 -> 104.1 | T19: ='CEM Price Data'!U19 -> 104.46 | U19: ='CEM Price Data'!V19 -> 32.72 | V19: ='CEM Price Data'!W19 -> 418.65 | W19: ='CEM Price Data'!X19 -> 206.78 | X19: ='CEM Price Data'!Y19 -> 42.97 | Y19: ='CEM Price Data'!Z19 -> 17.78
A20: ='CEM Price Data'!B20 -> 2022-03-08 | B20: ='CEM Price Data'!C20 -> 66.21 | C20: ='CEM Price Data'!D20 -> 131.21 | D20: ='CEM Price Data'!E20 -> 265.13 | E20: ='CEM Price Data'!F20 -> 67.74 | F20: ='CEM Price Data'!G20 -> 467.18 | G20: ='CEM Price Data'!H20 -> 101.56 | H20: ='CEM Price Data'!I20 -> 64.14 | I20: ='CEM Price Data'!J20 -> 134.3 | J20: ='CEM Price Data'!K20 -> 14.14 | K20: ='CEM Price Data'!L20 -> 177.3 | L20: ='CEM Price Data'!M20 -> 156.5 | M20: ='CEM Price Data'!N20 -> 259.93 | N20: ='CEM Price Data'!O20 -> 85.89 | O20: ='CEM Price Data'!P20 -> 97.55 | P20: ='CEM Price Data'!Q20 -> 72.49 | Q20: ='CEM Price Data'!R20 -> 449.21 | R20: ='CEM Price Data'!S20 -> 73.33 | S20: ='CEM Price Data'!T20 -> 103.76 | T20: ='CEM Price Data'!U20 -> 103.25 | U20: ='CEM Price Data'!V20 -> 32.57 | V20: ='CEM Price Data'!W20 -> 404.14 | W20: ='CEM Price Data'!X20 -> 203.41 | X20: ='CEM Price Data'!Y20 -> 42.63 | Y20: ='CEM Price Data'!Z20 -> 17.72
A21: ='CEM Price Data'!B21 -> 2022-03-07 | B21: ='CEM Price Data'!C21 -> 67.32 | C21: ='CEM Price Data'!D21 -> 134.13 | D21: ='CEM Price Data'!E21 -> 276.05 | E21: ='CEM Price Data'!F21 -> 68.77 | F21: ='CEM Price Data'!G21 -> 483.38 | G21: ='CEM Price Data'!H21 -> 105.13 | H21: ='CEM Price Data'!I21 -> 64.96 | I21: ='CEM Price Data'!J21 -> 136.1 | J21: ='CEM Price Data'!K21 -> 14.31 | K21: ='CEM Price Data'!L21 -> 183.69 | L21: ='CEM Price Data'!M21 -> 165 | M21: ='CEM Price Data'!N21 -> 261.64 | N21: ='CEM Price Data'!O21 -> 87.2 | O21: ='CEM Price Data'!P21 -> 104.06 | P21: ='CEM Price Data'!Q21 -> 75 | Q21: ='CEM Price Data'!R21 -> 477.95 | R21: ='CEM Price Data'!S21 -> 74.32 | S21: ='CEM Price Data'!T21 -> 106.52 | T21: ='CEM Price Data'!U21 -> 103.59 | U21: ='CEM Price Data'!V21 -> 33.96 | V21: ='CEM Price Data'!W21 -> 408.23 | W21: ='CEM Price Data'!X21 -> 201.18 | X21: ='CEM Price Data'!Y21 -> 43.74 | Y21: ='CEM Price Data'!Z21 -> 17.52
A22: ='CEM Price Data'!B22 -> 2022-03-04 | B22: ='CEM Price Data'!C22 -> 68.39 | C22: ='CEM Price Data'!D22 -> 140.87 | D22: ='CEM Price Data'!E22 -> 275.42 | E22: ='CEM Price Data'!F22 -> 69.36 | F22: ='CEM Price Data'!G22 -> 485.9 | G22: ='CEM Price Data'!H22 -> 106.48 | H22: ='CEM Price Data'!I22 -> 64.57 | I22: ='CEM Price Data'!J22 -> 137.65 | J22: ='CEM Price Data'!K22 -> 14.58 | K22: ='CEM Price Data'!L22 -> 185.33 | L22: ='CEM Price Data'!M22 -> 162.61 | M22: ='CEM Price Data'!N22 -> 262.87 | N22: ='CEM Price Data'!O22 -> 85.76 | O22: ='CEM Price Data'!P22 -> 103.41 | P22: ='CEM Price Data'!Q22 -> 81.32 | Q22: ='CEM Price Data'!R22 -> 468.57 | R22: ='CEM Price Data'!S22 -> 76.49 | S22: ='CEM Price Data'!T22 -> 107.19 | T22: ='CEM Price Data'!U22 -> 103.45 | U22: ='CEM Price Data'!V22 -> 34.01 | V22: ='CEM Price Data'!W22 -> 416.68 | W22: ='CEM Price Data'!X22 -> 210.39 | X22: ='CEM Price Data'!Y22 -> 44.73 | Y22: ='CEM Price Data'!Z22 -> 17.76
A23: ='CEM Price Data'!B23 -> 2022-03-03 | B23: ='CEM Price Data'!C23 -> 68.68 | C23: ='CEM Price Data'!D23 -> 138.28 | D23: ='CEM Price Data'!E23 -> 272.84 | E23: ='CEM Price Data'!F23 -> 69.11 | F23: ='CEM Price Data'!G23 -> 481.72 | G23: ='CEM Price Data'!H23 -> 102.57 | H23: ='CEM Price Data'!I23 -> 62.55 | I23: ='CEM Price Data'!J23 -> 135.79 | J23: ='CEM Price Data'!K23 -> 14.51 | K23: ='CEM Price Data'!L23 -> 183.44 | L23: ='CEM Price Data'!M23 -> 162.82 | M23: ='CEM Price Data'!N23 -> 258.64 | N23: ='CEM Price Data'!O23 -> 84.91 | O23: ='CEM Price Data'!P23 -> 99.56 | P23: ='CEM Price Data'!Q23 -> 83.35 | Q23: ='CEM Price Data'!R23 -> 449.69 | R23: ='CEM Price Data'!S23 -> 78.25 | S23: ='CEM Price Data'!T23 -> 105.08 | T23: ='CEM Price Data'!U23 -> 102.19 | U23: ='CEM Price Data'!V23 -> 33.48 | V23: ='CEM Price Data'!W23 -> 420.47 | W23: ='CEM Price Data'!X23 -> 212.43 | X23: ='CEM Price Data'!Y23 -> 44.71 | Y23: ='CEM Price Data'!Z23 -> 17.91
A24: ='CEM Price Data'!B24 -> 2022-03-02 | B24: ='CEM Price Data'!C24 -> 69.4 | C24: ='CEM Price Data'!D24 -> 138.57 | D24: ='CEM Price Data'!E24 -> 272.52 | E24: ='CEM Price Data'!F24 -> 68.85 | F24: ='CEM Price Data'!G24 -> 485.34 | G24: ='CEM Price Data'!H24 -> 102.94 | H24: ='CEM Price Data'!I24 -> 62.46 | I24: ='CEM Price Data'!J24 -> 134.76 | J24: ='CEM Price Data'!K24 -> 14.49 | K24: ='CEM Price Data'!L24 -> 180.15 | L24: ='CEM Price Data'!M24 -> 162.59 | M24: ='CEM Price Data'!N24 -> 254.17 | N24: ='CEM Price Data'!O24 -> 84.13 | O24: ='CEM Price Data'!P24 -> 97.33 | P24: ='CEM Price Data'!Q24 -> 83.75 | Q24: ='CEM Price Data'!R24 -> 453.39 | R24: ='CEM Price Data'!S24 -> 78.28 | S24: ='CEM Price Data'!T24 -> 104.92 | T24: ='CEM Price Data'!U24 -> 101.74 | U24: ='CEM Price Data'!V24 -> 34.08 | V24: ='CEM Price Data'!W24 -> 427.41 | W24: ='CEM Price Data'!X24 -> 211.46 | X24: ='CEM Price Data'!Y24 -> 44.95 | Y24: ='CEM Price Data'!Z24 -> 18.09
A25: ='CEM Price Data'!B25 -> 2022-03-01 | B25: ='CEM Price Data'!C25 -> 66.63 | C25: ='CEM Price Data'!D25 -> 136.5 | D25: ='CEM Price Data'!E25 -> 271.39 | E25: ='CEM Price Data'!F25 -> 68.63 | F25: ='CEM Price Data'!G25 -> 484.27 | G25: ='CEM Price Data'!H25 -> 104.82 | H25: ='CEM Price Data'!I25 -> 60.73 | I25: ='CEM Price Data'!J25 -> 131.92 | J25: ='CEM Price Data'!K25 -> 14.34 | K25: ='CEM Price Data'!L25 -> 179.12 | L25: ='CEM Price Data'!M25 -> 165.46 | M25: ='CEM Price Data'!N25 -> 249.5 | N25: ='CEM Price Data'!O25 -> 84.24 | O25: ='CEM Price Data'!P25 -> 96.25 | P25: ='CEM Price Data'!Q25 -> 83.23 | Q25: ='CEM Price Data'!R25 -> 456.1 | R25: ='CEM Price Data'!S25 -> 76.01 | S25: ='CEM Price Data'!T25 -> 103.24 | T25: ='CEM Price Data'!U25 -> 98.93 | U25: ='CEM Price Data'!V25 -> 33.16 | V25: ='CEM Price Data'!W25 -> 422.33 | W25: ='CEM Price Data'!X25 -> 205.58 | X25: ='CEM Price Data'!Y25 -> 44 | Y25: ='CEM Price Data'!Z25 -> 17.58
A26: ='CEM Price Data'!B26 -> 2022-02-28 | B26: ='CEM Price Data'!C26 -> 68.58 | C26: ='CEM Price Data'!D26 -> 138.34 | D26: ='CEM Price Data'!E26 -> 271.28 | E26: ='CEM Price Data'!F26 -> 68.67 | F26: ='CEM Price Data'!G26 -> 478.29 | G26: ='CEM Price Data'!H26 -> 96.68 | H26: ='CEM Price Data'!I26 -> 61.72 | I26: ='CEM Price Data'!J26 -> 131.27 | J26: ='CEM Price Data'!K26 -> 14.36 | K26: ='CEM Price Data'!L26 -> 176.8 | L26: ='CEM Price Data'!M26 -> 168.21 | M26: ='CEM Price Data'!N26 -> 249.95 | N26: ='CEM Price Data'!O26 -> 83.37 | O26: ='CEM Price Data'!P26 -> 95.17 | P26: ='CEM Price Data'!Q26 -> 84.4 | Q26: ='CEM Price Data'!R26 -> 442.14 | R26: ='CEM Price Data'!S26 -> 75.97 | S26: ='CEM Price Data'!T26 -> 105.93 | T26: ='CEM Price Data'!U26 -> 101.5 | U26: ='CEM Price Data'!V26 -> 32.63 | V26: ='CEM Price Data'!W26 -> 428.26 | W26: ='CEM Price Data'!X26 -> 210.42 | X26: ='CEM Price Data'!Y26 -> 43.46 | Y26: ='CEM Price Data'!Z26 -> 18.18
A27: ='CEM Price Data'!B27 -> 2022-02-25 | B27: ='CEM Price Data'!C27 -> 69.39 | C27: ='CEM Price Data'!D27 -> 141.04 | D27: ='CEM Price Data'!E27 -> 272.72 | E27: ='CEM Price Data'!F27 -> 68.8 | F27: ='CEM Price Data'!G27 -> 480.78 | G27: ='CEM Price Data'!H27 -> 96.79 | H27: ='CEM Price Data'!I27 -> 61.63 | I27: ='CEM Price Data'!J27 -> 132.18 | J27: ='CEM Price Data'!K27 -> 14.3 | K27: ='CEM Price Data'!L27 -> 176.05 | L27: ='CEM Price Data'!M27 -> 168.09 | M27: ='CEM Price Data'!N27 -> 250.85 | N27: ='CEM Price Data'!O27 -> 79.38 | O27: ='CEM Price Data'!P27 -> 96.21 | P27: ='CEM Price Data'!Q27 -> 84.57 | Q27: ='CEM Price Data'!R27 -> 409.67 | R27: ='CEM Price Data'!S27 -> 76.35 | S27: ='CEM Price Data'!T27 -> 107.24 | T27: ='CEM Price Data'!U27 -> 102.04 | U27: ='CEM Price Data'!V27 -> 32.13 | V27: ='CEM Price Data'!W27 -> 429.92 | W27: ='CEM Price Data'!X27 -> 209.95 | X27: ='CEM Price Data'!Y27 -> 43.57 | Y27: ='CEM Price Data'!Z27 -> 19.03
A28: ='CEM Price Data'!B28 -> 2022-02-24 | B28: ='CEM Price Data'!C28 -> 67.77 | C28: ='CEM Price Data'!D28 -> 138.73 | D28: ='CEM Price Data'!E28 -> 266.29 | E28: ='CEM Price Data'!F28 -> 67.1 | F28: ='CEM Price Data'!G28 -> 458.99 | G28: ='CEM Price Data'!H28 -> 96.2 | H28: ='CEM Price Data'!I28 -> 59.99 | I28: ='CEM Price Data'!J28 -> 129.51 | J28: ='CEM Price Data'!K28 -> 13.99 | K28: ='CEM Price Data'!L28 -> 170.07 | L28: ='CEM Price Data'!M28 -> 159.57 | M28: ='CEM Price Data'!N28 -> 243.08 | N28: ='CEM Price Data'!O28 -> 79.39 | O28: ='CEM Price Data'!P28 -> 94.12 | P28: ='CEM Price Data'!Q28 -> 80.35 | Q28: ='CEM Price Data'!R28 -> 395.49 | R28: ='CEM Price Data'!S28 -> 74.81 | S28: ='CEM Price Data'!T28 -> 102.88 | T28: ='CEM Price Data'!U28 -> 99.37 | U28: ='CEM Price Data'!V28 -> 31.6 | V28: ='CEM Price Data'!W28 -> 425.29 | W28: ='CEM Price Data'!X28 -> 207.19 | X28: ='CEM Price Data'!Y28 -> 42.99 | Y28: ='CEM Price Data'!Z28 -> 18.62
A29: ='CEM Price Data'!B29 -> 2022-02-23 | B29: ='CEM Price Data'!C29 -> 67.89 | C29: ='CEM Price Data'!D29 -> 137.62 | D29: ='CEM Price Data'!E29 -> 268.66 | E29: ='CEM Price Data'!F29 -> 67.93 | F29: ='CEM Price Data'!G29 -> 457.55 | G29: ='CEM Price Data'!H29 -> 92.42 | H29: ='CEM Price Data'!I29 -> 59.03 | I29: ='CEM Price Data'!J29 -> 129.09 | J29: ='CEM Price Data'!K29 -> 14.07 | K29: ='CEM Price Data'!L29 -> 167.89 | L29: ='CEM Price Data'!M29 -> 162.32 | M29: ='CEM Price Data'!N29 -> 238.31 | N29: ='CEM Price Data'!O29 -> 77.01 | O29: ='CEM Price Data'!P29 -> 96.61 | P29: ='CEM Price Data'!Q29 -> 79.41 | Q29: ='CEM Price Data'!R29 -> 386.08 | R29: ='CEM Price Data'!S29 -> 72.47 | S29: ='CEM Price Data'!T29 -> 104.62 | T29: ='CEM Price Data'!U29 -> 99.64 | U29: ='CEM Price Data'!V29 -> 30.31 | V29: ='CEM Price Data'!W29 -> 397.39 | W29: ='CEM Price Data'!X29 -> 204.48 | X29: ='CEM Price Data'!Y29 -> 42.33 | Y29: ='CEM Price Data'!Z29 -> 19.36
A30: ='CEM Price Data'!B30 -> 2022-02-22 | B30: ='CEM Price Data'!C30 -> 69.53 | C30: ='CEM Price Data'!D30 -> 140.02 | D30: ='CEM Price Data'!E30 -> 264.16 | E30: ='CEM Price Data'!F30 -> 67.45 | F30: ='CEM Price Data'!G30 -> 463.99 | G30: ='CEM Price Data'!H30 -> 92.37 | H30: ='CEM Price Data'!I30 -> 59.6 | I30: ='CEM Price Data'!J30 -> 130.55 | J30: ='CEM Price Data'!K30 -> 14.11 | K30: ='CEM Price Data'!L30 -> 169.36 | L30: ='CEM Price Data'!M30 -> 163 | M30: ='CEM Price Data'!N30 -> 239.13 | N30: ='CEM Price Data'!O30 -> 78.57 | O30: ='CEM Price Data'!P30 -> 96.97 | P30: ='CEM Price Data'!Q30 -> 81.65 | Q30: ='CEM Price Data'!R30 -> 390.73 | R30: ='CEM Price Data'!S30 -> 74.12 | S30: ='CEM Price Data'!T30 -> 106.25 | T30: ='CEM Price Data'!U30 -> 100.95 | U30: ='CEM Price Data'!V30 -> 30.99 | V30: ='CEM Price Data'!W30 -> 408.33 | W30: ='CEM Price Data'!X30 -> 208.97 | X30: ='CEM Price Data'!Y30 -> 42.7 | Y30: ='CEM Price Data'!Z30 -> 19.47
A31: ='CEM Price Data'!B31 -> 2022-02-18 | B31: ='CEM Price Data'!C31 -> 71.2 | C31: ='CEM Price Data'!D31 -> 138.01 | D31: ='CEM Price Data'!E31 -> 264.04 | E31: ='CEM Price Data'!F31 -> 67.55 | F31: ='CEM Price Data'!G31 -> 459.5 | G31: ='CEM Price Data'!H31 -> 91.98 | H31: ='CEM Price Data'!I31 -> 58.85 | I31: ='CEM Price Data'!J31 -> 131.38 | J31: ='CEM Price Data'!K31 -> 14.42 | K31: ='CEM Price Data'!L31 -> 172.46 | L31: ='CEM Price Data'!M31 -> 161.73 | M31: ='CEM Price Data'!N31 -> 240.31 | N31: ='CEM Price Data'!O31 -> 79.93 | O31: ='CEM Price Data'!P31 -> 97.79 | P31: ='CEM Price Data'!Q31 -> 81.27 | Q31: ='CEM Price Data'!R31 -> 391.25 | R31: ='CEM Price Data'!S31 -> 74.57 | S31: ='CEM Price Data'!T31 -> 106.41 | T31: ='CEM Price Data'!U31 -> 98.85 | U31: ='CEM Price Data'!V31 -> 31.13 | V31: ='CEM Price Data'!W31 -> 411.28 | W31: ='CEM Price Data'!X31 -> 209.36 | X31: ='CEM Price Data'!Y31 -> 43.33 | Y31: ='CEM Price Data'!Z31 -> 19.73
A32: ='CEM Price Data'!B32 -> 2022-02-17 | B32: ='CEM Price Data'!C32 -> 71.05 | C32: ='CEM Price Data'!D32 -> 138.58 | D32: ='CEM Price Data'!E32 -> 266.15 | E32: ='CEM Price Data'!F32 -> 67.39 | F32: ='CEM Price Data'!G32 -> 459.33 | G32: ='CEM Price Data'!H32 -> 90.85 | H32: ='CEM Price Data'!I32 -> 59.52 | I32: ='CEM Price Data'!J32 -> 129.12 | J32: ='CEM Price Data'!K32 -> 14.49 | K32: ='CEM Price Data'!L32 -> 170.35 | L32: ='CEM Price Data'!M32 -> 158.78 | M32: ='CEM Price Data'!N32 -> 240.97 | N32: ='CEM Price Data'!O32 -> 81 | O32: ='CEM Price Data'!P32 -> 98.08 | P32: ='CEM Price Data'!Q32 -> 82.14 | Q32: ='CEM Price Data'!R32 -> 398.11 | R32: ='CEM Price Data'!S32 -> 75.53 | S32: ='CEM Price Data'!T32 -> 105.23 | T32: ='CEM Price Data'!U32 -> 98.37 | U32: ='CEM Price Data'!V32 -> 31.19 | V32: ='CEM Price Data'!W32 -> 428.62 | W32: ='CEM Price Data'!X32 -> 210.71 | X32: ='CEM Price Data'!Y32 -> 42.7 | Y32: ='CEM Price Data'!Z32 -> 19.81
A33: ='CEM Price Data'!B33 -> 2022-02-16 | B33: ='CEM Price Data'!C33 -> 72.32 | C33: ='CEM Price Data'!D33 -> 139.93 | D33: ='CEM Price Data'!E33 -> 271.13 | E33: ='CEM Price Data'!F33 -> 67.6 | F33: ='CEM Price Data'!G33 -> 468.69 | G33: ='CEM Price Data'!H33 -> 90.41 | H33: ='CEM Price Data'!I33 -> 60.36 | I33: ='CEM Price Data'!J33 -> 131.72 | J33: ='CEM Price Data'!K33 -> 14.47 | K33: ='CEM Price Data'!L33 -> 169.54 | L33: ='CEM Price Data'!M33 -> 158.36 | M33: ='CEM Price Data'!N33 -> 245.58 | N33: ='CEM Price Data'!O33 -> 81.05 | O33: ='CEM Price Data'!P33 -> 98.39 | P33: ='CEM Price Data'!Q33 -> 83.22 | Q33: ='CEM Price Data'!R33 -> 393.66 | R33: ='CEM Price Data'!S33 -> 79.19 | S33: ='CEM Price Data'!T33 -> 106.08 | T33: ='CEM Price Data'!U33 -> 100.46 | U33: ='CEM Price Data'!V33 -> 31.37 | V33: ='CEM Price Data'!W33 -> 469.74 | W33: ='CEM Price Data'!X33 -> 215.31 | X33: ='CEM Price Data'!Y33 -> 42.75 | Y33: ='CEM Price Data'!Z33 -> 19.83
A34: ='CEM Price Data'!B34 -> 2022-02-15 | B34: ='CEM Price Data'!C34 -> 72.46 | C34: ='CEM Price Data'!D34 -> 139.38 | D34: ='CEM Price Data'!E34 -> 271.15 | E34: ='CEM Price Data'!F34 -> 67.77 | F34: ='CEM Price Data'!G34 -> 478.42 | G34: ='CEM Price Data'!H34 -> 89.86 | H34: ='CEM Price Data'!I34 -> 59.5 | I34: ='CEM Price Data'!J34 -> 131.11 | J34: ='CEM Price Data'!K34 -> 14.24 | K34: ='CEM Price Data'!L34 -> 168.94 | L34: ='CEM Price Data'!M34 -> 158.94 | M34: ='CEM Price Data'!N34 -> 243.84 | N34: ='CEM Price Data'!O34 -> 79.27 | O34: ='CEM Price Data'!P34 -> 100.12 | P34: ='CEM Price Data'!Q34 -> 82.78 | Q34: ='CEM Price Data'!R34 -> 384.77 | R34: ='CEM Price Data'!S34 -> 79.77 | S34: ='CEM Price Data'!T34 -> 105.78 | T34: ='CEM Price Data'!U34 -> 100.43 | U34: ='CEM Price Data'!V34 -> 31.3 | V34: ='CEM Price Data'!W34 -> 477.13 | W34: ='CEM Price Data'!X34 -> 217.26 | X34: ='CEM Price Data'!Y34 -> 42.97 | Y34: ='CEM Price Data'!Z34 -> 20.09
A35: ='CEM Price Data'!B35 -> 2022-02-14 | B35: ='CEM Price Data'!C35 -> 71.23 | C35: ='CEM Price Data'!D35 -> 137.73 | D35: ='CEM Price Data'!E35 -> 268.9 | E35: ='CEM Price Data'!F35 -> 66.81 | F35: ='CEM Price Data'!G35 -> 464.75 | G35: ='CEM Price Data'!H35 -> 89.21 | H35: ='CEM Price Data'!I35 -> 60.18 | I35: ='CEM Price Data'!J35 -> 130.29 | J35: ='CEM Price Data'!K35 -> 14.31 | K35: ='CEM Price Data'!L35 -> 170.18 | L35: ='CEM Price Data'!M35 -> 159.15 | M35: ='CEM Price Data'!N35 -> 234.69 | N35: ='CEM Price Data'!O35 -> 78.78 | O35: ='CEM Price Data'!P35 -> 100.4 | P35: ='CEM Price Data'!Q35 -> 82.57 | Q35: ='CEM Price Data'!R35 -> 390.6 | R35: ='CEM Price Data'!S35 -> 78.95 | S35: ='CEM Price Data'!T35 -> 106.21 | T35: ='CEM Price Data'!U35 -> 99.24 | U35: ='CEM Price Data'!V35 -> 30.84 | V35: ='CEM Price Data'!W35 -> 467.28 | W35: ='CEM Price Data'!X35 -> 213.99 | X35: ='CEM Price Data'!Y35 -> 43.28 | Y35: ='CEM Price Data'!Z35 -> 19.8
A36: ='CEM Price Data'!B36 -> 2022-02-11 | B36: ='CEM Price Data'!C36 -> 71.31 | C36: ='CEM Price Data'!D36 -> 137.74 | D36: ='CEM Price Data'!E36 -> 269.98 | E36: ='CEM Price Data'!F36 -> 66.88 | F36: ='CEM Price Data'!G36 -> 472.54 | G36: ='CEM Price Data'!H36 -> 89.5 | H36: ='CEM Price Data'!I36 -> 60.76 | I36: ='CEM Price Data'!J36 -> 132.37 | J36: ='CEM Price Data'!K36 -> 14.26 | K36: ='CEM Price Data'!L36 -> 167.41 | L36: ='CEM Price Data'!M36 -> 157.79 | M36: ='CEM Price Data'!N36 -> 235.74 | N36: ='CEM Price Data'!O36 -> 81.97 | O36: ='CEM Price Data'!P36 -> 100.75 | P36: ='CEM Price Data'!Q36 -> 82.8 | Q36: ='CEM Price Data'!R36 -> 399.32 | R36: ='CEM Price Data'!S36 -> 79.75 | S36: ='CEM Price Data'!T36 -> 106.2 | T36: ='CEM Price Data'!U36 -> 99.03 | U36: ='CEM Price Data'!V36 -> 30.73 | V36: ='CEM Price Data'!W36 -> 467.67 | W36: ='CEM Price Data'!X36 -> 213.49 | X36: ='CEM Price Data'!Y36 -> 43.58 | Y36: ='CEM Price Data'!Z36 -> 19.43
A37: ='CEM Price Data'!B37 -> 2022-02-10 | B37: ='CEM Price Data'!C37 -> 72.23 | C37: ='CEM Price Data'!D37 -> 138.07 | D37: ='CEM Price Data'!E37 -> 271.94 | E37: ='CEM Price Data'!F37 -> 66.51 | F37: ='CEM Price Data'!G37 -> 480.8 | G37: ='CEM Price Data'!H37 -> 90.33 | H37: ='CEM Price Data'!I37 -> 59.92 | I37: ='CEM Price Data'!J37 -> 133.71 | J37: ='CEM Price Data'!K37 -> 14.26 | K37: ='CEM Price Data'!L37 -> 166.76 | L37: ='CEM Price Data'!M37 -> 155.73 | M37: ='CEM Price Data'!N37 -> 239.64 | N37: ='CEM Price Data'!O37 -> 80.35 | O37: ='CEM Price Data'!P37 -> 100.44 | P37: ='CEM Price Data'!Q37 -> 83.83 | Q37: ='CEM Price Data'!R37 -> 382.02 | R37: ='CEM Price Data'!S37 -> 81.85 | S37: ='CEM Price Data'!T37 -> 106.51 | T37: ='CEM Price Data'!U37 -> 99.26 | U37: ='CEM Price Data'!V37 -> 30.93 | V37: ='CEM Price Data'!W37 -> 483.21 | W37: ='CEM Price Data'!X37 -> 220.68 | X37: ='CEM Price Data'!Y37 -> 43.2 | Y37: ='CEM Price Data'!Z37 -> 18.48
A38: ='CEM Price Data'!B38 -> 2022-02-09 | B38: ='CEM Price Data'!C38 -> 74.65 | C38: ='CEM Price Data'!D38 -> 139.91 | D38: ='CEM Price Data'!E38 -> 277.24 | E38: ='CEM Price Data'!F38 -> 67.14 | F38: ='CEM Price Data'!G38 -> 481.49 | G38: ='CEM Price Data'!H38 -> 89.37 | H38: ='CEM Price Data'!I38 -> 60.03 | I38: ='CEM Price Data'!J38 -> 136.79 | J38: ='CEM Price Data'!K38 -> 14.47 | K38: ='CEM Price Data'!L38 -> 175.04 | L38: ='CEM Price Data'!M38 -> 159.03 | M38: ='CEM Price Data'!N38 -> 243.27 | N38: ='CEM Price Data'!O38 -> 80.75 | O38: ='CEM Price Data'!P38 -> 102.3 | P38: ='CEM Price Data'!Q38 -> 86.29 | Q38: ='CEM Price Data'!R38 -> 384.36 | R38: ='CEM Price Data'!S38 -> 83.45 | S38: ='CEM Price Data'!T38 -> 108.43 | T38: ='CEM Price Data'!U38 -> 101.46 | U38: ='CEM Price Data'!V38 -> 31.35 | V38: ='CEM Price Data'!W38 -> 491.07 | W38: ='CEM Price Data'!X38 -> 225.07 | X38: ='CEM Price Data'!Y38 -> 44.02 | Y38: ='CEM Price Data'!Z38 -> 18.72
A39: ='CEM Price Data'!B39 -> 2022-02-08 | B39: ='CEM Price Data'!C39 -> 74.19 | C39: ='CEM Price Data'!D39 -> 140.64 | D39: ='CEM Price Data'!E39 -> 276.49 | E39: ='CEM Price Data'!F39 -> 65.89 | F39: ='CEM Price Data'!G39 -> 477.25 | G39: ='CEM Price Data'!H39 -> 88.21 | H39: ='CEM Price Data'!I39 -> 60.39 | I39: ='CEM Price Data'!J39 -> 134.52 | J39: ='CEM Price Data'!K39 -> 14.45 | K39: ='CEM Price Data'!L39 -> 169.2 | L39: ='CEM Price Data'!M39 -> 156.9 | M39: ='CEM Price Data'!N39 -> 239.91 | N39: ='CEM Price Data'!O39 -> 79.1 | O39: ='CEM Price Data'!P39 -> 102.44 | P39: ='CEM Price Data'!Q39 -> 84.72 | Q39: ='CEM Price Data'!R39 -> 379.32 | R39: ='CEM Price Data'!S39 -> 80.79 | S39: ='CEM Price Data'!T39 -> 109.2 | T39: ='CEM Price Data'!U39 -> 103.65 | U39: ='CEM Price Data'!V39 -> 30.41 | V39: ='CEM Price Data'!W39 -> 472.04 | W39: ='CEM Price Data'!X39 -> 225.2 | X39: ='CEM Price Data'!Y39 -> 43.79 | Y39: ='CEM Price Data'!Z39 -> 18.4
A40: ='CEM Price Data'!B40 -> 2022-02-07 | B40: ='CEM Price Data'!C40 -> 73.86 | C40: ='CEM Price Data'!D40 -> 137.81 | D40: ='CEM Price Data'!E40 -> 269.27 | E40: ='CEM Price Data'!F40 -> 66.19 | F40: ='CEM Price Data'!G40 -> 463.34 | G40: ='CEM Price Data'!H40 -> 89.32 | H40: ='CEM Price Data'!I40 -> 57.62 | I40: ='CEM Price Data'!J40 -> 132.21 | J40: ='CEM Price Data'!K40 -> 14.28 | K40: ='CEM Price Data'!L40 -> 167.32 | L40: ='CEM Price Data'!M40 -> 154.85 | M40: ='CEM Price Data'!N40 -> 243.55 | N40: ='CEM Price Data'!O40 -> 78.83 | O40: ='CEM Price Data'!P40 -> 101.89 | P40: ='CEM Price Data'!Q40 -> 84.54 | Q40: ='CEM Price Data'!R40 -> 373.16 | R40: ='CEM Price Data'!S40 -> 80.74 | S40: ='CEM Price Data'!T40 -> 109.1 | T40: ='CEM Price Data'!U40 -> 102 | U40: ='CEM Price Data'!V40 -> 30.49 | V40: ='CEM Price Data'!W40 -> 471.75 | W40: ='CEM Price Data'!X40 -> 225.06 | X40: ='CEM Price Data'!Y40 -> 43.81 | Y40: ='CEM Price Data'!Z40 -> 18.31
A41: ='CEM Price Data'!B41 -> 2022-02-04 | B41: ='CEM Price Data'!C41 -> 73.58 | C41: ='CEM Price Data'!D41 -> 139.51 | D41: ='CEM Price Data'!E41 -> 268.85 | E41: ='CEM Price Data'!F41 -> 64.99 | F41: ='CEM Price Data'!G41 -> 467.41 | G41: ='CEM Price Data'!H41 -> 88.73 | H41: ='CEM Price Data'!I41 -> 57.32 | I41: ='CEM Price Data'!J41 -> 134.05 | J41: ='CEM Price Data'!K41 -> 14.43 | K41: ='CEM Price Data'!L41 -> 168 | L41: ='CEM Price Data'!M41 -> 153.73 | M41: ='CEM Price Data'!N41 -> 242.27 | N41: ='CEM Price Data'!O41 -> 80.73 | O41: ='CEM Price Data'!P41 -> 101.73 | P41: ='CEM Price Data'!Q41 -> 84.29 | Q41: ='CEM Price Data'!R41 -> 369.75 | R41: ='CEM Price Data'!S41 -> 82.11 | S41: ='CEM Price Data'!T41 -> 109.07 | T41: ='CEM Price Data'!U41 -> 102.64 | U41: ='CEM Price Data'!V41 -> 30.45 | V41: ='CEM Price Data'!W41 -> 470.75 | W41: ='CEM Price Data'!X41 -> 224.79 | X41: ='CEM Price Data'!Y41 -> 44.04 | Y41: ='CEM Price Data'!Z41 -> 18.14
A42: ='CEM Price Data'!B42 -> 2022-02-03 | B42: ='CEM Price Data'!C42 -> 74.09 | C42: ='CEM Price Data'!D42 -> 139.96 | D42: ='CEM Price Data'!E42 -> 270.58 | E42: ='CEM Price Data'!F42 -> 64.07 | F42: ='CEM Price Data'!G42 -> 468.94 | G42: ='CEM Price Data'!H42 -> 89.56 | H42: ='CEM Price Data'!I42 -> 57.24 | I42: ='CEM Price Data'!J42 -> 136.31 | J42: ='CEM Price Data'!K42 -> 14.64 | K42: ='CEM Price Data'!L42 -> 167 | L42: ='CEM Price Data'!M42 -> 154.7 | M42: ='CEM Price Data'!N42 -> 244.81 | N42: ='CEM Price Data'!O42 -> 73.86 | O42: ='CEM Price Data'!P42 -> 102.9 | P42: ='CEM Price Data'!Q42 -> 86.08 | Q42: ='CEM Price Data'!R42 -> 373.81 | R42: ='CEM Price Data'!S42 -> 81.94 | S42: ='CEM Price Data'!T42 -> 109.7 | T42: ='CEM Price Data'!U42 -> 103.65 | U42: ='CEM Price Data'!V42 -> 30.72 | V42: ='CEM Price Data'!W42 -> 461.39 | W42: ='CEM Price Data'!X42 -> 228.69 | X42: ='CEM Price Data'!Y42 -> 44.46 | Y42: ='CEM Price Data'!Z42 -> 18.65
A43: ='CEM Price Data'!B43 -> 2022-02-02 | B43: ='CEM Price Data'!C43 -> 75.2 | C43: ='CEM Price Data'!D43 -> 143 | D43: ='CEM Price Data'!E43 -> 256.67 | E43: ='CEM Price Data'!F43 -> 64.8 | F43: ='CEM Price Data'!G43 -> 470.27 | G43: ='CEM Price Data'!H43 -> 92.54 | H43: ='CEM Price Data'!I43 -> 58.33 | I43: ='CEM Price Data'!J43 -> 135.91 | J43: ='CEM Price Data'!K43 -> 14.7 | K43: ='CEM Price Data'!L43 -> 170.55 | L43: ='CEM Price Data'!M43 -> 159.4 | M43: ='CEM Price Data'!N43 -> 250.83 | N43: ='CEM Price Data'!O43 -> 72.82 | O43: ='CEM Price Data'!P43 -> 101.66 | P43: ='CEM Price Data'!Q43 -> 87.21 | Q43: ='CEM Price Data'!R43 -> 370.98 | R43: ='CEM Price Data'!S43 -> 82.5 | S43: ='CEM Price Data'!T43 -> 109.48 | T43: ='CEM Price Data'!U43 -> 104.4 | U43: ='CEM Price Data'!V43 -> 31.46 | V43: ='CEM Price Data'!W43 -> 470.71 | W43: ='CEM Price Data'!X43 -> 232.11 | X43: ='CEM Price Data'!Y43 -> 44.66 | Y43: ='CEM Price Data'!Z43 -> 18.93
A44: ='CEM Price Data'!B44 -> 2022-02-01 | B44: ='CEM Price Data'!C44 -> 75.57 | C44: ='CEM Price Data'!D44 -> 145.07 | D44: ='CEM Price Data'!E44 -> 253.23 | E44: ='CEM Price Data'!F44 -> 65.19 | F44: ='CEM Price Data'!G44 -> 467.71 | G44: ='CEM Price Data'!H44 -> 104.57 | H44: ='CEM Price Data'!I44 -> 56.83 | I44: ='CEM Price Data'!J44 -> 135.24 | J44: ='CEM Price Data'!K44 -> 14.89 | K44: ='CEM Price Data'!L44 -> 168.7 | L44: ='CEM Price Data'!M44 -> 158.08 | M44: ='CEM Price Data'!N44 -> 248.28 | N44: ='CEM Price Data'!O44 -> 70.61 | O44: ='CEM Price Data'!P44 -> 100.49 | P44: ='CEM Price Data'!Q44 -> 86.47 | Q44: ='CEM Price Data'!R44 -> 370.58 | R44: ='CEM Price Data'!S44 -> 81.04 | S44: ='CEM Price Data'!T44 -> 108.1 | T44: ='CEM Price Data'!U44 -> 104.85 | U44: ='CEM Price Data'!V44 -> 31.03 | V44: ='CEM Price Data'!W44 -> 475.35 | W44: ='CEM Price Data'!X44 -> 230.69 | X44: ='CEM Price Data'!Y44 -> 44.43 | Y44: ='CEM Price Data'!Z44 -> 19.26
A45: ='CEM Price Data'!B45 -> 2022-01-31 | B45: ='CEM Price Data'!C45 -> 76.42 | C45: ='CEM Price Data'!D45 -> 146.94 | D45: ='CEM Price Data'!E45 -> 254.14 | E45: ='CEM Price Data'!F45 -> 64.89 | F45: ='CEM Price Data'!G45 -> 468.91 | G45: ='CEM Price Data'!H45 -> 104.65 | H45: ='CEM Price Data'!I45 -> 56.77 | I45: ='CEM Price Data'!J45 -> 135.02 | J45: ='CEM Price Data'!K45 -> 14.96 | K45: ='CEM Price Data'!L45 -> 167.81 | L45: ='CEM Price Data'!M45 -> 158.77 | M45: ='CEM Price Data'!N45 -> 245.39 | N45: ='CEM Price Data'!O45 -> 72.24 | O45: ='CEM Price Data'!P45 -> 100.31 | P45: ='CEM Price Data'!Q45 -> 86.72 | Q45: ='CEM Price Data'!R45 -> 369.9 | R45: ='CEM Price Data'!S45 -> 81.16 | S45: ='CEM Price Data'!T45 -> 108.66 | T45: ='CEM Price Data'!U45 -> 104.78 | U45: ='CEM Price Data'!V45 -> 30.85 | V45: ='CEM Price Data'!W45 -> 473.8 | W45: ='CEM Price Data'!X45 -> 202.21 | X45: ='CEM Price Data'!Y45 -> 44.59 | Y45: ='CEM Price Data'!Z45 -> 18.91
A46: ='CEM Price Data'!B46 -> 2022-01-28 | B46: ='CEM Price Data'!C46 -> 75.5 | C46: ='CEM Price Data'!D46 -> 144.53 | D46: ='CEM Price Data'!E46 -> 255.73 | E46: ='CEM Price Data'!F46 -> 64.91 | F46: ='CEM Price Data'!G46 -> 463.52 | G46: ='CEM Price Data'!H46 -> 104.1 | H46: ='CEM Price Data'!I46 -> 57.01 | I46: ='CEM Price Data'!J46 -> 134.85 | J46: ='CEM Price Data'!K46 -> 14.75 | K46: ='CEM Price Data'!L46 -> 165.55 | L46: ='CEM Price Data'!M46 -> 159.64 | M46: ='CEM Price Data'!N46 -> 245.1 | N46: ='CEM Price Data'!O46 -> 71.15 | O46: ='CEM Price Data'!P46 -> 98.23 | P46: ='CEM Price Data'!Q46 -> 85.31 | Q46: ='CEM Price Data'!R46 -> 380.2 | R46: ='CEM Price Data'!S46 -> 80.48 | S46: ='CEM Price Data'!T46 -> 108.72 | T46: ='CEM Price Data'!U46 -> 102.18 | U46: ='CEM Price Data'!V46 -> 29.96 | V46: ='CEM Price Data'!W46 -> 450.52 | W46: ='CEM Price Data'!X46 -> 198.25 | X46: ='CEM Price Data'!Y46 -> 43.75 | Y46: ='CEM Price Data'!Z46 -> 18.84
A47: ='CEM Price Data'!B47 -> 2022-01-27 | B47: ='CEM Price Data'!C47 -> 75.85 | C47: ='CEM Price Data'!D47 -> 142.75 | D47: ='CEM Price Data'!E47 -> 251.19 | E47: ='CEM Price Data'!F47 -> 63.86 | F47: ='CEM Price Data'!G47 -> 452.33 | G47: ='CEM Price Data'!H47 -> 102.82 | H47: ='CEM Price Data'!I47 -> 55.84 | I47: ='CEM Price Data'!J47 -> 135.08 | J47: ='CEM Price Data'!K47 -> 14.6 | K47: ='CEM Price Data'!L47 -> 157.22 | L47: ='CEM Price Data'!M47 -> 158.75 | M47: ='CEM Price Data'!N47 -> 236.72 | N47: ='CEM Price Data'!O47 -> 72.42 | O47: ='CEM Price Data'!P47 -> 98.2 | P47: ='CEM Price Data'!Q47 -> 83.17 | Q47: ='CEM Price Data'!R47 -> 373.99 | R47: ='CEM Price Data'!S47 -> 79.78 | S47: ='CEM Price Data'!T47 -> 107.64 | T47: ='CEM Price Data'!U47 -> 102.98 | U47: ='CEM Price Data'!V47 -> 28.97 | V47: ='CEM Price Data'!W47 -> 433.2 | W47: ='CEM Price Data'!X47 -> 194.83 | X47: ='CEM Price Data'!Y47 -> 43.18 | Y47: ='CEM Price Data'!Z47 -> 18.2
A48: ='CEM Price Data'!B48 -> 2022-01-26 | B48: ='CEM Price Data'!C48 -> 74.72 | C48: ='CEM Price Data'!D48 -> 144.97 | D48: ='CEM Price Data'!E48 -> 253.89 | E48: ='CEM Price Data'!F48 -> 62.24 | F48: ='CEM Price Data'!G48 -> 456.02 | G48: ='CEM Price Data'!H48 -> 102.65 | H48: ='CEM Price Data'!I48 -> 55.66 | I48: ='CEM Price Data'!J48 -> 135.4 | J48: ='CEM Price Data'!K48 -> 14.77 | K48: ='CEM Price Data'!L48 -> 156.82 | L48: ='CEM Price Data'!M48 -> 157.18 | M48: ='CEM Price Data'!N48 -> 237.86 | N48: ='CEM Price Data'!O48 -> 76.12 | O48: ='CEM Price Data'!P48 -> 91.94 | P48: ='CEM Price Data'!Q48 -> 84.59 | Q48: ='CEM Price Data'!R48 -> 403.23 | R48: ='CEM Price Data'!S48 -> 79.59 | S48: ='CEM Price Data'!T48 -> 107.63 | T48: ='CEM Price Data'!U48 -> 101.55 | U48: ='CEM Price Data'!V48 -> 29.7 | V48: ='CEM Price Data'!W48 -> 437.23 | W48: ='CEM Price Data'!X48 -> 199 | X48: ='CEM Price Data'!Y48 -> 43.37 | Y48: ='CEM Price Data'!Z48 -> 18.05
A49: ='CEM Price Data'!B49 -> 2022-01-25 | B49: ='CEM Price Data'!C49 -> 75.4 | C49: ='CEM Price Data'!D49 -> 147.21 | D49: ='CEM Price Data'!E49 -> 258.1 | E49: ='CEM Price Data'!F49 -> 62.46 | F49: ='CEM Price Data'!G49 -> 462.85 | G49: ='CEM Price Data'!H49 -> 105.14 | H49: ='CEM Price Data'!I49 -> 55.87 | I49: ='CEM Price Data'!J49 -> 137.18 | J49: ='CEM Price Data'!K49 -> 15.63 | K49: ='CEM Price Data'!L49 -> 158.85 | L49: ='CEM Price Data'!M49 -> 161.03 | M49: ='CEM Price Data'!N49 -> 239.46 | N49: ='CEM Price Data'!O49 -> 74.92 | O49: ='CEM Price Data'!P49 -> 93.02 | P49: ='CEM Price Data'!Q49 -> 86.33 | Q49: ='CEM Price Data'!R49 -> 403.18 | R49: ='CEM Price Data'!S49 -> 81.07 | S49: ='CEM Price Data'!T49 -> 109.3 | T49: ='CEM Price Data'!U49 -> 103.18 | U49: ='CEM Price Data'!V49 -> 31.26 | V49: ='CEM Price Data'!W49 -> 446.14 | W49: ='CEM Price Data'!X49 -> 201.94 | X49: ='CEM Price Data'!Y49 -> 44.47 | Y49: ='CEM Price Data'!Z49 -> 18.1
A50: ='CEM Price Data'!B50 -> 2022-01-24 | B50: ='CEM Price Data'!C50 -> 78.78 | C50: ='CEM Price Data'!D50 -> 150.68 | D50: ='CEM Price Data'!E50 -> 259.96 | E50: ='CEM Price Data'!F50 -> 62.61 | F50: ='CEM Price Data'!G50 -> 477.53 | G50: ='CEM Price Data'!H50 -> 107.58 | H50: ='CEM Price Data'!I50 -> 56.89 | I50: ='CEM Price Data'!J50 -> 138.3 | J50: ='CEM Price Data'!K50 -> 16.14 | K50: ='CEM Price Data'!L50 -> 163.22 | L50: ='CEM Price Data'!M50 -> 162.82 | M50: ='CEM Price Data'!N50 -> 240.42 | N50: ='CEM Price Data'!O50 -> 74.22 | O50: ='CEM Price Data'!P50 -> 94.17 | P50: ='CEM Price Data'!Q50 -> 88.14 | Q50: ='CEM Price Data'!R50 -> 403.06 | R50: ='CEM Price Data'!S50 -> 82.42 | S50: ='CEM Price Data'!T50 -> 109.88 | T50: ='CEM Price Data'!U50 -> 106.95 | U50: ='CEM Price Data'!V50 -> 31.9 | V50: ='CEM Price Data'!W50 -> 466.82 | W50: ='CEM Price Data'!X50 -> 204.13 | X50: ='CEM Price Data'!Y50 -> 46.05 | Y50: ='CEM Price Data'!Z50 -> 17.86
A51: ='CEM Price Data'!B51 -> 2022-01-21 | B51: ='CEM Price Data'!C51 -> 76.82 | C51: ='CEM Price Data'!D51 -> 148.62 | D51: ='CEM Price Data'!E51 -> 264.63 | E51: ='CEM Price Data'!F51 -> 63.54 | F51: ='CEM Price Data'!G51 -> 470.55 | G51: ='CEM Price Data'!H51 -> 104.98 | H51: ='CEM Price Data'!I51 -> 56.19 | I51: ='CEM Price Data'!J51 -> 137.72 | J51: ='CEM Price Data'!K51 -> 15.72 | K51: ='CEM Price Data'!L51 -> 163.74 | L51: ='CEM Price Data'!M51 -> 162.09 | M51: ='CEM Price Data'!N51 -> 243.06 | N51: ='CEM Price Data'!O51 -> 73.13 | O51: ='CEM Price Data'!P51 -> 95.71 | P51: ='CEM Price Data'!Q51 -> 85.62 | Q51: ='CEM Price Data'!R51 -> 398.81 | R51: ='CEM Price Data'!S51 -> 82.22 | S51: ='CEM Price Data'!T51 -> 108.02 | T51: ='CEM Price Data'!U51 -> 104.83 | U51: ='CEM Price Data'!V51 -> 31.32 | V51: ='CEM Price Data'!W51 -> 454.53 | W51: ='CEM Price Data'!X51 -> 201.95 | X51: ='CEM Price Data'!Y51 -> 44.86 | Y51: ='CEM Price Data'!Z51 -> 18.14
A52: ='CEM Price Data'!B52 -> 2022-01-20 | B52: ='CEM Price Data'!C52 -> 78.21 | C52: ='CEM Price Data'!D52 -> 148.11 | D52: ='CEM Price Data'!E52 -> 263.97 | E52: ='CEM Price Data'!F52 -> 64.58 | F52: ='CEM Price Data'!G52 -> 471.88 | G52: ='CEM Price Data'!H52 -> 105.04 | H52: ='CEM Price Data'!I52 -> 56.04 | I52: ='CEM Price Data'!J52 -> 137.17 | J52: ='CEM Price Data'!K52 -> 15.77 | K52: ='CEM Price Data'!L52 -> 163.08 | L52: ='CEM Price Data'!M52 -> 164.67 | M52: ='CEM Price Data'!N52 -> 243.13 | N52: ='CEM Price Data'!O52 -> 74.33 | O52: ='CEM Price Data'!P52 -> 95.34 | P52: ='CEM Price Data'!Q52 -> 86.37 | Q52: ='CEM Price Data'!R52 -> 397.41 | R52: ='CEM Price Data'!S52 -> 82.72 | S52: ='CEM Price Data'!T52 -> 107.17 | T52: ='CEM Price Data'!U52 -> 105.33 | U52: ='CEM Price Data'!V52 -> 31.65 | V52: ='CEM Price Data'!W52 -> 458.68 | W52: ='CEM Price Data'!X52 -> 202.29 | X52: ='CEM Price Data'!Y52 -> 45.2 | Y52: ='CEM Price Data'!Z52 -> 18.26
A53: ='CEM Price Data'!B53 -> 2022-01-19 | B53: ='CEM Price Data'!C53 -> 79.55 | C53: ='CEM Price Data'!D53 -> 150.68 | D53: ='CEM Price Data'!E53 -> 263.87 | E53: ='CEM Price Data'!F53 -> 64.72 | F53: ='CEM Price Data'!G53 -> 476 | G53: ='CEM Price Data'!H53 -> 107.51 | H53: ='CEM Price Data'!I53 -> 56.29 | I53: ='CEM Price Data'!J53 -> 138.98 | J53: ='CEM Price Data'!K53 -> 15.83 | K53: ='CEM Price Data'!L53 -> 166.42 | L53: ='CEM Price Data'!M53 -> 164.25 | M53: ='CEM Price Data'!N53 -> 245.05 | N53: ='CEM Price Data'!O53 -> 74.82 | O53: ='CEM Price Data'!P53 -> 96.06 | P53: ='CEM Price Data'!Q53 -> 86.73 | Q53: ='CEM Price Data'!R53 -> 401.65 | R53: ='CEM Price Data'!S53 -> 83.38 | S53: ='CEM Price Data'!T53 -> 107.63 | T53: ='CEM Price Data'!U53 -> 105.89 | U53: ='CEM Price Data'!V53 -> 31.99 | V53: ='CEM Price Data'!W53 -> 466.74 | W53: ='CEM Price Data'!X53 -> 203.76 | X53: ='CEM Price Data'!Y53 -> 46.36 | Y53: ='CEM Price Data'!Z53 -> 18.77
A54: ='CEM Price Data'!B54 -> 2022-01-18 | B54: ='CEM Price Data'!C54 -> 80.66 | C54: ='CEM Price Data'!D54 -> 149.75 | D54: ='CEM Price Data'!E54 -> 260.42 | E54: ='CEM Price Data'!F54 -> 64.89 | F54: ='CEM Price Data'!G54 -> 478.86 | G54: ='CEM Price Data'!H54 -> 109.1 | H54: ='CEM Price Data'!I54 -> 56.66 | I54: ='CEM Price Data'!J54 -> 138.83 | J54: ='CEM Price Data'!K54 -> 15.84 | K54: ='CEM Price Data'!L54 -> 165.37 | L54: ='CEM Price Data'!M54 -> 163.6 | M54: ='CEM Price Data'!N54 -> 247.07 | N54: ='CEM Price Data'!O54 -> 74.36 | O54: ='CEM Price Data'!P54 -> 97.47 | P54: ='CEM Price Data'!Q54 -> 86.7 | Q54: ='CEM Price Data'!R54 -> 401.63 | R54: ='CEM Price Data'!S54 -> 85.55 | S54: ='CEM Price Data'!T54 -> 109.87 | T54: ='CEM Price Data'!U54 -> 107.54 | U54: ='CEM Price Data'!V54 -> 31.71 | V54: ='CEM Price Data'!W54 -> 465.94 | W54: ='CEM Price Data'!X54 -> 205.59 | X54: ='CEM Price Data'!Y54 -> 46.82 | Y54: ='CEM Price Data'!Z54 -> 18.12
A55: ='CEM Price Data'!B55 -> 2022-01-14 | B55: ='CEM Price Data'!C55 -> 80.57 | C55: ='CEM Price Data'!D55 -> 155.52 | D55: ='CEM Price Data'!E55 -> 262.62 | E55: ='CEM Price Data'!F55 -> 64.93 | F55: ='CEM Price Data'!G55 -> 485.52 | G55: ='CEM Price Data'!H55 -> 108.29 | H55: ='CEM Price Data'!I55 -> 57.52 | I55: ='CEM Price Data'!J55 -> 142.3 | J55: ='CEM Price Data'!K55 -> 15.95 | K55: ='CEM Price Data'!L55 -> 168.94 | L55: ='CEM Price Data'!M55 -> 165.85 | M55: ='CEM Price Data'!N55 -> 244.12 | N55: ='CEM Price Data'!O55 -> 73.52 | O55: ='CEM Price Data'!P55 -> 96.35 | P55: ='CEM Price Data'!Q55 -> 89.91 | Q55: ='CEM Price Data'!R55 -> 403.45 | R55: ='CEM Price Data'!S55 -> 87.69 | S55: ='CEM Price Data'!T55 -> 109.75 | T55: ='CEM Price Data'!U55 -> 110.1 | U55: ='CEM Price Data'!V55 -> 32.61 | V55: ='CEM Price Data'!W55 -> 480.52 | W55: ='CEM Price Data'!X55 -> 206.54 | X55: ='CEM Price Data'!Y55 -> 46.45 | Y55: ='CEM Price Data'!Z55 -> 18.4
A56: ='CEM Price Data'!B56 -> 2022-01-13 | B56: ='CEM Price Data'!C56 -> 82.94 | C56: ='CEM Price Data'!D56 -> 156.83 | D56: ='CEM Price Data'!E56 -> 263.69 | E56: ='CEM Price Data'!F56 -> 64.6 | F56: ='CEM Price Data'!G56 -> 489.09 | G56: ='CEM Price Data'!H56 -> 108.45 | H56: ='CEM Price Data'!I56 -> 57.77 | I56: ='CEM Price Data'!J56 -> 145.01 | J56: ='CEM Price Data'!K56 -> 16.15 | K56: ='CEM Price Data'!L56 -> 168.2 | L56: ='CEM Price Data'!M56 -> 165.69 | M56: ='CEM Price Data'!N56 -> 249.67 | N56: ='CEM Price Data'!O56 -> 73.2 | O56: ='CEM Price Data'!P56 -> 95.51 | P56: ='CEM Price Data'!Q56 -> 94.37 | Q56: ='CEM Price Data'!R56 -> 397.61 | R56: ='CEM Price Data'!S56 -> 87.79 | S56: ='CEM Price Data'!T56 -> 109.26 | T56: ='CEM Price Data'!U56 -> 110.14 | U56: ='CEM Price Data'!V56 -> 33.5 | V56: ='CEM Price Data'!W56 -> 480.42 | W56: ='CEM Price Data'!X56 -> 210.47 | X56: ='CEM Price Data'!Y56 -> 46.14 | Y56: ='CEM Price Data'!Z56 -> 18.47
A57: ='CEM Price Data'!B57 -> 2022-01-12 | B57: ='CEM Price Data'!C57 -> 83.98 | C57: ='CEM Price Data'!D57 -> 158.35 | D57: ='CEM Price Data'!E57 -> 261.91 | E57: ='CEM Price Data'!F57 -> 64.82 | F57: ='CEM Price Data'!G57 -> 492.78 | G57: ='CEM Price Data'!H57 -> 107.35 | H57: ='CEM Price Data'!I57 -> 57.49 | I57: ='CEM Price Data'!J57 -> 147.14 | J57: ='CEM Price Data'!K57 -> 16.11 | K57: ='CEM Price Data'!L57 -> 171.91 | L57: ='CEM Price Data'!M57 -> 163.37 | M57: ='CEM Price Data'!N57 -> 255.92 | N57: ='CEM Price Data'!O57 -> 72.33 | O57: ='CEM Price Data'!P57 -> 95.37 | P57: ='CEM Price Data'!Q57 -> 93.98 | Q57: ='CEM Price Data'!R57 -> 395.53 | R57: ='CEM Price Data'!S57 -> 88.31 | S57: ='CEM Price Data'!T57 -> 109.85 | T57: ='CEM Price Data'!U57 -> 109 | U57: ='CEM Price Data'!V57 -> 33.87 | V57: ='CEM Price Data'!W57 -> 504.11 | W57: ='CEM Price Data'!X57 -> 211.22 | X57: ='CEM Price Data'!Y57 -> 45.77 | Y57: ='CEM Price Data'!Z57 -> 18.32
A58: ='CEM Price Data'!B58 -> 2022-01-11 | B58: ='CEM Price Data'!C58 -> 83.7 | C58: ='CEM Price Data'!D58 -> 157.18 | D58: ='CEM Price Data'!E58 -> 261.74 | E58: ='CEM Price Data'!F58 -> 65.48 | F58: ='CEM Price Data'!G58 -> 500.34 | G58: ='CEM Price Data'!H58 -> 107.98 | H58: ='CEM Price Data'!I58 -> 57.83 | I58: ='CEM Price Data'!J58 -> 157.88 | J58: ='CEM Price Data'!K58 -> 16.3 | K58: ='CEM Price Data'!L58 -> 169.74 | L58: ='CEM Price Data'!M58 -> 168.46 | M58: ='CEM Price Data'!N58 -> 262.32 | N58: ='CEM Price Data'!O58 -> 74 | O58: ='CEM Price Data'!P58 -> 95.21 | P58: ='CEM Price Data'!Q58 -> 94.58 | Q58: ='CEM Price Data'!R58 -> 400.6 | R58: ='CEM Price Data'!S58 -> 88.48 | S58: ='CEM Price Data'!T58 -> 108.92 | T58: ='CEM Price Data'!U58 -> 111.58 | U58: ='CEM Price Data'!V58 -> 33.6 | V58: ='CEM Price Data'!W58 -> 505 | W58: ='CEM Price Data'!X58 -> 211.27 | X58: ='CEM Price Data'!Y58 -> 45.92 | Y58: ='CEM Price Data'!Z58 -> 18.53
A59: ='CEM Price Data'!B59 -> 2022-01-10 | B59: ='CEM Price Data'!C59 -> 82.89 | C59: ='CEM Price Data'!D59 -> 156.87 | D59: ='CEM Price Data'!E59 -> 259.17 | E59: ='CEM Price Data'!F59 -> 65.1 | F59: ='CEM Price Data'!G59 -> 500.5 | G59: ='CEM Price Data'!H59 -> 107.84 | H59: ='CEM Price Data'!I59 -> 58.35 | I59: ='CEM Price Data'!J59 -> 159.6 | J59: ='CEM Price Data'!K59 -> 16.32 | K59: ='CEM Price Data'!L59 -> 169.56 | L59: ='CEM Price Data'!M59 -> 169.96 | M59: ='CEM Price Data'!N59 -> 260.11 | N59: ='CEM Price Data'!O59 -> 74.35 | O59: ='CEM Price Data'!P59 -> 94.62 | P59: ='CEM Price Data'!Q59 -> 92.73 | Q59: ='CEM Price Data'!R59 -> 402.23 | R59: ='CEM Price Data'!S59 -> 89.28 | S59: ='CEM Price Data'!T59 -> 110 | T59: ='CEM Price Data'!U59 -> 112.18 | U59: ='CEM Price Data'!V59 -> 33.78 | V59: ='CEM Price Data'!W59 -> 486.41 | W59: ='CEM Price Data'!X59 -> 211.73 | X59: ='CEM Price Data'!Y59 -> 45.95 | Y59: ='CEM Price Data'!Z59 -> 18.7
A60: ='CEM Price Data'!B60 -> 2022-01-07 | B60: ='CEM Price Data'!C60 -> 83.15 | C60: ='CEM Price Data'!D60 -> 158.94 | D60: ='CEM Price Data'!E60 -> 254.15 | E60: ='CEM Price Data'!F60 -> 62.83 | F60: ='CEM Price Data'!G60 -> 496.19 | G60: ='CEM Price Data'!H60 -> 108.43 | H60: ='CEM Price Data'!I60 -> 58.26 | I60: ='CEM Price Data'!J60 -> 155.87 | J60: ='CEM Price Data'!K60 -> 16.3 | K60: ='CEM Price Data'!L60 -> 169.75 | L60: ='CEM Price Data'!M60 -> 170.73 | M60: ='CEM Price Data'!N60 -> 259.5 | N60: ='CEM Price Data'!O60 -> 74.21 | O60: ='CEM Price Data'!P60 -> 96.04 | P60: ='CEM Price Data'!Q60 -> 94.06 | Q60: ='CEM Price Data'!R60 -> 400.42 | R60: ='CEM Price Data'!S60 -> 87.51 | S60: ='CEM Price Data'!T60 -> 109.18 | T60: ='CEM Price Data'!U60 -> 112.59 | U60: ='CEM Price Data'!V60 -> 33.69 | V60: ='CEM Price Data'!W60 -> 483.59 | W60: ='CEM Price Data'!X60 -> 218.16 | X60: ='CEM Price Data'!Y60 -> 46 | Y60: ='CEM Price Data'!Z60 -> 19.01
A61: ='CEM Price Data'!B61 -> 2022-01-06 | B61: ='CEM Price Data'!C61 -> 84.1 | C61: ='CEM Price Data'!D61 -> 162.84 | D61: ='CEM Price Data'!E61 -> 249.73 | E61: ='CEM Price Data'!F61 -> 61.48 | F61: ='CEM Price Data'!G61 -> 503.19 | G61: ='CEM Price Data'!H61 -> 110.95 | H61: ='CEM Price Data'!I61 -> 58.81 | I61: ='CEM Price Data'!J61 -> 158.34 | J61: ='CEM Price Data'!K61 -> 16.45 | K61: ='CEM Price Data'!L61 -> 169.6 | L61: ='CEM Price Data'!M61 -> 168.52 | M61: ='CEM Price Data'!N61 -> 259.33 | N61: ='CEM Price Data'!O61 -> 72.87 | O61: ='CEM Price Data'!P61 -> 96.49 | P61: ='CEM Price Data'!Q61 -> 95.52 | Q61: ='CEM Price Data'!R61 -> 397.27 | R61: ='CEM Price Data'!S61 -> 86.34 | S61: ='CEM Price Data'!T61 -> 105.25 | T61: ='CEM Price Data'!U61 -> 112.5 | U61: ='CEM Price Data'!V61 -> 33.55 | V61: ='CEM Price Data'!W61 -> 493.6 | W61: ='CEM Price Data'!X61 -> 216.64 | X61: ='CEM Price Data'!Y61 -> 46.33 | Y61: ='CEM Price Data'!Z61 -> 18.34
A62: ='CEM Price Data'!B62 -> 2022-01-05 | B62: ='CEM Price Data'!C62 -> 83.54 | C62: ='CEM Price Data'!D62 -> 163.77 | D62: ='CEM Price Data'!E62 -> 252.95 | E62: ='CEM Price Data'!F62 -> 62.16 | F62: ='CEM Price Data'!G62 -> 506.31 | G62: ='CEM Price Data'!H62 -> 109.66 | H62: ='CEM Price Data'!I62 -> 58.05 | I62: ='CEM Price Data'!J62 -> 157.32 | J62: ='CEM Price Data'!K62 -> 16.78 | K62: ='CEM Price Data'!L62 -> 172.92 | L62: ='CEM Price Data'!M62 -> 166.31 | M62: ='CEM Price Data'!N62 -> 260.65 | N62: ='CEM Price Data'!O62 -> 73.27 | O62: ='CEM Price Data'!P62 -> 96.92 | P62: ='CEM Price Data'!Q62 -> 96.05 | Q62: ='CEM Price Data'!R62 -> 394.99 | R62: ='CEM Price Data'!S62 -> 86.46 | S62: ='CEM Price Data'!T62 -> 102.89 | T62: ='CEM Price Data'!U62 -> 110.78 | U62: ='CEM Price Data'!V62 -> 32.9 | V62: ='CEM Price Data'!W62 -> 492.59 | W62: ='CEM Price Data'!X62 -> 214.56 | X62: ='CEM Price Data'!Y62 -> 47.58 | Y62: ='CEM Price Data'!Z62 -> 18.45
A66: Average Price | B66: =IFERROR(ROUND(AVERAGE(B3:B62),2),0) -> 72.39 | C66: =IFERROR(ROUND(AVERAGE(C3:C62),2),0) -> 142.46 | D66: 264.31 | E66: 67.32 | F66: 478.25 | G66: 101.33 | H66: 60.23 | I66: 138.65 | J66: 14.83 | K66: 174.94 | L66: 159.42 | M66: 256.96 | N66: 80.06 | O66: 97.81 | P66: 83.44 | Q66: 413.56 | R66: 80.74 | S66: 108.36 | T66: 105.23 | U66: 32.4 | V66: 447.18 | W66: 212.39 | X66: 43.89 | Y66: 18.5
A68: Indicated Dividend | B68: ='CEM Data Lookup'!$J3 -> 1.12 | C68: ='CEM Data Lookup'!$J4 -> 0.64 | D68: ='CEM Data Lookup'!$J5 -> 3.48 | E68: ='CEM Data Lookup'!$J6 -> 2.16 | F68: ='CEM Data Lookup'!$J7 -> 1.44 | G68: ='CEM Data Lookup'!$J8 -> 2.2 | H68: ='CEM Data Lookup'!$J9 -> 1.06 | I68: ='CEM Data Lookup'!$J10 -> 2.64 | J68: ='CEM Data Lookup'!$J11 -> 0.08 | K68: ='CEM Data Lookup'!$J12 -> 1.96 | L68: ='CEM Data Lookup'!$J13 -> 3.2 | M68: ='CEM Data Lookup'!$J14 -> 3.92 | N68: ='CEM Data Lookup'!$J15 -> 1.64 | O68: ='CEM Data Lookup'!$J16 -> 1.48 | P68: ='CEM Data Lookup'!$J17 -> NA | Q68: ='CEM Data Lookup'!$J18 -> 6.28 | R68: ='CEM Data Lookup'!$J19 -> 1.28 | S68: ='CEM Data Lookup'!$J20 -> 0.4 | T68: ='CEM Data Lookup'!$J21 -> 1 | U68: ='CEM Data Lookup'!$J22 -> 0.4 | V68: ='CEM Data Lookup'!$J23 -> NA | W68: ='CEM Data Lookup'!$J24 -> 6.08 | X68: ='CEM Data Lookup'!$J25 -> 0.48 | Y68: ='CEM Data Lookup'!$J26 -> 0.94
A70: Indicated Dividend Yield | B70: =IFERROR(ROUND(100 * (B68/B66),2),0) -> 1.55 | C70: =IFERROR(ROUND(100 * (C68/C66),2),0) -> 0.45 | D70: 1.32 | E70: 3.21 | F70: 0.3 | G70: 2.17 | H70: 1.76 | I70: 1.9 | J70: 0.54 | K70: 1.12 | L70: 2.01 | M70: 1.53 | N70: 2.05 | O70: 1.51 | P70: 0 | Q70: 1.52 | R70: 1.59 | S70: 0.37 | T70: 0.95 | U70: 1.23 | V70: 0 | W70: 2.86 | X70: 1.09 | Y70: 5.08

Sheet MRP WP1
D3: Est. Median Appreciation Potential 3 - 5 Yrs. Hence | G3: Est. Median Annual Appreciation Potential
B4: Date of Value Line Summary & Index | J4: Est. Median Dividend Yield | M4: Est. Median Annual Total Return
B7: 2022-04-01 | D7: 0.5 | G7: =ROUND(((1+D7)^0.25)-1,4) -> 0.1067 | J7: 0.019 | M7: =J7+G7 -> 0.1257
B8: 2022-03-25 | D8: 0.6 | G8: =ROUND(((1+D8)^0.25)-1,4) -> 0.1247 | J8: 0.02 | M8: =J8+G8 -> 0.1447
B9: 2022-03-18 | D9: 0.6 | G9: 0.1247 | J9: 0.02 | M9: 0.1447
B10: 2022-03-11 | D10: 0.5 | G10: 0.1067 | J10: 0.019 | M10: 0.1257
B11: 2022-03-04 | D11: 0.5 | G11: 0.1067 | J11: 0.019 | M11: 0.1257
B12: 2022-02-25 | D12: 0.5 | G12: 0.1067 | J12: 0.019 | M12: 0.1257
B13: 2022-02-18 | D13: 0.5 | G13: 0.1067 | J13: 0.019 | M13: 0.1257
B14: 2022-02-11 | D14: 0.5 | G14: 0.1067 | J14: 0.019 | M14: 0.1257
B15: 2022-02-04 | D15: 0.45 | G15: 0.0973 | J15: 0.018 | M15: 0.1153
B16: 2022-01-28 | D16: 0.35 | G16: 0.0779 | J16: 0.018 | M16: 0.0959
B17: 2022-01-21 | D17: 0.35 | G17: 0.0779 | J17: 0.018 | M17: 0.0959
B18: 2022-01-14 | D18: 0.35 | G18: 0.0779 | J18: 0.017 | M18: 0.0949
B19: 2022-01-07 | D19: 0.35 | G19: 0.0779 | J19: 0.018 | M19: 0.0959
B22: Average | D22: =ROUND(AVERAGE(D7:D19),2) -> 0.47 | G22: =ROUND(((1+D22)^0.25)-1,4) -> 0.1011 | J22: =ROUND(AVERAGE(J7:J19),4) -> 0.0187 | M22: =J22+G22 -> 0.1198
B25: Blue Chip Financial Forecasts
B26: Consensus Forecast Yield for 30-year Treasury Bonds
M27: Aaa Bonds | O27: Baa Bonds
B28: Second Quarter 2022 | F28: 2.6 | G28: % | K28: =B28 -> Second Quarter 2022 | M28: 3.7 | O28: 4.6
B29: Third Quarter 2022 | F29: 2.8 | K29: =B29 -> Third Quarter 2022 | M29: 4 | O29: 4.9
B30: Fourth Quarter 2022 | F30: 3 | K30: Fourth Quarter 2022 | M30: 4.2 | O30: 5.1
B31: First Quarter 2023 | F31: 3.2 | K31: First Quarter 2023 | M31: 4.4 | O31: 5.3
B32: Second Quarter 2023 | F32: 3.3 | K32: Second Quarter 2023 | M32: 4.5 | O32: 5.4
B33: Third Quarter 2023 | F33: 3.3 | H33: Projected | K33: Third Quarter 2023 | M33: 4.6 | O33: 5.5
B34: 2023-2027 | F34: 3.4 | H34: Market | K34: 2023-2027 | M34: 4.4 | O34: 5.2
B35: 2028-2032 | F35: 3.8 | H35: Risk Premium | K35: 2028-2032 | M35: 4.9 | O35: 5.7
B37: Average | F37: =ROUND(AVERAGE(F28:F35),2) -> 3.18 | G37: % | H37: =($M$22*100)-$F$37 -> 8.8 | I37: % | M37: =ROUND(AVERAGE(M28:M35),2) -> 4.34 | O37: =ROUND(AVERAGE(O28:O35),2) -> 5.21
B39: Total Projected Return on S&P 500
B40: Based on Value Line | H40: =ROUND(('MRP WP3'!H504*100)-'MRP WP1'!F37,2) -> 12.72
B42: Average of Value Line MRPs: | H42: =AVERAGE(H37:H40) -> 10.76
B44: Ibbotson-Based MRPs:
B46: PRPM Results | H46: ='PRPM WP1'!I1172*100 -> 8.97708509
B48: SBBI Common Stocks Total Return -
B49: 1926 - 2020 | H49: =Input!F21 -> 12.37 | I49: %
B50: SBBI Long-Term Gov't Bonds Income
B51: Return 1926 - 2020 | H51: =Input!F22 -> 5.02
B53: Historical Market Risk Premium | H53: =H49-H51 -> 7.35 | I53: %
B55: Regression analysis on SBBI data 1926-2021 | H55: ='MRP ERP WP'!AA42*100 -> 9.509392293
B57: Average of Ibbotson-Based MRPs: | H57: =AVERAGE(H55,H53,H46) -> 8.612159127
B59: Total Projected Return on S&P 500
B60: Based on Bloomberg | H60: ='MRP WP2'!Q504*100-F37 -> 11.42174889
B63: Average of Hist'l & Proj'd Market
B64: Risk Premium | H64: =AVERAGE(H37,H40,H46,H53,H55,H60) -> 9.796371045 | I64: %
B66: Source of Information: | C66: Value Line Investment Survey
C67: Blue Chip Financial Forecasts December 1, 2021 and April 1, 2022
C68: Stocks, Bonds, Bills, and Inflation - 2021 SBBI Yearbook, Appendix A Tables, John Wiley & Sons, Inc.
C69: Value Line Summary and Index
B70: Proxy Group | C70: VL Beta | D70: CEM Group | E70: VL Beta
B71: =Input!A2 -> AWR | C71: 0.65 | D71: =Input!C2 -> AOS | E71: 0.85
B72: =Input!A3 -> AWK | C72: 0.85 | D72: =Input!C3 -> BCPC | E72: 0.7
B73: =Input!A4 -> CWT | C73: 0.7 | D73: =Input!C4 -> BDX | E73: 0.75
B74: =Input!A5 -> WTRG | C74: 0.95 | D74: =Input!C5 -> BMY | E74: 0.85
B75: =Input!A6 -> MSEX | C75: 0.7 | D75: =Input!C6 -> CHE | E75: 0.85
B76: =Input!A7 -> SJW | C76: 0.8 | D76: =Input!C7 -> CHRW | E76: 0.75
B77: =Input!A8 -> YORW | C77: 0.85 | D77: =Input!C8 -> CSGS | E77: 0.75
D78: =Input!C9 -> DGX | E78: 0.8
D79: =Input!C10 -> HTLD | E79: 0.75
D80: =Input!C11 -> JKHY | E80: 0.85
D81: =Input!C12 -> LANC | E81: 0.7
D82: =Input!C13 -> LLY | E82: 0.75
D83: =Input!C14 -> MANT | E83: 0.85
D84: =Input!C15 -> MKC | E84: 0.8
D85: =Input!C16 -> MNST | E85: 0.85
D86: =Input!C17 -> NOC | E86: 0.85
D87: =Input!C18 -> ORCL | E87: 0.75
D88: =Input!C19 -> PGR | E88: 0.75
D89: =Input!C20 -> RLI | E89: 0.8
D90: =Input!C21 -> ROL | E90: 0.85
D91: =Input!C22 -> TYL | E91: 0.75
D92: =Input!C23 -> UPS | E92: 0.8
D93: =Input!C24 -> WERN | E93: 0.75
D94: =Input!C25 -> WU | E94: 0.8

Sheet MRP WP2
A1: Date: | B1: =Input!E2 -> 2022-03-31
B2: NAME | C2: TICKER | D2: CUR_MKT_CAP | E2: EQY_DVD_YLD_EST | F2: BEST_EST_LONG_TERM_GROWTH | G2: EQY_SH_OUT | H2: PX_LAST | J2: Company | K2: Ticker | L2: Market Capitalization | M2: Estimated Dividend Yield | N2: Long-Term Growth Est. | O2: DCF Result | P2: Weight in Index | Q2: Weighted DCF Result
A3: A UN Equity | B3: Agilent Technologies Inc | C3: A | D3: 3.971400318e+10 | E3: 0.6385551273 | F3: 10.65 | G3: 300.1134 | H3: 132.33 | J3: =B3 -> Agilent Technologies Inc | K3: =C3 -> A | L3: =D3/1000000 -> 39714.00318 | M3: =IFERROR(E3/100,"0.00%") -> 0.006385551273 | N3: =IFERROR(F3/100,"N/A") -> 0.1065 | O3: =IFERROR(M3*(1+0.5*N3)+N3,"N/A") -> 0.1132255819 | P3: =IF(N3="N/A","N/A",L3/$L$504) -> 0.0009896750829 | Q3: =IF(AND(ISNUMBER(L3),ISNUMBER(O3)),O3*P3,"N/A") -> 0.0001120565371 | R3: =IF(AND(ISNUMBER(L3),ISNUMBER(N3)),P3*N3,"N/A") -> 0.0001054003963
A4: AAL UW Equity | B4: American Airlines Group Inc | C4: AAL | D4: 1.184717214e+10 | E4: 0 | F4: #N/A N/A | G4: 649.1601 | H4: 18.25 | J4: =B4 -> American Airlines Group Inc | K4: =C4 -> AAL | L4: =D4/1000000 -> 11847.17214 | M4: =IFERROR(E4/100,"0.00%") -> 0 | N4: =IFERROR(F4/100,"N/A") -> N/A | O4: =IFERROR(M4*(1+0.5*N4)+N4,"N/A") -> N/A | P4: =IF(N4="N/A","N/A",L4/$L$504) -> N/A | Q4: =IF(AND(ISNUMBER(L4),ISNUMBER(O4)),O4*P4,"N/A") -> N/A | R4: =IF(AND(ISNUMBER(L4),ISNUMBER(N4)),P4*N4,"N/A") -> N/A
A5: AAP UN Equity | B5: Advance Auto Parts Inc | C5: AAP | D5: 1.264475495e+10 | E5: 2.911190568 | F5: 15.843 | G5: 61.09758 | H5: 206.96 | J5: Advance Auto Parts Inc | K5: AAP | L5: 12644.75495 | M5: 0.02911190568 | N5: 0.15843 | O5: 0.1898480053 | P5: 0.0003151079695 | Q5: 5.982261947e-05 | R5: =IF(AND(ISNUMBER(L5),ISNUMBER(N5)),P5*N5,"N/A") -> 4.992255561e-05
A6: AAPL UW Equity | B6: Apple Inc | C6: AAPL | D6: 2.849537593e+12 | E6: 0.5303247237 | F6: 10.8 | G6: 16319.44 | H6: 174.61 | J6: Apple Inc | K6: AAPL | L6: 2849537.593 | M6: 0.005303247237 | N6: 0.108 | O6: 0.1135896226 | P6: 0.0710106292 | Q6: 0.00806607057 | R6: 0.007669147954
A7: ABBV UN Equity | B7: AbbVie Inc | C7: ABBV | D7: 2.86332449e+11 | E7: 3.497625069 | F7: -0.882 | G7: 1766.285 | H7: 162.11 | J7: AbbVie Inc | K7: ABBV | L7: 286332.449 | M7: 0.03497625069 | N7: -0.00882 | O7: 0.02600200543 | P7: 0.007135419942 | Q7: 0.0001855352281 | R7: -6.293440389e-05
A8: ABC UN Equity | B8: AmerisourceBergen Corp | C8: ABC | D8: 3.235565164e+10 | E8: 1.205481223 | F8: 8.245 | G8: 209.1374 | H8: 154.71 | J8: AmerisourceBergen Corp | K8: ABC | L8: 32355.65164 | M8: 0.01205481223 | N8: 0.08245 | O8: 0.09500177186 | P8: 0.0008063045691 | Q8: 7.660036273e-05 | R8: 6.647981172e-05
A9: ABMD UW Equity | B9: ABIOMED Inc | C9: ABMD | D9: 1.507678609e+10 | E9: #N/A N/A | F9: #N/A N/A | G9: 45.5162 | H9: 331.24 | J9: ABIOMED Inc | K9: ABMD | L9: 15076.78609 | M9: 0.00% | N9: N/A | O9: N/A | P9: N/A | Q9: N/A | R9: N/A
A10: ABT UN Equity | B10: Abbott Laboratories | C10: ABT | D10: 2.087257611e+11 | E10: 1.57147685 | F10: 7.33 | G10: 1763.482 | H10: 118.36 | J10: Abbott Laboratories | K10: ABT | L10: 208725.7611 | M10: 0.0157147685 | N10: 0.0733 | O10: 0.08959071477 | P10: 0.005201457129 | Q10: 0.000466002262 | R10: 0.0003812668076
A11: ACN UN Equity | B11: Accenture PLC | C11: ACN | D11: 2.237163377e+11 | E11: 1.157370341 | F11: 11.2 | G11: 662.4343 | H11: 337.23 | J11: Accenture PLC | K11: ACN | L11: 223716.3377 | M11: 0.01157370341 | N11: 0.112 | O11: 0.1242218308 | P11: 0.005575023099 | Q11: 0.0006925395761 | R11: 0.0006244025871
A12: ADBE UW Equity | B12: Adobe Inc | C12: ADBE | D12: 215280450000 | E12: 0 | F12: 17.212 | G12: 472.5 | H12: 455.62 | J12: Adobe Inc | K12: ADBE | L12: 215280.45 | M12: 0 | N12: 0.17212 | O12: 0.17212 | P12: 0.005364800326 | Q12: 0.0009233894322 | R12: 0.0009233894322
A13: ADI UW Equity | B13: Analog Devices Inc | C13: ADI | D13: 8.644119317e+10 | E13: 1.787746701 | F13: 11.175 | G13: 523.3151 | H13: 165.18 | J13: Analog Devices Inc | K13: ADI | L13: 86441.19317 | M13: 0.01787746701 | N13: 0.11175 | O13: 0.1306263705 | P13: 0.002154119156 | Q13: 0.000281384767 | R13: 0.0002407228157
A14: ADM UN Equity | B14: Archer-Daniels-Midland Co | C14: ADM | D14: 5.076921716e+10 | E14: 1.749390649 | F14: 1.235 | G14: 562.4775 | H14: 90.26 | J14: Archer-Daniels-Midland Co | K14: ADM | L14: 50769.21716 | M14: 0.01749390649 | N14: 0.01235 | O14: 0.02995193136 | P14: 0.001265171607 | Q14: 3.789433313e-05 | R14: 1.562486934e-05
A15: ADP UW Equity | B15: Automatic Data Processing Inc | C15: ADP | D15: 9.55770996e+10 | E15: 1.725410917 | F15: 13.45 | G15: 420.0453 | H15: 227.54 | J15: Automatic Data Processing Inc | K15: ADP | L15: 95577.0996 | M15: 0.01725410917 | N15: 0.1345 | O15: 0.152914448 | P15: 0.002381786433 | Q15: 0.0003642095577 | R15: 0.0003203502752
A16: ADSK UW Equity | B16: Autodesk Inc | C16: ADSK | D16: 4.657996423e+10 | E16: 0 | F16: 16.9 | G16: 217.308 | H16: 214.35 | J16: Autodesk Inc | K16: ADSK | L16: 46579.96423 | M16: 0 | N16: 0.169 | O16: 0.169 | P16: 0.001160775199 | Q16: 0.0001961710087 | R16: 0.0001961710087
A17: AEE UN Equity | B17: Ameren Corp | C17: AEE | D17: 24198661384 | E17: 2.49253413 | F17: 7.7 | G17: 258.0915 | H17: 93.76 | J17: Ameren Corp | K17: AEE | L17: 24198.66138 | M17: 0.0249253413 | N17: 0.077 | O17: 0.1028849669 | P17: 0.0006030319357 | Q17: 6.204292077e-05 | R17: 4.643345905e-05
A18: AEP UW Equity | B18: American Electric Power Co Inc | C18: AEP | D18: 5.033863823e+10 | E18: 3.155257091 | F18: 6.115 | G18: 504.5468 | H18: 99.77 | J18: American Electric Power Co Inc | K18: AEP | L18: 50338.63823 | M18: 0.03155257091 | N18: 0.06115 | O18: 0.09366729077 | P18: 0.001254441557 | Q18: 0.000117500142 | R18: 7.670910118e-05
A19: AES UN Equity | B19: AES Corp/The | C19: AES | D19: 1.7172077e+10 | E19: 2.460163234 | F19: 7.3 | G19: 667.3951 | H19: 25.73 | J19: AES Corp/The | K19: AES | L19: 17172.077 | M19: 0.02460163234 | N19: 0.073 | O19: 0.09849959192 | P19: 0.0004279290772 | Q19: 4.215083948e-05 | R19: 3.123882264e-05
A20: AFL UN Equity | B20: Aflac Inc | C20: AFL | D20: 4.181280604e+10 | E20: 2.461562354 | F20: #N/A N/A | G20: 649.368 | H20: 64.39 | J20: Aflac Inc | K20: AFL | L20: 41812.80604 | M20: 0.02461562354 | N20: N/A | O20: N/A | P20: N/A | Q20: N/A | R20: N/A
A21: AIG UN Equity | B21: American International Group Inc | C21: AIG | D21: 5.060816066e+10 | E21: 2.071053051 | F21: 3.967 | G21: 806.2476 | H21: 62.77 | J21: American International Group Inc | K21: AIG | L21: 50608.16066 | M21: 0.02071053051 | N21: 0.03967 | O21: 0.06079132388 | P21: 0.00126115807 | Q21: 7.66674687e-05 | R21: 5.003014063e-05
A22: AIZ UN Equity | B22: Assurant Inc | C22: AIZ | D22: 1.04931191e+10 | E22: 1.515701479 | F22: 17.67 | G22: 57.7084 | H22: 181.83 | J22: Assurant Inc | K22: AIZ | L22: 10493.1191 | M22: 0.01515701479 | N22: 0.1767 | O22: 0.1931961371 | P22: 0.0002614890891 | Q22: 5.051868189e-05 | R22: 4.620512204e-05
A23: AJG UN Equity | B23: Arthur J Gallagher & Co | C23: AJG | D23: 3.659863111e+10 | E23: 1.16838488 | F23: 13.31 | G23: 209.6142 | H23: 174.6 | J23: Arthur J Gallagher & Co | K23: AJG | L23: 36598.63111 | M23: 0.0116838488 | N23: 0.1331 | O23: 0.1455614089 | P23: 0.0009120398445 | Q23: 0.0001327578048 | R23: 0.0001213925033
A24: AKAM UW Equity | B24: Akamai Technologies Inc | C24: AKAM | D24: 1.920967991e+10 | E24: 0 | F24: 16.3 | G24: 160.8986 | H24: 119.39 | J24: Akamai Technologies Inc | K24: AKAM | L24: 19209.67991 | M24: 0 | N24: 0.163 | O24: 0.163 | P24: 0.0004787062507 | Q24: 7.802911887e-05 | R24: 7.802911887e-05
A25: ALB UN Equity | B25: Albemarle Corp | C25: ALB | D25: 2.589940593e+10 | E25: 0.7117341171 | F25: 24.283 | G25: 117.1124 | H25: 221.15 | J25: Albemarle Corp | K25: ALB | L25: 25899.40593 | M25: 0.007117341171 | N25: 0.24283 | O25: 0.2508114931 | P25: 0.0006454145808 | Q25: 0.0001618773947 | R25: 0.0001567260227
A26: ALGN UW Equity | B26: Align Technology Inc | C26: ALGN | D26: 3.435483538e+10 | E26: #N/A N/A | F26: 15.275 | G26: 78.79549 | H26: 436 | J26: Align Technology Inc | K26: ALGN | L26: 34354.83538 | M26: 0.00% | N26: 0.15275 | O26: 0.15275 | P26: 0.0008561243349 | Q26: 0.0001307729922 | R26: 0.0001307729922
A27: ALK UN Equity | B27: Alaska Air Group Inc | C27: ALK | D27: 7314284072 | E27: 0.4361317014 | F27: 153.3 | G27: 126.0866 | H27: 58.01 | J27: Alaska Air Group Inc | K27: ALK | L27: 7314.284072 | M27: 0.004361317014 | N27: 1.533 | O27: 1.540704267 | P27: 0.0001822723502 | Q27: 0.0002808277876 | R27: 0.0002794235129
A28: ALL UN Equity | B28: Allstate Corp/The | C28: ALL | D28: 3.855371277e+10 | E28: 2.448198686 | F28: 3.627 | G28: 278.3461 | H28: 138.51 | J28: Allstate Corp/The | K28: ALL | L28: 38553.71277 | M28: 0.02448198686 | N28: 0.03627 | O28: 0.06119596769 | P28: 0.0009607605839 | Q28: 5.879467365e-05 | R28: 3.484678638e-05
A29: ALLE UN Equity | B29: Allegion plc | C29: ALLE | D29: 9685937923 | E29: 1.451994899 | F29: 8.99 | G29: 88.23044 | H29: 109.78 | J29: Allegion plc | K29: ALLE | L29: 9685.937923 | M29: 0.01451994899 | N29: 0.0899 | O29: 0.1050726207 | P29: 0.000241374091 | Q29: 2.536180831e-05 | R29: 2.169953078e-05
A30: AMAT UW Equity | B30: Applied Materials Inc | C30: AMAT | D30: 1.164314134e+11 | E30: 0.7549317147 | F30: 11.436 | G30: 883.3946 | H30: 131.8 | J30: Applied Materials Inc | K30: AMAT | L30: 116431.4134 | M30: 0.007549317147 | N30: 0.11436 | O30: 0.1223409871 | P30: 0.002901477049 | Q30: 0.0003549695662 | R30: 0.0003318129153
A31: AMCR UN Equity | B31: Amcor PLC | C31: AMCR | D31: 1.715052938e+10 | E31: 4.298323036 | F31: 7.61 | G31: 1513.727 | H31: 11.33 | J31: Amcor PLC | K31: AMCR | L31: 17150.52938 | M31: 0.04298323036 | N31: 0.0761 | O31: 0.1207187423 | P31: 0.0004273921093 | Q31: 5.159423789e-05 | R31: 3.252453952e-05
A32: AMD UW Equity | B32: Advanced Micro Devices Inc | C32: AMD | D32: 1.779360863e+11 | E32: 0 | F32: 33.2 | G32: 1627.365 | H32: 109.34 | J32: Advanced Micro Devices Inc | K32: AMD | L32: 177936.0863 | M32: 0 | N32: 0.332 | O32: 0.332 | P32: 0.004434176785 | Q32: 0.001472146693 | R32: 0.001472146693
A33: AME UN Equity | B33: AMETEK Inc | C33: AME | D33: 3.07873378e+10 | E33: 0.6389848326 | F33: 11.893 | G33: 231.1709 | H33: 133.18 | J33: AMETEK Inc | K33: AME | L33: 30787.3378 | M33: 0.006389848326 | N33: 0.11893 | O33: 0.1256998207 | P33: 0.0007672221043 | Q33: 9.643968092e-05 | R33: 9.124572487e-05
A34: AMGN UW Equity | B34: Amgen Inc | C34: AMGN | D34: 1.347008423e+11 | E34: 3.197006038 | F34: 5.87 | G34: 557.0294 | H34: 241.82 | J34: Amgen Inc | K34: AMGN | L34: 134700.8423 | M34: 0.03197006038 | N34: 0.0587 | O34: 0.09160838165 | P34: 0.003356752192 | Q34: 0.0003075066359 | R34: 0.0001970413537
A35: AMP UN Equity | B35: Ameriprise Financial Inc | C35: AMP | D35: 3.321296689e+10 | E35: 1.611399654 | F35: 14.5 | G35: 110.5772 | H35: 300.36 | J35: Ameriprise Financial Inc | K35: AMP | L35: 33212.96689 | M35: 0.01611399654 | N35: 0.145 | O35: 0.1622822613 | P35: 0.000827668911 | Q35: 0.0001343159825 | R35: 0.0001200119921
A36: AMT UN Equity | B36: American Tower Corp | C36: AMT | D36: 1.14527381e+11 | E36: 2.357296394 | F36: 13.373 | G36: 455.8848 | H36: 251.22 | J36: American Tower Corp | K36: AMT | L36: 114527.381 | M36: 0.02357296394 | N36: 0.13373 | O36: 0.1588791702 | P36: 0.002854028458 | Q36: 0.0004534456731 | R36: 0.0003816692257
A37: AMZN UW Equity | B37: Amazon.com Inc | C37: AMZN | D37: 1.658807334e+12 | E37: 0 | F37: 18.867 | G37: 508.8444 | H37: 3259.95 | J37: Amazon.com Inc | K37: AMZN | L37: 1658807.334 | M37: 0 | N37: 0.18867 | O37: 0.18867 | P37: 0.04133756748 | Q37: 0.007799158856 | R37: 0.007799158856
A38: ANET UN Equity | B38: Arista Networks Inc | C38: ANET | D38: 4.277339901e+10 | E38: 0 | F38: 17.193 | G38: 307.7666 | H38: 138.98 | J38: Arista Networks Inc | K38: ANET | L38: 42773.39901 | M38: 0 | N38: 0.17193 | O38: 0.17193 | P38: 0.001065915391 | Q38: 0.0001832628331 | R38: 0.0001832628331
A39: ANSS UW Equity | B39: ANSYS Inc | C39: ANSS | D39: 2.764382637e+10 | E39: 0 | F39: 11.645 | G39: 87.02606 | H39: 317.65 | J39: ANSYS Inc | K39: ANSS | L39: 27643.82637 | M39: 0 | N39: 0.11645 | O39: 0.11645 | P39: 0.0006888856314 | Q39: 8.022073178e-05 | R39: 8.022073178e-05
A40: ANTM UN Equity | B40: Anthem Inc | C40: ANTM | D40: 1.185335321e+11 | E40: 0.9694230691 | F40: 10.09 | G40: 241.3044 | H40: 491.22 | J40: Anthem Inc | K40: ANTM | L40: 118533.5321 | M40: 0.009694230691 | N40: 0.1009 | O40: 0.1110833046 | P40: 0.00295386196 | Q40: 0.0003281247479 | R40: 0.0002980446717
A41: AON UN Equity | B41: Aon PLC | C41: AON | D41: 6.966673451e+10 | E41: 0.617572091 | F41: 12.05 | G41: 213.9445 | H41: 325.63 | J41: Aon PLC | K41: AON | L41: 69666.73451 | M41: 0.00617572091 | N41: 0.1205 | O41: 0.1270478081 | P41: 0.001736098749 | Q41: 0.0002205675408 | R41: 0.0002091998993
A42: AOS UN Equity | B42: A O Smith Corp | C42: AOS | D42: 1.003218209e+10 | E42: 1.768664893 | F42: 10 | G42: 131.0493 | H42: 63.89 | J42: A O Smith Corp | K42: AOS | L42: 10032.18209 | M42: 0.01768664893 | N42: 0.1 | O42: 0.1185709814 | P42: 0.0002500025142 | Q42: 2.964304346e-05 | R42: 2.500025142e-05
A43: APA UW Equity | B43: APA Corp | C43: APA | D43: 1.433226774e+10 | E43: 1.224292282 | F43: 30.75 | G43: 346.7764 | H43: 41.33 | J43: APA Corp | K43: APA | L43: 14332.26774 | M43: 0.01224292282 | N43: 0.3075 | O43: 0.3216252722 | P43: 0.0003571608786 | Q43: 0.0001148719648 | R43: 0.0001098269702
A44: APD UN Equity | B44: Air Products and Chemicals Inc | C44: APD | D44: 5.540939219e+10 | E44: 2.551718619 | F44: 13.667 | G44: 221.7174 | H44: 249.91 | J44: Air Products and Chemicals Inc | K44: APD | L44: 55409.39219 | M44: 0.02551718619 | N44: 0.13667 | O44: 0.1639309031 | P44: 0.001380805016 | Q44: 0.0002263566133 | R44: 0.0001887146216
A45: APH UN Equity | B45: Amphenol Corp | C45: APH | D45: 4.51301119e+10 | E45: 1.02587923 | F45: 10.135 | G45: 598.9398 | H45: 75.35 | J45: Amphenol Corp | K45: APH | L45: 45130.1119 | M45: 0.0102587923 | N45: 0.10135 | O45: 0.1121286566 | P45: 0.001124644802 | Q45: 0.0001261049108 | R45: 0.0001139827507
A46: APTV UN Equity | B46: Aptiv PLC | C46: APTV | D46: 3.243127703e+10 | E46: 0.1261381672 | F46: 19.67 | G46: 270.9154 | H46: 119.71 | J46: Aptiv PLC | K46: APTV | L46: 32431.27703 | M46: 0.001261381672 | N46: 0.1967 | O46: 0.1980854386 | P46: 0.0008081891578 | Q46: 0.0001600905038 | R46: 0.0001589708073
A47: ARE UN Equity | B47: Alexandria Real Estate Equities Inc | C47: ARE | D47: 3.218859536e+10 | E47: 2.335403727 | F47: -1.93 | G47: 159.9433 | H47: 201.25 | J47: Alexandria Real Estate Equities Inc | K47: ARE | L47: 32188.59536 | M47: 0.02335403727 | N47: -0.0193 | O47: 0.003828670807 | P47: 0.0008021415178 | Q47: 3.071135813e-06 | R47: -1.548133129e-05
A48: ATO UN Equity | B48: Atmos Energy Corp | C48: ATO | D48: 1.618280278e+10 | E48: 2.276341116 | F48: 7.39 | G48: 135.4323 | H48: 119.49 | J48: Atmos Energy Corp | K48: ATO | L48: 16182.80278 | M48: 0.02276341116 | N48: 0.0739 | O48: 0.09750451921 | P48: 0.0004032763106 | Q48: 3.932126278e-05 | R48: 2.980211936e-05
A49: ATVI UW Equity | B49: Activision Blizzard Inc | C49: ATVI | D49: 62559733519 | E49: 0.6166521034 | F49: 11.6 | G49: 780.9229 | H49: 80.11 | J49: Activision Blizzard Inc | K49: ATVI | L49: 62559.73352 | M49: 0.006166521034 | N49: 0.116 | O49: 0.1225241793 | P49: 0.001558991905 | Q49: 0.0001910142036 | R49: 0.0001808430609
A50: AVB UN Equity | B50: AvalonBay Communities Inc | C50: AVB | D50: 3.471032495e+10 | E50: 2.632765632 | F50: 8.057 | G50: 139.7525 | H50: 248.37 | J50: AvalonBay Communities Inc | K50: AVB | L50: 34710.32495 | M50: 0.02632765632 | N50: 0.08057 | O50: 0.107958266 | P50: 0.0008649831539 | Q50: 9.338208137e-05 | R50: 6.969169271e-05
A51: AVGO UW Equity | B51: Broadcom Inc | C51: AVGO | D51: 2.570864871e+11 | E51: 2.584010926 | F51: 5.03 | G51: 408.2812 | H51: 629.68 | J51: Broadcom Inc | K51: AVGO | L51: 257086.4871 | M51: 0.02584010926 | N51: 0.0503 | O51: 0.07678998801 | P51: 0.006406609007 | Q51: 0.0004919634288 | R51: 0.0003222524331
A52: AVY UN Equity | B52: Avery Dennison Corp | C52: AVY | D52: 1.432735728e+10 | E52: 1.60372478 | F52: 5.8 | G52: 82.35533 | H52: 173.97 | J52: Avery Dennison Corp | K52: AVY | L52: 14327.35728 | M52: 0.0160372478 | N52: 0.058 | O52: 0.07450232799 | P52: 0.0003570385096 | Q52: 2.660020015e-05 | R52: 2.070823356e-05
A53: AWK UN Equity | B53: American Water Works Co Inc | C53: AWK | D53: 3.008550142e+10 | E53: 1.556213375 | F53: 7.75 | G53: 181.7526 | H53: 165.53 | J53: American Water Works Co Inc | K53: AWK | L53: 30085.50142 | M53: 0.01556213375 | N53: 0.0775 | O53: 0.09366516644 | P53: 0.0007497323043 | Q53: 7.022380106e-05 | R53: 5.810425358e-05
A54: AXP UN Equity | B54: American Express Co | C54: AXP | D54: 141613025422 | E54: 1.104278075 | F54: 21.123 | G54: 757.2889 | H54: 187 | J54: American Express Co | K54: AXP | L54: 141613.0254 | M54: 0.01104278075 | N54: 0.21123 | O54: 0.223439064 | P54: 0.003529004166 | Q54: 0.0007885173879 | R54: 0.0007454315501
A55: AZO UN Equity | B55: AutoZone Inc | C55: AZO | D55: 4.058259854e+10 | E55: 0 | F55: 12.27 | G55: 19.84887 | H55: 2044.58 | J55: AutoZone Inc | K55: AZO | L55: 40582.59854 | M55: 0 | N55: 0.1227 | O55: 0.1227 | P55: 0.001011320526 | Q55: 0.0001240890285 | R55: 0.0001240890285
A56: BA UN Equity | B56: Boeing Co/The | C56: BA | D56: 1.130586974e+11 | E56: 0 | F56: 80.64 | G56: 590.3848 | H56: 191.5 | J56: Boeing Co/The | K56: BA | L56: 113058.6974 | M56: 0 | N56: 0.8064 | O56: 0.8064 | P56: 0.002817428786 | Q56: 0.002271974573 | R56: 0.002271974573
A57: BAC UN Equity | B57: Bank of America Corp | C57: BAC | D57: 332433316917 | E57: 2.176128093 | F57: 3.25 | G57: 8064.855 | H57: 41.22 | J57: Bank of America Corp | K57: BAC | L57: 332433.3169 | M57: 0.02176128093 | N57: 0.0325 | O57: 0.05461490175 | P57: 0.008284256035 | Q57: 0.0004524438294 | R57: 0.0002692383211
A58: BAX UN Equity | B58: Baxter International Inc | C58: BAX | D58: 39017895380 | E58: 1.51018829 | F58: 12.763 | G58: 503.197 | H58: 77.54 | J58: Baxter International Inc | K58: BAX | L58: 39017.89538 | M58: 0.0151018829 | N58: 0.12763 | O58: 0.1436956096 | P58: 0.0009723280394 | Q58: 0.0001397192703 | R58: 0.0001240982277
A59: BBWI UN Equity | B59: Bath & Body Works Inc | C59: BBWI | D59: 1.141990354e+10 | E59: 1.69874477 | F59: 9.26 | G59: 238.9101 | H59: 47.8 | J59: Bath & Body Works Inc | K59: BBWI | L59: 11419.90354 | M59: 0.0169874477 | N59: 0.0926 | O59: 0.1103739665 | P59: 0.000284584607 | Q59: 3.141073189e-05 | R59: 2.635253461e-05
A60: BBY UN Equity | B60: Best Buy Co Inc | C60: BBY | D60: 2.047320302e+10 | E60: 3.616061606 | F60: 7.24 | G60: 225.2278 | H60: 90.9 | J60: Best Buy Co Inc | K60: BBY | L60: 20473.20302 | M60: 0.03616061606 | N60: 0.0724 | O60: 0.1098696304 | P60: 0.0005101933141 | Q60: 5.605475083e-05 | R60: 3.693799594e-05
